{"text_format":"1","workbook":"xlsx","n_sheets":15,"sheets":["Start","Policies & Goals","1) User Input and Sites","2a) Pre-Screen Rooftop","2b) Pre-Screen Land","3) Pre-Screened Sites","4a) Bldg Rooftop Checklist","4b) Parking Canopy Checklist","4c) Open Field Checklist","4d) Brownfield Checklist","4e) Landfill Checklist","5) Final Sites","6) Permit Checklists","Resources","Lists"],"not_rendered":{"charts":0,"images":17,"macros":1,"external_links":1,"defined_names":2,"comments":3,"pivot_tables":0},"unopened":[],"bounds":{"document_bytes":16777216,"sheet_cells":100000,"rows_first":2000,"rows_last":500,"rows_between":2000,"halvings":0,"cell_chars":16384,"cell_head_chars":4096},"cells_cut":0,"cells_raw":0,"read":"whole","date_system":"1900"}

{"sheet":"Start","index":0,"n_rows":93,"n_cols":14,"rows_kept":93,"cut":false,"hidden":false,"merged":[[85,1,88,9]]}
[]
[null,null,null,"Municipal Solar Site Selection Tool (MSSST)"]
[null,null,null,"For rooftop, carport, open field, brownfield, and landfill sites."]
[null,null,null,"Tutorial video: https://youtu.be/DPIf7XcyTrM"]
[null,null,null,"Created by: Amanda Farthing and Madeline Tyson, Rocky Mountain Institute"]
[null,null,null,"Updated: January 2020"]
[null,null,null,null,null,null,null,null,null,null,null,null," "]
[]
[]
[]
[]
[]
[]
[]
[]
[]
[]
[]
[]
[]
[]
[]
[]
[]
[]
[]
[]
[]
[]
[]
[]
[]
[]
[]
[]
[]
[]
[]
[]
[]
[]
[]
[]
[]
[]
[]
[]
[]
[null,null,null,null,null,null,null,null,null,null,null,null,null,"Table of Contents"]
[]
[null,null,null,null,null,null,null,null,null,null,null,null,null,"  Policies & Goals"]
[null,null,null,null,null,null,null,null,null,null,null,null,null,"  1) User Input and Sites"]
[null,null,null,null,null,null,null,null,null,null,null,null,null,"  2a) Pre-Screen Rooftop"]
[null,null,null,null,null,null,null,null,null,null,null,null,null,"  2b) Pre-Screen Land"]
[null,null,null,null,null,null,null,null,null,null,null,null,null,"  3) Pre-Screened Sites"]
[null,null,null,null,null,null,null,null,null,null,null,null,null,"  4a) Building Rooftop Checklist"]
[null,null,null,null,null,null,null,null,null,null,null,null,null,"  4b) Parking Canopy Checklist"]
[null,null,null,null,null,null,null,null,null,null,null,null,null,"  4c) Open Field Checklist"]
[null,null,null,null,null,null,null,null,null,null,null,null,null,"  4d) Brownfield Checklist"]
[null,null,null,null,null,null,null,null,null,null,null,null,null,"  4e) Landfill Checklist"]
[null,null,null,null,null,null,null,null,null,null,null,null,null,"  5) Final Sites"]
[null,null,null,null,null,null,null,null,null,null,null,null,null,"  6) Permit Checklists"]
[null,null,null,null,null,null,null,null,null,null,null,null,null,"  Resources"]
[]
[]
[]
[]
[]
[]
[]
[]
[]
[]
[]
[]
[]
[]
[]
[]
[]
[]
[]
[]
[]
[null,"Acknowledgements"]
[null,"We are grateful to the following people and institutions for providing thoughtful insight and feedback on this tool: Adam Klinger (U.S. Environmental Protection Agency), Tom Hunt (Pivot Energy), Shaina Kilcoyne (City of Anchorage, AK), Namasté Solar, Edgar Pedrego (Unirac), Tim Rehder (U.S. Environmental Protection Agency), Robi Robichaud (World Resources Institute), Jon Schermerhorn (Array Technologies), and Otto Van Geet (National Renewable Energy Laboratory)."]
[]
[]
[]
[null,"Formatting Disclaimer"]
[null,"Formatting errors may occur when using this workbook on non-Mac operating systems. This should not affect functionality."]
[]
[null,"Please direct all questions or comments to cityrenewablesaccelerator@rmi.org."]

{"sheet":"Policies & Goals","index":1,"n_rows":34,"n_cols":5,"rows_kept":34,"cut":false,"hidden":false,"merged":[]}
[null,"Policies & Goals"]
[]
[]
[]
[]
[]
[]
[]
[]
[]
[]
[]
[]
[]
[]
[]
[null,"Table 1: Solar Policies and Incentives"]
[null,"Policy/Incentive Category","Details","Resources","User Notes"]
[null,"Net metering","Net metering is a billing mechanism that credits solar PV system owners for electricity added to the grid. What are the net metering rules for the sites you are considering? Are there system size or production limits associated with net metering?","  •   Your local utility's website\n  •   Database of State Incentives for Renewables &  \n      Efficiency (DSIRE) Net Metering\n  •   National Conference of State Legislature (NCSL) Net Metering page","[ Record notes here ]"]
[null,"PV system size limitations","Is there an upper limit on grid-connected solar PV system sizes? Is this a capacity or production-based limit? Your utility often dictates these rules, and the rules may be part of the net metering policy.","  •   Your local utility's website\n  •   DSIRE Summary Map","[ Record notes here ]"]
[null,"Aggregated metering","Meter aggregation allows the transfer of solar credits across multiple buildings. This can increase the maximum allowable solar size and improve project financials. Is meter aggregation permitted in your area?","  •   Your local utility's website\n  •   DSIRE Summary Map\n  •   NCSL Net Metering - List of states with meter aggregation policies","[ Record notes here ]"]
[null,"Virtual net metering","Virtual net metering allows multiple customers to offset their energy use from shared distributed generation systems. This can be an enabling policy for community solar programs. Is virtual net metering permitted in your area?","  •   Your local utility's website\n  •   NCSL Shared Renewable Energy Legislation\n  •   DSIRE Summary Map","[ Record notes here ]"]
[null,"Interconnection","What are the applicable interconnection standards, rules, and processes for on-site and off-site generation? What studies, screenings, and/or approvals are required for different project sizes?","  •   Your local utility's website\n  •   DSIRE Summary Map (Search: Program Type - Interconnection; Technology - Solar Photovoltaics)","[ Record notes here ]"]
[null,"Tax incentives, rebates, grant programs","Tax incentives, rebates, and grants can drastically change the financials associated with a solar development project. What federal, state, or local incentives might be applicable to solar projects in your area? Are these one-time rebates or performance-based incentives (PBIs)? Consider that special incentives may exist for developments on contaminated lands.\n\nNote: The Solar Investment Tax Credit (ITC) is a 30% tax credit for solar systems on residential and commercial properties. Beginning in 2020, the ITC will begin to step down according to the following schedule: 26% for projects that begin construction in 2020; 22% for projects that begin construction in 2021; 0% (residential) and 10% (commercial) after 2021.","  •   Your local utility's website\n  •   DSIRE Summary Map\n  •   EPA's Brownfields Program Grant Funding - review the \"Solicitations\" tab to discover open funding opportunities\n  •   SEIA Solar ITC page\n  •   SEIA Performance-Based Incentives page","[ Record notes here ]"]
[]
[]
[null,"Table 2: Prioritize Goals for Solar Development"]
[null,"Potential Goal","Sites you might prioritize in site selection","How important is this goal to the site selection process? (Low, Med, High)","User Notes"]
[null,"Achieve the highest return on investment possible","Sites with the highest net-present value or internal rate of return.",null,"[ Record notes here ]"]
[null,"Achieve renewable energy targets or climate action goals","Large sites for which you can retain RECS. ",null,"[ Record notes here ]"]
[null,"Create local jobs and spur economic development","Sites that are accessible to targeted workforce populations; projects that can include workforce development programs; larger sites or a large portfolio of projects.",null,"[ Record notes here ]"]
[null,"Increase visibility and educational opportunities around solar PV","Highly-visible sites and those near or on educational facilities.",null,"[ Record notes here ]"]
[null,"Increase access to clean energy for low- and moderate-income (LMI) residents","Sites on low-income housing units or sites that host a community-solar project. ",null,"[ Record notes here ]"]
[null,"Enhance resilience","Sites such as emergency facilities or community centers.",null,"[ Record notes here ]"]

{"sheet":"1) User Input and Sites","index":2,"n_rows":142,"n_cols":11,"rows_kept":142,"cut":false,"hidden":false,"merged":[[41,9,41,10]]}
[null,"1. User Input and Sites"]
[]
[]
[]
[]
[]
[]
[]
[]
[]
[]
[]
[]
[]
[]
[]
[null,null,"System Type","Minimum Allowable Project Size [kW]","Power Density [W / sq. ft.]"]
[null,null,"Rooftop and Parking Canopy Systems",25,14]
[null,null,"Ground-Mount Systems",200,4]
[]
[]
[]
[]
[]
[]
[]
[]
[]
[]
[]
[]
[]
[]
[]
[]
[]
[]
[]
[]
[null,"Your Sites"]
[null,"Input all sites that you are considering for solar PV development here (100 sites max). Be sure to fill in all blue fields and do not skip rows. "]
[null,"Site ID","Site Name","Address","General Site Type (Roof, Land, or Parking Lot)","Usable Space for Solar [m2]","PV System Sized to Usable Space [kW] ","Is site large enough?",null,"Calculator: ft2 to m2"]
[null,1,"Site 1","Address 1","Land",80000,{"$f":"IF(E43=\"\",\"\",IF(E43=\"Land\",F43*$E$19/1000*10.7639,F43*$E$18/1000*10.7639))","v":3444.4479999999999},{"$f":"IF(E43=\"\",\"\",IF(E43=\"Land\",IF(G43<$D$19,\"NO\",\"YES\"),IF(G43<$D$18,\"NO\",\"YES\")))","v":"YES"},null,"Enter ft2 value:",100]
[null,2,"Site 2","Address 2","Parking Lot",1500,{"$f":"IF(E44=\"\",\"\",IF(E44=\"Land\",F44*$E$19/1000*10.7639,F44*$E$18/1000*10.7639))","v":226.0419},{"$f":"IF(E44=\"\",\"\",IF(E44=\"Land\",IF(G44<$D$19,\"NO\",\"YES\"),IF(G44<$D$18,\"NO\",\"YES\")))","v":"YES"},null,"Equivalent m2:",{"$f":"K43/10.7639","v":9.2903129906446544}]
[null,3,"Site 3","Address 3","Roof",100,15.069459999999998,"NO"]
[null,4,"Site 4","Address 4","Land",20000,861.11199999999997,"YES"]
[null,5,"Site 5","Address 5","Land",1000,43.055599999999998,"NO"]
[null,6,"Site 6","Address 6","Roof",600,90.416759999999996,"YES"]
[null,7,null,null,null,null,"",""]
[null,8,null,null,null,null,"",""]
[null,9,null,null,null,null,"",""]
[null,10,null,null,null,null,"",""]
[null,11,null,null,null,null,"",""]
[null,12,null,null,null,null,"",""]
[null,13,null,null,null,null,"",""]
[null,14,null,null,null,null,"",""]
[null,15,null,null,null,null,"",""]
[null,16,null,null,null,null,"",""]
[null,17,null,null,null,null,"",""]
[null,18,null,null,null,null,"",""]
[null,19,null,null,null,null,"",""]
[null,20,null,null,null,null,"",""]
[null,21,null,null,null,null,"",""]
[null,22,null,null,null,null,"",""]
[null,23,null,null,null,null,"",""]
[null,24,null,null,null,null,"",""]
[null,25,null,null,null,null,"",""]
[null,26,null,null,null,null,"",""]
[null,27,null,null,null,null,"",""]
[null,28,null,null,null,null,"",""]
[null,29,null,null,null,null,"",""]
[null,30,null,null,null,null,"",""]
[null,31,null,null,null,null,"",""]
[null,32,null,null,null,null,"",""]
[null,33,null,null,null,null,"",{"$f":"IF(E75=\"\",\"\",IF(E75=\"Land\",IF(G75<$D$19,\"NO\",\"YES\"),IF(G75<$D$18,\"NO\",\"YES\")))","v":""}]
[null,34,null,null,null,null,"",""]
[null,35,null,null,null,null,"",""]
[null,36,null,null,null,null,"",""]
[null,37,null,null,null,null,"",""]
[null,38,null,null,null,null,"",""]
[null,39,null,null,null,null,"",""]
[null,40,null,null,null,null,"",""]
[null,41,null,null,null,null,"",""]
[null,42,null,null,null,null,"",""]
[null,43,null,null,null,null,"",""]
[null,44,null,null,null,null,"",""]
[null,45,null,null,null,null,"",""]
[null,46,null,null,null,null,"",""]
[null,47,null,null,null,null,"",""]
[null,48,null,null,null,null,"",""]
[null,49,null,null,null,null,"",""]
[null,50,null,null,null,null,"",""]
[null,51,null,null,null,null,"",""]
[null,52,null,null,null,null,"",""]
[null,53,null,null,null,null,"",""]
[null,54,null,null,null,null,"",""]
[null,55,null,null,null,null,"",""]
[null,56,null,null,null,null,"",""]
[null,57,null,null,null,null,"",""]
[null,58,null,null,null,null,"",""]
[null,59,null,null,null,null,"",""]
[null,60,null,null,null,null,"",""]
[null,61,null,null,null,null,"",""]
[null,62,null,null,null,null,"",""]
[null,63,null,null,null,null,"",""]
[null,64,null,null,null,null,"",""]
[null,65,null,null,null,null,"",{"$f":"IF(E107=\"\",\"\",IF(E107=\"Land\",IF(G107<$D$19,\"NO\",\"YES\"),IF(G107<$D$18,\"NO\",\"YES\")))","v":""}]
[null,66,null,null,null,null,{"$f":"IF(E108=\"\",\"\",IF(E108=\"Land\",F108*$E$19/1000*10.7639,F108*$E$18/1000*10.7639))","v":""},""]
[null,67,null,null,null,null,"",""]
[null,68,null,null,null,null,"",""]
[null,69,null,null,null,null,"",""]
[null,70,null,null,null,null,"",""]
[null,71,null,null,null,null,"",""]
[null,72,null,null,null,null,"",""]
[null,73,null,null,null,null,"",""]
[null,74,null,null,null,null,"",""]
[null,75,null,null,null,null,"",""]
[null,76,null,null,null,null,"",""]
[null,77,null,null,null,null,"",""]
[null,78,null,null,null,null,"",""]
[null,79,null,null,null,null,"",""]
[null,80,null,null,null,null,"",""]
[null,81,null,null,null,null,"",""]
[null,82,null,null,null,null,"",""]
[null,83,null,null,null,null,"",""]
[null,84,null,null,null,null,"",""]
[null,85,null,null,null,null,"",""]
[null,86,null,null,null,null,"",""]
[null,87,null,null,null,null,"",""]
[null,88,null,null,null,null,"",""]
[null,89,null,null,null,null,"",""]
[null,90,null,null,null,null,"",""]
[null,91,null,null,null,null,"",""]
[null,92,null,null,null,null,"",""]
[null,93,null,null,null,null,"",""]
[null,94,null,null,null,null,"",""]
[null,95,null,null,null,null,"",""]
[null,96,null,null,null,null,"",""]
[null,97,null,null,null,null,"",{"$f":"IF(E139=\"\",\"\",IF(E139=\"Land\",IF(G139<$D$19,\"NO\",\"YES\"),IF(G139<$D$18,\"NO\",\"YES\")))","v":""}]
[null,98,null,null,null,null,"",{"$f":"IF(E140=\"\",\"\",IF(E140=\"Land\",IF(G140<$D$19,\"NO\",\"YES\"),IF(G140<$D$18,\"NO\",\"YES\")))","v":""}]
[null,99,null,null,null,null,"",{"$f":"IF(E141=\"\",\"\",IF(E141=\"Land\",IF(G141<$D$19,\"NO\",\"YES\"),IF(G141<$D$18,\"NO\",\"YES\")))","v":""}]
[null,100,null,null,null,null,{"$f":"IF(E142=\"\",\"\",IF(E142=\"Land\",F142*$E$19/1000*10.7639,F142*$E$18/1000*10.7639))","v":""},{"$f":"IF(E142=\"\",\"\",IF(E142=\"Land\",IF(G142<$D$19,\"NO\",\"YES\"),IF(G142<$D$18,\"NO\",\"YES\")))","v":""}]

{"sheet":"2a) Pre-Screen Rooftop","index":3,"n_rows":35,"n_cols":106,"rows_kept":35,"cut":false,"hidden":false,"merged":[[29,4,29,5],[32,3,32,4],[33,3,33,4],[34,3,34,4],[24,4,24,5],[25,4,25,5],[26,4,26,5],[27,4,27,5],[28,4,28,5]]}
[null,"2a. Pre-Screen Checklist for Rooftop Sites"]
[]
[]
[]
[]
[]
[]
[]
[]
[]
[]
[]
[]
[]
[]
[]
[]
[]
[]
[]
[]
[]
[]
[]
[null,null,null,null,"Site Number:"]
[null,null,null,null,"Site Name:",null,{"$f":"IF(G25<>\"\",VLOOKUP(G25,'1) User Input and Sites'!$B$43:$D$142,2,FALSE),\"\")","v":""},{"$f":"IF(H25<>\"\",VLOOKUP(H25,'1) User Input and Sites'!$B$43:$D$142,2,FALSE),\"\")","v":""},{"$f":"IF(I25<>\"\",VLOOKUP(I25,'1) User Input and Sites'!$B$43:$D$142,2,FALSE),\"\")","v":""},{"$f":"IF(J25<>\"\",VLOOKUP(J25,'1) User Input and Sites'!$B$43:$D$142,2,FALSE),\"\")","v":""},{"$f":"IF(K25<>\"\",VLOOKUP(K25,'1) User Input and Sites'!$B$43:$D$142,2,FALSE),\"\")","v":""},{"$f":"IF(L25<>\"\",VLOOKUP(L25,'1) User Input and Sites'!$B$43:$D$142,2,FALSE),\"\")","v":""},{"$f":"IF(M25<>\"\",VLOOKUP(M25,'1) User Input and Sites'!$B$43:$D$142,2,FALSE),\"\")","v":""},{"$f":"IF(N25<>\"\",VLOOKUP(N25,'1) User Input and Sites'!$B$43:$D$142,2,FALSE),\"\")","v":""},{"$f":"IF(O25<>\"\",VLOOKUP(O25,'1) User Input and Sites'!$B$43:$D$142,2,FALSE),\"\")","v":""},{"$f":"IF(P25<>\"\",VLOOKUP(P25,'1) User Input and Sites'!$B$43:$D$142,2,FALSE),\"\")","v":""},{"$f":"IF(Q25<>\"\",VLOOKUP(Q25,'1) User Input and Sites'!$B$43:$D$142,2,FALSE),\"\")","v":""},{"$f":"IF(R25<>\"\",VLOOKUP(R25,'1) User Input and Sites'!$B$43:$D$142,2,FALSE),\"\")","v":""},{"$f":"IF(S25<>\"\",VLOOKUP(S25,'1) User Input and Sites'!$B$43:$D$142,2,FALSE),\"\")","v":""},{"$f":"IF(T25<>\"\",VLOOKUP(T25,'1) User Input and Sites'!$B$43:$D$142,2,FALSE),\"\")","v":""},{"$f":"IF(U25<>\"\",VLOOKUP(U25,'1) User Input and Sites'!$B$43:$D$142,2,FALSE),\"\")","v":""},{"$f":"IF(V25<>\"\",VLOOKUP(V25,'1) User Input and Sites'!$B$43:$D$142,2,FALSE),\"\")","v":""},{"$f":"IF(W25<>\"\",VLOOKUP(W25,'1) User Input and Sites'!$B$43:$D$142,2,FALSE),\"\")","v":""},{"$f":"IF(X25<>\"\",VLOOKUP(X25,'1) User Input and Sites'!$B$43:$D$142,2,FALSE),\"\")","v":""},{"$f":"IF(Y25<>\"\",VLOOKUP(Y25,'1) User Input and Sites'!$B$43:$D$142,2,FALSE),\"\")","v":""},{"$f":"IF(Z25<>\"\",VLOOKUP(Z25,'1) User Input and Sites'!$B$43:$D$142,2,FALSE),\"\")","v":""},{"$f":"IF(AA25<>\"\",VLOOKUP(AA25,'1) User Input and Sites'!$B$43:$D$142,2,FALSE),\"\")","v":""},{"$f":"IF(AB25<>\"\",VLOOKUP(AB25,'1) User Input and Sites'!$B$43:$D$142,2,FALSE),\"\")","v":""},{"$f":"IF(AC25<>\"\",VLOOKUP(AC25,'1) User Input and Sites'!$B$43:$D$142,2,FALSE),\"\")","v":""},{"$f":"IF(AD25<>\"\",VLOOKUP(AD25,'1) User Input and Sites'!$B$43:$D$142,2,FALSE),\"\")","v":""},{"$f":"IF(AE25<>\"\",VLOOKUP(AE25,'1) User Input and Sites'!$B$43:$D$142,2,FALSE),\"\")","v":""},{"$f":"IF(AF25<>\"\",VLOOKUP(AF25,'1) User Input and Sites'!$B$43:$D$142,2,FALSE),\"\")","v":""},{"$f":"IF(AG25<>\"\",VLOOKUP(AG25,'1) User Input and Sites'!$B$43:$D$142,2,FALSE),\"\")","v":""},{"$f":"IF(AH25<>\"\",VLOOKUP(AH25,'1) User Input and Sites'!$B$43:$D$142,2,FALSE),\"\")","v":""},{"$f":"IF(AI25<>\"\",VLOOKUP(AI25,'1) User Input and Sites'!$B$43:$D$142,2,FALSE),\"\")","v":""},{"$f":"IF(AJ25<>\"\",VLOOKUP(AJ25,'1) User Input and Sites'!$B$43:$D$142,2,FALSE),\"\")","v":""},{"$f":"IF(AK25<>\"\",VLOOKUP(AK25,'1) User Input and Sites'!$B$43:$D$142,2,FALSE),\"\")","v":""},{"$f":"IF(AL25<>\"\",VLOOKUP(AL25,'1) User Input and Sites'!$B$43:$D$142,2,FALSE),\"\")","v":""},{"$f":"IF(AM25<>\"\",VLOOKUP(AM25,'1) User Input and Sites'!$B$43:$D$142,2,FALSE),\"\")","v":""},{"$f":"IF(AN25<>\"\",VLOOKUP(AN25,'1) User Input and Sites'!$B$43:$D$142,2,FALSE),\"\")","v":""},{"$f":"IF(AO25<>\"\",VLOOKUP(AO25,'1) User Input and Sites'!$B$43:$D$142,2,FALSE),\"\")","v":""},{"$f":"IF(AP25<>\"\",VLOOKUP(AP25,'1) User Input and Sites'!$B$43:$D$142,2,FALSE),\"\")","v":""},{"$f":"IF(AQ25<>\"\",VLOOKUP(AQ25,'1) User Input and Sites'!$B$43:$D$142,2,FALSE),\"\")","v":""},{"$f":"IF(AR25<>\"\",VLOOKUP(AR25,'1) User Input and Sites'!$B$43:$D$142,2,FALSE),\"\")","v":""},{"$f":"IF(AS25<>\"\",VLOOKUP(AS25,'1) User Input and Sites'!$B$43:$D$142,2,FALSE),\"\")","v":""},{"$f":"IF(AT25<>\"\",VLOOKUP(AT25,'1) User Input and Sites'!$B$43:$D$142,2,FALSE),\"\")","v":""},{"$f":"IF(AU25<>\"\",VLOOKUP(AU25,'1) User Input and Sites'!$B$43:$D$142,2,FALSE),\"\")","v":""},{"$f":"IF(AV25<>\"\",VLOOKUP(AV25,'1) User Input and Sites'!$B$43:$D$142,2,FALSE),\"\")","v":""},{"$f":"IF(AW25<>\"\",VLOOKUP(AW25,'1) User Input and Sites'!$B$43:$D$142,2,FALSE),\"\")","v":""},{"$f":"IF(AX25<>\"\",VLOOKUP(AX25,'1) User Input and Sites'!$B$43:$D$142,2,FALSE),\"\")","v":""},{"$f":"IF(AY25<>\"\",VLOOKUP(AY25,'1) User Input and Sites'!$B$43:$D$142,2,FALSE),\"\")","v":""},{"$f":"IF(AZ25<>\"\",VLOOKUP(AZ25,'1) User Input and Sites'!$B$43:$D$142,2,FALSE),\"\")","v":""},{"$f":"IF(BA25<>\"\",VLOOKUP(BA25,'1) User Input and Sites'!$B$43:$D$142,2,FALSE),\"\")","v":""},{"$f":"IF(BB25<>\"\",VLOOKUP(BB25,'1) User Input and Sites'!$B$43:$D$142,2,FALSE),\"\")","v":""},{"$f":"IF(BC25<>\"\",VLOOKUP(BC25,'1) User Input and Sites'!$B$43:$D$142,2,FALSE),\"\")","v":""},{"$f":"IF(BD25<>\"\",VLOOKUP(BD25,'1) User Input and Sites'!$B$43:$D$142,2,FALSE),\"\")","v":""},{"$f":"IF(BE25<>\"\",VLOOKUP(BE25,'1) User Input and Sites'!$B$43:$D$142,2,FALSE),\"\")","v":""},{"$f":"IF(BF25<>\"\",VLOOKUP(BF25,'1) User Input and Sites'!$B$43:$D$142,2,FALSE),\"\")","v":""},{"$f":"IF(BG25<>\"\",VLOOKUP(BG25,'1) User Input and Sites'!$B$43:$D$142,2,FALSE),\"\")","v":""},{"$f":"IF(BH25<>\"\",VLOOKUP(BH25,'1) User Input and Sites'!$B$43:$D$142,2,FALSE),\"\")","v":""},{"$f":"IF(BI25<>\"\",VLOOKUP(BI25,'1) User Input and Sites'!$B$43:$D$142,2,FALSE),\"\")","v":""},{"$f":"IF(BJ25<>\"\",VLOOKUP(BJ25,'1) User Input and Sites'!$B$43:$D$142,2,FALSE),\"\")","v":""},{"$f":"IF(BK25<>\"\",VLOOKUP(BK25,'1) User Input and Sites'!$B$43:$D$142,2,FALSE),\"\")","v":""},{"$f":"IF(BL25<>\"\",VLOOKUP(BL25,'1) User Input and Sites'!$B$43:$D$142,2,FALSE),\"\")","v":""},{"$f":"IF(BM25<>\"\",VLOOKUP(BM25,'1) User Input and Sites'!$B$43:$D$142,2,FALSE),\"\")","v":""},{"$f":"IF(BN25<>\"\",VLOOKUP(BN25,'1) User Input and Sites'!$B$43:$D$142,2,FALSE),\"\")","v":""},{"$f":"IF(BO25<>\"\",VLOOKUP(BO25,'1) User Input and Sites'!$B$43:$D$142,2,FALSE),\"\")","v":""},{"$f":"IF(BP25<>\"\",VLOOKUP(BP25,'1) User Input and Sites'!$B$43:$D$142,2,FALSE),\"\")","v":""},{"$f":"IF(BQ25<>\"\",VLOOKUP(BQ25,'1) User Input and Sites'!$B$43:$D$142,2,FALSE),\"\")","v":""},{"$f":"IF(BR25<>\"\",VLOOKUP(BR25,'1) User Input and Sites'!$B$43:$D$142,2,FALSE),\"\")","v":""},{"$f":"IF(BS25<>\"\",VLOOKUP(BS25,'1) User Input and Sites'!$B$43:$D$142,2,FALSE),\"\")","v":""},{"$f":"IF(BT25<>\"\",VLOOKUP(BT25,'1) User Input and Sites'!$B$43:$D$142,2,FALSE),\"\")","v":""},{"$f":"IF(BU25<>\"\",VLOOKUP(BU25,'1) User Input and Sites'!$B$43:$D$142,2,FALSE),\"\")","v":""},{"$f":"IF(BV25<>\"\",VLOOKUP(BV25,'1) User Input and Sites'!$B$43:$D$142,2,FALSE),\"\")","v":""},{"$f":"IF(BW25<>\"\",VLOOKUP(BW25,'1) User Input and Sites'!$B$43:$D$142,2,FALSE),\"\")","v":""},{"$f":"IF(BX25<>\"\",VLOOKUP(BX25,'1) User Input and Sites'!$B$43:$D$142,2,FALSE),\"\")","v":""},{"$f":"IF(BY25<>\"\",VLOOKUP(BY25,'1) User Input and Sites'!$B$43:$D$142,2,FALSE),\"\")","v":""},{"$f":"IF(BZ25<>\"\",VLOOKUP(BZ25,'1) User Input and Sites'!$B$43:$D$142,2,FALSE),\"\")","v":""},{"$f":"IF(CA25<>\"\",VLOOKUP(CA25,'1) User Input and Sites'!$B$43:$D$142,2,FALSE),\"\")","v":""},{"$f":"IF(CB25<>\"\",VLOOKUP(CB25,'1) User Input and Sites'!$B$43:$D$142,2,FALSE),\"\")","v":""},{"$f":"IF(CC25<>\"\",VLOOKUP(CC25,'1) User Input and Sites'!$B$43:$D$142,2,FALSE),\"\")","v":""},{"$f":"IF(CD25<>\"\",VLOOKUP(CD25,'1) User Input and Sites'!$B$43:$D$142,2,FALSE),\"\")","v":""},{"$f":"IF(CE25<>\"\",VLOOKUP(CE25,'1) User Input and Sites'!$B$43:$D$142,2,FALSE),\"\")","v":""},{"$f":"IF(CF25<>\"\",VLOOKUP(CF25,'1) User Input and Sites'!$B$43:$D$142,2,FALSE),\"\")","v":""},{"$f":"IF(CG25<>\"\",VLOOKUP(CG25,'1) User Input and Sites'!$B$43:$D$142,2,FALSE),\"\")","v":""},{"$f":"IF(CH25<>\"\",VLOOKUP(CH25,'1) User Input and Sites'!$B$43:$D$142,2,FALSE),\"\")","v":""},{"$f":"IF(CI25<>\"\",VLOOKUP(CI25,'1) User Input and Sites'!$B$43:$D$142,2,FALSE),\"\")","v":""},{"$f":"IF(CJ25<>\"\",VLOOKUP(CJ25,'1) User Input and Sites'!$B$43:$D$142,2,FALSE),\"\")","v":""},{"$f":"IF(CK25<>\"\",VLOOKUP(CK25,'1) User Input and Sites'!$B$43:$D$142,2,FALSE),\"\")","v":""},{"$f":"IF(CL25<>\"\",VLOOKUP(CL25,'1) User Input and Sites'!$B$43:$D$142,2,FALSE),\"\")","v":""},{"$f":"IF(CM25<>\"\",VLOOKUP(CM25,'1) User Input and Sites'!$B$43:$D$142,2,FALSE),\"\")","v":""},{"$f":"IF(CN25<>\"\",VLOOKUP(CN25,'1) User Input and Sites'!$B$43:$D$142,2,FALSE),\"\")","v":""},{"$f":"IF(CO25<>\"\",VLOOKUP(CO25,'1) User Input and Sites'!$B$43:$D$142,2,FALSE),\"\")","v":""},{"$f":"IF(CP25<>\"\",VLOOKUP(CP25,'1) User Input and Sites'!$B$43:$D$142,2,FALSE),\"\")","v":""},{"$f":"IF(CQ25<>\"\",VLOOKUP(CQ25,'1) User Input and Sites'!$B$43:$D$142,2,FALSE),\"\")","v":""},{"$f":"IF(CR25<>\"\",VLOOKUP(CR25,'1) User Input and Sites'!$B$43:$D$142,2,FALSE),\"\")","v":""},{"$f":"IF(CS25<>\"\",VLOOKUP(CS25,'1) User Input and Sites'!$B$43:$D$142,2,FALSE),\"\")","v":""},{"$f":"IF(CT25<>\"\",VLOOKUP(CT25,'1) User Input and Sites'!$B$43:$D$142,2,FALSE),\"\")","v":""},{"$f":"IF(CU25<>\"\",VLOOKUP(CU25,'1) User Input and Sites'!$B$43:$D$142,2,FALSE),\"\")","v":""},{"$f":"IF(CV25<>\"\",VLOOKUP(CV25,'1) User Input and Sites'!$B$43:$D$142,2,FALSE),\"\")","v":""},{"$f":"IF(CW25<>\"\",VLOOKUP(CW25,'1) User Input and Sites'!$B$43:$D$142,2,FALSE),\"\")","v":""},{"$f":"IF(CX25<>\"\",VLOOKUP(CX25,'1) User Input and Sites'!$B$43:$D$142,2,FALSE),\"\")","v":""},{"$f":"IF(CY25<>\"\",VLOOKUP(CY25,'1) User Input and Sites'!$B$43:$D$142,2,FALSE),\"\")","v":""},{"$f":"IF(CZ25<>\"\",VLOOKUP(CZ25,'1) User Input and Sites'!$B$43:$D$142,2,FALSE),\"\")","v":""},{"$f":"IF(DA25<>\"\",VLOOKUP(DA25,'1) User Input and Sites'!$B$43:$D$142,2,FALSE),\"\")","v":""},{"$f":"IF(DB25<>\"\",VLOOKUP(DB25,'1) User Input and Sites'!$B$43:$D$142,2,FALSE),\"\")","v":""}]
[null,null,null,null,"Site Address:",null,{"$f":"IF(G25<>\"\",VLOOKUP(G25,'1) User Input and Sites'!$B$43:$D$142,3,FALSE),\"\")","v":""},{"$f":"IF(H25<>\"\",VLOOKUP(H25,'1) User Input and Sites'!$B$43:$D$142,3,FALSE),\"\")","v":""},{"$f":"IF(I25<>\"\",VLOOKUP(I25,'1) User Input and Sites'!$B$43:$D$142,3,FALSE),\"\")","v":""},{"$f":"IF(J25<>\"\",VLOOKUP(J25,'1) User Input and Sites'!$B$43:$D$142,3,FALSE),\"\")","v":""},{"$f":"IF(K25<>\"\",VLOOKUP(K25,'1) User Input and Sites'!$B$43:$D$142,3,FALSE),\"\")","v":""},{"$f":"IF(L25<>\"\",VLOOKUP(L25,'1) User Input and Sites'!$B$43:$D$142,3,FALSE),\"\")","v":""},{"$f":"IF(M25<>\"\",VLOOKUP(M25,'1) User Input and Sites'!$B$43:$D$142,3,FALSE),\"\")","v":""},{"$f":"IF(N25<>\"\",VLOOKUP(N25,'1) User Input and Sites'!$B$43:$D$142,3,FALSE),\"\")","v":""},{"$f":"IF(O25<>\"\",VLOOKUP(O25,'1) User Input and Sites'!$B$43:$D$142,3,FALSE),\"\")","v":""},{"$f":"IF(P25<>\"\",VLOOKUP(P25,'1) User Input and Sites'!$B$43:$D$142,3,FALSE),\"\")","v":""},{"$f":"IF(Q25<>\"\",VLOOKUP(Q25,'1) User Input and Sites'!$B$43:$D$142,3,FALSE),\"\")","v":""},{"$f":"IF(R25<>\"\",VLOOKUP(R25,'1) User Input and Sites'!$B$43:$D$142,3,FALSE),\"\")","v":""},{"$f":"IF(S25<>\"\",VLOOKUP(S25,'1) User Input and Sites'!$B$43:$D$142,3,FALSE),\"\")","v":""},{"$f":"IF(T25<>\"\",VLOOKUP(T25,'1) User Input and Sites'!$B$43:$D$142,3,FALSE),\"\")","v":""},{"$f":"IF(U25<>\"\",VLOOKUP(U25,'1) User Input and Sites'!$B$43:$D$142,3,FALSE),\"\")","v":""},{"$f":"IF(V25<>\"\",VLOOKUP(V25,'1) User Input and Sites'!$B$43:$D$142,3,FALSE),\"\")","v":""},{"$f":"IF(W25<>\"\",VLOOKUP(W25,'1) User Input and Sites'!$B$43:$D$142,3,FALSE),\"\")","v":""},{"$f":"IF(X25<>\"\",VLOOKUP(X25,'1) User Input and Sites'!$B$43:$D$142,3,FALSE),\"\")","v":""},{"$f":"IF(Y25<>\"\",VLOOKUP(Y25,'1) User Input and Sites'!$B$43:$D$142,3,FALSE),\"\")","v":""},{"$f":"IF(Z25<>\"\",VLOOKUP(Z25,'1) User Input and Sites'!$B$43:$D$142,3,FALSE),\"\")","v":""},{"$f":"IF(AA25<>\"\",VLOOKUP(AA25,'1) User Input and Sites'!$B$43:$D$142,3,FALSE),\"\")","v":""},{"$f":"IF(AB25<>\"\",VLOOKUP(AB25,'1) User Input and Sites'!$B$43:$D$142,3,FALSE),\"\")","v":""},{"$f":"IF(AC25<>\"\",VLOOKUP(AC25,'1) User Input and Sites'!$B$43:$D$142,3,FALSE),\"\")","v":""},{"$f":"IF(AD25<>\"\",VLOOKUP(AD25,'1) User Input and Sites'!$B$43:$D$142,3,FALSE),\"\")","v":""},{"$f":"IF(AE25<>\"\",VLOOKUP(AE25,'1) User Input and Sites'!$B$43:$D$142,3,FALSE),\"\")","v":""},{"$f":"IF(AF25<>\"\",VLOOKUP(AF25,'1) User Input and Sites'!$B$43:$D$142,3,FALSE),\"\")","v":""},{"$f":"IF(AG25<>\"\",VLOOKUP(AG25,'1) User Input and Sites'!$B$43:$D$142,3,FALSE),\"\")","v":""},{"$f":"IF(AH25<>\"\",VLOOKUP(AH25,'1) User Input and Sites'!$B$43:$D$142,3,FALSE),\"\")","v":""},{"$f":"IF(AI25<>\"\",VLOOKUP(AI25,'1) User Input and Sites'!$B$43:$D$142,3,FALSE),\"\")","v":""},{"$f":"IF(AJ25<>\"\",VLOOKUP(AJ25,'1) User Input and Sites'!$B$43:$D$142,3,FALSE),\"\")","v":""},{"$f":"IF(AK25<>\"\",VLOOKUP(AK25,'1) User Input and Sites'!$B$43:$D$142,3,FALSE),\"\")","v":""},{"$f":"IF(AL25<>\"\",VLOOKUP(AL25,'1) User Input and Sites'!$B$43:$D$142,3,FALSE),\"\")","v":""},{"$f":"IF(AM25<>\"\",VLOOKUP(AM25,'1) User Input and Sites'!$B$43:$D$142,3,FALSE),\"\")","v":""},{"$f":"IF(AN25<>\"\",VLOOKUP(AN25,'1) User Input and Sites'!$B$43:$D$142,3,FALSE),\"\")","v":""},{"$f":"IF(AO25<>\"\",VLOOKUP(AO25,'1) User Input and Sites'!$B$43:$D$142,3,FALSE),\"\")","v":""},{"$f":"IF(AP25<>\"\",VLOOKUP(AP25,'1) User Input and Sites'!$B$43:$D$142,3,FALSE),\"\")","v":""},{"$f":"IF(AQ25<>\"\",VLOOKUP(AQ25,'1) User Input and Sites'!$B$43:$D$142,3,FALSE),\"\")","v":""},{"$f":"IF(AR25<>\"\",VLOOKUP(AR25,'1) User Input and Sites'!$B$43:$D$142,3,FALSE),\"\")","v":""},{"$f":"IF(AS25<>\"\",VLOOKUP(AS25,'1) User Input and Sites'!$B$43:$D$142,3,FALSE),\"\")","v":""},{"$f":"IF(AT25<>\"\",VLOOKUP(AT25,'1) User Input and Sites'!$B$43:$D$142,3,FALSE),\"\")","v":""},{"$f":"IF(AU25<>\"\",VLOOKUP(AU25,'1) User Input and Sites'!$B$43:$D$142,3,FALSE),\"\")","v":""},{"$f":"IF(AV25<>\"\",VLOOKUP(AV25,'1) User Input and Sites'!$B$43:$D$142,3,FALSE),\"\")","v":""},{"$f":"IF(AW25<>\"\",VLOOKUP(AW25,'1) User Input and Sites'!$B$43:$D$142,3,FALSE),\"\")","v":""},{"$f":"IF(AX25<>\"\",VLOOKUP(AX25,'1) User Input and Sites'!$B$43:$D$142,3,FALSE),\"\")","v":""},{"$f":"IF(AY25<>\"\",VLOOKUP(AY25,'1) User Input and Sites'!$B$43:$D$142,3,FALSE),\"\")","v":""},{"$f":"IF(AZ25<>\"\",VLOOKUP(AZ25,'1) User Input and Sites'!$B$43:$D$142,3,FALSE),\"\")","v":""},{"$f":"IF(BA25<>\"\",VLOOKUP(BA25,'1) User Input and Sites'!$B$43:$D$142,3,FALSE),\"\")","v":""},{"$f":"IF(BB25<>\"\",VLOOKUP(BB25,'1) User Input and Sites'!$B$43:$D$142,3,FALSE),\"\")","v":""},{"$f":"IF(BC25<>\"\",VLOOKUP(BC25,'1) User Input and Sites'!$B$43:$D$142,3,FALSE),\"\")","v":""},{"$f":"IF(BD25<>\"\",VLOOKUP(BD25,'1) User Input and Sites'!$B$43:$D$142,3,FALSE),\"\")","v":""},{"$f":"IF(BE25<>\"\",VLOOKUP(BE25,'1) User Input and Sites'!$B$43:$D$142,3,FALSE),\"\")","v":""},{"$f":"IF(BF25<>\"\",VLOOKUP(BF25,'1) User Input and Sites'!$B$43:$D$142,3,FALSE),\"\")","v":""},{"$f":"IF(BG25<>\"\",VLOOKUP(BG25,'1) User Input and Sites'!$B$43:$D$142,3,FALSE),\"\")","v":""},{"$f":"IF(BH25<>\"\",VLOOKUP(BH25,'1) User Input and Sites'!$B$43:$D$142,3,FALSE),\"\")","v":""},{"$f":"IF(BI25<>\"\",VLOOKUP(BI25,'1) User Input and Sites'!$B$43:$D$142,3,FALSE),\"\")","v":""},{"$f":"IF(BJ25<>\"\",VLOOKUP(BJ25,'1) User Input and Sites'!$B$43:$D$142,3,FALSE),\"\")","v":""},{"$f":"IF(BK25<>\"\",VLOOKUP(BK25,'1) User Input and Sites'!$B$43:$D$142,3,FALSE),\"\")","v":""},{"$f":"IF(BL25<>\"\",VLOOKUP(BL25,'1) User Input and Sites'!$B$43:$D$142,3,FALSE),\"\")","v":""},{"$f":"IF(BM25<>\"\",VLOOKUP(BM25,'1) User Input and Sites'!$B$43:$D$142,3,FALSE),\"\")","v":""},{"$f":"IF(BN25<>\"\",VLOOKUP(BN25,'1) User Input and Sites'!$B$43:$D$142,3,FALSE),\"\")","v":""},{"$f":"IF(BO25<>\"\",VLOOKUP(BO25,'1) User Input and Sites'!$B$43:$D$142,3,FALSE),\"\")","v":""},{"$f":"IF(BP25<>\"\",VLOOKUP(BP25,'1) User Input and Sites'!$B$43:$D$142,3,FALSE),\"\")","v":""},{"$f":"IF(BQ25<>\"\",VLOOKUP(BQ25,'1) User Input and Sites'!$B$43:$D$142,3,FALSE),\"\")","v":""},{"$f":"IF(BR25<>\"\",VLOOKUP(BR25,'1) User Input and Sites'!$B$43:$D$142,3,FALSE),\"\")","v":""},{"$f":"IF(BS25<>\"\",VLOOKUP(BS25,'1) User Input and Sites'!$B$43:$D$142,3,FALSE),\"\")","v":""},{"$f":"IF(BT25<>\"\",VLOOKUP(BT25,'1) User Input and Sites'!$B$43:$D$142,3,FALSE),\"\")","v":""},{"$f":"IF(BU25<>\"\",VLOOKUP(BU25,'1) User Input and Sites'!$B$43:$D$142,3,FALSE),\"\")","v":""},{"$f":"IF(BV25<>\"\",VLOOKUP(BV25,'1) User Input and Sites'!$B$43:$D$142,3,FALSE),\"\")","v":""},{"$f":"IF(BW25<>\"\",VLOOKUP(BW25,'1) User Input and Sites'!$B$43:$D$142,3,FALSE),\"\")","v":""},{"$f":"IF(BX25<>\"\",VLOOKUP(BX25,'1) User Input and Sites'!$B$43:$D$142,3,FALSE),\"\")","v":""},{"$f":"IF(BY25<>\"\",VLOOKUP(BY25,'1) User Input and Sites'!$B$43:$D$142,3,FALSE),\"\")","v":""},{"$f":"IF(BZ25<>\"\",VLOOKUP(BZ25,'1) User Input and Sites'!$B$43:$D$142,3,FALSE),\"\")","v":""},{"$f":"IF(CA25<>\"\",VLOOKUP(CA25,'1) User Input and Sites'!$B$43:$D$142,3,FALSE),\"\")","v":""},{"$f":"IF(CB25<>\"\",VLOOKUP(CB25,'1) User Input and Sites'!$B$43:$D$142,3,FALSE),\"\")","v":""},{"$f":"IF(CC25<>\"\",VLOOKUP(CC25,'1) User Input and Sites'!$B$43:$D$142,3,FALSE),\"\")","v":""},{"$f":"IF(CD25<>\"\",VLOOKUP(CD25,'1) User Input and Sites'!$B$43:$D$142,3,FALSE),\"\")","v":""},{"$f":"IF(CE25<>\"\",VLOOKUP(CE25,'1) User Input and Sites'!$B$43:$D$142,3,FALSE),\"\")","v":""},{"$f":"IF(CF25<>\"\",VLOOKUP(CF25,'1) User Input and Sites'!$B$43:$D$142,3,FALSE),\"\")","v":""},{"$f":"IF(CG25<>\"\",VLOOKUP(CG25,'1) User Input and Sites'!$B$43:$D$142,3,FALSE),\"\")","v":""},{"$f":"IF(CH25<>\"\",VLOOKUP(CH25,'1) User Input and Sites'!$B$43:$D$142,3,FALSE),\"\")","v":""},{"$f":"IF(CI25<>\"\",VLOOKUP(CI25,'1) User Input and Sites'!$B$43:$D$142,3,FALSE),\"\")","v":""},{"$f":"IF(CJ25<>\"\",VLOOKUP(CJ25,'1) User Input and Sites'!$B$43:$D$142,3,FALSE),\"\")","v":""},{"$f":"IF(CK25<>\"\",VLOOKUP(CK25,'1) User Input and Sites'!$B$43:$D$142,3,FALSE),\"\")","v":""},{"$f":"IF(CL25<>\"\",VLOOKUP(CL25,'1) User Input and Sites'!$B$43:$D$142,3,FALSE),\"\")","v":""},{"$f":"IF(CM25<>\"\",VLOOKUP(CM25,'1) User Input and Sites'!$B$43:$D$142,3,FALSE),\"\")","v":""},{"$f":"IF(CN25<>\"\",VLOOKUP(CN25,'1) User Input and Sites'!$B$43:$D$142,3,FALSE),\"\")","v":""},{"$f":"IF(CO25<>\"\",VLOOKUP(CO25,'1) User Input and Sites'!$B$43:$D$142,3,FALSE),\"\")","v":""},{"$f":"IF(CP25<>\"\",VLOOKUP(CP25,'1) User Input and Sites'!$B$43:$D$142,3,FALSE),\"\")","v":""},{"$f":"IF(CQ25<>\"\",VLOOKUP(CQ25,'1) User Input and Sites'!$B$43:$D$142,3,FALSE),\"\")","v":""},{"$f":"IF(CR25<>\"\",VLOOKUP(CR25,'1) User Input and Sites'!$B$43:$D$142,3,FALSE),\"\")","v":""},{"$f":"IF(CS25<>\"\",VLOOKUP(CS25,'1) User Input and Sites'!$B$43:$D$142,3,FALSE),\"\")","v":""},{"$f":"IF(CT25<>\"\",VLOOKUP(CT25,'1) User Input and Sites'!$B$43:$D$142,3,FALSE),\"\")","v":""},{"$f":"IF(CU25<>\"\",VLOOKUP(CU25,'1) User Input and Sites'!$B$43:$D$142,3,FALSE),\"\")","v":""},{"$f":"IF(CV25<>\"\",VLOOKUP(CV25,'1) User Input and Sites'!$B$43:$D$142,3,FALSE),\"\")","v":""},{"$f":"IF(CW25<>\"\",VLOOKUP(CW25,'1) User Input and Sites'!$B$43:$D$142,3,FALSE),\"\")","v":""},{"$f":"IF(CX25<>\"\",VLOOKUP(CX25,'1) User Input and Sites'!$B$43:$D$142,3,FALSE),\"\")","v":""},{"$f":"IF(CY25<>\"\",VLOOKUP(CY25,'1) User Input and Sites'!$B$43:$D$142,3,FALSE),\"\")","v":""},{"$f":"IF(CZ25<>\"\",VLOOKUP(CZ25,'1) User Input and Sites'!$B$43:$D$142,3,FALSE),\"\")","v":""},{"$f":"IF(DA25<>\"\",VLOOKUP(DA25,'1) User Input and Sites'!$B$43:$D$142,3,FALSE),\"\")","v":""},{"$f":"IF(DB25<>\"\",VLOOKUP(DB25,'1) User Input and Sites'!$B$43:$D$142,3,FALSE),\"\")","v":""}]
[null,null,null,null,"Checklist complete?",null,{"$f":"IF(G25<>\"\",IF(COUNTA(G33:G35)<3,\"Incomplete\",\"Complete\"),\"\")","v":""},"","","","","","","","","","","","","","","","","","","","","","","","","","","","","","","",{"$f":"IF(AM25<>\"\",IF(COUNTA(AM33:AM35)<3,\"Incomplete\",\"Complete\"),\"\")","v":""},"","","","","","","","","","","","","","","","","","","","","","","","","","","","","","","",{"$f":"IF(BS25<>\"\",IF(COUNTA(BS33:BS35)<3,\"Incomplete\",\"Complete\"),\"\")","v":""},"","","","","","","","","","","","","","","","","","","","","","","","","","","","","","","","","","",""]
[null,null,null,null,"Number of red flags for this site:",null,{"$f":"IF(G25<>\"\",COUNTIF(G33:G35,\"No\"),\" \")","v":" "}," "," "," "," "," "," "," "," "," "," "," "," "," "," "," "," "," "," "," "," "," "," "," "," "," "," "," "," "," "," "," ",{"$f":"IF(AM25<>\"\",COUNTIF(AM33:AM35,\"No\"),\" \")","v":" "}," "," "," "," "," "," "," "," "," "," "," "," "," "," "," "," "," "," "," "," "," "," "," "," "," "," "," "," "," "," "," ",{"$f":"IF(BS25<>\"\",COUNTIF(BS33:BS35,\"No\"),\" \")","v":" "}," "," "," "," "," "," "," "," "," "," "," "," "," "," "," "," "," "," "," "," "," "," "," "," "," "," "," "," "," "," "," "," "," "," ",{"$f":"IF(DB25<>\"\",COUNTIF(DB33:DB35,\"No\"),\" \")","v":" "}]
[null,null,null,null,"Pass/Fail decision:\nIn the pre-screen, it is highly recommendable to only \"Pass\" sites with zero red flags."]
[]
[null,"Physical site conditions",null,"Explanations and Actions",null,"Resources (linked)"]
[null,1,"AVAILABLE AREA\nThe estimated usable roof space on Tab 1 does not contain any obstacles, obstructions, or divisions.","Obstacles, obstructions, or divisions will increase the complexity of the racking design, limit the usable space for solar panels, and potentially cause unwanted shading. Common obstructions on rooftops include: skylights, rooftop heating and cooling units, chimneys, air vents, staggered roof sections, etc. \n\nAction: \nDouble-check (using a site visit or Google Maps with \"Satellite\" view enabled) that there are no obstacles within the \"usable space\" that you estimated on Tab \"1) User Input and Sites.\" If necessary, manually update the \"Usable Space\" value. If the \"Is site large enough?\" column on Tab 1 indicates that the system size is no longer above your \"minimum allowable project size,\" mark this site as \"Fail\" and do not continue down the checklist for this site."]
[null,2,"SHADING\nThe usable roof space is unshaded.","A shaded roof may not get enough sunlight for a solar array to be economical. \n\nAction: Search the address in Project Sunroof. If the usable space you're considering for this site is shaded purple or dark orange, mark your response as \"No.\""]
[null,3,"\nORIENTATION\nIf the usable roof space is sloped, the slope faces within 90 degrees of due south (shown below in solid green).","An ideal site will be flat or south-facing. Annual energy output decreases the further from due-south the system is oriented. A roof that faces more than 90 degrees from due south (shown to the left in striped red) will likely not get enough sunlight for a solar array to be economical. Modeling system performance with NREL's PVWatts can provide an estimate of the impact of the system orientation (aka \"azimuth angle.\").  \n\nAction: Search the address in Project Sunroof to determine if the usable roof space falls within the green or red-striped zone of the compass shown to the left. The map is automatically oriented to the cardinal directions (the top is North). If necessary, manually update the \"Usable Space\" value on Tab 1. If the \"Is site large enough?\" column on Tab 1 indicates that the system size is no longer above your \"minimum allowable project size,\" mark this site as \"Fail\" and do not continue down the checklist for this site. If this roof is flat, mark your answer as \"Yes.\""]

{"sheet":"2b) Pre-Screen Land","index":4,"n_rows":41,"n_cols":106,"rows_kept":41,"cut":false,"hidden":false,"merged":[[40,3,40,4],[38,3,38,4],[37,3,37,4],[32,3,32,4],[33,3,33,4],[34,3,34,4],[35,3,35,4],[36,3,36,4],[39,3,39,4],[27,4,27,5],[28,4,28,5],[29,4,29,5],[24,4,24,5],[25,4,25,5],[26,4,26,5]]}
[null,"2b. Pre-Screen Checklist for Land (Ground-Mount) Sites"]
[]
[]
[]
[]
[]
[]
[]
[]
[]
[]
[]
[]
[]
[]
[]
[]
[]
[]
[]
[]
[]
[]
[]
[null,null,null,null,"Site Number:"]
[null,null,null,null,"Site Name:",null,{"$f":"IF(G25<>\"\",VLOOKUP(G25,'1) User Input and Sites'!$B$43:$D$142,2,FALSE),\"\")","v":""},{"$f":"IF(H25<>\"\",VLOOKUP(H25,'1) User Input and Sites'!$B$43:$D$142,2,FALSE),\"\")","v":""},{"$f":"IF(I25<>\"\",VLOOKUP(I25,'1) User Input and Sites'!$B$43:$D$142,2,FALSE),\"\")","v":""},{"$f":"IF(J25<>\"\",VLOOKUP(J25,'1) User Input and Sites'!$B$43:$D$142,2,FALSE),\"\")","v":""},{"$f":"IF(K25<>\"\",VLOOKUP(K25,'1) User Input and Sites'!$B$43:$D$142,2,FALSE),\"\")","v":""},{"$f":"IF(L25<>\"\",VLOOKUP(L25,'1) User Input and Sites'!$B$43:$D$142,2,FALSE),\"\")","v":""},{"$f":"IF(M25<>\"\",VLOOKUP(M25,'1) User Input and Sites'!$B$43:$D$142,2,FALSE),\"\")","v":""},{"$f":"IF(N25<>\"\",VLOOKUP(N25,'1) User Input and Sites'!$B$43:$D$142,2,FALSE),\"\")","v":""},{"$f":"IF(O25<>\"\",VLOOKUP(O25,'1) User Input and Sites'!$B$43:$D$142,2,FALSE),\"\")","v":""},{"$f":"IF(P25<>\"\",VLOOKUP(P25,'1) User Input and Sites'!$B$43:$D$142,2,FALSE),\"\")","v":""},{"$f":"IF(Q25<>\"\",VLOOKUP(Q25,'1) User Input and Sites'!$B$43:$D$142,2,FALSE),\"\")","v":""},{"$f":"IF(R25<>\"\",VLOOKUP(R25,'1) User Input and Sites'!$B$43:$D$142,2,FALSE),\"\")","v":""},{"$f":"IF(S25<>\"\",VLOOKUP(S25,'1) User Input and Sites'!$B$43:$D$142,2,FALSE),\"\")","v":""},{"$f":"IF(T25<>\"\",VLOOKUP(T25,'1) User Input and Sites'!$B$43:$D$142,2,FALSE),\"\")","v":""},{"$f":"IF(U25<>\"\",VLOOKUP(U25,'1) User Input and Sites'!$B$43:$D$142,2,FALSE),\"\")","v":""},{"$f":"IF(V25<>\"\",VLOOKUP(V25,'1) User Input and Sites'!$B$43:$D$142,2,FALSE),\"\")","v":""},{"$f":"IF(W25<>\"\",VLOOKUP(W25,'1) User Input and Sites'!$B$43:$D$142,2,FALSE),\"\")","v":""},{"$f":"IF(X25<>\"\",VLOOKUP(X25,'1) User Input and Sites'!$B$43:$D$142,2,FALSE),\"\")","v":""},{"$f":"IF(Y25<>\"\",VLOOKUP(Y25,'1) User Input and Sites'!$B$43:$D$142,2,FALSE),\"\")","v":""},{"$f":"IF(Z25<>\"\",VLOOKUP(Z25,'1) User Input and Sites'!$B$43:$D$142,2,FALSE),\"\")","v":""},{"$f":"IF(AA25<>\"\",VLOOKUP(AA25,'1) User Input and Sites'!$B$43:$D$142,2,FALSE),\"\")","v":""},{"$f":"IF(AB25<>\"\",VLOOKUP(AB25,'1) User Input and Sites'!$B$43:$D$142,2,FALSE),\"\")","v":""},{"$f":"IF(AC25<>\"\",VLOOKUP(AC25,'1) User Input and Sites'!$B$43:$D$142,2,FALSE),\"\")","v":""},{"$f":"IF(AD25<>\"\",VLOOKUP(AD25,'1) User Input and Sites'!$B$43:$D$142,2,FALSE),\"\")","v":""},{"$f":"IF(AE25<>\"\",VLOOKUP(AE25,'1) User Input and Sites'!$B$43:$D$142,2,FALSE),\"\")","v":""},{"$f":"IF(AF25<>\"\",VLOOKUP(AF25,'1) User Input and Sites'!$B$43:$D$142,2,FALSE),\"\")","v":""},{"$f":"IF(AG25<>\"\",VLOOKUP(AG25,'1) User Input and Sites'!$B$43:$D$142,2,FALSE),\"\")","v":""},{"$f":"IF(AH25<>\"\",VLOOKUP(AH25,'1) User Input and Sites'!$B$43:$D$142,2,FALSE),\"\")","v":""},{"$f":"IF(AI25<>\"\",VLOOKUP(AI25,'1) User Input and Sites'!$B$43:$D$142,2,FALSE),\"\")","v":""},{"$f":"IF(AJ25<>\"\",VLOOKUP(AJ25,'1) User Input and Sites'!$B$43:$D$142,2,FALSE),\"\")","v":""},{"$f":"IF(AK25<>\"\",VLOOKUP(AK25,'1) User Input and Sites'!$B$43:$D$142,2,FALSE),\"\")","v":""},{"$f":"IF(AL25<>\"\",VLOOKUP(AL25,'1) User Input and Sites'!$B$43:$D$142,2,FALSE),\"\")","v":""},{"$f":"IF(AM25<>\"\",VLOOKUP(AM25,'1) User Input and Sites'!$B$43:$D$142,2,FALSE),\"\")","v":""},{"$f":"IF(AN25<>\"\",VLOOKUP(AN25,'1) User Input and Sites'!$B$43:$D$142,2,FALSE),\"\")","v":""},{"$f":"IF(AO25<>\"\",VLOOKUP(AO25,'1) User Input and Sites'!$B$43:$D$142,2,FALSE),\"\")","v":""},{"$f":"IF(AP25<>\"\",VLOOKUP(AP25,'1) User Input and Sites'!$B$43:$D$142,2,FALSE),\"\")","v":""},{"$f":"IF(AQ25<>\"\",VLOOKUP(AQ25,'1) User Input and Sites'!$B$43:$D$142,2,FALSE),\"\")","v":""},{"$f":"IF(AR25<>\"\",VLOOKUP(AR25,'1) User Input and Sites'!$B$43:$D$142,2,FALSE),\"\")","v":""},{"$f":"IF(AS25<>\"\",VLOOKUP(AS25,'1) User Input and Sites'!$B$43:$D$142,2,FALSE),\"\")","v":""},{"$f":"IF(AT25<>\"\",VLOOKUP(AT25,'1) User Input and Sites'!$B$43:$D$142,2,FALSE),\"\")","v":""},{"$f":"IF(AU25<>\"\",VLOOKUP(AU25,'1) User Input and Sites'!$B$43:$D$142,2,FALSE),\"\")","v":""},{"$f":"IF(AV25<>\"\",VLOOKUP(AV25,'1) User Input and Sites'!$B$43:$D$142,2,FALSE),\"\")","v":""},{"$f":"IF(AW25<>\"\",VLOOKUP(AW25,'1) User Input and Sites'!$B$43:$D$142,2,FALSE),\"\")","v":""},{"$f":"IF(AX25<>\"\",VLOOKUP(AX25,'1) User Input and Sites'!$B$43:$D$142,2,FALSE),\"\")","v":""},{"$f":"IF(AY25<>\"\",VLOOKUP(AY25,'1) User Input and Sites'!$B$43:$D$142,2,FALSE),\"\")","v":""},{"$f":"IF(AZ25<>\"\",VLOOKUP(AZ25,'1) User Input and Sites'!$B$43:$D$142,2,FALSE),\"\")","v":""},{"$f":"IF(BA25<>\"\",VLOOKUP(BA25,'1) User Input and Sites'!$B$43:$D$142,2,FALSE),\"\")","v":""},{"$f":"IF(BB25<>\"\",VLOOKUP(BB25,'1) User Input and Sites'!$B$43:$D$142,2,FALSE),\"\")","v":""},{"$f":"IF(BC25<>\"\",VLOOKUP(BC25,'1) User Input and Sites'!$B$43:$D$142,2,FALSE),\"\")","v":""},{"$f":"IF(BD25<>\"\",VLOOKUP(BD25,'1) User Input and Sites'!$B$43:$D$142,2,FALSE),\"\")","v":""},{"$f":"IF(BE25<>\"\",VLOOKUP(BE25,'1) User Input and Sites'!$B$43:$D$142,2,FALSE),\"\")","v":""},{"$f":"IF(BF25<>\"\",VLOOKUP(BF25,'1) User Input and Sites'!$B$43:$D$142,2,FALSE),\"\")","v":""},{"$f":"IF(BG25<>\"\",VLOOKUP(BG25,'1) User Input and Sites'!$B$43:$D$142,2,FALSE),\"\")","v":""},{"$f":"IF(BH25<>\"\",VLOOKUP(BH25,'1) User Input and Sites'!$B$43:$D$142,2,FALSE),\"\")","v":""},{"$f":"IF(BI25<>\"\",VLOOKUP(BI25,'1) User Input and Sites'!$B$43:$D$142,2,FALSE),\"\")","v":""},{"$f":"IF(BJ25<>\"\",VLOOKUP(BJ25,'1) User Input and Sites'!$B$43:$D$142,2,FALSE),\"\")","v":""},{"$f":"IF(BK25<>\"\",VLOOKUP(BK25,'1) User Input and Sites'!$B$43:$D$142,2,FALSE),\"\")","v":""},{"$f":"IF(BL25<>\"\",VLOOKUP(BL25,'1) User Input and Sites'!$B$43:$D$142,2,FALSE),\"\")","v":""},{"$f":"IF(BM25<>\"\",VLOOKUP(BM25,'1) User Input and Sites'!$B$43:$D$142,2,FALSE),\"\")","v":""},{"$f":"IF(BN25<>\"\",VLOOKUP(BN25,'1) User Input and Sites'!$B$43:$D$142,2,FALSE),\"\")","v":""},{"$f":"IF(BO25<>\"\",VLOOKUP(BO25,'1) User Input and Sites'!$B$43:$D$142,2,FALSE),\"\")","v":""},{"$f":"IF(BP25<>\"\",VLOOKUP(BP25,'1) User Input and Sites'!$B$43:$D$142,2,FALSE),\"\")","v":""},{"$f":"IF(BQ25<>\"\",VLOOKUP(BQ25,'1) User Input and Sites'!$B$43:$D$142,2,FALSE),\"\")","v":""},{"$f":"IF(BR25<>\"\",VLOOKUP(BR25,'1) User Input and Sites'!$B$43:$D$142,2,FALSE),\"\")","v":""},{"$f":"IF(BS25<>\"\",VLOOKUP(BS25,'1) User Input and Sites'!$B$43:$D$142,2,FALSE),\"\")","v":""},{"$f":"IF(BT25<>\"\",VLOOKUP(BT25,'1) User Input and Sites'!$B$43:$D$142,2,FALSE),\"\")","v":""},{"$f":"IF(BU25<>\"\",VLOOKUP(BU25,'1) User Input and Sites'!$B$43:$D$142,2,FALSE),\"\")","v":""},{"$f":"IF(BV25<>\"\",VLOOKUP(BV25,'1) User Input and Sites'!$B$43:$D$142,2,FALSE),\"\")","v":""},{"$f":"IF(BW25<>\"\",VLOOKUP(BW25,'1) User Input and Sites'!$B$43:$D$142,2,FALSE),\"\")","v":""},{"$f":"IF(BX25<>\"\",VLOOKUP(BX25,'1) User Input and Sites'!$B$43:$D$142,2,FALSE),\"\")","v":""},{"$f":"IF(BY25<>\"\",VLOOKUP(BY25,'1) User Input and Sites'!$B$43:$D$142,2,FALSE),\"\")","v":""},{"$f":"IF(BZ25<>\"\",VLOOKUP(BZ25,'1) User Input and Sites'!$B$43:$D$142,2,FALSE),\"\")","v":""},{"$f":"IF(CA25<>\"\",VLOOKUP(CA25,'1) User Input and Sites'!$B$43:$D$142,2,FALSE),\"\")","v":""},{"$f":"IF(CB25<>\"\",VLOOKUP(CB25,'1) User Input and Sites'!$B$43:$D$142,2,FALSE),\"\")","v":""},{"$f":"IF(CC25<>\"\",VLOOKUP(CC25,'1) User Input and Sites'!$B$43:$D$142,2,FALSE),\"\")","v":""},{"$f":"IF(CD25<>\"\",VLOOKUP(CD25,'1) User Input and Sites'!$B$43:$D$142,2,FALSE),\"\")","v":""},{"$f":"IF(CE25<>\"\",VLOOKUP(CE25,'1) User Input and Sites'!$B$43:$D$142,2,FALSE),\"\")","v":""},{"$f":"IF(CF25<>\"\",VLOOKUP(CF25,'1) User Input and Sites'!$B$43:$D$142,2,FALSE),\"\")","v":""},{"$f":"IF(CG25<>\"\",VLOOKUP(CG25,'1) User Input and Sites'!$B$43:$D$142,2,FALSE),\"\")","v":""},{"$f":"IF(CH25<>\"\",VLOOKUP(CH25,'1) User Input and Sites'!$B$43:$D$142,2,FALSE),\"\")","v":""},{"$f":"IF(CI25<>\"\",VLOOKUP(CI25,'1) User Input and Sites'!$B$43:$D$142,2,FALSE),\"\")","v":""},{"$f":"IF(CJ25<>\"\",VLOOKUP(CJ25,'1) User Input and Sites'!$B$43:$D$142,2,FALSE),\"\")","v":""},{"$f":"IF(CK25<>\"\",VLOOKUP(CK25,'1) User Input and Sites'!$B$43:$D$142,2,FALSE),\"\")","v":""},{"$f":"IF(CL25<>\"\",VLOOKUP(CL25,'1) User Input and Sites'!$B$43:$D$142,2,FALSE),\"\")","v":""},{"$f":"IF(CM25<>\"\",VLOOKUP(CM25,'1) User Input and Sites'!$B$43:$D$142,2,FALSE),\"\")","v":""},{"$f":"IF(CN25<>\"\",VLOOKUP(CN25,'1) User Input and Sites'!$B$43:$D$142,2,FALSE),\"\")","v":""},{"$f":"IF(CO25<>\"\",VLOOKUP(CO25,'1) User Input and Sites'!$B$43:$D$142,2,FALSE),\"\")","v":""},{"$f":"IF(CP25<>\"\",VLOOKUP(CP25,'1) User Input and Sites'!$B$43:$D$142,2,FALSE),\"\")","v":""},{"$f":"IF(CQ25<>\"\",VLOOKUP(CQ25,'1) User Input and Sites'!$B$43:$D$142,2,FALSE),\"\")","v":""},{"$f":"IF(CR25<>\"\",VLOOKUP(CR25,'1) User Input and Sites'!$B$43:$D$142,2,FALSE),\"\")","v":""},{"$f":"IF(CS25<>\"\",VLOOKUP(CS25,'1) User Input and Sites'!$B$43:$D$142,2,FALSE),\"\")","v":""},{"$f":"IF(CT25<>\"\",VLOOKUP(CT25,'1) User Input and Sites'!$B$43:$D$142,2,FALSE),\"\")","v":""},{"$f":"IF(CU25<>\"\",VLOOKUP(CU25,'1) User Input and Sites'!$B$43:$D$142,2,FALSE),\"\")","v":""},{"$f":"IF(CV25<>\"\",VLOOKUP(CV25,'1) User Input and Sites'!$B$43:$D$142,2,FALSE),\"\")","v":""},{"$f":"IF(CW25<>\"\",VLOOKUP(CW25,'1) User Input and Sites'!$B$43:$D$142,2,FALSE),\"\")","v":""},{"$f":"IF(CX25<>\"\",VLOOKUP(CX25,'1) User Input and Sites'!$B$43:$D$142,2,FALSE),\"\")","v":""},{"$f":"IF(CY25<>\"\",VLOOKUP(CY25,'1) User Input and Sites'!$B$43:$D$142,2,FALSE),\"\")","v":""},{"$f":"IF(CZ25<>\"\",VLOOKUP(CZ25,'1) User Input and Sites'!$B$43:$D$142,2,FALSE),\"\")","v":""},{"$f":"IF(DA25<>\"\",VLOOKUP(DA25,'1) User Input and Sites'!$B$43:$D$142,2,FALSE),\"\")","v":""},{"$f":"IF(DB25<>\"\",VLOOKUP(DB25,'1) User Input and Sites'!$B$43:$D$142,2,FALSE),\"\")","v":""}]
[null,null,null,null,"Site Address:",null,{"$f":"IF(G25<>\"\",VLOOKUP(G25,'1) User Input and Sites'!$B$43:$D$142,3,FALSE),\"\")","v":""},{"$f":"IF(H25<>\"\",VLOOKUP(H25,'1) User Input and Sites'!$B$43:$D$142,3,FALSE),\"\")","v":""},{"$f":"IF(I25<>\"\",VLOOKUP(I25,'1) User Input and Sites'!$B$43:$D$142,3,FALSE),\"\")","v":""},{"$f":"IF(J25<>\"\",VLOOKUP(J25,'1) User Input and Sites'!$B$43:$D$142,3,FALSE),\"\")","v":""},{"$f":"IF(K25<>\"\",VLOOKUP(K25,'1) User Input and Sites'!$B$43:$D$142,3,FALSE),\"\")","v":""},{"$f":"IF(L25<>\"\",VLOOKUP(L25,'1) User Input and Sites'!$B$43:$D$142,3,FALSE),\"\")","v":""},{"$f":"IF(M25<>\"\",VLOOKUP(M25,'1) User Input and Sites'!$B$43:$D$142,3,FALSE),\"\")","v":""},{"$f":"IF(N25<>\"\",VLOOKUP(N25,'1) User Input and Sites'!$B$43:$D$142,3,FALSE),\"\")","v":""},{"$f":"IF(O25<>\"\",VLOOKUP(O25,'1) User Input and Sites'!$B$43:$D$142,3,FALSE),\"\")","v":""},{"$f":"IF(P25<>\"\",VLOOKUP(P25,'1) User Input and Sites'!$B$43:$D$142,3,FALSE),\"\")","v":""},{"$f":"IF(Q25<>\"\",VLOOKUP(Q25,'1) User Input and Sites'!$B$43:$D$142,3,FALSE),\"\")","v":""},{"$f":"IF(R25<>\"\",VLOOKUP(R25,'1) User Input and Sites'!$B$43:$D$142,3,FALSE),\"\")","v":""},{"$f":"IF(S25<>\"\",VLOOKUP(S25,'1) User Input and Sites'!$B$43:$D$142,3,FALSE),\"\")","v":""},{"$f":"IF(T25<>\"\",VLOOKUP(T25,'1) User Input and Sites'!$B$43:$D$142,3,FALSE),\"\")","v":""},{"$f":"IF(U25<>\"\",VLOOKUP(U25,'1) User Input and Sites'!$B$43:$D$142,3,FALSE),\"\")","v":""},{"$f":"IF(V25<>\"\",VLOOKUP(V25,'1) User Input and Sites'!$B$43:$D$142,3,FALSE),\"\")","v":""},{"$f":"IF(W25<>\"\",VLOOKUP(W25,'1) User Input and Sites'!$B$43:$D$142,3,FALSE),\"\")","v":""},{"$f":"IF(X25<>\"\",VLOOKUP(X25,'1) User Input and Sites'!$B$43:$D$142,3,FALSE),\"\")","v":""},{"$f":"IF(Y25<>\"\",VLOOKUP(Y25,'1) User Input and Sites'!$B$43:$D$142,3,FALSE),\"\")","v":""},{"$f":"IF(Z25<>\"\",VLOOKUP(Z25,'1) User Input and Sites'!$B$43:$D$142,3,FALSE),\"\")","v":""},{"$f":"IF(AA25<>\"\",VLOOKUP(AA25,'1) User Input and Sites'!$B$43:$D$142,3,FALSE),\"\")","v":""},{"$f":"IF(AB25<>\"\",VLOOKUP(AB25,'1) User Input and Sites'!$B$43:$D$142,3,FALSE),\"\")","v":""},{"$f":"IF(AC25<>\"\",VLOOKUP(AC25,'1) User Input and Sites'!$B$43:$D$142,3,FALSE),\"\")","v":""},{"$f":"IF(AD25<>\"\",VLOOKUP(AD25,'1) User Input and Sites'!$B$43:$D$142,3,FALSE),\"\")","v":""},{"$f":"IF(AE25<>\"\",VLOOKUP(AE25,'1) User Input and Sites'!$B$43:$D$142,3,FALSE),\"\")","v":""},{"$f":"IF(AF25<>\"\",VLOOKUP(AF25,'1) User Input and Sites'!$B$43:$D$142,3,FALSE),\"\")","v":""},{"$f":"IF(AG25<>\"\",VLOOKUP(AG25,'1) User Input and Sites'!$B$43:$D$142,3,FALSE),\"\")","v":""},{"$f":"IF(AH25<>\"\",VLOOKUP(AH25,'1) User Input and Sites'!$B$43:$D$142,3,FALSE),\"\")","v":""},{"$f":"IF(AI25<>\"\",VLOOKUP(AI25,'1) User Input and Sites'!$B$43:$D$142,3,FALSE),\"\")","v":""},{"$f":"IF(AJ25<>\"\",VLOOKUP(AJ25,'1) User Input and Sites'!$B$43:$D$142,3,FALSE),\"\")","v":""},{"$f":"IF(AK25<>\"\",VLOOKUP(AK25,'1) User Input and Sites'!$B$43:$D$142,3,FALSE),\"\")","v":""},{"$f":"IF(AL25<>\"\",VLOOKUP(AL25,'1) User Input and Sites'!$B$43:$D$142,3,FALSE),\"\")","v":""},{"$f":"IF(AM25<>\"\",VLOOKUP(AM25,'1) User Input and Sites'!$B$43:$D$142,3,FALSE),\"\")","v":""},{"$f":"IF(AN25<>\"\",VLOOKUP(AN25,'1) User Input and Sites'!$B$43:$D$142,3,FALSE),\"\")","v":""},{"$f":"IF(AO25<>\"\",VLOOKUP(AO25,'1) User Input and Sites'!$B$43:$D$142,3,FALSE),\"\")","v":""},{"$f":"IF(AP25<>\"\",VLOOKUP(AP25,'1) User Input and Sites'!$B$43:$D$142,3,FALSE),\"\")","v":""},{"$f":"IF(AQ25<>\"\",VLOOKUP(AQ25,'1) User Input and Sites'!$B$43:$D$142,3,FALSE),\"\")","v":""},{"$f":"IF(AR25<>\"\",VLOOKUP(AR25,'1) User Input and Sites'!$B$43:$D$142,3,FALSE),\"\")","v":""},{"$f":"IF(AS25<>\"\",VLOOKUP(AS25,'1) User Input and Sites'!$B$43:$D$142,3,FALSE),\"\")","v":""},{"$f":"IF(AT25<>\"\",VLOOKUP(AT25,'1) User Input and Sites'!$B$43:$D$142,3,FALSE),\"\")","v":""},{"$f":"IF(AU25<>\"\",VLOOKUP(AU25,'1) User Input and Sites'!$B$43:$D$142,3,FALSE),\"\")","v":""},{"$f":"IF(AV25<>\"\",VLOOKUP(AV25,'1) User Input and Sites'!$B$43:$D$142,3,FALSE),\"\")","v":""},{"$f":"IF(AW25<>\"\",VLOOKUP(AW25,'1) User Input and Sites'!$B$43:$D$142,3,FALSE),\"\")","v":""},{"$f":"IF(AX25<>\"\",VLOOKUP(AX25,'1) User Input and Sites'!$B$43:$D$142,3,FALSE),\"\")","v":""},{"$f":"IF(AY25<>\"\",VLOOKUP(AY25,'1) User Input and Sites'!$B$43:$D$142,3,FALSE),\"\")","v":""},{"$f":"IF(AZ25<>\"\",VLOOKUP(AZ25,'1) User Input and Sites'!$B$43:$D$142,3,FALSE),\"\")","v":""},{"$f":"IF(BA25<>\"\",VLOOKUP(BA25,'1) User Input and Sites'!$B$43:$D$142,3,FALSE),\"\")","v":""},{"$f":"IF(BB25<>\"\",VLOOKUP(BB25,'1) User Input and Sites'!$B$43:$D$142,3,FALSE),\"\")","v":""},{"$f":"IF(BC25<>\"\",VLOOKUP(BC25,'1) User Input and Sites'!$B$43:$D$142,3,FALSE),\"\")","v":""},{"$f":"IF(BD25<>\"\",VLOOKUP(BD25,'1) User Input and Sites'!$B$43:$D$142,3,FALSE),\"\")","v":""},{"$f":"IF(BE25<>\"\",VLOOKUP(BE25,'1) User Input and Sites'!$B$43:$D$142,3,FALSE),\"\")","v":""},{"$f":"IF(BF25<>\"\",VLOOKUP(BF25,'1) User Input and Sites'!$B$43:$D$142,3,FALSE),\"\")","v":""},{"$f":"IF(BG25<>\"\",VLOOKUP(BG25,'1) User Input and Sites'!$B$43:$D$142,3,FALSE),\"\")","v":""},{"$f":"IF(BH25<>\"\",VLOOKUP(BH25,'1) User Input and Sites'!$B$43:$D$142,3,FALSE),\"\")","v":""},{"$f":"IF(BI25<>\"\",VLOOKUP(BI25,'1) User Input and Sites'!$B$43:$D$142,3,FALSE),\"\")","v":""},{"$f":"IF(BJ25<>\"\",VLOOKUP(BJ25,'1) User Input and Sites'!$B$43:$D$142,3,FALSE),\"\")","v":""},{"$f":"IF(BK25<>\"\",VLOOKUP(BK25,'1) User Input and Sites'!$B$43:$D$142,3,FALSE),\"\")","v":""},{"$f":"IF(BL25<>\"\",VLOOKUP(BL25,'1) User Input and Sites'!$B$43:$D$142,3,FALSE),\"\")","v":""},{"$f":"IF(BM25<>\"\",VLOOKUP(BM25,'1) User Input and Sites'!$B$43:$D$142,3,FALSE),\"\")","v":""},{"$f":"IF(BN25<>\"\",VLOOKUP(BN25,'1) User Input and Sites'!$B$43:$D$142,3,FALSE),\"\")","v":""},{"$f":"IF(BO25<>\"\",VLOOKUP(BO25,'1) User Input and Sites'!$B$43:$D$142,3,FALSE),\"\")","v":""},{"$f":"IF(BP25<>\"\",VLOOKUP(BP25,'1) User Input and Sites'!$B$43:$D$142,3,FALSE),\"\")","v":""},{"$f":"IF(BQ25<>\"\",VLOOKUP(BQ25,'1) User Input and Sites'!$B$43:$D$142,3,FALSE),\"\")","v":""},{"$f":"IF(BR25<>\"\",VLOOKUP(BR25,'1) User Input and Sites'!$B$43:$D$142,3,FALSE),\"\")","v":""},{"$f":"IF(BS25<>\"\",VLOOKUP(BS25,'1) User Input and Sites'!$B$43:$D$142,3,FALSE),\"\")","v":""},{"$f":"IF(BT25<>\"\",VLOOKUP(BT25,'1) User Input and Sites'!$B$43:$D$142,3,FALSE),\"\")","v":""},{"$f":"IF(BU25<>\"\",VLOOKUP(BU25,'1) User Input and Sites'!$B$43:$D$142,3,FALSE),\"\")","v":""},{"$f":"IF(BV25<>\"\",VLOOKUP(BV25,'1) User Input and Sites'!$B$43:$D$142,3,FALSE),\"\")","v":""},{"$f":"IF(BW25<>\"\",VLOOKUP(BW25,'1) User Input and Sites'!$B$43:$D$142,3,FALSE),\"\")","v":""},{"$f":"IF(BX25<>\"\",VLOOKUP(BX25,'1) User Input and Sites'!$B$43:$D$142,3,FALSE),\"\")","v":""},{"$f":"IF(BY25<>\"\",VLOOKUP(BY25,'1) User Input and Sites'!$B$43:$D$142,3,FALSE),\"\")","v":""},{"$f":"IF(BZ25<>\"\",VLOOKUP(BZ25,'1) User Input and Sites'!$B$43:$D$142,3,FALSE),\"\")","v":""},{"$f":"IF(CA25<>\"\",VLOOKUP(CA25,'1) User Input and Sites'!$B$43:$D$142,3,FALSE),\"\")","v":""},{"$f":"IF(CB25<>\"\",VLOOKUP(CB25,'1) User Input and Sites'!$B$43:$D$142,3,FALSE),\"\")","v":""},{"$f":"IF(CC25<>\"\",VLOOKUP(CC25,'1) User Input and Sites'!$B$43:$D$142,3,FALSE),\"\")","v":""},{"$f":"IF(CD25<>\"\",VLOOKUP(CD25,'1) User Input and Sites'!$B$43:$D$142,3,FALSE),\"\")","v":""},{"$f":"IF(CE25<>\"\",VLOOKUP(CE25,'1) User Input and Sites'!$B$43:$D$142,3,FALSE),\"\")","v":""},{"$f":"IF(CF25<>\"\",VLOOKUP(CF25,'1) User Input and Sites'!$B$43:$D$142,3,FALSE),\"\")","v":""},{"$f":"IF(CG25<>\"\",VLOOKUP(CG25,'1) User Input and Sites'!$B$43:$D$142,3,FALSE),\"\")","v":""},{"$f":"IF(CH25<>\"\",VLOOKUP(CH25,'1) User Input and Sites'!$B$43:$D$142,3,FALSE),\"\")","v":""},{"$f":"IF(CI25<>\"\",VLOOKUP(CI25,'1) User Input and Sites'!$B$43:$D$142,3,FALSE),\"\")","v":""},{"$f":"IF(CJ25<>\"\",VLOOKUP(CJ25,'1) User Input and Sites'!$B$43:$D$142,3,FALSE),\"\")","v":""},{"$f":"IF(CK25<>\"\",VLOOKUP(CK25,'1) User Input and Sites'!$B$43:$D$142,3,FALSE),\"\")","v":""},{"$f":"IF(CL25<>\"\",VLOOKUP(CL25,'1) User Input and Sites'!$B$43:$D$142,3,FALSE),\"\")","v":""},{"$f":"IF(CM25<>\"\",VLOOKUP(CM25,'1) User Input and Sites'!$B$43:$D$142,3,FALSE),\"\")","v":""},{"$f":"IF(CN25<>\"\",VLOOKUP(CN25,'1) User Input and Sites'!$B$43:$D$142,3,FALSE),\"\")","v":""},{"$f":"IF(CO25<>\"\",VLOOKUP(CO25,'1) User Input and Sites'!$B$43:$D$142,3,FALSE),\"\")","v":""},{"$f":"IF(CP25<>\"\",VLOOKUP(CP25,'1) User Input and Sites'!$B$43:$D$142,3,FALSE),\"\")","v":""},{"$f":"IF(CQ25<>\"\",VLOOKUP(CQ25,'1) User Input and Sites'!$B$43:$D$142,3,FALSE),\"\")","v":""},{"$f":"IF(CR25<>\"\",VLOOKUP(CR25,'1) User Input and Sites'!$B$43:$D$142,3,FALSE),\"\")","v":""},{"$f":"IF(CS25<>\"\",VLOOKUP(CS25,'1) User Input and Sites'!$B$43:$D$142,3,FALSE),\"\")","v":""},{"$f":"IF(CT25<>\"\",VLOOKUP(CT25,'1) User Input and Sites'!$B$43:$D$142,3,FALSE),\"\")","v":""},{"$f":"IF(CU25<>\"\",VLOOKUP(CU25,'1) User Input and Sites'!$B$43:$D$142,3,FALSE),\"\")","v":""},{"$f":"IF(CV25<>\"\",VLOOKUP(CV25,'1) User Input and Sites'!$B$43:$D$142,3,FALSE),\"\")","v":""},{"$f":"IF(CW25<>\"\",VLOOKUP(CW25,'1) User Input and Sites'!$B$43:$D$142,3,FALSE),\"\")","v":""},{"$f":"IF(CX25<>\"\",VLOOKUP(CX25,'1) User Input and Sites'!$B$43:$D$142,3,FALSE),\"\")","v":""},{"$f":"IF(CY25<>\"\",VLOOKUP(CY25,'1) User Input and Sites'!$B$43:$D$142,3,FALSE),\"\")","v":""},{"$f":"IF(CZ25<>\"\",VLOOKUP(CZ25,'1) User Input and Sites'!$B$43:$D$142,3,FALSE),\"\")","v":""},{"$f":"IF(DA25<>\"\",VLOOKUP(DA25,'1) User Input and Sites'!$B$43:$D$142,3,FALSE),\"\")","v":""},{"$f":"IF(DB25<>\"\",VLOOKUP(DB25,'1) User Input and Sites'!$B$43:$D$142,3,FALSE),\"\")","v":""}]
[null,null,null,null,"Checklist complete?",null,{"$f":"IF(G25<>\"\",IF(COUNTA(G33:G41)<7,\"Incomplete\",\"Complete\"),\"\")","v":""},{"$f":"IF(H25<>\"\",IF(COUNTA(H33:H41)<7,\"Incomplete\",\"Complete\"),\"\")","v":""},"","","","","","","","","","","","","","","","","","","","","","","","","","","","","","",{"$f":"IF(AM25<>\"\",IF(COUNTA(AM33:AM41)<7,\"Incomplete\",\"Complete\"),\"\")","v":""},"","","","","","","","","","","","","","","","","","","","","","","","","","","","","","","",{"$f":"IF(BS25<>\"\",IF(COUNTA(BS33:BS41)<7,\"Incomplete\",\"Complete\"),\"\")","v":""},"","","","","","","","","","","","","","","","","","","","","","","","","","","","","","","","","","",""]
[null,null,null,null,"Number of red flags for this site:",null,{"$f":"IF(G25<>\"\",COUNTIF(G33:G41,\"No\"),\" \")","v":" "}," "," "," "," "," "," "," "," "," "," "," "," "," "," "," "," "," "," "," "," "," "," "," "," "," "," "," "," "," "," "," ",{"$f":"IF(AM25<>\"\",COUNTIF(AM33:AM41,\"No\"),\" \")","v":" "}," "," "," "," "," "," "," "," "," "," "," "," "," "," "," "," "," "," "," "," "," "," ",{"$f":"IF(BJ25<>\"\",COUNTIF(BJ33:BJ41,\"No\"),\" \")","v":" "}," "," "," "," "," "," "," "," ",{"$f":"IF(BS25<>\"\",COUNTIF(BS33:BS41,\"No\"),\" \")","v":" "}," "," "," "," "," "," "," "," "," "," "," "," "," "," "," "," "," "," "," "," "," "," "," "," "," "," "," "," "," "," "," "," "," "," "," "]
[null,null,null,null,"Pass/Fail decision:\nIn the pre-screen, it is highly recommendable to only \"Pass\" sites with zero red flags."]
[]
[null,"Physical site conditions",null,"Explanations and Actions",null,"Resources (linked)"]
[null,1,"AVAILABLE AREA\nThe estimated usable space on Tab 1 does not contain obstacles, obstructions, or divisions.","Obstacles, obstructions, or divisions will increase the complexity of the racking design, limit the usable space for solar panels, and potentially cause unwanted shading. Common obstructions for ground-mount systems include: trees, fencing, roads, piping, buildings, etc. We strongly recommend excluding areas with trees to both preserve existing vegetation and avoid the added cost of tree removal. \n\nAction: Search the site in Google Earth to assess if there are many obstacles within the \"usable space\" that you estimated on the \"1) User Input and Sites\" tab. If necessary, manually update the \"Usable Space\" value. If the \"Is site large enough?\" column on Tab 1 indicates that the system size is no longer above your \"minimum allowable project size,\" mark this site as \"Fail\" and do not continue down the checklist for this site."]
[null,2,"GRADING\nThe site is relatively smooth and will not need to be extensively graded (leveled) in order to develop.","A site that will not require re-grading is preferable. Re-grading large portions of a site can be prohibitively costly and may require additional approvals (particularly for brownfields), an investigation of state regulations around grading, and plans for revegetation.\n\nAction: Walk the site, or use Google Maps with the Terrain layer enabled, to assess if the site appears smooth or if the ground is uneven and undulating. "]
[null,3,"SLOPE\nThe site has a slope of less than 6 degrees (~10% grade).","Slope and grade are used to quantify steepness. Very steep slopes will increase installation and/or site grading costs. As a general rule of thumb, tracking PV systems cannot be installed on slopes greater than 6 degrees. \n\nAction: If you think this site might have a slope of more than 6 degrees, try the following: \n1. Open the ArcGIS Online World Topographic Map and search the site address.\n2. Identify the contour lines on your site and the elevation of the lines (you may have to zoom more or less to see the elevation labels).\n3. Use the measure tool (appears as a ruler) to measure the distance between two lines (make sure the units match the units of the contour lines).\n4. Divide the difference between the higher and lower contour lines by the measured distance between the lines (rise over run). Multiply this value by 100 to convert to a %.\n5. This % value is the grade of this portion of the site. Is the value less than 10%? "]
[null,4,"SHADING\nThe usable space is unshaded.","A shaded area may not get enough sunlight for a solar array to be economical. \n\nAction: Search the address in Google Earth. If the usable space you're considering for this site has tall obstacles to the south, it will likely experience shading."]
[null,5,"\nORIENTATION\nIf the usable space is sloped, the slope faces within 90 degrees of due south (shown below in solid green).","An ideal site will be flat or directly south-facing. Annual energy output decreases the further from due-south the system is oriented. A slope that faces more than 90 degrees from due south (shown to the left in striped red) will likely not get enough sunlight for a solar array to be economical. Modeling system performance with NREL's PVWatts can provide an estimate of the impact of the system orientation (aka \"azimuth angle\"). \n\nAction:  Search the address in Google Maps with the Terrain layer enabled to determine if the usable space is directly north-facing. The map is automatically oriented to the cardinal directions (the top is North). If necessary, manually update the \"Usable Space\" value on Tab 1. If the \"Is site large enough?\" column on Tab 1 indicates that the system size is no longer above your \"minimum allowable project size,\" mark this site as \"Fail\" and do not continue down the checklist for this site. If this site is flat, mark your answer as \"Yes.\""]
[null,"Restrictions and zoning"]
[null,6,"The usable space is not on a wetland or within a wetland buffer zone.","Wetlands are not suitable for solar development. Most states also require costly and time-consumptive permits for construction within a buffer zone (e.g. 100-ft) around a wetland.\n\nAction: Use the National Wetlands Inventory (NWI) to ensure the site is not within or near a wetland. Click on the Wetlands Mapper and then the \"Find Location\" icon to enter your site location. If the site contains a wetland or is within 100-ft of a wetland, mark your answer as \"No\" and consider excluding this site from further consideration. "]
[null,"Interconnection"]
[null,7,"DISTANCE TO ELECTRICAL INFRASTRUCTURE\nCheck yes if solar generation will be sized to offset a load that is on-site (behind-the-meter connection)...\n\nOTHERWISE\n\n...If this will be a grid-tied system (front-of-the-meter connection), check yes if the site is less than 0.5 miles from a distribution or transmission line.     ","Extending grid infrastructure to a project site can be prohibitively costly. However, for very large systems (> 5 MW), it may still be financially feasible to connect to transmission or distribution infrastructure that is more than 0.5 miles away. Note that a solar developer will be needed to fully assess interconnection costs and requirements. \n\nActions (options): (1) If possible, visit the site to visually locate nearby power lines. (2) Check the U.S. Department of Homeland Security's Electric Power Transmission Lines map for nearby transmission lines. (3) If this is a contaminated site, search for the site in the EPA RE-Powering Mapper, which provides distance to transmission lines for some contaminated sites. "]

{"sheet":"3) Pre-Screened Sites","index":5,"n_rows":1048576,"n_cols":15,"rows_kept":4500,"cut":true,"hidden":false,"merged":[[30,10,30,11],[30,13,30,14]],"bounds":{"rows_first":2000,"rows_last":500,"rows_between":2000,"halvings":0}}
[null,"3. Pre-Screened Sites"]
[]
[]
[]
[]
[]
[]
[]
[]
[]
[]
[]
[]
[]
[]
[]
[]
[]
[]
[]
[]
[]
[]
[]
[]
[]
[]
[]
[null,"My Pre-Screened Sites"]
[null,"Note: Do not delete any sites from this table. If you no longer wish to consider a site, simply select \"Fail.\""]
[null,null,null,null,null,null,null,null,null,null,"PV System Sized to Usable Space",null,null,"Resized PV System"]
[null,"Site ID","Site Name","Address","General Site Type (Roof, Land, or Parking Lot)","Specific Site Type","Usable Space for Solar [m2]","Is site large enough?","Number of Pre-Screen Red Flags (Major Impediments)","Pre-Screen Pass/Fail Decision","Size [kW]","\nAnnual Generation [kWh] \n(optional)","Annual Site Electrical Load [kWh] (optional)","Size [kW]\n(optional)","Annual Generation [kWh] (optional)"]
[null,1,null,null,null,null,null,{"$f":"IF(G33=\"\",\"\",IF(E33=\"Land\",IF(K33<'1) User Input and Sites'!$D$19,\"NO\",\"YES\"),IF(K33<'1) User Input and Sites'!$D$18,\"NO\",\"YES\")))","v":""},null,null,{"$f":"IF(E33=\"\",\"\",IF(E33=\"Land\",G33*'1) User Input and Sites'!$E$19/1000*10.7639,G33*'1) User Input and Sites'!$E$18/1000*10.7639))","v":""}]
[null,2,null,null,null,null,null,{"$f":"IF(G34=\"\",\"\",IF(E34=\"Land\",IF(K34<'1) User Input and Sites'!$D$19,\"NO\",\"YES\"),IF(K34<'1) User Input and Sites'!$D$18,\"NO\",\"YES\")))","v":""},null,null,{"$f":"IF(E34=\"\",\"\",IF(E34=\"Land\",G34*'1) User Input and Sites'!$E$19/1000*10.7639,G34*'1) User Input and Sites'!$E$18/1000*10.7639))","v":""}]
[null,3,null,null,null,null,null,{"$f":"IF(G35=\"\",\"\",IF(E35=\"Land\",IF(K35<'1) User Input and Sites'!$D$19,\"NO\",\"YES\"),IF(K35<'1) User Input and Sites'!$D$18,\"NO\",\"YES\")))","v":""},null,null,{"$f":"IF(E35=\"\",\"\",IF(E35=\"Land\",G35*'1) User Input and Sites'!$E$19/1000*10.7639,G35*'1) User Input and Sites'!$E$18/1000*10.7639))","v":""}]
[null,4,null,null,null,null,null,{"$f":"IF(G36=\"\",\"\",IF(E36=\"Land\",IF(K36<'1) User Input and Sites'!$D$19,\"NO\",\"YES\"),IF(K36<'1) User Input and Sites'!$D$18,\"NO\",\"YES\")))","v":""},null,null,{"$f":"IF(E36=\"\",\"\",IF(E36=\"Land\",G36*'1) User Input and Sites'!$E$19/1000*10.7639,G36*'1) User Input and Sites'!$E$18/1000*10.7639))","v":""}]
[null,5,null,null,null,null,null,{"$f":"IF(G37=\"\",\"\",IF(E37=\"Land\",IF(K37<'1) User Input and Sites'!$D$19,\"NO\",\"YES\"),IF(K37<'1) User Input and Sites'!$D$18,\"NO\",\"YES\")))","v":""},null,null,{"$f":"IF(E37=\"\",\"\",IF(E37=\"Land\",G37*'1) User Input and Sites'!$E$19/1000*10.7639,G37*'1) User Input and Sites'!$E$18/1000*10.7639))","v":""}]
[null,6,null,null,null,null,null,{"$f":"IF(G38=\"\",\"\",IF(E38=\"Land\",IF(K38<'1) User Input and Sites'!$D$19,\"NO\",\"YES\"),IF(K38<'1) User Input and Sites'!$D$18,\"NO\",\"YES\")))","v":""},null,null,{"$f":"IF(E38=\"\",\"\",IF(E38=\"Land\",G38*'1) User Input and Sites'!$E$19/1000*10.7639,G38*'1) User Input and Sites'!$E$18/1000*10.7639))","v":""}]
[null,7,null,null,null,null,null,{"$f":"IF(G39=\"\",\"\",IF(E39=\"Land\",IF(K39<'1) User Input and Sites'!$D$19,\"NO\",\"YES\"),IF(K39<'1) User Input and Sites'!$D$18,\"NO\",\"YES\")))","v":""},null,null,{"$f":"IF(E39=\"\",\"\",IF(E39=\"Land\",G39*'1) User Input and Sites'!$E$19/1000*10.7639,G39*'1) User Input and Sites'!$E$18/1000*10.7639))","v":""}]
[null,8,null,null,null,null,null,{"$f":"IF(G40=\"\",\"\",IF(E40=\"Land\",IF(K40<'1) User Input and Sites'!$D$19,\"NO\",\"YES\"),IF(K40<'1) User Input and Sites'!$D$18,\"NO\",\"YES\")))","v":""},null,null,{"$f":"IF(E40=\"\",\"\",IF(E40=\"Land\",G40*'1) User Input and Sites'!$E$19/1000*10.7639,G40*'1) User Input and Sites'!$E$18/1000*10.7639))","v":""}]
[null,9,null,null,null,null,null,{"$f":"IF(G41=\"\",\"\",IF(E41=\"Land\",IF(K41<'1) User Input and Sites'!$D$19,\"NO\",\"YES\"),IF(K41<'1) User Input and Sites'!$D$18,\"NO\",\"YES\")))","v":""},null,null,{"$f":"IF(E41=\"\",\"\",IF(E41=\"Land\",G41*'1) User Input and Sites'!$E$19/1000*10.7639,G41*'1) User Input and Sites'!$E$18/1000*10.7639))","v":""}]
[null,10,null,null,null,null,null,{"$f":"IF(G42=\"\",\"\",IF(E42=\"Land\",IF(K42<'1) User Input and Sites'!$D$19,\"NO\",\"YES\"),IF(K42<'1) User Input and Sites'!$D$18,\"NO\",\"YES\")))","v":""},null,null,{"$f":"IF(E42=\"\",\"\",IF(E42=\"Land\",G42*'1) User Input and Sites'!$E$19/1000*10.7639,G42*'1) User Input and Sites'!$E$18/1000*10.7639))","v":""}]
[null,11,null,null,null,null,null,{"$f":"IF(G43=\"\",\"\",IF(E43=\"Land\",IF(K43<'1) User Input and Sites'!$D$19,\"NO\",\"YES\"),IF(K43<'1) User Input and Sites'!$D$18,\"NO\",\"YES\")))","v":""},null,null,{"$f":"IF(E43=\"\",\"\",IF(E43=\"Land\",G43*'1) User Input and Sites'!$E$19/1000*10.7639,G43*'1) User Input and Sites'!$E$18/1000*10.7639))","v":""}]
[null,12,null,null,null,null,null,{"$f":"IF(G44=\"\",\"\",IF(E44=\"Land\",IF(K44<'1) User Input and Sites'!$D$19,\"NO\",\"YES\"),IF(K44<'1) User Input and Sites'!$D$18,\"NO\",\"YES\")))","v":""},null,null,{"$f":"IF(E44=\"\",\"\",IF(E44=\"Land\",G44*'1) User Input and Sites'!$E$19/1000*10.7639,G44*'1) User Input and Sites'!$E$18/1000*10.7639))","v":""}]
[null,13,null,null,null,null,null,{"$f":"IF(G45=\"\",\"\",IF(E45=\"Land\",IF(K45<'1) User Input and Sites'!$D$19,\"NO\",\"YES\"),IF(K45<'1) User Input and Sites'!$D$18,\"NO\",\"YES\")))","v":""},null,null,{"$f":"IF(E45=\"\",\"\",IF(E45=\"Land\",G45*'1) User Input and Sites'!$E$19/1000*10.7639,G45*'1) User Input and Sites'!$E$18/1000*10.7639))","v":""}]
[null,14,null,null,null,null,null,{"$f":"IF(G46=\"\",\"\",IF(E46=\"Land\",IF(K46<'1) User Input and Sites'!$D$19,\"NO\",\"YES\"),IF(K46<'1) User Input and Sites'!$D$18,\"NO\",\"YES\")))","v":""},null,null,{"$f":"IF(E46=\"\",\"\",IF(E46=\"Land\",G46*'1) User Input and Sites'!$E$19/1000*10.7639,G46*'1) User Input and Sites'!$E$18/1000*10.7639))","v":""}]
[null,15,null,null,null,null,null,{"$f":"IF(G47=\"\",\"\",IF(E47=\"Land\",IF(K47<'1) User Input and Sites'!$D$19,\"NO\",\"YES\"),IF(K47<'1) User Input and Sites'!$D$18,\"NO\",\"YES\")))","v":""},null,null,{"$f":"IF(E47=\"\",\"\",IF(E47=\"Land\",G47*'1) User Input and Sites'!$E$19/1000*10.7639,G47*'1) User Input and Sites'!$E$18/1000*10.7639))","v":""}]
[null,16,null,null,null,null,null,{"$f":"IF(G48=\"\",\"\",IF(E48=\"Land\",IF(K48<'1) User Input and Sites'!$D$19,\"NO\",\"YES\"),IF(K48<'1) User Input and Sites'!$D$18,\"NO\",\"YES\")))","v":""},null,null,{"$f":"IF(E48=\"\",\"\",IF(E48=\"Land\",G48*'1) User Input and Sites'!$E$19/1000*10.7639,G48*'1) User Input and Sites'!$E$18/1000*10.7639))","v":""}]
[null,17,null,null,null,null,null,{"$f":"IF(G49=\"\",\"\",IF(E49=\"Land\",IF(K49<'1) User Input and Sites'!$D$19,\"NO\",\"YES\"),IF(K49<'1) User Input and Sites'!$D$18,\"NO\",\"YES\")))","v":""},null,null,{"$f":"IF(E49=\"\",\"\",IF(E49=\"Land\",G49*'1) User Input and Sites'!$E$19/1000*10.7639,G49*'1) User Input and Sites'!$E$18/1000*10.7639))","v":""}]
[null,18,null,null,null,null,null,{"$f":"IF(G50=\"\",\"\",IF(E50=\"Land\",IF(K50<'1) User Input and Sites'!$D$19,\"NO\",\"YES\"),IF(K50<'1) User Input and Sites'!$D$18,\"NO\",\"YES\")))","v":""},null,null,{"$f":"IF(E50=\"\",\"\",IF(E50=\"Land\",G50*'1) User Input and Sites'!$E$19/1000*10.7639,G50*'1) User Input and Sites'!$E$18/1000*10.7639))","v":""}]
[null,19,null,null,null,null,null,{"$f":"IF(G51=\"\",\"\",IF(E51=\"Land\",IF(K51<'1) User Input and Sites'!$D$19,\"NO\",\"YES\"),IF(K51<'1) User Input and Sites'!$D$18,\"NO\",\"YES\")))","v":""},null,null,{"$f":"IF(E51=\"\",\"\",IF(E51=\"Land\",G51*'1) User Input and Sites'!$E$19/1000*10.7639,G51*'1) User Input and Sites'!$E$18/1000*10.7639))","v":""}]
[null,20,null,null,null,null,null,{"$f":"IF(G52=\"\",\"\",IF(E52=\"Land\",IF(K52<'1) User Input and Sites'!$D$19,\"NO\",\"YES\"),IF(K52<'1) User Input and Sites'!$D$18,\"NO\",\"YES\")))","v":""},null,null,{"$f":"IF(E52=\"\",\"\",IF(E52=\"Land\",G52*'1) User Input and Sites'!$E$19/1000*10.7639,G52*'1) User Input and Sites'!$E$18/1000*10.7639))","v":""}]
[null,21,null,null,null,null,null,{"$f":"IF(G53=\"\",\"\",IF(E53=\"Land\",IF(K53<'1) User Input and Sites'!$D$19,\"NO\",\"YES\"),IF(K53<'1) User Input and Sites'!$D$18,\"NO\",\"YES\")))","v":""},null,null,{"$f":"IF(E53=\"\",\"\",IF(E53=\"Land\",G53*'1) User Input and Sites'!$E$19/1000*10.7639,G53*'1) User Input and Sites'!$E$18/1000*10.7639))","v":""}]
[null,22,null,null,null,null,null,{"$f":"IF(G54=\"\",\"\",IF(E54=\"Land\",IF(K54<'1) User Input and Sites'!$D$19,\"NO\",\"YES\"),IF(K54<'1) User Input and Sites'!$D$18,\"NO\",\"YES\")))","v":""},null,null,{"$f":"IF(E54=\"\",\"\",IF(E54=\"Land\",G54*'1) User Input and Sites'!$E$19/1000*10.7639,G54*'1) User Input and Sites'!$E$18/1000*10.7639))","v":""}]
[null,23,null,null,null,null,null,{"$f":"IF(G55=\"\",\"\",IF(E55=\"Land\",IF(K55<'1) User Input and Sites'!$D$19,\"NO\",\"YES\"),IF(K55<'1) User Input and Sites'!$D$18,\"NO\",\"YES\")))","v":""},null,null,{"$f":"IF(E55=\"\",\"\",IF(E55=\"Land\",G55*'1) User Input and Sites'!$E$19/1000*10.7639,G55*'1) User Input and Sites'!$E$18/1000*10.7639))","v":""}]
[null,24,null,null,null,null,null,{"$f":"IF(G56=\"\",\"\",IF(E56=\"Land\",IF(K56<'1) User Input and Sites'!$D$19,\"NO\",\"YES\"),IF(K56<'1) User Input and Sites'!$D$18,\"NO\",\"YES\")))","v":""},null,null,{"$f":"IF(E56=\"\",\"\",IF(E56=\"Land\",G56*'1) User Input and Sites'!$E$19/1000*10.7639,G56*'1) User Input and Sites'!$E$18/1000*10.7639))","v":""}]
[null,25,null,null,null,null,null,{"$f":"IF(G57=\"\",\"\",IF(E57=\"Land\",IF(K57<'1) User Input and Sites'!$D$19,\"NO\",\"YES\"),IF(K57<'1) User Input and Sites'!$D$18,\"NO\",\"YES\")))","v":""},null,null,{"$f":"IF(E57=\"\",\"\",IF(E57=\"Land\",G57*'1) User Input and Sites'!$E$19/1000*10.7639,G57*'1) User Input and Sites'!$E$18/1000*10.7639))","v":""}]
[null,26,null,null,null,null,null,{"$f":"IF(G58=\"\",\"\",IF(E58=\"Land\",IF(K58<'1) User Input and Sites'!$D$19,\"NO\",\"YES\"),IF(K58<'1) User Input and Sites'!$D$18,\"NO\",\"YES\")))","v":""},null,null,{"$f":"IF(E58=\"\",\"\",IF(E58=\"Land\",G58*'1) User Input and Sites'!$E$19/1000*10.7639,G58*'1) User Input and Sites'!$E$18/1000*10.7639))","v":""}]
[null,27,null,null,null,null,null,{"$f":"IF(G59=\"\",\"\",IF(E59=\"Land\",IF(K59<'1) User Input and Sites'!$D$19,\"NO\",\"YES\"),IF(K59<'1) User Input and Sites'!$D$18,\"NO\",\"YES\")))","v":""},null,null,{"$f":"IF(E59=\"\",\"\",IF(E59=\"Land\",G59*'1) User Input and Sites'!$E$19/1000*10.7639,G59*'1) User Input and Sites'!$E$18/1000*10.7639))","v":""}]
[null,28,null,null,null,null,null,{"$f":"IF(G60=\"\",\"\",IF(E60=\"Land\",IF(K60<'1) User Input and Sites'!$D$19,\"NO\",\"YES\"),IF(K60<'1) User Input and Sites'!$D$18,\"NO\",\"YES\")))","v":""},null,null,{"$f":"IF(E60=\"\",\"\",IF(E60=\"Land\",G60*'1) User Input and Sites'!$E$19/1000*10.7639,G60*'1) User Input and Sites'!$E$18/1000*10.7639))","v":""}]
[null,29,null,null,null,null,null,{"$f":"IF(G61=\"\",\"\",IF(E61=\"Land\",IF(K61<'1) User Input and Sites'!$D$19,\"NO\",\"YES\"),IF(K61<'1) User Input and Sites'!$D$18,\"NO\",\"YES\")))","v":""},null,null,{"$f":"IF(E61=\"\",\"\",IF(E61=\"Land\",G61*'1) User Input and Sites'!$E$19/1000*10.7639,G61*'1) User Input and Sites'!$E$18/1000*10.7639))","v":""}]
[null,30,null,null,null,null,null,{"$f":"IF(G62=\"\",\"\",IF(E62=\"Land\",IF(K62<'1) User Input and Sites'!$D$19,\"NO\",\"YES\"),IF(K62<'1) User Input and Sites'!$D$18,\"NO\",\"YES\")))","v":""},null,null,{"$f":"IF(E62=\"\",\"\",IF(E62=\"Land\",G62*'1) User Input and Sites'!$E$19/1000*10.7639,G62*'1) User Input and Sites'!$E$18/1000*10.7639))","v":""}]
[null,31,null,null,null,null,null,{"$f":"IF(G63=\"\",\"\",IF(E63=\"Land\",IF(K63<'1) User Input and Sites'!$D$19,\"NO\",\"YES\"),IF(K63<'1) User Input and Sites'!$D$18,\"NO\",\"YES\")))","v":""},null,null,{"$f":"IF(E63=\"\",\"\",IF(E63=\"Land\",G63*'1) User Input and Sites'!$E$19/1000*10.7639,G63*'1) User Input and Sites'!$E$18/1000*10.7639))","v":""}]
[null,32,null,null,null,null,null,{"$f":"IF(G64=\"\",\"\",IF(E64=\"Land\",IF(K64<'1) User Input and Sites'!$D$19,\"NO\",\"YES\"),IF(K64<'1) User Input and Sites'!$D$18,\"NO\",\"YES\")))","v":""},null,null,{"$f":"IF(E64=\"\",\"\",IF(E64=\"Land\",G64*'1) User Input and Sites'!$E$19/1000*10.7639,G64*'1) User Input and Sites'!$E$18/1000*10.7639))","v":""}]
[null,33,null,null,null,null,null,{"$f":"IF(G65=\"\",\"\",IF(E65=\"Land\",IF(K65<'1) User Input and Sites'!$D$19,\"NO\",\"YES\"),IF(K65<'1) User Input and Sites'!$D$18,\"NO\",\"YES\")))","v":""},null,null,{"$f":"IF(E65=\"\",\"\",IF(E65=\"Land\",G65*'1) User Input and Sites'!$E$19/1000*10.7639,G65*'1) User Input and Sites'!$E$18/1000*10.7639))","v":""}]
[null,34,null,null,null,null,null,{"$f":"IF(G66=\"\",\"\",IF(E66=\"Land\",IF(K66<'1) User Input and Sites'!$D$19,\"NO\",\"YES\"),IF(K66<'1) User Input and Sites'!$D$18,\"NO\",\"YES\")))","v":""},null,null,{"$f":"IF(E66=\"\",\"\",IF(E66=\"Land\",G66*'1) User Input and Sites'!$E$19/1000*10.7639,G66*'1) User Input and Sites'!$E$18/1000*10.7639))","v":""}]
[null,35,null,null,null,null,null,{"$f":"IF(G67=\"\",\"\",IF(E67=\"Land\",IF(K67<'1) User Input and Sites'!$D$19,\"NO\",\"YES\"),IF(K67<'1) User Input and Sites'!$D$18,\"NO\",\"YES\")))","v":""},null,null,{"$f":"IF(E67=\"\",\"\",IF(E67=\"Land\",G67*'1) User Input and Sites'!$E$19/1000*10.7639,G67*'1) User Input and Sites'!$E$18/1000*10.7639))","v":""}]
[null,36,null,null,null,null,null,{"$f":"IF(G68=\"\",\"\",IF(E68=\"Land\",IF(K68<'1) User Input and Sites'!$D$19,\"NO\",\"YES\"),IF(K68<'1) User Input and Sites'!$D$18,\"NO\",\"YES\")))","v":""},null,null,{"$f":"IF(E68=\"\",\"\",IF(E68=\"Land\",G68*'1) User Input and Sites'!$E$19/1000*10.7639,G68*'1) User Input and Sites'!$E$18/1000*10.7639))","v":""}]
[null,37,null,null,null,null,null,{"$f":"IF(G69=\"\",\"\",IF(E69=\"Land\",IF(K69<'1) User Input and Sites'!$D$19,\"NO\",\"YES\"),IF(K69<'1) User Input and Sites'!$D$18,\"NO\",\"YES\")))","v":""},null,null,{"$f":"IF(E69=\"\",\"\",IF(E69=\"Land\",G69*'1) User Input and Sites'!$E$19/1000*10.7639,G69*'1) User Input and Sites'!$E$18/1000*10.7639))","v":""}]
[null,38,null,null,null,null,null,{"$f":"IF(G70=\"\",\"\",IF(E70=\"Land\",IF(K70<'1) User Input and Sites'!$D$19,\"NO\",\"YES\"),IF(K70<'1) User Input and Sites'!$D$18,\"NO\",\"YES\")))","v":""},null,null,{"$f":"IF(E70=\"\",\"\",IF(E70=\"Land\",G70*'1) User Input and Sites'!$E$19/1000*10.7639,G70*'1) User Input and Sites'!$E$18/1000*10.7639))","v":""}]
[null,39,null,null,null,null,null,{"$f":"IF(G71=\"\",\"\",IF(E71=\"Land\",IF(K71<'1) User Input and Sites'!$D$19,\"NO\",\"YES\"),IF(K71<'1) User Input and Sites'!$D$18,\"NO\",\"YES\")))","v":""},null,null,{"$f":"IF(E71=\"\",\"\",IF(E71=\"Land\",G71*'1) User Input and Sites'!$E$19/1000*10.7639,G71*'1) User Input and Sites'!$E$18/1000*10.7639))","v":""}]
[null,40,null,null,null,null,null,{"$f":"IF(G72=\"\",\"\",IF(E72=\"Land\",IF(K72<'1) User Input and Sites'!$D$19,\"NO\",\"YES\"),IF(K72<'1) User Input and Sites'!$D$18,\"NO\",\"YES\")))","v":""},null,null,{"$f":"IF(E72=\"\",\"\",IF(E72=\"Land\",G72*'1) User Input and Sites'!$E$19/1000*10.7639,G72*'1) User Input and Sites'!$E$18/1000*10.7639))","v":""}]
[null,41,null,null,null,null,null,{"$f":"IF(G73=\"\",\"\",IF(E73=\"Land\",IF(K73<'1) User Input and Sites'!$D$19,\"NO\",\"YES\"),IF(K73<'1) User Input and Sites'!$D$18,\"NO\",\"YES\")))","v":""},null,null,{"$f":"IF(E73=\"\",\"\",IF(E73=\"Land\",G73*'1) User Input and Sites'!$E$19/1000*10.7639,G73*'1) User Input and Sites'!$E$18/1000*10.7639))","v":""}]
[null,42,null,null,null,null,null,{"$f":"IF(G74=\"\",\"\",IF(E74=\"Land\",IF(K74<'1) User Input and Sites'!$D$19,\"NO\",\"YES\"),IF(K74<'1) User Input and Sites'!$D$18,\"NO\",\"YES\")))","v":""},null,null,{"$f":"IF(E74=\"\",\"\",IF(E74=\"Land\",G74*'1) User Input and Sites'!$E$19/1000*10.7639,G74*'1) User Input and Sites'!$E$18/1000*10.7639))","v":""}]
[null,43,null,null,null,null,null,{"$f":"IF(G75=\"\",\"\",IF(E75=\"Land\",IF(K75<'1) User Input and Sites'!$D$19,\"NO\",\"YES\"),IF(K75<'1) User Input and Sites'!$D$18,\"NO\",\"YES\")))","v":""},null,null,{"$f":"IF(E75=\"\",\"\",IF(E75=\"Land\",G75*'1) User Input and Sites'!$E$19/1000*10.7639,G75*'1) User Input and Sites'!$E$18/1000*10.7639))","v":""}]
[null,44,null,null,null,null,null,{"$f":"IF(G76=\"\",\"\",IF(E76=\"Land\",IF(K76<'1) User Input and Sites'!$D$19,\"NO\",\"YES\"),IF(K76<'1) User Input and Sites'!$D$18,\"NO\",\"YES\")))","v":""},null,null,{"$f":"IF(E76=\"\",\"\",IF(E76=\"Land\",G76*'1) User Input and Sites'!$E$19/1000*10.7639,G76*'1) User Input and Sites'!$E$18/1000*10.7639))","v":""}]
[null,45,null,null,null,null,null,{"$f":"IF(G77=\"\",\"\",IF(E77=\"Land\",IF(K77<'1) User Input and Sites'!$D$19,\"NO\",\"YES\"),IF(K77<'1) User Input and Sites'!$D$18,\"NO\",\"YES\")))","v":""},null,null,{"$f":"IF(E77=\"\",\"\",IF(E77=\"Land\",G77*'1) User Input and Sites'!$E$19/1000*10.7639,G77*'1) User Input and Sites'!$E$18/1000*10.7639))","v":""}]
[null,46,null,null,null,null,null,{"$f":"IF(G78=\"\",\"\",IF(E78=\"Land\",IF(K78<'1) User Input and Sites'!$D$19,\"NO\",\"YES\"),IF(K78<'1) User Input and Sites'!$D$18,\"NO\",\"YES\")))","v":""},null,null,{"$f":"IF(E78=\"\",\"\",IF(E78=\"Land\",G78*'1) User Input and Sites'!$E$19/1000*10.7639,G78*'1) User Input and Sites'!$E$18/1000*10.7639))","v":""}]
[null,47,null,null,null,null,null,{"$f":"IF(G79=\"\",\"\",IF(E79=\"Land\",IF(K79<'1) User Input and Sites'!$D$19,\"NO\",\"YES\"),IF(K79<'1) User Input and Sites'!$D$18,\"NO\",\"YES\")))","v":""},null,null,{"$f":"IF(E79=\"\",\"\",IF(E79=\"Land\",G79*'1) User Input and Sites'!$E$19/1000*10.7639,G79*'1) User Input and Sites'!$E$18/1000*10.7639))","v":""}]
[null,48,null,null,null,null,null,{"$f":"IF(G80=\"\",\"\",IF(E80=\"Land\",IF(K80<'1) User Input and Sites'!$D$19,\"NO\",\"YES\"),IF(K80<'1) User Input and Sites'!$D$18,\"NO\",\"YES\")))","v":""},null,null,{"$f":"IF(E80=\"\",\"\",IF(E80=\"Land\",G80*'1) User Input and Sites'!$E$19/1000*10.7639,G80*'1) User Input and Sites'!$E$18/1000*10.7639))","v":""}]
[null,49,null,null,null,null,null,{"$f":"IF(G81=\"\",\"\",IF(E81=\"Land\",IF(K81<'1) User Input and Sites'!$D$19,\"NO\",\"YES\"),IF(K81<'1) User Input and Sites'!$D$18,\"NO\",\"YES\")))","v":""},null,null,{"$f":"IF(E81=\"\",\"\",IF(E81=\"Land\",G81*'1) User Input and Sites'!$E$19/1000*10.7639,G81*'1) User Input and Sites'!$E$18/1000*10.7639))","v":""}]
[null,50,null,null,null,null,null,{"$f":"IF(G82=\"\",\"\",IF(E82=\"Land\",IF(K82<'1) User Input and Sites'!$D$19,\"NO\",\"YES\"),IF(K82<'1) User Input and Sites'!$D$18,\"NO\",\"YES\")))","v":""},null,null,{"$f":"IF(E82=\"\",\"\",IF(E82=\"Land\",G82*'1) User Input and Sites'!$E$19/1000*10.7639,G82*'1) User Input and Sites'!$E$18/1000*10.7639))","v":""}]
[null,51,null,null,null,null,null,{"$f":"IF(G83=\"\",\"\",IF(E83=\"Land\",IF(K83<'1) User Input and Sites'!$D$19,\"NO\",\"YES\"),IF(K83<'1) User Input and Sites'!$D$18,\"NO\",\"YES\")))","v":""},null,null,{"$f":"IF(E83=\"\",\"\",IF(E83=\"Land\",G83*'1) User Input and Sites'!$E$19/1000*10.7639,G83*'1) User Input and Sites'!$E$18/1000*10.7639))","v":""}]
[null,52,null,null,null,null,null,{"$f":"IF(G84=\"\",\"\",IF(E84=\"Land\",IF(K84<'1) User Input and Sites'!$D$19,\"NO\",\"YES\"),IF(K84<'1) User Input and Sites'!$D$18,\"NO\",\"YES\")))","v":""},null,null,{"$f":"IF(E84=\"\",\"\",IF(E84=\"Land\",G84*'1) User Input and Sites'!$E$19/1000*10.7639,G84*'1) User Input and Sites'!$E$18/1000*10.7639))","v":""}]
[null,53,null,null,null,null,null,{"$f":"IF(G85=\"\",\"\",IF(E85=\"Land\",IF(K85<'1) User Input and Sites'!$D$19,\"NO\",\"YES\"),IF(K85<'1) User Input and Sites'!$D$18,\"NO\",\"YES\")))","v":""},null,null,{"$f":"IF(E85=\"\",\"\",IF(E85=\"Land\",G85*'1) User Input and Sites'!$E$19/1000*10.7639,G85*'1) User Input and Sites'!$E$18/1000*10.7639))","v":""}]
[null,54,null,null,null,null,null,{"$f":"IF(G86=\"\",\"\",IF(E86=\"Land\",IF(K86<'1) User Input and Sites'!$D$19,\"NO\",\"YES\"),IF(K86<'1) User Input and Sites'!$D$18,\"NO\",\"YES\")))","v":""},null,null,{"$f":"IF(E86=\"\",\"\",IF(E86=\"Land\",G86*'1) User Input and Sites'!$E$19/1000*10.7639,G86*'1) User Input and Sites'!$E$18/1000*10.7639))","v":""}]
[null,55,null,null,null,null,null,{"$f":"IF(G87=\"\",\"\",IF(E87=\"Land\",IF(K87<'1) User Input and Sites'!$D$19,\"NO\",\"YES\"),IF(K87<'1) User Input and Sites'!$D$18,\"NO\",\"YES\")))","v":""},null,null,{"$f":"IF(E87=\"\",\"\",IF(E87=\"Land\",G87*'1) User Input and Sites'!$E$19/1000*10.7639,G87*'1) User Input and Sites'!$E$18/1000*10.7639))","v":""}]
[null,56,null,null,null,null,null,{"$f":"IF(G88=\"\",\"\",IF(E88=\"Land\",IF(K88<'1) User Input and Sites'!$D$19,\"NO\",\"YES\"),IF(K88<'1) User Input and Sites'!$D$18,\"NO\",\"YES\")))","v":""},null,null,{"$f":"IF(E88=\"\",\"\",IF(E88=\"Land\",G88*'1) User Input and Sites'!$E$19/1000*10.7639,G88*'1) User Input and Sites'!$E$18/1000*10.7639))","v":""}]
[null,57,null,null,null,null,null,{"$f":"IF(G89=\"\",\"\",IF(E89=\"Land\",IF(K89<'1) User Input and Sites'!$D$19,\"NO\",\"YES\"),IF(K89<'1) User Input and Sites'!$D$18,\"NO\",\"YES\")))","v":""},null,null,{"$f":"IF(E89=\"\",\"\",IF(E89=\"Land\",G89*'1) User Input and Sites'!$E$19/1000*10.7639,G89*'1) User Input and Sites'!$E$18/1000*10.7639))","v":""}]
[null,58,null,null,null,null,null,{"$f":"IF(G90=\"\",\"\",IF(E90=\"Land\",IF(K90<'1) User Input and Sites'!$D$19,\"NO\",\"YES\"),IF(K90<'1) User Input and Sites'!$D$18,\"NO\",\"YES\")))","v":""},null,null,{"$f":"IF(E90=\"\",\"\",IF(E90=\"Land\",G90*'1) User Input and Sites'!$E$19/1000*10.7639,G90*'1) User Input and Sites'!$E$18/1000*10.7639))","v":""}]
[null,59,null,null,null,null,null,{"$f":"IF(G91=\"\",\"\",IF(E91=\"Land\",IF(K91<'1) User Input and Sites'!$D$19,\"NO\",\"YES\"),IF(K91<'1) User Input and Sites'!$D$18,\"NO\",\"YES\")))","v":""},null,null,{"$f":"IF(E91=\"\",\"\",IF(E91=\"Land\",G91*'1) User Input and Sites'!$E$19/1000*10.7639,G91*'1) User Input and Sites'!$E$18/1000*10.7639))","v":""}]
[null,60,null,null,null,null,null,{"$f":"IF(G92=\"\",\"\",IF(E92=\"Land\",IF(K92<'1) User Input and Sites'!$D$19,\"NO\",\"YES\"),IF(K92<'1) User Input and Sites'!$D$18,\"NO\",\"YES\")))","v":""},null,null,{"$f":"IF(E92=\"\",\"\",IF(E92=\"Land\",G92*'1) User Input and Sites'!$E$19/1000*10.7639,G92*'1) User Input and Sites'!$E$18/1000*10.7639))","v":""}]
[null,61,null,null,null,null,null,{"$f":"IF(G93=\"\",\"\",IF(E93=\"Land\",IF(K93<'1) User Input and Sites'!$D$19,\"NO\",\"YES\"),IF(K93<'1) User Input and Sites'!$D$18,\"NO\",\"YES\")))","v":""},null,null,{"$f":"IF(E93=\"\",\"\",IF(E93=\"Land\",G93*'1) User Input and Sites'!$E$19/1000*10.7639,G93*'1) User Input and Sites'!$E$18/1000*10.7639))","v":""}]
[null,62,null,null,null,null,null,{"$f":"IF(G94=\"\",\"\",IF(E94=\"Land\",IF(K94<'1) User Input and Sites'!$D$19,\"NO\",\"YES\"),IF(K94<'1) User Input and Sites'!$D$18,\"NO\",\"YES\")))","v":""},null,null,{"$f":"IF(E94=\"\",\"\",IF(E94=\"Land\",G94*'1) User Input and Sites'!$E$19/1000*10.7639,G94*'1) User Input and Sites'!$E$18/1000*10.7639))","v":""}]
[null,63,null,null,null,null,null,{"$f":"IF(G95=\"\",\"\",IF(E95=\"Land\",IF(K95<'1) User Input and Sites'!$D$19,\"NO\",\"YES\"),IF(K95<'1) User Input and Sites'!$D$18,\"NO\",\"YES\")))","v":""},null,null,{"$f":"IF(E95=\"\",\"\",IF(E95=\"Land\",G95*'1) User Input and Sites'!$E$19/1000*10.7639,G95*'1) User Input and Sites'!$E$18/1000*10.7639))","v":""}]
[null,64,null,null,null,null,null,{"$f":"IF(G96=\"\",\"\",IF(E96=\"Land\",IF(K96<'1) User Input and Sites'!$D$19,\"NO\",\"YES\"),IF(K96<'1) User Input and Sites'!$D$18,\"NO\",\"YES\")))","v":""},null,null,{"$f":"IF(E96=\"\",\"\",IF(E96=\"Land\",G96*'1) User Input and Sites'!$E$19/1000*10.7639,G96*'1) User Input and Sites'!$E$18/1000*10.7639))","v":""}]
[null,65,null,null,null,null,null,{"$f":"IF(G97=\"\",\"\",IF(E97=\"Land\",IF(K97<'1) User Input and Sites'!$D$19,\"NO\",\"YES\"),IF(K97<'1) User Input and Sites'!$D$18,\"NO\",\"YES\")))","v":""},null,null,{"$f":"IF(E97=\"\",\"\",IF(E97=\"Land\",G97*'1) User Input and Sites'!$E$19/1000*10.7639,G97*'1) User Input and Sites'!$E$18/1000*10.7639))","v":""}]
[null,66,null,null,null,null,null,{"$f":"IF(G98=\"\",\"\",IF(E98=\"Land\",IF(K98<'1) User Input and Sites'!$D$19,\"NO\",\"YES\"),IF(K98<'1) User Input and Sites'!$D$18,\"NO\",\"YES\")))","v":""},null,null,{"$f":"IF(E98=\"\",\"\",IF(E98=\"Land\",G98*'1) User Input and Sites'!$E$19/1000*10.7639,G98*'1) User Input and Sites'!$E$18/1000*10.7639))","v":""}]
[null,67,null,null,null,null,null,{"$f":"IF(G99=\"\",\"\",IF(E99=\"Land\",IF(K99<'1) User Input and Sites'!$D$19,\"NO\",\"YES\"),IF(K99<'1) User Input and Sites'!$D$18,\"NO\",\"YES\")))","v":""},null,null,{"$f":"IF(E99=\"\",\"\",IF(E99=\"Land\",G99*'1) User Input and Sites'!$E$19/1000*10.7639,G99*'1) User Input and Sites'!$E$18/1000*10.7639))","v":""}]
[null,68,null,null,null,null,null,{"$f":"IF(G100=\"\",\"\",IF(E100=\"Land\",IF(K100<'1) User Input and Sites'!$D$19,\"NO\",\"YES\"),IF(K100<'1) User Input and Sites'!$D$18,\"NO\",\"YES\")))","v":""},null,null,{"$f":"IF(E100=\"\",\"\",IF(E100=\"Land\",G100*'1) User Input and Sites'!$E$19/1000*10.7639,G100*'1) User Input and Sites'!$E$18/1000*10.7639))","v":""}]
[null,69,null,null,null,null,null,{"$f":"IF(G101=\"\",\"\",IF(E101=\"Land\",IF(K101<'1) User Input and Sites'!$D$19,\"NO\",\"YES\"),IF(K101<'1) User Input and Sites'!$D$18,\"NO\",\"YES\")))","v":""},null,null,{"$f":"IF(E101=\"\",\"\",IF(E101=\"Land\",G101*'1) User Input and Sites'!$E$19/1000*10.7639,G101*'1) User Input and Sites'!$E$18/1000*10.7639))","v":""}]
[null,70,null,null,null,null,null,{"$f":"IF(G102=\"\",\"\",IF(E102=\"Land\",IF(K102<'1) User Input and Sites'!$D$19,\"NO\",\"YES\"),IF(K102<'1) User Input and Sites'!$D$18,\"NO\",\"YES\")))","v":""},null,null,{"$f":"IF(E102=\"\",\"\",IF(E102=\"Land\",G102*'1) User Input and Sites'!$E$19/1000*10.7639,G102*'1) User Input and Sites'!$E$18/1000*10.7639))","v":""}]
[null,71,null,null,null,null,null,{"$f":"IF(G103=\"\",\"\",IF(E103=\"Land\",IF(K103<'1) User Input and Sites'!$D$19,\"NO\",\"YES\"),IF(K103<'1) User Input and Sites'!$D$18,\"NO\",\"YES\")))","v":""},null,null,{"$f":"IF(E103=\"\",\"\",IF(E103=\"Land\",G103*'1) User Input and Sites'!$E$19/1000*10.7639,G103*'1) User Input and Sites'!$E$18/1000*10.7639))","v":""}]
[null,72,null,null,null,null,null,{"$f":"IF(G104=\"\",\"\",IF(E104=\"Land\",IF(K104<'1) User Input and Sites'!$D$19,\"NO\",\"YES\"),IF(K104<'1) User Input and Sites'!$D$18,\"NO\",\"YES\")))","v":""},null,null,{"$f":"IF(E104=\"\",\"\",IF(E104=\"Land\",G104*'1) User Input and Sites'!$E$19/1000*10.7639,G104*'1) User Input and Sites'!$E$18/1000*10.7639))","v":""}]
[null,73,null,null,null,null,null,{"$f":"IF(G105=\"\",\"\",IF(E105=\"Land\",IF(K105<'1) User Input and Sites'!$D$19,\"NO\",\"YES\"),IF(K105<'1) User Input and Sites'!$D$18,\"NO\",\"YES\")))","v":""},null,null,{"$f":"IF(E105=\"\",\"\",IF(E105=\"Land\",G105*'1) User Input and Sites'!$E$19/1000*10.7639,G105*'1) User Input and Sites'!$E$18/1000*10.7639))","v":""}]
[null,74,null,null,null,null,null,{"$f":"IF(G106=\"\",\"\",IF(E106=\"Land\",IF(K106<'1) User Input and Sites'!$D$19,\"NO\",\"YES\"),IF(K106<'1) User Input and Sites'!$D$18,\"NO\",\"YES\")))","v":""},null,null,{"$f":"IF(E106=\"\",\"\",IF(E106=\"Land\",G106*'1) User Input and Sites'!$E$19/1000*10.7639,G106*'1) User Input and Sites'!$E$18/1000*10.7639))","v":""}]
[null,75,null,null,null,null,null,{"$f":"IF(G107=\"\",\"\",IF(E107=\"Land\",IF(K107<'1) User Input and Sites'!$D$19,\"NO\",\"YES\"),IF(K107<'1) User Input and Sites'!$D$18,\"NO\",\"YES\")))","v":""},null,null,{"$f":"IF(E107=\"\",\"\",IF(E107=\"Land\",G107*'1) User Input and Sites'!$E$19/1000*10.7639,G107*'1) User Input and Sites'!$E$18/1000*10.7639))","v":""}]
[null,76,null,null,null,null,null,{"$f":"IF(G108=\"\",\"\",IF(E108=\"Land\",IF(K108<'1) User Input and Sites'!$D$19,\"NO\",\"YES\"),IF(K108<'1) User Input and Sites'!$D$18,\"NO\",\"YES\")))","v":""},null,null,{"$f":"IF(E108=\"\",\"\",IF(E108=\"Land\",G108*'1) User Input and Sites'!$E$19/1000*10.7639,G108*'1) User Input and Sites'!$E$18/1000*10.7639))","v":""}]
[null,77,null,null,null,null,null,{"$f":"IF(G109=\"\",\"\",IF(E109=\"Land\",IF(K109<'1) User Input and Sites'!$D$19,\"NO\",\"YES\"),IF(K109<'1) User Input and Sites'!$D$18,\"NO\",\"YES\")))","v":""},null,null,{"$f":"IF(E109=\"\",\"\",IF(E109=\"Land\",G109*'1) User Input and Sites'!$E$19/1000*10.7639,G109*'1) User Input and Sites'!$E$18/1000*10.7639))","v":""}]
[null,78,null,null,null,null,null,{"$f":"IF(G110=\"\",\"\",IF(E110=\"Land\",IF(K110<'1) User Input and Sites'!$D$19,\"NO\",\"YES\"),IF(K110<'1) User Input and Sites'!$D$18,\"NO\",\"YES\")))","v":""},null,null,{"$f":"IF(E110=\"\",\"\",IF(E110=\"Land\",G110*'1) User Input and Sites'!$E$19/1000*10.7639,G110*'1) User Input and Sites'!$E$18/1000*10.7639))","v":""}]
[null,79,null,null,null,null,null,{"$f":"IF(G111=\"\",\"\",IF(E111=\"Land\",IF(K111<'1) User Input and Sites'!$D$19,\"NO\",\"YES\"),IF(K111<'1) User Input and Sites'!$D$18,\"NO\",\"YES\")))","v":""},null,null,{"$f":"IF(E111=\"\",\"\",IF(E111=\"Land\",G111*'1) User Input and Sites'!$E$19/1000*10.7639,G111*'1) User Input and Sites'!$E$18/1000*10.7639))","v":""}]
[null,80,null,null,null,null,null,{"$f":"IF(G112=\"\",\"\",IF(E112=\"Land\",IF(K112<'1) User Input and Sites'!$D$19,\"NO\",\"YES\"),IF(K112<'1) User Input and Sites'!$D$18,\"NO\",\"YES\")))","v":""},null,null,{"$f":"IF(E112=\"\",\"\",IF(E112=\"Land\",G112*'1) User Input and Sites'!$E$19/1000*10.7639,G112*'1) User Input and Sites'!$E$18/1000*10.7639))","v":""}]
[null,81,null,null,null,null,null,{"$f":"IF(G113=\"\",\"\",IF(E113=\"Land\",IF(K113<'1) User Input and Sites'!$D$19,\"NO\",\"YES\"),IF(K113<'1) User Input and Sites'!$D$18,\"NO\",\"YES\")))","v":""},null,null,{"$f":"IF(E113=\"\",\"\",IF(E113=\"Land\",G113*'1) User Input and Sites'!$E$19/1000*10.7639,G113*'1) User Input and Sites'!$E$18/1000*10.7639))","v":""}]
[null,82,null,null,null,null,null,{"$f":"IF(G114=\"\",\"\",IF(E114=\"Land\",IF(K114<'1) User Input and Sites'!$D$19,\"NO\",\"YES\"),IF(K114<'1) User Input and Sites'!$D$18,\"NO\",\"YES\")))","v":""},null,null,{"$f":"IF(E114=\"\",\"\",IF(E114=\"Land\",G114*'1) User Input and Sites'!$E$19/1000*10.7639,G114*'1) User Input and Sites'!$E$18/1000*10.7639))","v":""}]
[null,83,null,null,null,null,null,{"$f":"IF(G115=\"\",\"\",IF(E115=\"Land\",IF(K115<'1) User Input and Sites'!$D$19,\"NO\",\"YES\"),IF(K115<'1) User Input and Sites'!$D$18,\"NO\",\"YES\")))","v":""},null,null,{"$f":"IF(E115=\"\",\"\",IF(E115=\"Land\",G115*'1) User Input and Sites'!$E$19/1000*10.7639,G115*'1) User Input and Sites'!$E$18/1000*10.7639))","v":""}]
[null,84,null,null,null,null,null,{"$f":"IF(G116=\"\",\"\",IF(E116=\"Land\",IF(K116<'1) User Input and Sites'!$D$19,\"NO\",\"YES\"),IF(K116<'1) User Input and Sites'!$D$18,\"NO\",\"YES\")))","v":""},null,null,{"$f":"IF(E116=\"\",\"\",IF(E116=\"Land\",G116*'1) User Input and Sites'!$E$19/1000*10.7639,G116*'1) User Input and Sites'!$E$18/1000*10.7639))","v":""}]
[null,85,null,null,null,null,null,{"$f":"IF(G117=\"\",\"\",IF(E117=\"Land\",IF(K117<'1) User Input and Sites'!$D$19,\"NO\",\"YES\"),IF(K117<'1) User Input and Sites'!$D$18,\"NO\",\"YES\")))","v":""},null,null,{"$f":"IF(E117=\"\",\"\",IF(E117=\"Land\",G117*'1) User Input and Sites'!$E$19/1000*10.7639,G117*'1) User Input and Sites'!$E$18/1000*10.7639))","v":""}]
[null,86,null,null,null,null,null,{"$f":"IF(G118=\"\",\"\",IF(E118=\"Land\",IF(K118<'1) User Input and Sites'!$D$19,\"NO\",\"YES\"),IF(K118<'1) User Input and Sites'!$D$18,\"NO\",\"YES\")))","v":""},null,null,{"$f":"IF(E118=\"\",\"\",IF(E118=\"Land\",G118*'1) User Input and Sites'!$E$19/1000*10.7639,G118*'1) User Input and Sites'!$E$18/1000*10.7639))","v":""}]
[null,87,null,null,null,null,null,{"$f":"IF(G119=\"\",\"\",IF(E119=\"Land\",IF(K119<'1) User Input and Sites'!$D$19,\"NO\",\"YES\"),IF(K119<'1) User Input and Sites'!$D$18,\"NO\",\"YES\")))","v":""},null,null,{"$f":"IF(E119=\"\",\"\",IF(E119=\"Land\",G119*'1) User Input and Sites'!$E$19/1000*10.7639,G119*'1) User Input and Sites'!$E$18/1000*10.7639))","v":""}]
[null,88,null,null,null,null,null,{"$f":"IF(G120=\"\",\"\",IF(E120=\"Land\",IF(K120<'1) User Input and Sites'!$D$19,\"NO\",\"YES\"),IF(K120<'1) User Input and Sites'!$D$18,\"NO\",\"YES\")))","v":""},null,null,{"$f":"IF(E120=\"\",\"\",IF(E120=\"Land\",G120*'1) User Input and Sites'!$E$19/1000*10.7639,G120*'1) User Input and Sites'!$E$18/1000*10.7639))","v":""}]
[null,89,null,null,null,null,null,{"$f":"IF(G121=\"\",\"\",IF(E121=\"Land\",IF(K121<'1) User Input and Sites'!$D$19,\"NO\",\"YES\"),IF(K121<'1) User Input and Sites'!$D$18,\"NO\",\"YES\")))","v":""},null,null,{"$f":"IF(E121=\"\",\"\",IF(E121=\"Land\",G121*'1) User Input and Sites'!$E$19/1000*10.7639,G121*'1) User Input and Sites'!$E$18/1000*10.7639))","v":""}]
[null,90,null,null,null,null,null,{"$f":"IF(G122=\"\",\"\",IF(E122=\"Land\",IF(K122<'1) User Input and Sites'!$D$19,\"NO\",\"YES\"),IF(K122<'1) User Input and Sites'!$D$18,\"NO\",\"YES\")))","v":""},null,null,{"$f":"IF(E122=\"\",\"\",IF(E122=\"Land\",G122*'1) User Input and Sites'!$E$19/1000*10.7639,G122*'1) User Input and Sites'!$E$18/1000*10.7639))","v":""}]
[null,91,null,null,null,null,null,{"$f":"IF(G123=\"\",\"\",IF(E123=\"Land\",IF(K123<'1) User Input and Sites'!$D$19,\"NO\",\"YES\"),IF(K123<'1) User Input and Sites'!$D$18,\"NO\",\"YES\")))","v":""},null,null,{"$f":"IF(E123=\"\",\"\",IF(E123=\"Land\",G123*'1) User Input and Sites'!$E$19/1000*10.7639,G123*'1) User Input and Sites'!$E$18/1000*10.7639))","v":""}]
[null,92,null,null,null,null,null,{"$f":"IF(G124=\"\",\"\",IF(E124=\"Land\",IF(K124<'1) User Input and Sites'!$D$19,\"NO\",\"YES\"),IF(K124<'1) User Input and Sites'!$D$18,\"NO\",\"YES\")))","v":""},null,null,{"$f":"IF(E124=\"\",\"\",IF(E124=\"Land\",G124*'1) User Input and Sites'!$E$19/1000*10.7639,G124*'1) User Input and Sites'!$E$18/1000*10.7639))","v":""}]
[null,93,null,null,null,null,null,{"$f":"IF(G125=\"\",\"\",IF(E125=\"Land\",IF(K125<'1) User Input and Sites'!$D$19,\"NO\",\"YES\"),IF(K125<'1) User Input and Sites'!$D$18,\"NO\",\"YES\")))","v":""},null,null,{"$f":"IF(E125=\"\",\"\",IF(E125=\"Land\",G125*'1) User Input and Sites'!$E$19/1000*10.7639,G125*'1) User Input and Sites'!$E$18/1000*10.7639))","v":""}]
[null,94,null,null,null,null,null,{"$f":"IF(G126=\"\",\"\",IF(E126=\"Land\",IF(K126<'1) User Input and Sites'!$D$19,\"NO\",\"YES\"),IF(K126<'1) User Input and Sites'!$D$18,\"NO\",\"YES\")))","v":""},null,null,{"$f":"IF(E126=\"\",\"\",IF(E126=\"Land\",G126*'1) User Input and Sites'!$E$19/1000*10.7639,G126*'1) User Input and Sites'!$E$18/1000*10.7639))","v":""}]
[null,95,null,null,null,null,null,{"$f":"IF(G127=\"\",\"\",IF(E127=\"Land\",IF(K127<'1) User Input and Sites'!$D$19,\"NO\",\"YES\"),IF(K127<'1) User Input and Sites'!$D$18,\"NO\",\"YES\")))","v":""},null,null,{"$f":"IF(E127=\"\",\"\",IF(E127=\"Land\",G127*'1) User Input and Sites'!$E$19/1000*10.7639,G127*'1) User Input and Sites'!$E$18/1000*10.7639))","v":""}]
[null,96,null,null,null,null,null,{"$f":"IF(G128=\"\",\"\",IF(E128=\"Land\",IF(K128<'1) User Input and Sites'!$D$19,\"NO\",\"YES\"),IF(K128<'1) User Input and Sites'!$D$18,\"NO\",\"YES\")))","v":""},null,null,{"$f":"IF(E128=\"\",\"\",IF(E128=\"Land\",G128*'1) User Input and Sites'!$E$19/1000*10.7639,G128*'1) User Input and Sites'!$E$18/1000*10.7639))","v":""}]
[null,97,null,null,null,null,null,{"$f":"IF(G129=\"\",\"\",IF(E129=\"Land\",IF(K129<'1) User Input and Sites'!$D$19,\"NO\",\"YES\"),IF(K129<'1) User Input and Sites'!$D$18,\"NO\",\"YES\")))","v":""},null,null,{"$f":"IF(E129=\"\",\"\",IF(E129=\"Land\",G129*'1) User Input and Sites'!$E$19/1000*10.7639,G129*'1) User Input and Sites'!$E$18/1000*10.7639))","v":""}]
[null,98,null,null,null,null,null,{"$f":"IF(G130=\"\",\"\",IF(E130=\"Land\",IF(K130<'1) User Input and Sites'!$D$19,\"NO\",\"YES\"),IF(K130<'1) User Input and Sites'!$D$18,\"NO\",\"YES\")))","v":""},null,null,{"$f":"IF(E130=\"\",\"\",IF(E130=\"Land\",G130*'1) User Input and Sites'!$E$19/1000*10.7639,G130*'1) User Input and Sites'!$E$18/1000*10.7639))","v":""}]
[null,99,null,null,null,null,null,{"$f":"IF(G131=\"\",\"\",IF(E131=\"Land\",IF(K131<'1) User Input and Sites'!$D$19,\"NO\",\"YES\"),IF(K131<'1) User Input and Sites'!$D$18,\"NO\",\"YES\")))","v":""},null,null,{"$f":"IF(E131=\"\",\"\",IF(E131=\"Land\",G131*'1) User Input and Sites'!$E$19/1000*10.7639,G131*'1) User Input and Sites'!$E$18/1000*10.7639))","v":""}]
[null,100,null,null,null,null,null,{"$f":"IF(G132=\"\",\"\",IF(E132=\"Land\",IF(K132<'1) User Input and Sites'!$D$19,\"NO\",\"YES\"),IF(K132<'1) User Input and Sites'!$D$18,\"NO\",\"YES\")))","v":""},null,null,{"$f":"IF(E132=\"\",\"\",IF(E132=\"Land\",G132*'1) User Input and Sites'!$E$19/1000*10.7639,G132*'1) User Input and Sites'!$E$18/1000*10.7639))","v":""}]
[]
[]
[]
[]
[]
[]
[]
[]
[]
[]
[]
[]
[]
[]
[]
[]
[]
[]
[]
[]
[]
[]
[]
[]
[]
[]
[]
[]
[]
[]
[]
[]
[]
[]
[]
[]
[]
[]
[]
[]
[]
[]
[]
[]
[]
[]
[]
[]
[]
[]
[]
[]
[]
[]
[]
[]
[]
[]
[]
[]
[]
[]
[]
[]
[]
[]
[]
[]
[]
[]
[]
[]
[]
[]
[]
[]
[]
[]
[]
[]
[]
[]
[]
[]
[]
[]
[]
[]
[]
[]
[]
[]
[]
[]
[]
[]
[]
[]
[]
[]
[]
[]
[]
[]
[]
[]
[]
[]
[]
[]
[]
[]
[]
[]
[]
[]
[]
[]
[]
[]
[]
[]
[]
[]
[]
[]
[]
[]
[]
[]
[]
[]
[]
[]
[]
[]
[]
[]
[]
[]
[]
[]
[]
[]
[]
[]
[]
[]
[]
[]
[]
[]
[]
[]
[]
[]
[]
[]
[]
[]
[]
[]
[]
[]
[]
[]
[]
[]
[]
[]
[]
[]
[]
[]
[]
[]
[]
[]
[]
[]
[]
[]
[]
[]
[]
[]
[]
[]
[]
[]
[]
[]
[]
[]
[]
[]
[]
[]
[]
[]
[]
[]
[]
[]
[]
[]
[]
[]
[]
[]
[]
[]
[]
[]
[]
[]
[]
[]
[]
[]
[]
[]
[]
[]
[]
[]
[]
[]
[]
[]
[]
[]
[]
[]
[]
[]
[]
[]
[]
[]
[]
[]
[]
[]
[]
[]
[]
[]
[]
[]
[]
[]
[]
[]
[]
[]
[]
[]
[]
[]
[]
[]
[]
[]
[]
[]
[]
[]
[]
[]
[]
[]
[]
[]
[]
[]
[]
[]
[]
[]
[]
[]
[]
[]
[]
[]
[]
[]
[]
[]
[]
[]
[]
[]
[]
[]
[]
[]
[]
[]
[]
[]
[]
[]
[]
[]
[]
[]
[]
[]
[]
[]
[]
[]
[]
[]
[]
[]
[]
[]
[]
[]
[]
[]
[]
[]
[]
[]
[]
[]
[]
[]
[]
[]
[]
[]
[]
[]
[]
[]
[]
[]
[]
[]
[]
[]
[]
[]
[]
[]
[]
[]
[]
[]
[]
[]
[]
[]
[]
[]
[]
[]
[]
[]
[]
[]
[]
[]
[]
[]
[]
[]
[]
[]
[]
[]
[]
[]
[]
[]
[]
[]
[]
[]
[]
[]
[]
[]
[]
[]
[]
[]
[]
[]
[]
[]
[]
[]
[]
[]
[]
[]
[]
[]
[]
[]
[]
[]
[]
[]
[]
[]
[]
[]
[]
[]
[]
[]
[]
[]
[]
[]
[]
[]
[]
[]
[]
[]
[]
[]
[]
[]
[]
[]
[]
[]
[]
[]
[]
[]
[]
[]
[]
[]
[]
[]
[]
[]
[]
[]
[]
[]
[]
[]
[]
[]
[]
[]
[]
[]
[]
[]
[]
[]
[]
[]
[]
[]
[]
[]
[]
[]
[]
[]
[]
[]
[]
[]
[]
[]
[]
[]
[]
[]
[]
[]
[]
[]
[]
[]
[]
[]
[]
[]
[]
[]
[]
[]
[]
[]
[]
[]
[]
[]
[]
[]
[]
[]
[]
[]
[]
[]
[]
[]
[]
[]
[]
[]
[]
[]
[]
[]
[]
[]
[]
[]
[]
[]
[]
[]
[]
[]
[]
[]
[]
[]
[]
[]
[]
[]
[]
[]
[]
[]
[]
[]
[]
[]
[]
[]
[]
[]
[]
[]
[]
[]
[]
[]
[]
[]
[]
[]
[]
[]
[]
[]
[]
[]
[]
[]
[]
[]
[]
[]
[]
[]
[]
[]
[]
[]
[]
[]
[]
[]
[]
[]
[]
[]
[]
[]
[]
[]
[]
[]
[]
[]
[]
[]
[]
[]
[]
[]
[]
[]
[]
[]
[]
[]
[]
[]
[]
[]
[]
[]
[]
[]
[]
[]
[]
[]
[]
[]
[]
[]
[]
[]
[]
[]
[]
[]
[]
[]
[]
[]
[]
[]
[]
[]
[]
[]
[]
[]
[]
[]
[]
[]
[]
[]
[]
[]
[]
[]
[]
[]
[]
[]
[]
[]
[]
[]
[]
[]
[]
[]
[]
[]
[]
[]
[]
[]
[]
[]
[]
[]
[]
[]
[]
[]
[]
[]
[]
[]
[]
[]
[]
[]
[]
[]
[]
[]
[]
[]
[]
[]
[]
[]
[]
[]
[]
[]
[]
[]
[]
[]
[]
[]
[]
[]
[]
[]
[]
[]
[]
[]
[]
[]
[]
[]
[]
[]
[]
[]
[]
[]
[]
[]
[]
[]
[]
[]
[]
[]
[]
[]
[]
[]
[]
[]
[]
[]
[]
[]
[]
[]
[]
[]
[]
[]
[]
[]
[]
[]
[]
[]
[]
[]
[]
[]
[]
[]
[]
[]
[]
[]
[]
[]
[]
[]
[]
[]
[]
[]
[]
[]
[]
[]
[]
[]
[]
[]
[]
[]
[]
[]
[]
[]
[]
[]
[]
[]
[]
[]
[]
[]
[]
[]
[]
[]
[]
[]
[]
[]
[]
[]
[]
[]
[]
[]
[]
[]
[]
[]
[]
[]
[]
[]
[]
[]
[]
[]
[]
[]
[]
[]
[]
[]
[]
[]
[]
[]
[]
[]
[]
[]
[]
[]
[]
[]
[]
[]
[]
[]
[]
[]
[]
[]
[]
[]
[]
[]
[]
[]
[]
[]
[]
[]
[]
[]
[]
[]
[]
[]
[]
[]
[]
[]
[]
[]
[]
[]
[]
[]
[]
[]
[]
[]
[]
[]
[]
[]
[]
[]
[]
[]
[]
[]
[]
[]
[]
[]
[]
[]
[]
[]
[]
[]
[]
[]
[]
[]
[]
[]
[]
[]
[]
[]
[]
[]
[]
[]
[]
[]
[]
[]
[]
[]
[]
[]
[]
[]
[]
[]
[]
[]
[]
[]
[]
[]
[]
[]
[]
[]
[]
[]
[]
[]
[]
[]
[]
[]
[]
[]
[]
[]
[]
[]
[]
[]
[]
[]
[]
[]
[]
[]
[]
[]
[]
[]
[]
[]
[]
[]
[]
[]
[]
[]
[]
[]
[]
[]
[]
[]
[]
[]
[]
[]
[]
[]
[]
[]
[]
[]
[]
[]
[]
[]
[]
[]
[]
[]
[]
[]
[]
[]
[]
[]
[]
[]
[]
[]
[]
[]
[]
[]
[]
[]
[]
[]
[]
[]
[]
[]
[]
[]
[]
[]
[]
[]
[]
[]
[]
[]
[]
[]
[]
[]
[]
[]
[]
[]
[]
[]
[]
[]
[]
[]
[]
[]
[]
[]
[]
[]
[]
[]
[]
[]
[]
[]
[]
[]
[]
[]
[]
[]
[]
[]
[]
[]
[]
[]
[]
[]
[]
[]
[]
[]
[]
[]
[]
[]
[]
[]
[]
[]
[]
[]
[]
[]
[]
[]
[]
[]
[]
[]
[]
[]
[]
[]
[]
[]
[]
[]
[]
[]
[]
[]
[]
[]
[]
[]
[]
[]
[]
[]
[]
[]
[]
[]
[]
[]
[]
[]
[]
[]
[]
[]
[]
[]
[]
[]
[]
[]
[]
[]
[]
[]
[]
[]
[]
[]
[]
[]
[]
[]
[]
[]
[]
[]
[]
[]
[]
[]
[]
[]
[]
[]
[]
[]
[]
[]
[]
[]
[]
[]
[]
[]
[]
[]
[]
[]
[]
[]
[]
[]
[]
[]
[]
[]
[]
[]
[]
[]
[]
[]
[]
[]
[]
[]
[]
[]
[]
[]
[]
[]
[]
[]
[]
[]
[]
[]
[]
[]
[]
[]
[]
[]
[]
[]
[]
[]
[]
[]
[]
[]
[]
[]
[]
[]
[]
[]
[]
[]
[]
[]
[]
[]
[]
[]
[]
[]
[]
[]
[]
[]
[]
[]
[]
[]
[]
[]
[]
[]
[]
[]
[]
[]
[]
[]
[]
[]
[]
[]
[]
[]
[]
[]
[]
[]
[]
[]
[]
[]
[]
[]
[]
[]
[]
[]
[]
[]
[]
[]
[]
[]
[]
[]
[]
[]
[]
[]
[]
[]
[]
[]
[]
[]
[]
[]
[]
[]
[]
[]
[]
[]
[]
[]
[]
[]
[]
[]
[]
[]
[]
[]
[]
[]
[]
[]
[]
[]
[]
[]
[]
[]
[]
[]
[]
[]
[]
[]
[]
[]
[]
[]
[]
[]
[]
[]
[]
[]
[]
[]
[]
[]
[]
[]
[]
[]
[]
[]
[]
[]
[]
[]
[]
[]
[]
[]
[]
[]
[]
[]
[]
[]
[]
[]
[]
[]
[]
[]
[]
[]
[]
[]
[]
[]
[]
[]
[]
[]
[]
[]
[]
[]
[]
[]
[]
[]
[]
[]
[]
[]
[]
[]
[]
[]
[]
[]
[]
[]
[]
[]
[]
[]
[]
[]
[]
[]
[]
[]
[]
[]
[]
[]
[]
[]
[]
[]
[]
[]
[]
[]
[]
[]
[]
[]
[]
[]
[]
[]
[]
[]
[]
[]
[]
[]
[]
[]
[]
[]
[]
[]
[]
[]
[]
[]
[]
[]
[]
[]
[]
[]
[]
[]
[]
[]
[]
[]
[]
[]
[]
[]
[]
[]
[]
[]
[]
[]
[]
[]
[]
[]
[]
[]
[]
[]
[]
[]
[]
[]
[]
[]
[]
[]
[]
[]
[]
[]
[]
[]
[]
[]
[]
[]
[]
[]
[]
[]
[]
[]
[]
[]
[]
[]
[]
[]
[]
[]
[]
[]
[]
[]
[]
[]
[]
[]
[]
[]
[]
[]
[]
[]
[]
[]
[]
[]
[]
[]
[]
[]
[]
[]
[]
[]
[]
[]
[]
[]
[]
[]
[]
[]
[]
[]
[]
[]
[]
[]
[]
[]
[]
[]
[]
[]
[]
[]
[]
[]
[]
[]
[]
[]
[]
[]
[]
[]
[]
[]
[]
[]
[]
[]
[]
[]
[]
[]
[]
[]
[]
[]
[]
[]
[]
[]
[]
[]
[]
[]
[]
[]
[]
[]
[]
[]
[]
[]
[]
[]
[]
[]
[]
[]
[]
[]
[]
[]
[]
[]
[]
[]
[]
[]
[]
[]
[]
[]
[]
[]
[]
[]
[]
[]
[]
[]
[]
[]
[]
[]
[]
[]
[]
[]
[]
[]
[]
[]
[]
[]
[]
[]
[]
[]
[]
[]
[]
[]
[]
[]
[]
[]
[]
[]
[]
[]
[]
[]
[]
[]
[]
[]
[]
[]
[]
[]
[]
[]
[]
[]
[]
[]
[]
[]
[]
[]
[]
[]
[]
[]
[]
[]
[]
[]
[]
[]
[]
[]
[]
[]
[]
[]
[]
[]
[]
[]
[]
[]
[]
[]
[]
[]
[]
[]
[]
[]
[]
[]
[]
[]
[]
[]
[]
[]
[]
[]
[]
[]
[]
[]
[]
[]
[]
[]
[]
[]
[]
[]
[]
[]
[]
[]
[]
[]
[]
[]
[]
[]
[]
[]
[]
[]
[]
[]
[]
[]
[]
[]
[]
[]
[]
[]
[]
[]
[]
[]
[]
[]
[]
[]
[]
[]
[]
[]
[]
[]
[]
[]
[]
[]
[]
[]
[]
[]
[]
[]
[]
[]
[]
[]
[]
[]
[]
[]
[]
[]
[]
[]
[]
[]
[]
[]
[]
[]
[]
[]
[]
[]
[]
[]
[]
[]
[]
[]
[]
[]
[]
[]
[]
[]
[]
[]
[]
[]
[]
[]
[]
[]
[]
[]
[]
[]
[]
[]
[]
[]
[]
[]
[]
[]
[]
[]
[]
[]
[]
[]
[]
[]
[]
[]
[]
[]
[]
[]
[]
[]
[]
[]
[]
[]
[]
[]
[]
[]
[]
[]
[]
[]
[]
[]
[]
[]
[]
[]
[]
[]
[]
[]
[]
[]
[]
[]
[]
[]
[]
[]
[]
[]
[]
[]
[]
[]
[]
[]
[]
[]
[]
[]
[]
[]
[]
[]
[]
[]
[]
[]
[]
[]
[]
[]
[]
[]
[]
[]
[]
[]
[]
[]
[]
[]
[]
[]
[]
[]
[]
[]
[]
[]
[]
[]
[]
[]
[]
[]
[]
[]
[]
[]
[]
[]
[]
[]
[]
[]
[]
[]
[]
[]
[]
[]
[]
[]
[]
[]
[]
[]
[]
[]
[]
[]
[]
[]
[]
[]
[]
[]
[]
[]
[]
[]
[]
[]
[]
[]
[]
[]
[]
[]
[]
[]
[]
[]
[]
[]
[]
[]
[]
[]
[]
[]
[]
[]
[]
[]
[]
[]
[]
[]
[]
[]
[]
[]
[]
[]
[]
[]
[]
[]
[]
[]
[]
[]
[]
[]
[]
[]
[]
[]
[]
[]
[]
[]
[]
[]
[]
[]
[]
[]
[]
[]
[]
[]
[]
[]
[]
[]
[]
[]
[]
[]
[]
[]
[]
[]
[]
[]
[]
[]
[]
[]
[]
[]
[]
[]
[]
[]
[]
[]
[]
[]
[]
[]
[]
[]
[]
[]
[]
[]
[]
[]
[]
[]
[]
[]
[]
[]
[]
[]
[]
[]
[]
[]
[]
[]
[]
[]
[]
[]
[]
[]
[]
[]
[]
[]
[]
[]
[]
[]
[]
[]
[]
[]
[]
[]
[]
[]
[]
[]
[]
[]
[]
[]
[]
[]
[]
[]
[]
[]
[]
[]
[]
[]
[]
[]
[]
[]
[]
[]
[]
[]
[]
[]
[]
[]
[]
[]
[]
[]
[]
[]
[]
[]
[]
[]
[]
[]
[]
[]
[]
[]
[]
[]
[]
[]
[]
[]
[]
[]
[]
[]
[]
[]
[]
[]
[]
[]
[]
[]
[]
[]
[]
[]
[]
[]
[]
[]
[]
[]
[]
[]
[]
[]
[]
[]
[]
[]
[]
[]
[]
[]
[]
[]
[]
[]
[]
[]
[]
[]
[]
[]
[]
[]
[]
[]
[]
[]
[]
[]
[]
[]
[]
[]
[]
[]
[]
[]
[]
[]
[]
[]
[]
[]
[]
[]
[]
[]
[]
[]
[]
[]
[]
[]
[]
[]
[]
[]
[]
[]
[]
[]
[]
[]
[]
[]
[]
[]
[]
[]
[]
[]
[]
[]
[]
[]
[]
[]
[]
[]
[]
[]
[]
[]
[]
[]
[]
[]
[]
[]
[]
[]
[]
[]
[]
[]
[]
[]
[]
[]
[]
[]
[]
[]
[]
[]
[]
[]
[]
[]
[]
[]
[]
[]
[]
[]
[]
[]
[]
[]
[]
[]
[]
[]
[]
[]
[]
[]
[]
[]
[]
[]
[]
[]
[]
[]
[]
[]
[]
[]
[]
[]
[]
[]
[]
[]
[]
[]
[]
[]
[]
[]
[]
[]
[]
[]
[]
[]
[]
[]
[]
[]
[]
[]
[]
[]
[]
[]
[]
[]
[]
[]
[]
[]
[]
[]
[]
[]
[]
[]
[]
[]
[]
[]
[]
[]
[]
[]
[]
[]
[]
[]
[]
[]
[]
[]
[]
[]
[]
[]
[]
[]
[]
[]
[]
[]
[]
[]
[]
[]
[]
[]
[]
[]
[]
[]
[]
[]
[]
[]
[]
[]
[]
[]
[]
[]
[]
[]
[]
[]
[]
[]
[]
[]
[]
[]
[]
[]
[]
[]
[]
[]
[]
[]
[]
[]
[]
[]
[]
[]
[]
[]
[]
[]
[]
[]
[]
[]
[]
[]
[]
[]
[]
[]
[]
[]
[]
[]
[]
[]
[]
[]
[]
[]
[]
[]
[]
[]
[]
[]
[]
[]
[]
[]
[]
[]
[]
[]
[]
[]
[]
[]
[]
[]
[]
[]
[]
[]
[]
[]
[]
[]
[]
[]
[]
[]
[]
[]
[]
[]
[]
[]
[]
[]
[]
[]
[]
[]
[]
[]
[]
[]
[]
[]
[]
[]
[]
[]
[]
[]
[]
[]
[]
[]
[]
[]
[]
[]
[]
[]
[]
[]
[]
[]
[]
[]
[]
[]
[]
[]
[]
[]
[]
[]
[]
[]
[]
[]
[]
[]
[]
[]
[]
[]
[]
[]
[]
[]
[]
[]
[]
[]
[]
[]
[]
[]
[]
[]
[]
[]
[]
[]
[]
[]
[]
[]
[]
[]
[]
[]
[]
[]
[]
[]
[]
[]
[]
[]
[]
[]
[]
[]
[]
[]
[]
[]
[]
[]
[]
[]
[]
[]
[]
[]
[]
[]
[]
[]
[]
[]
[]
[]
[]
[]
[]
[]
[]
[]
[]
[]
[]
[]
[]
[]
[]
[]
[]
[]
[]
[]
[]
[]
[]
[]
[]
[]
[]
[]
[]
[]
[]
[]
[]
[]
[]
[]
[]
[]
[]
[]
[]
[]
[]
[]
[]
[]
[]
[]
[]
[]
[]
[]
[]
[]
[]
[]
[]
[]
[]
[]
[]
[]
[]
[]
[]
[]
[]
[]
[]
[]
[]
[]
[]
[]
[]
[]
[]
[]
[]
[]
[]
[]
[]
[]
[]
[]
[]
[]
[]
[]
[]
[]
[]
[]
[]
[]
[]
[]
[]
[]
[]
[]
[]
[]
[]
[]
[]
[]
[]
[]
[]
[]
[]
[]
[]
[]
[]
[]
[]
[]
[]
[]
[]
[]
[]
[]
[]
[]
[]
[]
[]
[]
[]
[]
[]
[]
[]
[]
[]
[]
[]
[]
[]
[]
[]
[]
[]
[]
[]
[]
[]
[]
[]
[]
[]
[]
[]
[]
[]
[]
[]
[]
[]
[]
[]
[]
[]
[]
[]
[]
[]
[]
[]
[]
[]
[]
[]
[]
[]
[]
[]
[]
[]
[]
[]
[]
[]
[]
[]
[]
[]
[]
[]
[]
[]
[]
[]
[]
[]
[]
[]
[]
[]
[]
[]
[]
[]
[]
[]
[]
[]
[]
[]
[]
[]
[]
[]
[]
[]
[]
[]
[]
[]
[]
[]
[]
[]
[]
[]
[]
[]
[]
[]
[]
[]
[]
[]
[]
[]
[]
[]
[]
[]
[]
[]
[]
[]
[]
[]
[]
[]
[]
[]
[]
[]
[]
[]
[]
[]
[]
[]
[]
[]
[]
[]
[]
[]
[]
[]
[]
[]
[]
[]
[]
[]
[]
[]
[]
[]
[]
[]
[]
[]
[]
[]
[]
[]
[]
[]
[]
[]
[]
[]
[]
[]
[]
[]
[]
[]
[]
[]
[]
[]
[]
[]
[]
[]
[]
[]
[]
[]
[]
[]
[]
[]
[]
[]
[]
[]
[]
[]
[]
[]
[]
[]
[]
[]
[]
[]
[]
[]
[]
[]
[]
[]
[]
[]
[]
[]
[]
[]
[]
[]
[]
[]
[]
[]
[]
[]
[]
[]
[]
[]
[]
[]
[]
[]
[]
[]
[]
[]
[]
[]
[]
[]
[]
[]
[]
[]
[]
[]
[]
[]
[]
[]
[]
[]
[]
[]
[]
[]
[]
[]
[]
[]
[]
[]
[]
[]
[]
[]
[]
[]
[]
[]
[]
[]
[]
[]
[]
[]
[]
[]
[]
[]
[]
[]
[]
[]
[]
[]
[]
[]
[]
[]
[]
[]
[]
[]
[]
[]
[]
[]
[]
[]
[]
[]
[]
[]
[]
[]
[]
[]
[]
[]
[]
[]
[]
[]
[]
[]
[]
[]
[]
[]
[]
[]
[]
[]
[]
[]
[]
[]
[]
[]
[]
[]
[]
[]
[]
[]
[]
[]
[]
[]
[]
[]
[]
[]
[]
[]
[]
[]
[]
[]
[]
[]
[]
[]
[]
[]
[]
[]
[]
[]
[]
[]
[]
[]
[]
[]
[]
[]
[]
[]
[]
[]
[]
[]
[]
[]
[]
[]
[]
[]
[]
[]
[]
[]
[]
[]
[]
[]
[]
[]
[]
[]
[]
[]
[]
[]
[]
[]
[]
[]
[]
[]
[]
[]
[]
[]
[]
[]
[]
[]
[]
[]
[]
[]
[]
[]
[]
[]
[]
[]
[]
[]
[]
[]
[]
[]
[]
[]
[]
[]
[]
[]
[]
[]
[]
[]
[]
[]
[]
[]
[]
[]
[]
[]
[]
[]
[]
[]
[]
[]
[]
[]
[]
[]
[]
[]
[]
[]
[]
[]
[]
[]
[]
[]
[]
[]
[]
[]
[]
[]
[]
[]
[]
[]
[]
[]
[]
[]
[]
[]
[]
[]
[]
[]
[]
[]
[]
[]
[]
[]
[]
[]
[]
[]
[]
[]
[]
[]
[]
[]
[]
[]
[]
[]
[]
[]
[]
[]
[]
[]
[]
[]
[]
[]
[]
[]
[]
[]
[]
[]
[]
[]
[]
[]
[]
[]
[]
[]
[]
[]
[]
[]
[]
[]
[]
[]
[]
[]
[]
[]
[]
[]
[]
[]
[]
[]
[]
[]
[]
[]
[]
[]
[]
[]
[]
[]
[]
[]
[]
[]
[]
[]
[]
[]
[]
[]
[]
[]
[]
[]
[]
[]
[]
[]
[]
[]
[]
[]
[]
[]
[]
[]
[]
[]
[]
[]
[]
[]
[]
[]
[]
[]
[]
[]
[]
[]
[]
[]
[]
[]
[]
[]
[]
[]
[]
[]
[]
[]
[]
[]
[]
[]
[]
[]
[]
[]
[]
[]
[]
[]
[]
[]
[]
[]
[]
[]
[]
[]
[]
[]
[]
[]
[]
[]
[]
[]
[]
[]
[]
[]
[]
[]
[]
[]
[]
[]
[]
[]
[]
[]
[]
[]
[]
[]
[]
[]
[]
[]
[]
[]
[]
[]
[]
[]
[]
[]
[]
[]
[]
[]
[]
[]
[]
[]
[]
[]
[]
[]
[]
[]
[]
[]
[]
[]
[]
[]
[]
[]
[]
[]
[]
[]
[]
[]
[]
[]
[]
[]
[]
[]
[]
[]
[]
[]
[]
[]
[]
[]
[]
[]
[]
[]
[]
[]
[]
[]
[]
[]
[]
[]
[]
[]
[]
[]
[]
[]
[]
[]
[]
[]
[]
[]
[]
[]
[]
[]
[]
[]
[]
[]
[]
[]
[]
[]
[]
[]
[]
[]
[]
[]
[]
[]
[]
[]
[]
[]
[]
[]
[]
[]
[]
[]
[]
[]
[]
[]
[]
[]
[]
[]
[]
[]
[]
[]
[]
[]
[]
[]
[]
[]
[]
[]
[]
[]
[]
[]
[]
[]
[]
[]
[]
[]
[]
[]
[]
[]
[]
[]
[]
[]
[]
[]
[]
[]
[]
[]
[]
[]
[]
[]
[]
[]
[]
[]
[]
[]
[]
[]
[]
[]
[]
[]
[]
[]
[]
[]
[]
[]
[]
[]
[]
[]
[]
[]
[]
[]
[]
[]
[]
[]
[]
[]
[]
[]
[]
[]
[]
[]
[]
[]
[]
[]
[]
[]
[]
[]
[]
[]
[]
[]
[]
[]
[]
[]
[]
[]
[]
[]
[]
[]
[]
[]
[]
[]
[]
[]
[]
[]
[]
[]
[]
[]
[]
[]
[]
[]
[]
[]
[]
[]
[]
[]
[]
[]
[]
[]
[]
[]
[]
[]
[]
[]
[]
[]
[]
[]
[]
[]
[]
[]
[]
[]
[]
[]
[]
[]
[]
[]
[]
[]
[]
[]
[]
[]
[]
[]
[]
[]
[]
[]
[]
[]
[]
[]
[]
[]
[]
[]
[]
[]
[]
[]
[]
[]
[]
[]
[]
[]
[]
[]
[]
[]
[]
[]
[]
[]
[]
[]
[]
[]
[]
[]
[]
[]
[]
[]
[]
[]
[]
[]
[]
[]
[]
[]
[]
[]
[]
[]
[]
[]
[]
[]
[]
[]
[]
[]
[]
[]
[]
[]
[]
[]
[]
[]
[]
[]
[]
[]
[]
[]
[]
[]
[]
[]
[]
[]
[]
[]
[]
[]
[]
[]
[]
[]
[]
[]
[]
[]
[]
[]
[]
[]
[]
[]
[]
[]
[]
[]
[]
[]
[]
[]
[]
[]
[]
[]
[]
[]
[]
[]
[]
[]
[]
[]
[]
[]
[]
[]
[]
[]
[]
[]
[]
[]
[]
[]
[]
[]
[]
[]
[]
[]
[]
[]
[]
[]
[]
[]
[]
[]
[]
[]
[]
[]
[]
[]
[]
[]
[]
[]
[]
[]
[]
[]
[]
[]
[]
[]
[]
[]
[]
[]
[]
[]
[]
[]
[]
[]
[]
[]
[]
[]
[]
[]
[]
[]
[]
[]
[]
[]
[]
[]
[]
[]
[]
[]
[]
[]
[]
[]
[]
[]
[]
[]
[]
[]
[]
[]
[]
[]
[]
[]
[]
[]
[]
[]
[]
[]
[]
[]
[]
[]
[]
[]
[]
[]
[]
[]
[]
[]
[]
[]
[]
[]
[]
[]
[]
[]
[]
[]
[]
[]
[]
[]
[]
[]
[]
[]
[]
[]
[]
[]
[]
[]
[]
[]
[]
[]
[]
[]
[]
[]
[]
[]
[]
[]
[]
[]
[]
[]
[]
[]
[]
[]
[]
[]
[]
[]
[]
[]
[]
[]
[]
[]
[]
[]
[]
[]
[]
[]
[]
[]
[]
[]
[]
[]
[]
[]
[]
[]
[]
[]
[]
[]
[]
[]
[]
[]
[]
[]
[]
[]
[]
[]
[]
[]
[]
[]
[]
[]
[]
[]
[]
[]
[]
[]
[]
[]
[]
[]
[]
[]
[]
[]
[]
[]
[]
[]
[]
[]
[]
[]
[]
[]
[]
[]
[]
[]
[]
[]
[]
[]
[]
[]
[]
[]
[]
[]
[]
[]
[]
[]
[]
[]
[]
[]
[]
[]
[]
[]
[]
[]
[]
[]
[]
[]
[]
[]
[]
[]
[]
[]
[]
[]
[]
[]
[]
[]
[]
[]
[]
[]
[]
[]
[]
[]
[]
[]
[]
[]
[]
[]
[]
[]
[]
[]
[]
[]
[]
[]
[]
[]
[]
[]
[]
[]
[]
[]
[]
[]
[]
[]
[]
[]
[]
[]
[]
[]
[]
[]
[]
[]
[]
[]
[]
[]
[]
[]
[]
[]
[]
[]
[]
[]
[]
[]
[]
[]
[]
[]
[]
[]
[]
[]
[]
[]
[]
[]
[]
[]
[]
[]
[]
[]
[]
[]
[]
[]
[]
[]
[]
[]
[]
[]
[]
[]
[]
[]
[]
[]
[]
[]
[]
[]
[]
[]
[]
[]
[]
[]
[]
[]
[]
[]
[]
[]
[]
[]
[]
[]
[]
[]
[]
[]
[]
[]
[]
[]
[]
[]
[]
[]
[]
[]
[]
[]
[]
[]
[]
[]
[]
[]
[]
[]
[]
[]
[]
[]
[]
[]
[]
[]
[]
[]
[]
[]
[]
[]
[]
[]
[]
[]
[]
[]
[]
[]
[]
[]
[]
[]
[]
[]
[]
[]
[]
[]
[]
[]
[]
[]
[]
[]
[]
[]
[]
[]
[]
[]
[]
[]
[]
[]
[]
[]
[]
[]
[]
[]
[]
[]
[]
[]
[]
[]
[]
[]
[]
[]
[]
[]
[]
[]
[]
[]
[]
[]
[]
[]
[]
[]
[]
[]
[]
[]
[]
[]
[]
[]
[]
[]
[]
[]
[]
[]
[]
[]
[]
[]
[]
[]
[]
[]
[]
[]
[]
[]
[]
[]
[]
[]
[]
[]
[]
[]
[]
[]
[]
[]
[]
[]
[]
[]
[]
[]
[]
[]
[]
[]
[]
[]
[]
[]
[]
[]
[]
[]
[]
[]
[]
[]
[]
[]
[]
[]
[]
[]
[]
[]
[]
[]
[]
[]
[]
[]
[]
[]
[]
[]
[]
[]
[]
[]
[]
[]
[]
[]
[]
[]
[]
[]
[]
[]
[]
[]
[]
[]
[]
[]
[]
[]
[]
[]
[]
[]
[]
[]
[]
[]
[]
[]
[]
[]
[]
[]
[]
[]
[]
[]
[]
[]
[]
[]
[]
[]
[]
[]
[]
[]
[]
[]
[]
[]
[]
[]
[]
[]
[]
[]
[]
[]
[]
[]
[]
[]
[]
[]
[]
[]
[]
[]
[]
[]
[]
[]
[]
[]
[null,null,"Test1","address1","Roof","Building Rooftop",3000,null,0,"Pass"]

{"sheet":"4a) Bldg Rooftop Checklist","index":6,"n_rows":53,"n_cols":108,"rows_kept":53,"cut":false,"hidden":false,"merged":[[32,3,32,4],[28,3,28,4],[29,3,29,4],[30,3,30,4],[31,3,31,4],[33,3,33,4],[34,3,34,4],[35,3,35,4],[37,3,37,4],[38,3,38,4],[51,3,51,4],[52,3,52,4],[46,3,46,4],[36,3,36,4],[47,3,47,4],[48,3,48,4],[49,3,49,4],[50,3,50,4],[40,3,40,4],[41,3,41,4],[42,3,42,4],[43,3,43,4],[44,3,44,4],[45,3,45,4],[39,3,39,4],[22,4,22,5],[23,4,23,5],[24,4,24,5],[25,4,25,5],[19,4,19,5],[20,4,20,5],[21,4,21,5]]}
[null,"4a. Secondary Screening for Building Rooftop Sites"]
[]
[]
[]
[]
[]
[]
[]
[]
[]
[]
[]
[]
[]
[]
[]
[]
[]
[]
[null,null,null,null,"Site Number:"]
[null,null,null,null,"Site Name:",null,{"$f":"IF(G20<>\"\",VLOOKUP(G20,'3) Pre-Screened Sites'!$B$33:$D$231,2,FALSE),\"\")","v":""},{"$f":"IF(H20<>\"\",VLOOKUP(H20,'3) Pre-Screened Sites'!$B$33:$D$231,2,FALSE),\"\")","v":""},{"$f":"IF(I20<>\"\",VLOOKUP(I20,'3) Pre-Screened Sites'!$B$33:$D$231,2,FALSE),\"\")","v":""},{"$f":"IF(J20<>\"\",VLOOKUP(J20,'3) Pre-Screened Sites'!$B$33:$D$231,2,FALSE),\"\")","v":""},{"$f":"IF(K20<>\"\",VLOOKUP(K20,'3) Pre-Screened Sites'!$B$33:$D$231,2,FALSE),\"\")","v":""},{"$f":"IF(L20<>\"\",VLOOKUP(L20,'3) Pre-Screened Sites'!$B$33:$D$231,2,FALSE),\"\")","v":""},{"$f":"IF(M20<>\"\",VLOOKUP(M20,'3) Pre-Screened Sites'!$B$33:$D$231,2,FALSE),\"\")","v":""},{"$f":"IF(N20<>\"\",VLOOKUP(N20,'3) Pre-Screened Sites'!$B$33:$D$231,2,FALSE),\"\")","v":""},{"$f":"IF(O20<>\"\",VLOOKUP(O20,'3) Pre-Screened Sites'!$B$33:$D$231,2,FALSE),\"\")","v":""},{"$f":"IF(P20<>\"\",VLOOKUP(P20,'3) Pre-Screened Sites'!$B$33:$D$231,2,FALSE),\"\")","v":""},{"$f":"IF(Q20<>\"\",VLOOKUP(Q20,'3) Pre-Screened Sites'!$B$33:$D$231,2,FALSE),\"\")","v":""},{"$f":"IF(R20<>\"\",VLOOKUP(R20,'3) Pre-Screened Sites'!$B$33:$D$231,2,FALSE),\"\")","v":""},{"$f":"IF(S20<>\"\",VLOOKUP(S20,'3) Pre-Screened Sites'!$B$33:$D$231,2,FALSE),\"\")","v":""},{"$f":"IF(T20<>\"\",VLOOKUP(T20,'3) Pre-Screened Sites'!$B$33:$D$231,2,FALSE),\"\")","v":""},{"$f":"IF(U20<>\"\",VLOOKUP(U20,'3) Pre-Screened Sites'!$B$33:$D$231,2,FALSE),\"\")","v":""},{"$f":"IF(V20<>\"\",VLOOKUP(V20,'3) Pre-Screened Sites'!$B$33:$D$231,2,FALSE),\"\")","v":""},{"$f":"IF(W20<>\"\",VLOOKUP(W20,'3) Pre-Screened Sites'!$B$33:$D$231,2,FALSE),\"\")","v":""},{"$f":"IF(X20<>\"\",VLOOKUP(X20,'3) Pre-Screened Sites'!$B$33:$D$231,2,FALSE),\"\")","v":""},{"$f":"IF(Y20<>\"\",VLOOKUP(Y20,'3) Pre-Screened Sites'!$B$33:$D$231,2,FALSE),\"\")","v":""},{"$f":"IF(Z20<>\"\",VLOOKUP(Z20,'3) Pre-Screened Sites'!$B$33:$D$231,2,FALSE),\"\")","v":""},{"$f":"IF(AA20<>\"\",VLOOKUP(AA20,'3) Pre-Screened Sites'!$B$33:$D$231,2,FALSE),\"\")","v":""},{"$f":"IF(AB20<>\"\",VLOOKUP(AB20,'3) Pre-Screened Sites'!$B$33:$D$231,2,FALSE),\"\")","v":""},{"$f":"IF(AC20<>\"\",VLOOKUP(AC20,'3) Pre-Screened Sites'!$B$33:$D$231,2,FALSE),\"\")","v":""},{"$f":"IF(AD20<>\"\",VLOOKUP(AD20,'3) Pre-Screened Sites'!$B$33:$D$231,2,FALSE),\"\")","v":""},{"$f":"IF(AE20<>\"\",VLOOKUP(AE20,'3) Pre-Screened Sites'!$B$33:$D$231,2,FALSE),\"\")","v":""},{"$f":"IF(AF20<>\"\",VLOOKUP(AF20,'3) Pre-Screened Sites'!$B$33:$D$231,2,FALSE),\"\")","v":""},{"$f":"IF(AG20<>\"\",VLOOKUP(AG20,'3) Pre-Screened Sites'!$B$33:$D$231,2,FALSE),\"\")","v":""},{"$f":"IF(AH20<>\"\",VLOOKUP(AH20,'3) Pre-Screened Sites'!$B$33:$D$231,2,FALSE),\"\")","v":""},{"$f":"IF(AI20<>\"\",VLOOKUP(AI20,'3) Pre-Screened Sites'!$B$33:$D$231,2,FALSE),\"\")","v":""},{"$f":"IF(AJ20<>\"\",VLOOKUP(AJ20,'3) Pre-Screened Sites'!$B$33:$D$231,2,FALSE),\"\")","v":""},{"$f":"IF(AK20<>\"\",VLOOKUP(AK20,'3) Pre-Screened Sites'!$B$33:$D$231,2,FALSE),\"\")","v":""},{"$f":"IF(AL20<>\"\",VLOOKUP(AL20,'3) Pre-Screened Sites'!$B$33:$D$231,2,FALSE),\"\")","v":""},{"$f":"IF(AM20<>\"\",VLOOKUP(AM20,'3) Pre-Screened Sites'!$B$33:$D$231,2,FALSE),\"\")","v":""},{"$f":"IF(AN20<>\"\",VLOOKUP(AN20,'3) Pre-Screened Sites'!$B$33:$D$231,2,FALSE),\"\")","v":""},{"$f":"IF(AO20<>\"\",VLOOKUP(AO20,'3) Pre-Screened Sites'!$B$33:$D$231,2,FALSE),\"\")","v":""},{"$f":"IF(AP20<>\"\",VLOOKUP(AP20,'3) Pre-Screened Sites'!$B$33:$D$231,2,FALSE),\"\")","v":""},{"$f":"IF(AQ20<>\"\",VLOOKUP(AQ20,'3) Pre-Screened Sites'!$B$33:$D$231,2,FALSE),\"\")","v":""},{"$f":"IF(AR20<>\"\",VLOOKUP(AR20,'3) Pre-Screened Sites'!$B$33:$D$231,2,FALSE),\"\")","v":""},{"$f":"IF(AS20<>\"\",VLOOKUP(AS20,'3) Pre-Screened Sites'!$B$33:$D$231,2,FALSE),\"\")","v":""},{"$f":"IF(AT20<>\"\",VLOOKUP(AT20,'3) Pre-Screened Sites'!$B$33:$D$231,2,FALSE),\"\")","v":""},{"$f":"IF(AU20<>\"\",VLOOKUP(AU20,'3) Pre-Screened Sites'!$B$33:$D$231,2,FALSE),\"\")","v":""},{"$f":"IF(AV20<>\"\",VLOOKUP(AV20,'3) Pre-Screened Sites'!$B$33:$D$231,2,FALSE),\"\")","v":""},{"$f":"IF(AW20<>\"\",VLOOKUP(AW20,'3) Pre-Screened Sites'!$B$33:$D$231,2,FALSE),\"\")","v":""},{"$f":"IF(AX20<>\"\",VLOOKUP(AX20,'3) Pre-Screened Sites'!$B$33:$D$231,2,FALSE),\"\")","v":""},{"$f":"IF(AY20<>\"\",VLOOKUP(AY20,'3) Pre-Screened Sites'!$B$33:$D$231,2,FALSE),\"\")","v":""},{"$f":"IF(AZ20<>\"\",VLOOKUP(AZ20,'3) Pre-Screened Sites'!$B$33:$D$231,2,FALSE),\"\")","v":""},{"$f":"IF(BA20<>\"\",VLOOKUP(BA20,'3) Pre-Screened Sites'!$B$33:$D$231,2,FALSE),\"\")","v":""},{"$f":"IF(BB20<>\"\",VLOOKUP(BB20,'3) Pre-Screened Sites'!$B$33:$D$231,2,FALSE),\"\")","v":""},{"$f":"IF(BC20<>\"\",VLOOKUP(BC20,'3) Pre-Screened Sites'!$B$33:$D$231,2,FALSE),\"\")","v":""},{"$f":"IF(BD20<>\"\",VLOOKUP(BD20,'3) Pre-Screened Sites'!$B$33:$D$231,2,FALSE),\"\")","v":""},{"$f":"IF(BE20<>\"\",VLOOKUP(BE20,'3) Pre-Screened Sites'!$B$33:$D$231,2,FALSE),\"\")","v":""},{"$f":"IF(BF20<>\"\",VLOOKUP(BF20,'3) Pre-Screened Sites'!$B$33:$D$231,2,FALSE),\"\")","v":""},{"$f":"IF(BG20<>\"\",VLOOKUP(BG20,'3) Pre-Screened Sites'!$B$33:$D$231,2,FALSE),\"\")","v":""},{"$f":"IF(BH20<>\"\",VLOOKUP(BH20,'3) Pre-Screened Sites'!$B$33:$D$231,2,FALSE),\"\")","v":""},{"$f":"IF(BI20<>\"\",VLOOKUP(BI20,'3) Pre-Screened Sites'!$B$33:$D$231,2,FALSE),\"\")","v":""},{"$f":"IF(BJ20<>\"\",VLOOKUP(BJ20,'3) Pre-Screened Sites'!$B$33:$D$231,2,FALSE),\"\")","v":""},{"$f":"IF(BK20<>\"\",VLOOKUP(BK20,'3) Pre-Screened Sites'!$B$33:$D$231,2,FALSE),\"\")","v":""},{"$f":"IF(BL20<>\"\",VLOOKUP(BL20,'3) Pre-Screened Sites'!$B$33:$D$231,2,FALSE),\"\")","v":""},{"$f":"IF(BM20<>\"\",VLOOKUP(BM20,'3) Pre-Screened Sites'!$B$33:$D$231,2,FALSE),\"\")","v":""},{"$f":"IF(BN20<>\"\",VLOOKUP(BN20,'3) Pre-Screened Sites'!$B$33:$D$231,2,FALSE),\"\")","v":""},{"$f":"IF(BO20<>\"\",VLOOKUP(BO20,'3) Pre-Screened Sites'!$B$33:$D$231,2,FALSE),\"\")","v":""},{"$f":"IF(BP20<>\"\",VLOOKUP(BP20,'3) Pre-Screened Sites'!$B$33:$D$231,2,FALSE),\"\")","v":""},{"$f":"IF(BQ20<>\"\",VLOOKUP(BQ20,'3) Pre-Screened Sites'!$B$33:$D$231,2,FALSE),\"\")","v":""},{"$f":"IF(BR20<>\"\",VLOOKUP(BR20,'3) Pre-Screened Sites'!$B$33:$D$231,2,FALSE),\"\")","v":""},{"$f":"IF(BS20<>\"\",VLOOKUP(BS20,'3) Pre-Screened Sites'!$B$33:$D$231,2,FALSE),\"\")","v":""},{"$f":"IF(BT20<>\"\",VLOOKUP(BT20,'3) Pre-Screened Sites'!$B$33:$D$231,2,FALSE),\"\")","v":""},{"$f":"IF(BU20<>\"\",VLOOKUP(BU20,'3) Pre-Screened Sites'!$B$33:$D$231,2,FALSE),\"\")","v":""},{"$f":"IF(BV20<>\"\",VLOOKUP(BV20,'3) Pre-Screened Sites'!$B$33:$D$231,2,FALSE),\"\")","v":""},{"$f":"IF(BW20<>\"\",VLOOKUP(BW20,'3) Pre-Screened Sites'!$B$33:$D$231,2,FALSE),\"\")","v":""},{"$f":"IF(BX20<>\"\",VLOOKUP(BX20,'3) Pre-Screened Sites'!$B$33:$D$231,2,FALSE),\"\")","v":""},{"$f":"IF(BY20<>\"\",VLOOKUP(BY20,'3) Pre-Screened Sites'!$B$33:$D$231,2,FALSE),\"\")","v":""},{"$f":"IF(BZ20<>\"\",VLOOKUP(BZ20,'3) Pre-Screened Sites'!$B$33:$D$231,2,FALSE),\"\")","v":""},{"$f":"IF(CA20<>\"\",VLOOKUP(CA20,'3) Pre-Screened Sites'!$B$33:$D$231,2,FALSE),\"\")","v":""},{"$f":"IF(CB20<>\"\",VLOOKUP(CB20,'3) Pre-Screened Sites'!$B$33:$D$231,2,FALSE),\"\")","v":""},{"$f":"IF(CC20<>\"\",VLOOKUP(CC20,'3) Pre-Screened Sites'!$B$33:$D$231,2,FALSE),\"\")","v":""},{"$f":"IF(CD20<>\"\",VLOOKUP(CD20,'3) Pre-Screened Sites'!$B$33:$D$231,2,FALSE),\"\")","v":""},{"$f":"IF(CE20<>\"\",VLOOKUP(CE20,'3) Pre-Screened Sites'!$B$33:$D$231,2,FALSE),\"\")","v":""},{"$f":"IF(CF20<>\"\",VLOOKUP(CF20,'3) Pre-Screened Sites'!$B$33:$D$231,2,FALSE),\"\")","v":""},{"$f":"IF(CG20<>\"\",VLOOKUP(CG20,'3) Pre-Screened Sites'!$B$33:$D$231,2,FALSE),\"\")","v":""},{"$f":"IF(CH20<>\"\",VLOOKUP(CH20,'3) Pre-Screened Sites'!$B$33:$D$231,2,FALSE),\"\")","v":""},{"$f":"IF(CI20<>\"\",VLOOKUP(CI20,'3) Pre-Screened Sites'!$B$33:$D$231,2,FALSE),\"\")","v":""},{"$f":"IF(CJ20<>\"\",VLOOKUP(CJ20,'3) Pre-Screened Sites'!$B$33:$D$231,2,FALSE),\"\")","v":""},{"$f":"IF(CK20<>\"\",VLOOKUP(CK20,'3) Pre-Screened Sites'!$B$33:$D$231,2,FALSE),\"\")","v":""},{"$f":"IF(CL20<>\"\",VLOOKUP(CL20,'3) Pre-Screened Sites'!$B$33:$D$231,2,FALSE),\"\")","v":""},{"$f":"IF(CM20<>\"\",VLOOKUP(CM20,'3) Pre-Screened Sites'!$B$33:$D$231,2,FALSE),\"\")","v":""},{"$f":"IF(CN20<>\"\",VLOOKUP(CN20,'3) Pre-Screened Sites'!$B$33:$D$231,2,FALSE),\"\")","v":""},{"$f":"IF(CO20<>\"\",VLOOKUP(CO20,'3) Pre-Screened Sites'!$B$33:$D$231,2,FALSE),\"\")","v":""},{"$f":"IF(CP20<>\"\",VLOOKUP(CP20,'3) Pre-Screened Sites'!$B$33:$D$231,2,FALSE),\"\")","v":""},{"$f":"IF(CQ20<>\"\",VLOOKUP(CQ20,'3) Pre-Screened Sites'!$B$33:$D$231,2,FALSE),\"\")","v":""},{"$f":"IF(CR20<>\"\",VLOOKUP(CR20,'3) Pre-Screened Sites'!$B$33:$D$231,2,FALSE),\"\")","v":""},{"$f":"IF(CS20<>\"\",VLOOKUP(CS20,'3) Pre-Screened Sites'!$B$33:$D$231,2,FALSE),\"\")","v":""},{"$f":"IF(CT20<>\"\",VLOOKUP(CT20,'3) Pre-Screened Sites'!$B$33:$D$231,2,FALSE),\"\")","v":""},{"$f":"IF(CU20<>\"\",VLOOKUP(CU20,'3) Pre-Screened Sites'!$B$33:$D$231,2,FALSE),\"\")","v":""},{"$f":"IF(CV20<>\"\",VLOOKUP(CV20,'3) Pre-Screened Sites'!$B$33:$D$231,2,FALSE),\"\")","v":""},{"$f":"IF(CW20<>\"\",VLOOKUP(CW20,'3) Pre-Screened Sites'!$B$33:$D$231,2,FALSE),\"\")","v":""},{"$f":"IF(CX20<>\"\",VLOOKUP(CX20,'3) Pre-Screened Sites'!$B$33:$D$231,2,FALSE),\"\")","v":""},{"$f":"IF(CY20<>\"\",VLOOKUP(CY20,'3) Pre-Screened Sites'!$B$33:$D$231,2,FALSE),\"\")","v":""},{"$f":"IF(CZ20<>\"\",VLOOKUP(CZ20,'3) Pre-Screened Sites'!$B$33:$D$231,2,FALSE),\"\")","v":""},{"$f":"IF(DA20<>\"\",VLOOKUP(DA20,'3) Pre-Screened Sites'!$B$33:$D$231,2,FALSE),\"\")","v":""},{"$f":"IF(DB20<>\"\",VLOOKUP(DB20,'3) Pre-Screened Sites'!$B$33:$D$231,2,FALSE),\"\")","v":""}]
[null,null,null,null,"Site Address:",null,{"$f":"IF(G20<>\"\",VLOOKUP(G20,'3) Pre-Screened Sites'!$B$33:$D$231,3,FALSE),\"\")","v":""},{"$f":"IF(H20<>\"\",VLOOKUP(H20,'3) Pre-Screened Sites'!$B$33:$D$231,3,FALSE),\"\")","v":""},{"$f":"IF(I20<>\"\",VLOOKUP(I20,'3) Pre-Screened Sites'!$B$33:$D$231,3,FALSE),\"\")","v":""},{"$f":"IF(J20<>\"\",VLOOKUP(J20,'3) Pre-Screened Sites'!$B$33:$D$231,3,FALSE),\"\")","v":""},{"$f":"IF(K20<>\"\",VLOOKUP(K20,'3) Pre-Screened Sites'!$B$33:$D$231,3,FALSE),\"\")","v":""},{"$f":"IF(L20<>\"\",VLOOKUP(L20,'3) Pre-Screened Sites'!$B$33:$D$231,3,FALSE),\"\")","v":""},{"$f":"IF(M20<>\"\",VLOOKUP(M20,'3) Pre-Screened Sites'!$B$33:$D$231,3,FALSE),\"\")","v":""},{"$f":"IF(N20<>\"\",VLOOKUP(N20,'3) Pre-Screened Sites'!$B$33:$D$231,3,FALSE),\"\")","v":""},{"$f":"IF(O20<>\"\",VLOOKUP(O20,'3) Pre-Screened Sites'!$B$33:$D$231,3,FALSE),\"\")","v":""},{"$f":"IF(P20<>\"\",VLOOKUP(P20,'3) Pre-Screened Sites'!$B$33:$D$231,3,FALSE),\"\")","v":""},{"$f":"IF(Q20<>\"\",VLOOKUP(Q20,'3) Pre-Screened Sites'!$B$33:$D$231,3,FALSE),\"\")","v":""},{"$f":"IF(R20<>\"\",VLOOKUP(R20,'3) Pre-Screened Sites'!$B$33:$D$231,3,FALSE),\"\")","v":""},{"$f":"IF(S20<>\"\",VLOOKUP(S20,'3) Pre-Screened Sites'!$B$33:$D$231,3,FALSE),\"\")","v":""},{"$f":"IF(T20<>\"\",VLOOKUP(T20,'3) Pre-Screened Sites'!$B$33:$D$231,3,FALSE),\"\")","v":""},{"$f":"IF(U20<>\"\",VLOOKUP(U20,'3) Pre-Screened Sites'!$B$33:$D$231,3,FALSE),\"\")","v":""},{"$f":"IF(V20<>\"\",VLOOKUP(V20,'3) Pre-Screened Sites'!$B$33:$D$231,3,FALSE),\"\")","v":""},{"$f":"IF(W20<>\"\",VLOOKUP(W20,'3) Pre-Screened Sites'!$B$33:$D$231,3,FALSE),\"\")","v":""},{"$f":"IF(X20<>\"\",VLOOKUP(X20,'3) Pre-Screened Sites'!$B$33:$D$231,3,FALSE),\"\")","v":""},{"$f":"IF(Y20<>\"\",VLOOKUP(Y20,'3) Pre-Screened Sites'!$B$33:$D$231,3,FALSE),\"\")","v":""},{"$f":"IF(Z20<>\"\",VLOOKUP(Z20,'3) Pre-Screened Sites'!$B$33:$D$231,3,FALSE),\"\")","v":""},{"$f":"IF(AA20<>\"\",VLOOKUP(AA20,'3) Pre-Screened Sites'!$B$33:$D$231,3,FALSE),\"\")","v":""},{"$f":"IF(AB20<>\"\",VLOOKUP(AB20,'3) Pre-Screened Sites'!$B$33:$D$231,3,FALSE),\"\")","v":""},{"$f":"IF(AC20<>\"\",VLOOKUP(AC20,'3) Pre-Screened Sites'!$B$33:$D$231,3,FALSE),\"\")","v":""},{"$f":"IF(AD20<>\"\",VLOOKUP(AD20,'3) Pre-Screened Sites'!$B$33:$D$231,3,FALSE),\"\")","v":""},{"$f":"IF(AE20<>\"\",VLOOKUP(AE20,'3) Pre-Screened Sites'!$B$33:$D$231,3,FALSE),\"\")","v":""},{"$f":"IF(AF20<>\"\",VLOOKUP(AF20,'3) Pre-Screened Sites'!$B$33:$D$231,3,FALSE),\"\")","v":""},{"$f":"IF(AG20<>\"\",VLOOKUP(AG20,'3) Pre-Screened Sites'!$B$33:$D$231,3,FALSE),\"\")","v":""},{"$f":"IF(AH20<>\"\",VLOOKUP(AH20,'3) Pre-Screened Sites'!$B$33:$D$231,3,FALSE),\"\")","v":""},{"$f":"IF(AI20<>\"\",VLOOKUP(AI20,'3) Pre-Screened Sites'!$B$33:$D$231,3,FALSE),\"\")","v":""},{"$f":"IF(AJ20<>\"\",VLOOKUP(AJ20,'3) Pre-Screened Sites'!$B$33:$D$231,3,FALSE),\"\")","v":""},{"$f":"IF(AK20<>\"\",VLOOKUP(AK20,'3) Pre-Screened Sites'!$B$33:$D$231,3,FALSE),\"\")","v":""},{"$f":"IF(AL20<>\"\",VLOOKUP(AL20,'3) Pre-Screened Sites'!$B$33:$D$231,3,FALSE),\"\")","v":""},{"$f":"IF(AM20<>\"\",VLOOKUP(AM20,'3) Pre-Screened Sites'!$B$33:$D$231,3,FALSE),\"\")","v":""},{"$f":"IF(AN20<>\"\",VLOOKUP(AN20,'3) Pre-Screened Sites'!$B$33:$D$231,3,FALSE),\"\")","v":""},{"$f":"IF(AO20<>\"\",VLOOKUP(AO20,'3) Pre-Screened Sites'!$B$33:$D$231,3,FALSE),\"\")","v":""},{"$f":"IF(AP20<>\"\",VLOOKUP(AP20,'3) Pre-Screened Sites'!$B$33:$D$231,3,FALSE),\"\")","v":""},{"$f":"IF(AQ20<>\"\",VLOOKUP(AQ20,'3) Pre-Screened Sites'!$B$33:$D$231,3,FALSE),\"\")","v":""},{"$f":"IF(AR20<>\"\",VLOOKUP(AR20,'3) Pre-Screened Sites'!$B$33:$D$231,3,FALSE),\"\")","v":""},{"$f":"IF(AS20<>\"\",VLOOKUP(AS20,'3) Pre-Screened Sites'!$B$33:$D$231,3,FALSE),\"\")","v":""},{"$f":"IF(AT20<>\"\",VLOOKUP(AT20,'3) Pre-Screened Sites'!$B$33:$D$231,3,FALSE),\"\")","v":""},{"$f":"IF(AU20<>\"\",VLOOKUP(AU20,'3) Pre-Screened Sites'!$B$33:$D$231,3,FALSE),\"\")","v":""},{"$f":"IF(AV20<>\"\",VLOOKUP(AV20,'3) Pre-Screened Sites'!$B$33:$D$231,3,FALSE),\"\")","v":""},{"$f":"IF(AW20<>\"\",VLOOKUP(AW20,'3) Pre-Screened Sites'!$B$33:$D$231,3,FALSE),\"\")","v":""},{"$f":"IF(AX20<>\"\",VLOOKUP(AX20,'3) Pre-Screened Sites'!$B$33:$D$231,3,FALSE),\"\")","v":""},{"$f":"IF(AY20<>\"\",VLOOKUP(AY20,'3) Pre-Screened Sites'!$B$33:$D$231,3,FALSE),\"\")","v":""},{"$f":"IF(AZ20<>\"\",VLOOKUP(AZ20,'3) Pre-Screened Sites'!$B$33:$D$231,3,FALSE),\"\")","v":""},{"$f":"IF(BA20<>\"\",VLOOKUP(BA20,'3) Pre-Screened Sites'!$B$33:$D$231,3,FALSE),\"\")","v":""},{"$f":"IF(BB20<>\"\",VLOOKUP(BB20,'3) Pre-Screened Sites'!$B$33:$D$231,3,FALSE),\"\")","v":""},{"$f":"IF(BC20<>\"\",VLOOKUP(BC20,'3) Pre-Screened Sites'!$B$33:$D$231,3,FALSE),\"\")","v":""},{"$f":"IF(BD20<>\"\",VLOOKUP(BD20,'3) Pre-Screened Sites'!$B$33:$D$231,3,FALSE),\"\")","v":""},{"$f":"IF(BE20<>\"\",VLOOKUP(BE20,'3) Pre-Screened Sites'!$B$33:$D$231,3,FALSE),\"\")","v":""},{"$f":"IF(BF20<>\"\",VLOOKUP(BF20,'3) Pre-Screened Sites'!$B$33:$D$231,3,FALSE),\"\")","v":""},{"$f":"IF(BG20<>\"\",VLOOKUP(BG20,'3) Pre-Screened Sites'!$B$33:$D$231,3,FALSE),\"\")","v":""},{"$f":"IF(BH20<>\"\",VLOOKUP(BH20,'3) Pre-Screened Sites'!$B$33:$D$231,3,FALSE),\"\")","v":""},{"$f":"IF(BI20<>\"\",VLOOKUP(BI20,'3) Pre-Screened Sites'!$B$33:$D$231,3,FALSE),\"\")","v":""},{"$f":"IF(BJ20<>\"\",VLOOKUP(BJ20,'3) Pre-Screened Sites'!$B$33:$D$231,3,FALSE),\"\")","v":""},{"$f":"IF(BK20<>\"\",VLOOKUP(BK20,'3) Pre-Screened Sites'!$B$33:$D$231,3,FALSE),\"\")","v":""},{"$f":"IF(BL20<>\"\",VLOOKUP(BL20,'3) Pre-Screened Sites'!$B$33:$D$231,3,FALSE),\"\")","v":""},{"$f":"IF(BM20<>\"\",VLOOKUP(BM20,'3) Pre-Screened Sites'!$B$33:$D$231,3,FALSE),\"\")","v":""},{"$f":"IF(BN20<>\"\",VLOOKUP(BN20,'3) Pre-Screened Sites'!$B$33:$D$231,3,FALSE),\"\")","v":""},{"$f":"IF(BO20<>\"\",VLOOKUP(BO20,'3) Pre-Screened Sites'!$B$33:$D$231,3,FALSE),\"\")","v":""},{"$f":"IF(BP20<>\"\",VLOOKUP(BP20,'3) Pre-Screened Sites'!$B$33:$D$231,3,FALSE),\"\")","v":""},{"$f":"IF(BQ20<>\"\",VLOOKUP(BQ20,'3) Pre-Screened Sites'!$B$33:$D$231,3,FALSE),\"\")","v":""},{"$f":"IF(BR20<>\"\",VLOOKUP(BR20,'3) Pre-Screened Sites'!$B$33:$D$231,3,FALSE),\"\")","v":""},{"$f":"IF(BS20<>\"\",VLOOKUP(BS20,'3) Pre-Screened Sites'!$B$33:$D$231,3,FALSE),\"\")","v":""},{"$f":"IF(BT20<>\"\",VLOOKUP(BT20,'3) Pre-Screened Sites'!$B$33:$D$231,3,FALSE),\"\")","v":""},{"$f":"IF(BU20<>\"\",VLOOKUP(BU20,'3) Pre-Screened Sites'!$B$33:$D$231,3,FALSE),\"\")","v":""},{"$f":"IF(BV20<>\"\",VLOOKUP(BV20,'3) Pre-Screened Sites'!$B$33:$D$231,3,FALSE),\"\")","v":""},{"$f":"IF(BW20<>\"\",VLOOKUP(BW20,'3) Pre-Screened Sites'!$B$33:$D$231,3,FALSE),\"\")","v":""},{"$f":"IF(BX20<>\"\",VLOOKUP(BX20,'3) Pre-Screened Sites'!$B$33:$D$231,3,FALSE),\"\")","v":""},{"$f":"IF(BY20<>\"\",VLOOKUP(BY20,'3) Pre-Screened Sites'!$B$33:$D$231,3,FALSE),\"\")","v":""},{"$f":"IF(BZ20<>\"\",VLOOKUP(BZ20,'3) Pre-Screened Sites'!$B$33:$D$231,3,FALSE),\"\")","v":""},{"$f":"IF(CA20<>\"\",VLOOKUP(CA20,'3) Pre-Screened Sites'!$B$33:$D$231,3,FALSE),\"\")","v":""},{"$f":"IF(CB20<>\"\",VLOOKUP(CB20,'3) Pre-Screened Sites'!$B$33:$D$231,3,FALSE),\"\")","v":""},{"$f":"IF(CC20<>\"\",VLOOKUP(CC20,'3) Pre-Screened Sites'!$B$33:$D$231,3,FALSE),\"\")","v":""},{"$f":"IF(CD20<>\"\",VLOOKUP(CD20,'3) Pre-Screened Sites'!$B$33:$D$231,3,FALSE),\"\")","v":""},{"$f":"IF(CE20<>\"\",VLOOKUP(CE20,'3) Pre-Screened Sites'!$B$33:$D$231,3,FALSE),\"\")","v":""},{"$f":"IF(CF20<>\"\",VLOOKUP(CF20,'3) Pre-Screened Sites'!$B$33:$D$231,3,FALSE),\"\")","v":""},{"$f":"IF(CG20<>\"\",VLOOKUP(CG20,'3) Pre-Screened Sites'!$B$33:$D$231,3,FALSE),\"\")","v":""},{"$f":"IF(CH20<>\"\",VLOOKUP(CH20,'3) Pre-Screened Sites'!$B$33:$D$231,3,FALSE),\"\")","v":""},{"$f":"IF(CI20<>\"\",VLOOKUP(CI20,'3) Pre-Screened Sites'!$B$33:$D$231,3,FALSE),\"\")","v":""},{"$f":"IF(CJ20<>\"\",VLOOKUP(CJ20,'3) Pre-Screened Sites'!$B$33:$D$231,3,FALSE),\"\")","v":""},{"$f":"IF(CK20<>\"\",VLOOKUP(CK20,'3) Pre-Screened Sites'!$B$33:$D$231,3,FALSE),\"\")","v":""},{"$f":"IF(CL20<>\"\",VLOOKUP(CL20,'3) Pre-Screened Sites'!$B$33:$D$231,3,FALSE),\"\")","v":""},{"$f":"IF(CM20<>\"\",VLOOKUP(CM20,'3) Pre-Screened Sites'!$B$33:$D$231,3,FALSE),\"\")","v":""},{"$f":"IF(CN20<>\"\",VLOOKUP(CN20,'3) Pre-Screened Sites'!$B$33:$D$231,3,FALSE),\"\")","v":""},{"$f":"IF(CO20<>\"\",VLOOKUP(CO20,'3) Pre-Screened Sites'!$B$33:$D$231,3,FALSE),\"\")","v":""},{"$f":"IF(CP20<>\"\",VLOOKUP(CP20,'3) Pre-Screened Sites'!$B$33:$D$231,3,FALSE),\"\")","v":""},{"$f":"IF(CQ20<>\"\",VLOOKUP(CQ20,'3) Pre-Screened Sites'!$B$33:$D$231,3,FALSE),\"\")","v":""},{"$f":"IF(CR20<>\"\",VLOOKUP(CR20,'3) Pre-Screened Sites'!$B$33:$D$231,3,FALSE),\"\")","v":""},{"$f":"IF(CS20<>\"\",VLOOKUP(CS20,'3) Pre-Screened Sites'!$B$33:$D$231,3,FALSE),\"\")","v":""},{"$f":"IF(CT20<>\"\",VLOOKUP(CT20,'3) Pre-Screened Sites'!$B$33:$D$231,3,FALSE),\"\")","v":""},{"$f":"IF(CU20<>\"\",VLOOKUP(CU20,'3) Pre-Screened Sites'!$B$33:$D$231,3,FALSE),\"\")","v":""},{"$f":"IF(CV20<>\"\",VLOOKUP(CV20,'3) Pre-Screened Sites'!$B$33:$D$231,3,FALSE),\"\")","v":""},{"$f":"IF(CW20<>\"\",VLOOKUP(CW20,'3) Pre-Screened Sites'!$B$33:$D$231,3,FALSE),\"\")","v":""},{"$f":"IF(CX20<>\"\",VLOOKUP(CX20,'3) Pre-Screened Sites'!$B$33:$D$231,3,FALSE),\"\")","v":""},{"$f":"IF(CY20<>\"\",VLOOKUP(CY20,'3) Pre-Screened Sites'!$B$33:$D$231,3,FALSE),\"\")","v":""},{"$f":"IF(CZ20<>\"\",VLOOKUP(CZ20,'3) Pre-Screened Sites'!$B$33:$D$231,3,FALSE),\"\")","v":""},{"$f":"IF(DA20<>\"\",VLOOKUP(DA20,'3) Pre-Screened Sites'!$B$33:$D$231,3,FALSE),\"\")","v":""},{"$f":"IF(DB20<>\"\",VLOOKUP(DB20,'3) Pre-Screened Sites'!$B$33:$D$231,3,FALSE),\"\")","v":""}]
[null,null,null,null,"Phase 1 Checklist complete?",null,{"$f":"IF(G20<>\"\",IF(COUNTA(G29:G37)<8,\"Incomplete\",\"Complete\"),\"\")","v":""},{"$f":"IF(H20<>\"\",IF(COUNTA(H29:H37)<8,\"Incomplete\",\"Complete\"),\"\")","v":""},"","","","","","","","","","","","","","","","","","","","","","","","","","","","","","","","","","","","","","","","","","","","","","","","","","","","","","","","","","","","","","","",{"$f":"IF(BT20<>\"\",IF(COUNTA(BT29:BT37)<8,\"Incomplete\",\"Complete\"),\"\")","v":""},"","","","","","","","","","","","","","","","","","","","","","","","","","","","","","","","","","",null," "]
[null,null,null,null,"Phase 2 Checklist complete?",null,{"$f":"IF(G20<>\"\",IF(COUNTA(G43:G53)<9,\"Incomplete\",\"Complete\"),\"\")","v":""},"","","","","","","","","","","","","","","","","","","","","","","","","","","","","","","",{"$f":"IF(AM20<>\"\",IF(COUNTA(AM43:AM53)<9,\"Incomplete\",\"Complete\"),\"\")","v":""},"","","","","","","","","","","","","","","","","","","","","","","","","","","","","","","",{"$f":"IF(BS20<>\"\",IF(COUNTA(BS43:BS53)<9,\"Incomplete\",\"Complete\"),\"\")","v":""},"","","","","","","","","","","","","","","","","","","","","","","","","","","","","","","","","","","",null," "]
[null,null,null,null,"Number of red flags for this site:\n(potential added cost/complexity)",null,{"$f":"IF(G20<>\"\",COUNTIF(G29:G53,\"No\"),\" \")","v":" "},{"$f":"IF(H20<>\"\",COUNTIF(H29:H53,\"No\"),\" \")","v":" "}," "," "," "," "," "," "," "," "," "," "," "," "," "," "," "," "," "," "," "," "," "," "," "," "," "," "," "," "," "," ",{"$f":"IF(AM20<>\"\",COUNTIF(AM29:AM53,\"No\"),\" \")","v":" "}," "," "," "," "," "," "," "," "," "," "," "," "," "," "," "," "," "," "," "," "," "," "," "," "," "," "," "," "," "," "," ",{"$f":"IF(BS20<>\"\",COUNTIF(BS29:BS53,\"No\"),\" \")","v":" "}," "," "," "," "," "," "," "," "," "," "," "," "," "," "," "," "," "," "," "," "," "," "," "," "," "," "," "," "," "," "," "," "," "," "," ",{"$f":"IF(COUNTA(DC36:DC51)=0,\"\",IF(COUNTA(DC36:DC51)<17,\"Please complete checklist.\",COUNTIF(DC36:DC51,\"No\")))","v":""}," "]
[null,null,null,null,"Pass/Fail decision:\nChoose \"Pass\" for sites that seem most promising based on your answers to the checklist items. Be sure to thoroughly evaluate how any \"red flags\" can be overcome/affect project costs. "]
[null,"PHASE 1 SCREENING CHECKLIST"]
[null,"Restrictions and zoning",null,"Explanations and Actions",null,"Resources (linked)"]
[null,1,"There are no other planned developments for this site. ","Action: Ensure that this site is not part of another development plan and that there will not be any major construction that would conflict with the operations of solar PV. Check internally and with community stakeholders to see if there is a separate community plan for this site.",null,"-"]
[null,2,"Future nearby developments will not cast shade on solar PV at this site.  ","Action: Consult with the planning and land use department to ensure that future developments near this site will not limit the PV system's access to sunlight.",null,"-"]
[null,3,"The site is free from restrictions related to (but not limited to): historically or culturally significant artifacts, protected or sensitive viewsheds.","Known cultural or viewshed restrictions may trigger costly and time-consuming permitting or prevent solar development. \n\nAction: Use the following resources to identify potential restrictions:\n•   Review the National Register of Historic Places \n•   Contact your State Historic Preservation Office to inquire after regulations around historic places\n•   Check with your local Zoning Board and Building Permits Department to determine if there are viewshed restrictions applicable to solar"]
[null,4,"The site is currently, or can be, zoned for solar development. ","Action: Work with the local planning or zoning department to understand where solar can and cannot be developed, to identify potential zoning-related restrictions (e.g. setbacks), or to re-zone areas for solar development. ",null,"-"]
[null,"Site conditions"]
[null,5,"The building's roof has 15+ years remaining until replacement will be needed.\nOR \nThe roof will need to be replaced within the next 1-2 years. ","Solar systems generally have a lifetime of 20-30 years and most roofs have a 20-year warranty. If a roof needs to be replaced after solar panels are installed, there will be additional costs associated with removing the panels before renovation. Therefore, it is best to either (1) install PV on a roof that has 15+ years of remaining life or (2) install panels in conjunction with a roof replacement.\n\nAction: Consult the building owner or city records office to determine when the roof will be replaced. If you answer \"No\" to this question, we recommend that you \"Fail\" this site, and re-visit solar PV when the roof is scheduled for replacement. ",null,"-"]
[null,6,"The roof pitch is less than 8/12 (slope of 34 degrees).","A pitch of 8/12 is an approximate threshold at which solar developers may need to utilize additional safety precautions and employee training for installation. This can increase installation costs. Note that the ideal roof pitch (which can be assessed by a solar professional) depends on the direction the roof is facing and the site's latitude, which influences the angle of the sun's rays.\n\nAction: Consult the roofing plan or visually compare the roof pitch to the diagrams on the \"Resources\" tab (Figures 3 and 4). The Roof Pitch Calculator may also be helpful in determining the pitch of this roof. "]
[null,7,"The roof will be able to support the added weight of the PV system. ","A PV system typically adds 2-6 lbs. per square foot to a roof's load. A ballasted system on a flat roof may add up to 10 lbs. per square foot. \n\nAction: Consult a structural engineer to ensure that the roof has sufficient \"dead load capacity\" to support solar panels. If possible, obtain the roof framing plan or structural plans for this building from either the building owner or city records office. With these documents, it should be quicker and less expensive for an engineer to determine if the roof is structurally suitable for PV. If the roof cannot handle the load of the PV system, either consider replacing the roof or do not move forward with this site. Note: The structural analysis should account for potential wind and snow loads at this site. ",null,"-"]
[null,12,"The building is less than 5 stories tall (or less than 60 ft).","A crane may be required to install PV systems on buildings taller than 4 stories. Renting a crane and shutting down roads for crane access can add to project costs.\n\nBuilding roofs above 60 feet may also experience high wind speeds, which can increase material costs for the PV mounting system.\n\nAction: If the building is more than 4 stories or 60 feet tall, mark your answer as \"No.\" Then, speak with a solar developer to determine if a crane may be needed for installation and how this might impact project costs. Also inquire into added costs due to high winds.",null,"-"]
[]
[null,null,"Pause! ","The Phase 2 Checklist items will require significant time and effort to complete. Take the following actions to ensure you only move forward with the most promising sites:\n\n  •   If one or more red flag is raised in the Phase 1 Checklist, either select \"Fail\" for this site or confirm that these barriers can be overcome before moving on to Phase 2.\n  •   Consider calling a few solar developers to get initial price estimates for promising sites. The NABCEP Company Accreditation Directory and SEIA Member Directory contain contact information for solar developers. \n  •   For cost comparisons, LBNL's Tracking the Sun Report includes average installed cost ($/Watt) values by state and system type (see Figure 2 on the \"Resources\" tab.)\n  •   This could also be a good time to conduct an initial financial analysis for viable sites using NREL's REopt Lite. \n  •   If the project still seems viable, continue on to the Phase 2 Checklist."]
[]
[null,"PHASE 2 SCREENING CHECKLIST"]
[null,"Interconnection"]
[null,8,"We have identified the point of interconnection for this project and associated PV system size limitations.","The infrastructure at the point of interconnection (often the building's electrical panel) must have sufficient capacity in order to handle the added power from the PV system. The exact requirements will depend on which National Electrical Code (NEC) is effective in your area. Note that a panel service upgrade could cost $20k-50k, and could thus impact project economics. An alternative to an upgrade could be to reduce the PV system size.\n \nAction: Check the NEC Adoption Map or consult the local authority having jurisdiction (AHJ) to determine which NEC applies to this project. Consult an electrical engineer or solar professional to determine the point of interconnection, associated system size limitation, and potential options to overcome system size limitations."]
[null,9,"We have determined that grid interconnection costs will be reasonable, given the desired system size at this site. ","Interconnection costs, or the cost to connect a new PV system to the grid, depend on many variables including the size of the PV system, whether the system is behind- or front-of-the-meter, and hosting capacity and voltage at the point of interconnection. It is strongly recommended to engage with your utility company early on to obtain information on the interconnection process, costs, and project size limitations. If the project moves forward, an Interconnection Application/Agreement will need to be filed with the utility (a solar developer will typically handle this).\n\nNote: Beware of using interconnection “rules of thumb” such as: solar capacity must be lower than the minimum daytime load or 15% of peak load on a line segment. These can inaccurately predict whether grid upgrades will be needed.\n\nAction: As an initial step, check to see if your utility provides a hosting capacity map online (examples: Xcel, ConEd, PG&E, Central Hudson). Hosting capacity is the amount of generation that can be accommodated at a point on the distribution system without requiring significant grid upgrades. If available, locate your site on the map and determine the hosting capacity (MW) of the nearby lines. If your planned project size exceeds the listed hosting capacity, you may encounter additional interconnection complexities and costs, or your interconnection application may be denied. For smaller rooftop systems, hosting capacity is less likely to be an issue. "]
[null,10,"There is only one electrical meter onsite. \nOR\nIf there are multiple meters onsite, you are not required to physically connect the PV system to all of these meters. ","If there are multiple meters at one site, some utility companies will require that a solar installation be interconnected to each meter. This can increase labor and materials costs. In some cases, if all meters are on the same rate schedule and have the same account holder, the multiple-interconnect rule does not apply.\n\nAction: Determine how many electrical meters are on site and if your utility will require you to connect to each one. You may have to contact your utility to answer this question.",null,"-"]
[null,"Site conditions"]
[null,11,"The site could be safely accessed by vehicles carrying equipment and materials.","Contractor vehicles will need to access the site during construction and operation. Developing extensive access roads may compromise the overall project economics. This is not likely to be a concern for urban rooftop systems.\n\nAction: Double check road access and vehicle weight limits.  Coordinate with your local, state, or federal department of transportation (or equivalent) to address site access concerns and costs. ",null,"-"]
[null,"Permitting and regulation"]
[null,13,"The site is more than 10 miles from an airport. If less than 10 miles from an airport, we have contacted the airport to inquire about restrictions or required documents (e.g. glare study).","Action: Use Google Earth's Measure tool (appears as a ruler) to check the site's distance from the closest airport. If within 10 miles, check with the airport or your local FAA Regional & District/Development Offices about their rules for nearby developments. "]
[null,14,"We have accounted for structure setback regulations/ordinances, adjusted the total usable space accordingly, and the project still meets our minimum project size requirement.","Most states or local governments have their own rules regarding setback requirements for rooftop PV systems. In particular, setbacks for firefighter safety are often required. \n\nAction: Investigate local building and fire codes to determine setback requirements (try using the NFPA CodeFinder)."]
[null,15,"We have reviewed the local, state, and federal construction and operating permits that may be required for this project.","Action: Review the \"Permits\" tab and determine which of the standard permits are likely to be required for this project. While the solar developer for this project will most likely handle all of the permitting, it is useful to develop an understanding of the types of required permits and the amount of time these may take to complete.",null,"-"]
[null,"Resilience"]
[null,16,"We are not hoping to improve resilience with this PV installation. \nOR\nWe are hoping to improve resilience by installing solar PV and we have considered the additional infrastructure (e.g. batteries) needed to do so. ","Action: Determine whether or not the building at the point of interconnection contains critical electrical loads (e.g., hospital equipment) or is intended to be a resilience hub in case of a power outage. If so, do you wish to pair solar PV with storage to improve resilience? Note that this would entail additional cost and engineering considerations that should be incorporated into the site selection process. Take a first pass at evaluating the difference between optimizing system sizes for financial savings versus resilience using NREL's REopt Lite."]

{"sheet":"4b) Parking Canopy Checklist","index":7,"n_rows":53,"n_cols":106,"rows_kept":53,"cut":false,"hidden":false,"merged":[[37,3,37,4],[28,3,28,4],[29,3,29,4],[30,3,30,4],[31,3,31,4],[32,3,32,4],[33,3,33,4],[34,3,34,4],[35,3,35,4],[36,3,36,4],[38,3,38,4],[39,3,39,4],[40,3,40,4],[41,3,41,4],[42,3,42,4],[50,3,50,4],[51,3,51,4],[52,3,52,4],[43,3,43,4],[45,3,45,4],[46,3,46,4],[47,3,47,4],[48,3,48,4],[49,3,49,4],[44,3,44,4],[22,4,22,5],[23,4,23,5],[24,4,24,5],[25,4,25,5],[19,4,19,5],[20,4,20,5],[21,4,21,5]]}
[null,"4b. Secondary Screening for Solar Parking Canopies"]
[null,null,"Note: This checklist is designed for sites at which a parking canopy does not already exist, and would instead be constructed as part of the solar array. "]
[]
[]
[]
[]
[]
[]
[]
[]
[]
[]
[]
[]
[]
[]
[]
[]
[]
[null,null,null,null,"Site Number:"]
[null,null,null,null,"Site Name:",null,{"$f":"IF(G20<>\"\",VLOOKUP(G20,'3) Pre-Screened Sites'!$B$33:$D$231,2,FALSE),\"\")","v":""},{"$f":"IF(H20<>\"\",VLOOKUP(H20,'3) Pre-Screened Sites'!$B$33:$D$231,2,FALSE),\"\")","v":""},{"$f":"IF(I20<>\"\",VLOOKUP(I20,'3) Pre-Screened Sites'!$B$33:$D$231,2,FALSE),\"\")","v":""},{"$f":"IF(J20<>\"\",VLOOKUP(J20,'3) Pre-Screened Sites'!$B$33:$D$231,2,FALSE),\"\")","v":""},{"$f":"IF(K20<>\"\",VLOOKUP(K20,'3) Pre-Screened Sites'!$B$33:$D$231,2,FALSE),\"\")","v":""},{"$f":"IF(L20<>\"\",VLOOKUP(L20,'3) Pre-Screened Sites'!$B$33:$D$231,2,FALSE),\"\")","v":""},{"$f":"IF(M20<>\"\",VLOOKUP(M20,'3) Pre-Screened Sites'!$B$33:$D$231,2,FALSE),\"\")","v":""},{"$f":"IF(N20<>\"\",VLOOKUP(N20,'3) Pre-Screened Sites'!$B$33:$D$231,2,FALSE),\"\")","v":""},{"$f":"IF(O20<>\"\",VLOOKUP(O20,'3) Pre-Screened Sites'!$B$33:$D$231,2,FALSE),\"\")","v":""},{"$f":"IF(P20<>\"\",VLOOKUP(P20,'3) Pre-Screened Sites'!$B$33:$D$231,2,FALSE),\"\")","v":""},{"$f":"IF(Q20<>\"\",VLOOKUP(Q20,'3) Pre-Screened Sites'!$B$33:$D$231,2,FALSE),\"\")","v":""},{"$f":"IF(R20<>\"\",VLOOKUP(R20,'3) Pre-Screened Sites'!$B$33:$D$231,2,FALSE),\"\")","v":""},{"$f":"IF(S20<>\"\",VLOOKUP(S20,'3) Pre-Screened Sites'!$B$33:$D$231,2,FALSE),\"\")","v":""},{"$f":"IF(T20<>\"\",VLOOKUP(T20,'3) Pre-Screened Sites'!$B$33:$D$231,2,FALSE),\"\")","v":""},{"$f":"IF(U20<>\"\",VLOOKUP(U20,'3) Pre-Screened Sites'!$B$33:$D$231,2,FALSE),\"\")","v":""},{"$f":"IF(V20<>\"\",VLOOKUP(V20,'3) Pre-Screened Sites'!$B$33:$D$231,2,FALSE),\"\")","v":""},{"$f":"IF(W20<>\"\",VLOOKUP(W20,'3) Pre-Screened Sites'!$B$33:$D$231,2,FALSE),\"\")","v":""},{"$f":"IF(X20<>\"\",VLOOKUP(X20,'3) Pre-Screened Sites'!$B$33:$D$231,2,FALSE),\"\")","v":""},{"$f":"IF(Y20<>\"\",VLOOKUP(Y20,'3) Pre-Screened Sites'!$B$33:$D$231,2,FALSE),\"\")","v":""},{"$f":"IF(Z20<>\"\",VLOOKUP(Z20,'3) Pre-Screened Sites'!$B$33:$D$231,2,FALSE),\"\")","v":""},{"$f":"IF(AA20<>\"\",VLOOKUP(AA20,'3) Pre-Screened Sites'!$B$33:$D$231,2,FALSE),\"\")","v":""},{"$f":"IF(AB20<>\"\",VLOOKUP(AB20,'3) Pre-Screened Sites'!$B$33:$D$231,2,FALSE),\"\")","v":""},{"$f":"IF(AC20<>\"\",VLOOKUP(AC20,'3) Pre-Screened Sites'!$B$33:$D$231,2,FALSE),\"\")","v":""},{"$f":"IF(AD20<>\"\",VLOOKUP(AD20,'3) Pre-Screened Sites'!$B$33:$D$231,2,FALSE),\"\")","v":""},{"$f":"IF(AE20<>\"\",VLOOKUP(AE20,'3) Pre-Screened Sites'!$B$33:$D$231,2,FALSE),\"\")","v":""},{"$f":"IF(AF20<>\"\",VLOOKUP(AF20,'3) Pre-Screened Sites'!$B$33:$D$231,2,FALSE),\"\")","v":""},{"$f":"IF(AG20<>\"\",VLOOKUP(AG20,'3) Pre-Screened Sites'!$B$33:$D$231,2,FALSE),\"\")","v":""},{"$f":"IF(AH20<>\"\",VLOOKUP(AH20,'3) Pre-Screened Sites'!$B$33:$D$231,2,FALSE),\"\")","v":""},{"$f":"IF(AI20<>\"\",VLOOKUP(AI20,'3) Pre-Screened Sites'!$B$33:$D$231,2,FALSE),\"\")","v":""},{"$f":"IF(AJ20<>\"\",VLOOKUP(AJ20,'3) Pre-Screened Sites'!$B$33:$D$231,2,FALSE),\"\")","v":""},{"$f":"IF(AK20<>\"\",VLOOKUP(AK20,'3) Pre-Screened Sites'!$B$33:$D$231,2,FALSE),\"\")","v":""},{"$f":"IF(AL20<>\"\",VLOOKUP(AL20,'3) Pre-Screened Sites'!$B$33:$D$231,2,FALSE),\"\")","v":""},{"$f":"IF(AM20<>\"\",VLOOKUP(AM20,'3) Pre-Screened Sites'!$B$33:$D$231,2,FALSE),\"\")","v":""},{"$f":"IF(AN20<>\"\",VLOOKUP(AN20,'3) Pre-Screened Sites'!$B$33:$D$231,2,FALSE),\"\")","v":""},{"$f":"IF(AO20<>\"\",VLOOKUP(AO20,'3) Pre-Screened Sites'!$B$33:$D$231,2,FALSE),\"\")","v":""},{"$f":"IF(AP20<>\"\",VLOOKUP(AP20,'3) Pre-Screened Sites'!$B$33:$D$231,2,FALSE),\"\")","v":""},{"$f":"IF(AQ20<>\"\",VLOOKUP(AQ20,'3) Pre-Screened Sites'!$B$33:$D$231,2,FALSE),\"\")","v":""},{"$f":"IF(AR20<>\"\",VLOOKUP(AR20,'3) Pre-Screened Sites'!$B$33:$D$231,2,FALSE),\"\")","v":""},{"$f":"IF(AS20<>\"\",VLOOKUP(AS20,'3) Pre-Screened Sites'!$B$33:$D$231,2,FALSE),\"\")","v":""},{"$f":"IF(AT20<>\"\",VLOOKUP(AT20,'3) Pre-Screened Sites'!$B$33:$D$231,2,FALSE),\"\")","v":""},{"$f":"IF(AU20<>\"\",VLOOKUP(AU20,'3) Pre-Screened Sites'!$B$33:$D$231,2,FALSE),\"\")","v":""},{"$f":"IF(AV20<>\"\",VLOOKUP(AV20,'3) Pre-Screened Sites'!$B$33:$D$231,2,FALSE),\"\")","v":""},{"$f":"IF(AW20<>\"\",VLOOKUP(AW20,'3) Pre-Screened Sites'!$B$33:$D$231,2,FALSE),\"\")","v":""},{"$f":"IF(AX20<>\"\",VLOOKUP(AX20,'3) Pre-Screened Sites'!$B$33:$D$231,2,FALSE),\"\")","v":""},{"$f":"IF(AY20<>\"\",VLOOKUP(AY20,'3) Pre-Screened Sites'!$B$33:$D$231,2,FALSE),\"\")","v":""},{"$f":"IF(AZ20<>\"\",VLOOKUP(AZ20,'3) Pre-Screened Sites'!$B$33:$D$231,2,FALSE),\"\")","v":""},{"$f":"IF(BA20<>\"\",VLOOKUP(BA20,'3) Pre-Screened Sites'!$B$33:$D$231,2,FALSE),\"\")","v":""},{"$f":"IF(BB20<>\"\",VLOOKUP(BB20,'3) Pre-Screened Sites'!$B$33:$D$231,2,FALSE),\"\")","v":""},{"$f":"IF(BC20<>\"\",VLOOKUP(BC20,'3) Pre-Screened Sites'!$B$33:$D$231,2,FALSE),\"\")","v":""},{"$f":"IF(BD20<>\"\",VLOOKUP(BD20,'3) Pre-Screened Sites'!$B$33:$D$231,2,FALSE),\"\")","v":""},{"$f":"IF(BE20<>\"\",VLOOKUP(BE20,'3) Pre-Screened Sites'!$B$33:$D$231,2,FALSE),\"\")","v":""},{"$f":"IF(BF20<>\"\",VLOOKUP(BF20,'3) Pre-Screened Sites'!$B$33:$D$231,2,FALSE),\"\")","v":""},{"$f":"IF(BG20<>\"\",VLOOKUP(BG20,'3) Pre-Screened Sites'!$B$33:$D$231,2,FALSE),\"\")","v":""},{"$f":"IF(BH20<>\"\",VLOOKUP(BH20,'3) Pre-Screened Sites'!$B$33:$D$231,2,FALSE),\"\")","v":""},{"$f":"IF(BI20<>\"\",VLOOKUP(BI20,'3) Pre-Screened Sites'!$B$33:$D$231,2,FALSE),\"\")","v":""},{"$f":"IF(BJ20<>\"\",VLOOKUP(BJ20,'3) Pre-Screened Sites'!$B$33:$D$231,2,FALSE),\"\")","v":""},{"$f":"IF(BK20<>\"\",VLOOKUP(BK20,'3) Pre-Screened Sites'!$B$33:$D$231,2,FALSE),\"\")","v":""},{"$f":"IF(BL20<>\"\",VLOOKUP(BL20,'3) Pre-Screened Sites'!$B$33:$D$231,2,FALSE),\"\")","v":""},{"$f":"IF(BM20<>\"\",VLOOKUP(BM20,'3) Pre-Screened Sites'!$B$33:$D$231,2,FALSE),\"\")","v":""},{"$f":"IF(BN20<>\"\",VLOOKUP(BN20,'3) Pre-Screened Sites'!$B$33:$D$231,2,FALSE),\"\")","v":""},{"$f":"IF(BO20<>\"\",VLOOKUP(BO20,'3) Pre-Screened Sites'!$B$33:$D$231,2,FALSE),\"\")","v":""},{"$f":"IF(BP20<>\"\",VLOOKUP(BP20,'3) Pre-Screened Sites'!$B$33:$D$231,2,FALSE),\"\")","v":""},{"$f":"IF(BQ20<>\"\",VLOOKUP(BQ20,'3) Pre-Screened Sites'!$B$33:$D$231,2,FALSE),\"\")","v":""},{"$f":"IF(BR20<>\"\",VLOOKUP(BR20,'3) Pre-Screened Sites'!$B$33:$D$231,2,FALSE),\"\")","v":""},{"$f":"IF(BS20<>\"\",VLOOKUP(BS20,'3) Pre-Screened Sites'!$B$33:$D$231,2,FALSE),\"\")","v":""},{"$f":"IF(BT20<>\"\",VLOOKUP(BT20,'3) Pre-Screened Sites'!$B$33:$D$231,2,FALSE),\"\")","v":""},{"$f":"IF(BU20<>\"\",VLOOKUP(BU20,'3) Pre-Screened Sites'!$B$33:$D$231,2,FALSE),\"\")","v":""},{"$f":"IF(BV20<>\"\",VLOOKUP(BV20,'3) Pre-Screened Sites'!$B$33:$D$231,2,FALSE),\"\")","v":""},{"$f":"IF(BW20<>\"\",VLOOKUP(BW20,'3) Pre-Screened Sites'!$B$33:$D$231,2,FALSE),\"\")","v":""},{"$f":"IF(BX20<>\"\",VLOOKUP(BX20,'3) Pre-Screened Sites'!$B$33:$D$231,2,FALSE),\"\")","v":""},{"$f":"IF(BY20<>\"\",VLOOKUP(BY20,'3) Pre-Screened Sites'!$B$33:$D$231,2,FALSE),\"\")","v":""},{"$f":"IF(BZ20<>\"\",VLOOKUP(BZ20,'3) Pre-Screened Sites'!$B$33:$D$231,2,FALSE),\"\")","v":""},{"$f":"IF(CA20<>\"\",VLOOKUP(CA20,'3) Pre-Screened Sites'!$B$33:$D$231,2,FALSE),\"\")","v":""},{"$f":"IF(CB20<>\"\",VLOOKUP(CB20,'3) Pre-Screened Sites'!$B$33:$D$231,2,FALSE),\"\")","v":""},{"$f":"IF(CC20<>\"\",VLOOKUP(CC20,'3) Pre-Screened Sites'!$B$33:$D$231,2,FALSE),\"\")","v":""},{"$f":"IF(CD20<>\"\",VLOOKUP(CD20,'3) Pre-Screened Sites'!$B$33:$D$231,2,FALSE),\"\")","v":""},{"$f":"IF(CE20<>\"\",VLOOKUP(CE20,'3) Pre-Screened Sites'!$B$33:$D$231,2,FALSE),\"\")","v":""},{"$f":"IF(CF20<>\"\",VLOOKUP(CF20,'3) Pre-Screened Sites'!$B$33:$D$231,2,FALSE),\"\")","v":""},{"$f":"IF(CG20<>\"\",VLOOKUP(CG20,'3) Pre-Screened Sites'!$B$33:$D$231,2,FALSE),\"\")","v":""},{"$f":"IF(CH20<>\"\",VLOOKUP(CH20,'3) Pre-Screened Sites'!$B$33:$D$231,2,FALSE),\"\")","v":""},{"$f":"IF(CI20<>\"\",VLOOKUP(CI20,'3) Pre-Screened Sites'!$B$33:$D$231,2,FALSE),\"\")","v":""},{"$f":"IF(CJ20<>\"\",VLOOKUP(CJ20,'3) Pre-Screened Sites'!$B$33:$D$231,2,FALSE),\"\")","v":""},{"$f":"IF(CK20<>\"\",VLOOKUP(CK20,'3) Pre-Screened Sites'!$B$33:$D$231,2,FALSE),\"\")","v":""},{"$f":"IF(CL20<>\"\",VLOOKUP(CL20,'3) Pre-Screened Sites'!$B$33:$D$231,2,FALSE),\"\")","v":""},{"$f":"IF(CM20<>\"\",VLOOKUP(CM20,'3) Pre-Screened Sites'!$B$33:$D$231,2,FALSE),\"\")","v":""},{"$f":"IF(CN20<>\"\",VLOOKUP(CN20,'3) Pre-Screened Sites'!$B$33:$D$231,2,FALSE),\"\")","v":""},{"$f":"IF(CO20<>\"\",VLOOKUP(CO20,'3) Pre-Screened Sites'!$B$33:$D$231,2,FALSE),\"\")","v":""},{"$f":"IF(CP20<>\"\",VLOOKUP(CP20,'3) Pre-Screened Sites'!$B$33:$D$231,2,FALSE),\"\")","v":""},{"$f":"IF(CQ20<>\"\",VLOOKUP(CQ20,'3) Pre-Screened Sites'!$B$33:$D$231,2,FALSE),\"\")","v":""},{"$f":"IF(CR20<>\"\",VLOOKUP(CR20,'3) Pre-Screened Sites'!$B$33:$D$231,2,FALSE),\"\")","v":""},{"$f":"IF(CS20<>\"\",VLOOKUP(CS20,'3) Pre-Screened Sites'!$B$33:$D$231,2,FALSE),\"\")","v":""},{"$f":"IF(CT20<>\"\",VLOOKUP(CT20,'3) Pre-Screened Sites'!$B$33:$D$231,2,FALSE),\"\")","v":""},{"$f":"IF(CU20<>\"\",VLOOKUP(CU20,'3) Pre-Screened Sites'!$B$33:$D$231,2,FALSE),\"\")","v":""},{"$f":"IF(CV20<>\"\",VLOOKUP(CV20,'3) Pre-Screened Sites'!$B$33:$D$231,2,FALSE),\"\")","v":""},{"$f":"IF(CW20<>\"\",VLOOKUP(CW20,'3) Pre-Screened Sites'!$B$33:$D$231,2,FALSE),\"\")","v":""},{"$f":"IF(CX20<>\"\",VLOOKUP(CX20,'3) Pre-Screened Sites'!$B$33:$D$231,2,FALSE),\"\")","v":""},{"$f":"IF(CY20<>\"\",VLOOKUP(CY20,'3) Pre-Screened Sites'!$B$33:$D$231,2,FALSE),\"\")","v":""},{"$f":"IF(CZ20<>\"\",VLOOKUP(CZ20,'3) Pre-Screened Sites'!$B$33:$D$231,2,FALSE),\"\")","v":""},{"$f":"IF(DA20<>\"\",VLOOKUP(DA20,'3) Pre-Screened Sites'!$B$33:$D$231,2,FALSE),\"\")","v":""},{"$f":"IF(DB20<>\"\",VLOOKUP(DB20,'3) Pre-Screened Sites'!$B$33:$D$231,2,FALSE),\"\")","v":""}]
[null,null,null,null,"Site Address:",null,{"$f":"IF(G20<>\"\",VLOOKUP(G20,'3) Pre-Screened Sites'!$B$33:$D$231,3,FALSE),\"\")","v":""},{"$f":"IF(H20<>\"\",VLOOKUP(H20,'3) Pre-Screened Sites'!$B$33:$D$231,3,FALSE),\"\")","v":""},{"$f":"IF(I20<>\"\",VLOOKUP(I20,'3) Pre-Screened Sites'!$B$33:$D$231,3,FALSE),\"\")","v":""},{"$f":"IF(J20<>\"\",VLOOKUP(J20,'3) Pre-Screened Sites'!$B$33:$D$231,3,FALSE),\"\")","v":""},{"$f":"IF(K20<>\"\",VLOOKUP(K20,'3) Pre-Screened Sites'!$B$33:$D$231,3,FALSE),\"\")","v":""},{"$f":"IF(L20<>\"\",VLOOKUP(L20,'3) Pre-Screened Sites'!$B$33:$D$231,3,FALSE),\"\")","v":""},{"$f":"IF(M20<>\"\",VLOOKUP(M20,'3) Pre-Screened Sites'!$B$33:$D$231,3,FALSE),\"\")","v":""},{"$f":"IF(N20<>\"\",VLOOKUP(N20,'3) Pre-Screened Sites'!$B$33:$D$231,3,FALSE),\"\")","v":""},{"$f":"IF(O20<>\"\",VLOOKUP(O20,'3) Pre-Screened Sites'!$B$33:$D$231,3,FALSE),\"\")","v":""},{"$f":"IF(P20<>\"\",VLOOKUP(P20,'3) Pre-Screened Sites'!$B$33:$D$231,3,FALSE),\"\")","v":""},{"$f":"IF(Q20<>\"\",VLOOKUP(Q20,'3) Pre-Screened Sites'!$B$33:$D$231,3,FALSE),\"\")","v":""},{"$f":"IF(R20<>\"\",VLOOKUP(R20,'3) Pre-Screened Sites'!$B$33:$D$231,3,FALSE),\"\")","v":""},{"$f":"IF(S20<>\"\",VLOOKUP(S20,'3) Pre-Screened Sites'!$B$33:$D$231,3,FALSE),\"\")","v":""},{"$f":"IF(T20<>\"\",VLOOKUP(T20,'3) Pre-Screened Sites'!$B$33:$D$231,3,FALSE),\"\")","v":""},{"$f":"IF(U20<>\"\",VLOOKUP(U20,'3) Pre-Screened Sites'!$B$33:$D$231,3,FALSE),\"\")","v":""},{"$f":"IF(V20<>\"\",VLOOKUP(V20,'3) Pre-Screened Sites'!$B$33:$D$231,3,FALSE),\"\")","v":""},{"$f":"IF(W20<>\"\",VLOOKUP(W20,'3) Pre-Screened Sites'!$B$33:$D$231,3,FALSE),\"\")","v":""},{"$f":"IF(X20<>\"\",VLOOKUP(X20,'3) Pre-Screened Sites'!$B$33:$D$231,3,FALSE),\"\")","v":""},{"$f":"IF(Y20<>\"\",VLOOKUP(Y20,'3) Pre-Screened Sites'!$B$33:$D$231,3,FALSE),\"\")","v":""},{"$f":"IF(Z20<>\"\",VLOOKUP(Z20,'3) Pre-Screened Sites'!$B$33:$D$231,3,FALSE),\"\")","v":""},{"$f":"IF(AA20<>\"\",VLOOKUP(AA20,'3) Pre-Screened Sites'!$B$33:$D$231,3,FALSE),\"\")","v":""},{"$f":"IF(AB20<>\"\",VLOOKUP(AB20,'3) Pre-Screened Sites'!$B$33:$D$231,3,FALSE),\"\")","v":""},{"$f":"IF(AC20<>\"\",VLOOKUP(AC20,'3) Pre-Screened Sites'!$B$33:$D$231,3,FALSE),\"\")","v":""},{"$f":"IF(AD20<>\"\",VLOOKUP(AD20,'3) Pre-Screened Sites'!$B$33:$D$231,3,FALSE),\"\")","v":""},{"$f":"IF(AE20<>\"\",VLOOKUP(AE20,'3) Pre-Screened Sites'!$B$33:$D$231,3,FALSE),\"\")","v":""},{"$f":"IF(AF20<>\"\",VLOOKUP(AF20,'3) Pre-Screened Sites'!$B$33:$D$231,3,FALSE),\"\")","v":""},{"$f":"IF(AG20<>\"\",VLOOKUP(AG20,'3) Pre-Screened Sites'!$B$33:$D$231,3,FALSE),\"\")","v":""},{"$f":"IF(AH20<>\"\",VLOOKUP(AH20,'3) Pre-Screened Sites'!$B$33:$D$231,3,FALSE),\"\")","v":""},{"$f":"IF(AI20<>\"\",VLOOKUP(AI20,'3) Pre-Screened Sites'!$B$33:$D$231,3,FALSE),\"\")","v":""},{"$f":"IF(AJ20<>\"\",VLOOKUP(AJ20,'3) Pre-Screened Sites'!$B$33:$D$231,3,FALSE),\"\")","v":""},{"$f":"IF(AK20<>\"\",VLOOKUP(AK20,'3) Pre-Screened Sites'!$B$33:$D$231,3,FALSE),\"\")","v":""},{"$f":"IF(AL20<>\"\",VLOOKUP(AL20,'3) Pre-Screened Sites'!$B$33:$D$231,3,FALSE),\"\")","v":""},{"$f":"IF(AM20<>\"\",VLOOKUP(AM20,'3) Pre-Screened Sites'!$B$33:$D$231,3,FALSE),\"\")","v":""},{"$f":"IF(AN20<>\"\",VLOOKUP(AN20,'3) Pre-Screened Sites'!$B$33:$D$231,3,FALSE),\"\")","v":""},{"$f":"IF(AO20<>\"\",VLOOKUP(AO20,'3) Pre-Screened Sites'!$B$33:$D$231,3,FALSE),\"\")","v":""},{"$f":"IF(AP20<>\"\",VLOOKUP(AP20,'3) Pre-Screened Sites'!$B$33:$D$231,3,FALSE),\"\")","v":""},{"$f":"IF(AQ20<>\"\",VLOOKUP(AQ20,'3) Pre-Screened Sites'!$B$33:$D$231,3,FALSE),\"\")","v":""},{"$f":"IF(AR20<>\"\",VLOOKUP(AR20,'3) Pre-Screened Sites'!$B$33:$D$231,3,FALSE),\"\")","v":""},{"$f":"IF(AS20<>\"\",VLOOKUP(AS20,'3) Pre-Screened Sites'!$B$33:$D$231,3,FALSE),\"\")","v":""},{"$f":"IF(AT20<>\"\",VLOOKUP(AT20,'3) Pre-Screened Sites'!$B$33:$D$231,3,FALSE),\"\")","v":""},{"$f":"IF(AU20<>\"\",VLOOKUP(AU20,'3) Pre-Screened Sites'!$B$33:$D$231,3,FALSE),\"\")","v":""},{"$f":"IF(AV20<>\"\",VLOOKUP(AV20,'3) Pre-Screened Sites'!$B$33:$D$231,3,FALSE),\"\")","v":""},{"$f":"IF(AW20<>\"\",VLOOKUP(AW20,'3) Pre-Screened Sites'!$B$33:$D$231,3,FALSE),\"\")","v":""},{"$f":"IF(AX20<>\"\",VLOOKUP(AX20,'3) Pre-Screened Sites'!$B$33:$D$231,3,FALSE),\"\")","v":""},{"$f":"IF(AY20<>\"\",VLOOKUP(AY20,'3) Pre-Screened Sites'!$B$33:$D$231,3,FALSE),\"\")","v":""},{"$f":"IF(AZ20<>\"\",VLOOKUP(AZ20,'3) Pre-Screened Sites'!$B$33:$D$231,3,FALSE),\"\")","v":""},{"$f":"IF(BA20<>\"\",VLOOKUP(BA20,'3) Pre-Screened Sites'!$B$33:$D$231,3,FALSE),\"\")","v":""},{"$f":"IF(BB20<>\"\",VLOOKUP(BB20,'3) Pre-Screened Sites'!$B$33:$D$231,3,FALSE),\"\")","v":""},{"$f":"IF(BC20<>\"\",VLOOKUP(BC20,'3) Pre-Screened Sites'!$B$33:$D$231,3,FALSE),\"\")","v":""},{"$f":"IF(BD20<>\"\",VLOOKUP(BD20,'3) Pre-Screened Sites'!$B$33:$D$231,3,FALSE),\"\")","v":""},{"$f":"IF(BE20<>\"\",VLOOKUP(BE20,'3) Pre-Screened Sites'!$B$33:$D$231,3,FALSE),\"\")","v":""},{"$f":"IF(BF20<>\"\",VLOOKUP(BF20,'3) Pre-Screened Sites'!$B$33:$D$231,3,FALSE),\"\")","v":""},{"$f":"IF(BG20<>\"\",VLOOKUP(BG20,'3) Pre-Screened Sites'!$B$33:$D$231,3,FALSE),\"\")","v":""},{"$f":"IF(BH20<>\"\",VLOOKUP(BH20,'3) Pre-Screened Sites'!$B$33:$D$231,3,FALSE),\"\")","v":""},{"$f":"IF(BI20<>\"\",VLOOKUP(BI20,'3) Pre-Screened Sites'!$B$33:$D$231,3,FALSE),\"\")","v":""},{"$f":"IF(BJ20<>\"\",VLOOKUP(BJ20,'3) Pre-Screened Sites'!$B$33:$D$231,3,FALSE),\"\")","v":""},{"$f":"IF(BK20<>\"\",VLOOKUP(BK20,'3) Pre-Screened Sites'!$B$33:$D$231,3,FALSE),\"\")","v":""},{"$f":"IF(BL20<>\"\",VLOOKUP(BL20,'3) Pre-Screened Sites'!$B$33:$D$231,3,FALSE),\"\")","v":""},{"$f":"IF(BM20<>\"\",VLOOKUP(BM20,'3) Pre-Screened Sites'!$B$33:$D$231,3,FALSE),\"\")","v":""},{"$f":"IF(BN20<>\"\",VLOOKUP(BN20,'3) Pre-Screened Sites'!$B$33:$D$231,3,FALSE),\"\")","v":""},{"$f":"IF(BO20<>\"\",VLOOKUP(BO20,'3) Pre-Screened Sites'!$B$33:$D$231,3,FALSE),\"\")","v":""},{"$f":"IF(BP20<>\"\",VLOOKUP(BP20,'3) Pre-Screened Sites'!$B$33:$D$231,3,FALSE),\"\")","v":""},{"$f":"IF(BQ20<>\"\",VLOOKUP(BQ20,'3) Pre-Screened Sites'!$B$33:$D$231,3,FALSE),\"\")","v":""},{"$f":"IF(BR20<>\"\",VLOOKUP(BR20,'3) Pre-Screened Sites'!$B$33:$D$231,3,FALSE),\"\")","v":""},{"$f":"IF(BS20<>\"\",VLOOKUP(BS20,'3) Pre-Screened Sites'!$B$33:$D$231,3,FALSE),\"\")","v":""},{"$f":"IF(BT20<>\"\",VLOOKUP(BT20,'3) Pre-Screened Sites'!$B$33:$D$231,3,FALSE),\"\")","v":""},{"$f":"IF(BU20<>\"\",VLOOKUP(BU20,'3) Pre-Screened Sites'!$B$33:$D$231,3,FALSE),\"\")","v":""},{"$f":"IF(BV20<>\"\",VLOOKUP(BV20,'3) Pre-Screened Sites'!$B$33:$D$231,3,FALSE),\"\")","v":""},{"$f":"IF(BW20<>\"\",VLOOKUP(BW20,'3) Pre-Screened Sites'!$B$33:$D$231,3,FALSE),\"\")","v":""},{"$f":"IF(BX20<>\"\",VLOOKUP(BX20,'3) Pre-Screened Sites'!$B$33:$D$231,3,FALSE),\"\")","v":""},{"$f":"IF(BY20<>\"\",VLOOKUP(BY20,'3) Pre-Screened Sites'!$B$33:$D$231,3,FALSE),\"\")","v":""},{"$f":"IF(BZ20<>\"\",VLOOKUP(BZ20,'3) Pre-Screened Sites'!$B$33:$D$231,3,FALSE),\"\")","v":""},{"$f":"IF(CA20<>\"\",VLOOKUP(CA20,'3) Pre-Screened Sites'!$B$33:$D$231,3,FALSE),\"\")","v":""},{"$f":"IF(CB20<>\"\",VLOOKUP(CB20,'3) Pre-Screened Sites'!$B$33:$D$231,3,FALSE),\"\")","v":""},{"$f":"IF(CC20<>\"\",VLOOKUP(CC20,'3) Pre-Screened Sites'!$B$33:$D$231,3,FALSE),\"\")","v":""},{"$f":"IF(CD20<>\"\",VLOOKUP(CD20,'3) Pre-Screened Sites'!$B$33:$D$231,3,FALSE),\"\")","v":""},{"$f":"IF(CE20<>\"\",VLOOKUP(CE20,'3) Pre-Screened Sites'!$B$33:$D$231,3,FALSE),\"\")","v":""},{"$f":"IF(CF20<>\"\",VLOOKUP(CF20,'3) Pre-Screened Sites'!$B$33:$D$231,3,FALSE),\"\")","v":""},{"$f":"IF(CG20<>\"\",VLOOKUP(CG20,'3) Pre-Screened Sites'!$B$33:$D$231,3,FALSE),\"\")","v":""},{"$f":"IF(CH20<>\"\",VLOOKUP(CH20,'3) Pre-Screened Sites'!$B$33:$D$231,3,FALSE),\"\")","v":""},{"$f":"IF(CI20<>\"\",VLOOKUP(CI20,'3) Pre-Screened Sites'!$B$33:$D$231,3,FALSE),\"\")","v":""},{"$f":"IF(CJ20<>\"\",VLOOKUP(CJ20,'3) Pre-Screened Sites'!$B$33:$D$231,3,FALSE),\"\")","v":""},{"$f":"IF(CK20<>\"\",VLOOKUP(CK20,'3) Pre-Screened Sites'!$B$33:$D$231,3,FALSE),\"\")","v":""},{"$f":"IF(CL20<>\"\",VLOOKUP(CL20,'3) Pre-Screened Sites'!$B$33:$D$231,3,FALSE),\"\")","v":""},{"$f":"IF(CM20<>\"\",VLOOKUP(CM20,'3) Pre-Screened Sites'!$B$33:$D$231,3,FALSE),\"\")","v":""},{"$f":"IF(CN20<>\"\",VLOOKUP(CN20,'3) Pre-Screened Sites'!$B$33:$D$231,3,FALSE),\"\")","v":""},{"$f":"IF(CO20<>\"\",VLOOKUP(CO20,'3) Pre-Screened Sites'!$B$33:$D$231,3,FALSE),\"\")","v":""},{"$f":"IF(CP20<>\"\",VLOOKUP(CP20,'3) Pre-Screened Sites'!$B$33:$D$231,3,FALSE),\"\")","v":""},{"$f":"IF(CQ20<>\"\",VLOOKUP(CQ20,'3) Pre-Screened Sites'!$B$33:$D$231,3,FALSE),\"\")","v":""},{"$f":"IF(CR20<>\"\",VLOOKUP(CR20,'3) Pre-Screened Sites'!$B$33:$D$231,3,FALSE),\"\")","v":""},{"$f":"IF(CS20<>\"\",VLOOKUP(CS20,'3) Pre-Screened Sites'!$B$33:$D$231,3,FALSE),\"\")","v":""},{"$f":"IF(CT20<>\"\",VLOOKUP(CT20,'3) Pre-Screened Sites'!$B$33:$D$231,3,FALSE),\"\")","v":""},{"$f":"IF(CU20<>\"\",VLOOKUP(CU20,'3) Pre-Screened Sites'!$B$33:$D$231,3,FALSE),\"\")","v":""},{"$f":"IF(CV20<>\"\",VLOOKUP(CV20,'3) Pre-Screened Sites'!$B$33:$D$231,3,FALSE),\"\")","v":""},{"$f":"IF(CW20<>\"\",VLOOKUP(CW20,'3) Pre-Screened Sites'!$B$33:$D$231,3,FALSE),\"\")","v":""},{"$f":"IF(CX20<>\"\",VLOOKUP(CX20,'3) Pre-Screened Sites'!$B$33:$D$231,3,FALSE),\"\")","v":""},{"$f":"IF(CY20<>\"\",VLOOKUP(CY20,'3) Pre-Screened Sites'!$B$33:$D$231,3,FALSE),\"\")","v":""},{"$f":"IF(CZ20<>\"\",VLOOKUP(CZ20,'3) Pre-Screened Sites'!$B$33:$D$231,3,FALSE),\"\")","v":""},{"$f":"IF(DA20<>\"\",VLOOKUP(DA20,'3) Pre-Screened Sites'!$B$33:$D$231,3,FALSE),\"\")","v":""},{"$f":"IF(DB20<>\"\",VLOOKUP(DB20,'3) Pre-Screened Sites'!$B$33:$D$231,3,FALSE),\"\")","v":""}]
[null,null,null,null,"Phase 1 Checklist complete?",null,{"$f":"IF(G20<>\"\",IF(COUNTA(G29:G36)<7,\"Incomplete\",\"Complete\"),\"\")","v":""},{"$f":"IF(H20<>\"\",IF(COUNTA(H29:H36)<7,\"Incomplete\",\"Complete\"),\"\")","v":""},"","","","","","","","","","","","","","","","","","","","","","","","","","","","","","",{"$f":"IF(AM20<>\"\",IF(COUNTA(AM29:AM36)<7,\"Incomplete\",\"Complete\"),\"\")","v":""},"","","","","","","","","","","","","","","","","","","","","","","","","","","","","","","",{"$f":"IF(BS20<>\"\",IF(COUNTA(BS29:BS36)<7,\"Incomplete\",\"Complete\"),\"\")","v":""},"","","","","","","","","","","","","","","","","","","","","","","","","","","","","","","","","","",""]
[null,null,null,null,"Phase 2 Checklist complete?",null,{"$f":"IF(G20<>\"\",IF(COUNTA(G42:G53)<9,\"Incomplete\",\"Complete\"),\"\")","v":""},{"$f":"IF(H20<>\"\",IF(COUNTA(H42:H53)<9,\"Incomplete\",\"Complete\"),\"\")","v":""},"","","","","","","","","","","","","","","","","","","","","","","","","","","","","","",{"$f":"IF(AM20<>\"\",IF(COUNTA(AM42:AM53)<9,\"Incomplete\",\"Complete\"),\"\")","v":""},"","","","","","","","","","","","","","","","","","","","","","","","","","","","","","","",{"$f":"IF(BS20<>\"\",IF(COUNTA(BS42:BS53)<9,\"Incomplete\",\"Complete\"),\"\")","v":""},"","","","","","","","","","","","","","","","","","","","","","","","","","","","","","","","","","",""]
[null,null,null,null,"Number of red flags for this site:\n(potential added cost/complexity)",null,{"$f":"IF(G20<>\"\",COUNTIF(G29:G53,\"No\"),\" \")","v":" "}," "," "," "," "," "," "," "," "," "," "," "," "," "," "," "," "," "," "," "," "," "," "," "," "," "," "," "," "," "," "," ",{"$f":"IF(AM20<>\"\",COUNTIF(AM29:AM53,\"No\"),\" \")","v":" "}," "," "," "," "," "," "," "," "," "," "," "," "," "," "," "," "," "," "," "," "," "," "," "," "," "," "," "," "," "," "," ",{"$f":"IF(BS20<>\"\",COUNTIF(BS29:BS53,\"No\"),\" \")","v":" "}," "," "," "," "," "," "," "," "," "," "," "," "," "," "," "," "," "," "," "," "," "," "," "," "," "," "," "," "," "," "," "," "," "," "," "]
[null,null,null,null,"Pass/Fail decision:\nChoose \"Pass\" for sites that seem most promising based on your answers to the checklist items. Be sure to thoroughly evaluate how any \"red flags\" can be overcome/affect project costs. "]
[null,"PHASE 1 SCREENING CHECKLIST"]
[null,"Motives and financing",null,"Explanations and Actions",null,"Resources (linked)"]
[null,1,"We have clearly defined our motives and the added-value of a parking canopy at this site. ","Solar parking canopies are typically more expensive than typical rooftop and ground-mount systems, so it is important to identify your motivation for, and the added value of, a solar parking canopy at this site. \n\nAction: Determine which of the following are added-values of a solar parking canopy at this site: \n•   High visibility of solar panels\n•   Protection of cars against the elements (e.g., hail, snow, rain, sun)\n•   Desire to maintain greenspace and avoid clearing land for solar\n•   Integration of solar panels and batteries with electric vehicle charging\n•   Water management incorporated into canopy design, to reduce runoff and/or reuse greywater\n•   Lack of suitable ground or roofspace for solar PV",null,"-"]
[null,2,"We have considered alternative financing options to make this project economical. ","Due to the added cost of solar parking canopies versus typical rooftop and ground-mount systems, it can be beneficial to find alternative means of financing for this type of project. \n\nAction: Consider if any of the following alternative financing options could be applicable at this site:\n•   Charging an additional payment for parking in covered spots\n•   Monetizing the added value of the characteristics listed in Checklist item #1 (above)\n•   Utilizing incentives specific to solar parking canopies (check the DSIRE database for state incentives)"]
[null,"Restrictions and zoning"]
[null,3,"There are no other planned developments for this site. ","Action: Ensure that this site is not part of another development plan and that there will not be any major construction that would conflict with the operations of solar PV. Check internally and with community stakeholders to see if there is a separate community plan for this site.",null,"-"]
[null,4,"Future nearby developments will not cast shade on solar PV at this site.  ","Action: Consult with the planning and land use department to ensure that future developments near this site will not limit the PV system's access to sunlight.",null,"-"]
[null,5,"The site is free from restrictions related to (but not limited to): historically or culturally significant artifacts, protected or sensitive viewsheds.","Known cultural or viewshed restrictions may trigger costly and time-consuming permitting or prevent solar development. \n\nAction: Use the following resources to identify potential restrictions:\n•   Review the National Register of Historic Places \n•   Contact your State Historic Preservation Office to inquire after regulations around historic places\n•   Check with your local Zoning Board and Building Permits Department to determine if there are viewshed restrictions applicable to solar"]
[null,6,"The site is currently, or can be, zoned for solar development. ","Action: Work with the local planning or zoning department to understand where solar can and cannot be developed, to identify potential zoning-related restrictions (e.g. setbacks), or to re-zone areas for solar development. This is particularly important for solar parking canopies. ",null,"-"]
[null,7,"We have determined whether there are any limitations on the type of parking canopy that is permissible at this location.","There are several types of solar parking canopy designs, including: long-span, single-slope, single- or double-cantilever, and webbed truss. In some locations, certain canopy designs are not permitted for safety reasons (e.g., long-span canopies may limit emergency vehicle access). \n\nAction: Check with the local authority having jurisdiction (AHJ) to determine if any such limitations on canopy design exist. ",null,"-"]
[]
[null,null,"Pause! ","The Phase 2 Checklist items will require significant time and effort to complete. Take the following actions to ensure you only move forward with the most promising sites:\n\n  •   If one or more red flag is raised in the Phase 1 Checklist, either select \"Fail\" for this site or confirm that these barriers can be overcome before moving on to Phase 2.\n  •   Consider calling a few solar developers to get initial price estimates for promising sites. The NABCEP Company Accreditation Directory and SEIA Member Directory contain contact information for solar developers. \n  •   For cost comparisons, LBNL's Tracking the Sun Report includes average installed cost ($/Watt) values by state and system type (see Figure 2 on the \"Resources\" tab.)\n  •   This could also be a good time to conduct an initial financial analysis for viable sites using NREL's REopt Lite. \n  •   If the project still seems viable, continue on to the Phase 2 Checklist."]
[]
[null,"PHASE 2 SCREENING CHECKLIST"]
[null,"Interconnection"]
[null,8,"We have identified the point of interconnection for this project and associated PV system size limitations.","For solar parking canopies, the point of interconnection will likely be at an adjacent building. The infrastructure at the point of interconnection (often the building's electrical panel) must have sufficient capacity in order to handle the added power from the PV system. The exact requirements will depend on which National Electrical Code (NEC) is effective in your area. Note that a panel service upgrade could cost $20k-50k, and could thus impact project economics. An alternative to an upgrade could be to reduce the PV system size.\n \nAction: Check the NEC Adoption Map or consult the local authority having jurisdiction (AHJ) to determine which NEC applies to this project. Consult an electrical engineer or solar professional to determine the point of interconnection, associated system size limitation, and potential options to overcome system size limitations."]
[null,9,"We have determined that grid interconnection costs will be reasonable, given the desired system size at this site. ","Interconnection costs, or the cost to connect a new PV system to the grid, depend on many variables including the size of the PV system, whether the system is behind- or front-of-the-meter, and hosting capacity and voltage at the point of interconnection. It is strongly recommended to engage with your utility company early on to obtain information on the interconnection process, costs, and project size limitations. If the project moves forward, an Interconnection Application/Agreement will need to be filed with the utility (a solar developer will typically handle this).\n\nNote: Beware of using interconnection “rules of thumb” such as: solar capacity must be lower than the minimum daytime load or 15% of peak load on a line segment. These can inaccurately predict whether grid upgrades will be needed.\n\nAction: As an initial step, check to see if your utility provides a hosting capacity map online (examples: Xcel, ConEd, PG&E, Central Hudson). Hosting capacity is the amount of generation that can be accommodated at a point on the distribution system without requiring significant grid upgrades. If available, locate your site on the map and determine the hosting capacity (MW) of the nearby lines. If your planned project size exceeds the listed hosting capacity, you may encounter additional interconnection complexities and costs, or your interconnection application may be denied. For smaller rooftop systems, hosting capacity is less likely to be an issue. "]
[null,10,"There is only one electrical meter at the point of interconnection (e.g. nearby building). \nOR\nIf there are multiple meters, you are not required to physically connect the PV system to all of these meters. ","If there are multiple meters at one site, some utility companies will require that a solar installation be interconnected to each meter. This can increase labor and materials costs. In some cases, if all meters are on the same rate schedule and have the same account holder, the multiple-interconnect rule does not apply.\n\nAction: Determine how many electrical meters are on site and if your utility will require you to connect to each one. You may have to contact your utility to answer this question.",null,"-"]
[null,"Site conditions"]
[null,11,"We have acquired as-built documentation for the parking lot site.","As-built documentation is the revised set of drawings submitted by the contractor upon completion of the parking lot construction. Providing these documents to the solar developer for this site can facilitate cost-efficient canopy design.\n\nAction: Track down as-built documentation for the site, and share it with a professional who is assisting your municipality with site selection or design.",null,"-"]
[null,12,"We are aware of underground infrastructure that will influence canopy design and electrical conduit piping.","Infrastructure such as gas and sewage pipes will influence the design and construction of parking canopy foundations and electrical infrastructure. Giving solar developers site documentation related to existing underground infrastructure can reduce time and costs associated with system design and engineering.\n\nAction: Consult (or have a solar professional consult) site documentation to identify potentially obstructive underground infrastructure. ",null,"-"]
[null,"Permitting and regulation"]
[null,13,"The site is more than 10 miles from an airport.\nOR \nIf less than 10 miles from an airport, we have contacted the airport to inquire about restrictions or procedures (e.g. glare study).","Action: Use Google Earth's Measure tool (appears as a ruler) to check the site's distance from the closest airport. If within 10 miles, check with the airport or your local FAA Regional & District/Development Offices about their rules for nearby developments. "]
[null,14,"We have reviewed the local, state, and federal construction and operating permits that may be required for this project.","Permitting for parking canopies can be particularly cumbersome or prohibitive. In particular, the local jurisdiction may prohibit covering parking lot landscaping islands with solar panels. \n\nAction: Communicate with your planning and zoning department early on to be aware of any such restrictions. Also review the \"Permits\" tab for an overview of standard permits required for solar projects. While the solar developer for this project will most likely handle all of the permitting, it is useful to develop an understanding of the types of required permits and the amount of time these may take to complete.",null,"-"]
[null,15,"The site does not contain easements, encumbrances, or rights-of-way (ROWs) for pipelines, utility infrastructure, rail roads, or roadways.  ","Easements, encumbrances, and ROWs can significantly limit solar development on a site, particularly if a solar canopy requires an electrical conduit to be run underground to the point of interconnection. \n\nAction: Check with your local planning and zoning department, utility company, and/or transportation authorities to see if any of these land use agreements exist for this site or if any expansions are planned during the lifetime of the PV project.",null,"-"]
[null,"Resilience"]
[null,16,"We are not hoping to improve resilience with this PV installation. \nOR\nWe are hoping to improve resilience by installing solar PV and we have considered the additional infrastructure (e.g. batteries) needed to do so. ","Action: Determine whether or not the building at the point of interconnection contains critical electrical loads (e.g., hospital equipment) or is intended to be a resilience hub in case of a power outage. If so, do you wish to pair solar PV with storage to improve resilience? Note that this would entail additional cost and engineering considerations that should be incorporated into the site selection process. Take a first pass at evaluating the difference between optimizing system sizes for financial savings versus resilience using NREL's REopt Lite."]

{"sheet":"4c) Open Field Checklist","index":8,"n_rows":53,"n_cols":107,"rows_kept":53,"cut":false,"hidden":false,"merged":[[28,3,28,4],[29,3,29,4],[30,3,30,4],[42,3,42,4],[31,3,31,4],[32,3,32,4],[33,3,33,4],[34,3,34,4],[35,3,35,4],[36,3,36,4],[37,3,37,4],[38,3,38,4],[39,3,39,4],[40,3,40,4],[41,3,41,4],[49,3,49,4],[50,3,50,4],[51,3,51,4],[52,3,52,4],[43,3,43,4],[44,3,44,4],[45,3,45,4],[46,3,46,4],[47,3,47,4],[48,3,48,4],[22,4,22,5],[23,4,23,5],[24,4,24,5],[25,4,25,5],[19,4,19,5],[20,4,20,5],[21,4,21,5]]}
[null,"4c. Secondary Screening for Open Field Sites"]
[]
[]
[]
[]
[]
[]
[]
[]
[]
[]
[]
[]
[]
[]
[]
[]
[]
[]
[null,null,null,null,"Site Number:"]
[null,null,null,null,"Site Name:",null,{"$f":"IF(G20<>\"\",VLOOKUP(G20,'3) Pre-Screened Sites'!$B$33:$D$231,2,FALSE),\"\")","v":""},{"$f":"IF(H20<>\"\",VLOOKUP(H20,'3) Pre-Screened Sites'!$B$33:$D$231,2,FALSE),\"\")","v":""},{"$f":"IF(I20<>\"\",VLOOKUP(I20,'3) Pre-Screened Sites'!$B$33:$D$231,2,FALSE),\"\")","v":""},{"$f":"IF(J20<>\"\",VLOOKUP(J20,'3) Pre-Screened Sites'!$B$33:$D$231,2,FALSE),\"\")","v":""},{"$f":"IF(K20<>\"\",VLOOKUP(K20,'3) Pre-Screened Sites'!$B$33:$D$231,2,FALSE),\"\")","v":""},{"$f":"IF(L20<>\"\",VLOOKUP(L20,'3) Pre-Screened Sites'!$B$33:$D$231,2,FALSE),\"\")","v":""},{"$f":"IF(M20<>\"\",VLOOKUP(M20,'3) Pre-Screened Sites'!$B$33:$D$231,2,FALSE),\"\")","v":""},{"$f":"IF(N20<>\"\",VLOOKUP(N20,'3) Pre-Screened Sites'!$B$33:$D$231,2,FALSE),\"\")","v":""},{"$f":"IF(O20<>\"\",VLOOKUP(O20,'3) Pre-Screened Sites'!$B$33:$D$231,2,FALSE),\"\")","v":""},{"$f":"IF(P20<>\"\",VLOOKUP(P20,'3) Pre-Screened Sites'!$B$33:$D$231,2,FALSE),\"\")","v":""},{"$f":"IF(Q20<>\"\",VLOOKUP(Q20,'3) Pre-Screened Sites'!$B$33:$D$231,2,FALSE),\"\")","v":""},{"$f":"IF(R20<>\"\",VLOOKUP(R20,'3) Pre-Screened Sites'!$B$33:$D$231,2,FALSE),\"\")","v":""},{"$f":"IF(S20<>\"\",VLOOKUP(S20,'3) Pre-Screened Sites'!$B$33:$D$231,2,FALSE),\"\")","v":""},{"$f":"IF(T20<>\"\",VLOOKUP(T20,'3) Pre-Screened Sites'!$B$33:$D$231,2,FALSE),\"\")","v":""},{"$f":"IF(U20<>\"\",VLOOKUP(U20,'3) Pre-Screened Sites'!$B$33:$D$231,2,FALSE),\"\")","v":""},{"$f":"IF(V20<>\"\",VLOOKUP(V20,'3) Pre-Screened Sites'!$B$33:$D$231,2,FALSE),\"\")","v":""},{"$f":"IF(W20<>\"\",VLOOKUP(W20,'3) Pre-Screened Sites'!$B$33:$D$231,2,FALSE),\"\")","v":""},{"$f":"IF(X20<>\"\",VLOOKUP(X20,'3) Pre-Screened Sites'!$B$33:$D$231,2,FALSE),\"\")","v":""},{"$f":"IF(Y20<>\"\",VLOOKUP(Y20,'3) Pre-Screened Sites'!$B$33:$D$231,2,FALSE),\"\")","v":""},{"$f":"IF(Z20<>\"\",VLOOKUP(Z20,'3) Pre-Screened Sites'!$B$33:$D$231,2,FALSE),\"\")","v":""},{"$f":"IF(AA20<>\"\",VLOOKUP(AA20,'3) Pre-Screened Sites'!$B$33:$D$231,2,FALSE),\"\")","v":""},{"$f":"IF(AB20<>\"\",VLOOKUP(AB20,'3) Pre-Screened Sites'!$B$33:$D$231,2,FALSE),\"\")","v":""},{"$f":"IF(AC20<>\"\",VLOOKUP(AC20,'3) Pre-Screened Sites'!$B$33:$D$231,2,FALSE),\"\")","v":""},{"$f":"IF(AD20<>\"\",VLOOKUP(AD20,'3) Pre-Screened Sites'!$B$33:$D$231,2,FALSE),\"\")","v":""},{"$f":"IF(AE20<>\"\",VLOOKUP(AE20,'3) Pre-Screened Sites'!$B$33:$D$231,2,FALSE),\"\")","v":""},{"$f":"IF(AF20<>\"\",VLOOKUP(AF20,'3) Pre-Screened Sites'!$B$33:$D$231,2,FALSE),\"\")","v":""},{"$f":"IF(AG20<>\"\",VLOOKUP(AG20,'3) Pre-Screened Sites'!$B$33:$D$231,2,FALSE),\"\")","v":""},{"$f":"IF(AH20<>\"\",VLOOKUP(AH20,'3) Pre-Screened Sites'!$B$33:$D$231,2,FALSE),\"\")","v":""},{"$f":"IF(AI20<>\"\",VLOOKUP(AI20,'3) Pre-Screened Sites'!$B$33:$D$231,2,FALSE),\"\")","v":""},{"$f":"IF(AJ20<>\"\",VLOOKUP(AJ20,'3) Pre-Screened Sites'!$B$33:$D$231,2,FALSE),\"\")","v":""},{"$f":"IF(AK20<>\"\",VLOOKUP(AK20,'3) Pre-Screened Sites'!$B$33:$D$231,2,FALSE),\"\")","v":""},{"$f":"IF(AL20<>\"\",VLOOKUP(AL20,'3) Pre-Screened Sites'!$B$33:$D$231,2,FALSE),\"\")","v":""},{"$f":"IF(AM20<>\"\",VLOOKUP(AM20,'3) Pre-Screened Sites'!$B$33:$D$231,2,FALSE),\"\")","v":""},{"$f":"IF(AN20<>\"\",VLOOKUP(AN20,'3) Pre-Screened Sites'!$B$33:$D$231,2,FALSE),\"\")","v":""},{"$f":"IF(AO20<>\"\",VLOOKUP(AO20,'3) Pre-Screened Sites'!$B$33:$D$231,2,FALSE),\"\")","v":""},{"$f":"IF(AP20<>\"\",VLOOKUP(AP20,'3) Pre-Screened Sites'!$B$33:$D$231,2,FALSE),\"\")","v":""},{"$f":"IF(AQ20<>\"\",VLOOKUP(AQ20,'3) Pre-Screened Sites'!$B$33:$D$231,2,FALSE),\"\")","v":""},{"$f":"IF(AR20<>\"\",VLOOKUP(AR20,'3) Pre-Screened Sites'!$B$33:$D$231,2,FALSE),\"\")","v":""},{"$f":"IF(AS20<>\"\",VLOOKUP(AS20,'3) Pre-Screened Sites'!$B$33:$D$231,2,FALSE),\"\")","v":""},{"$f":"IF(AT20<>\"\",VLOOKUP(AT20,'3) Pre-Screened Sites'!$B$33:$D$231,2,FALSE),\"\")","v":""},{"$f":"IF(AU20<>\"\",VLOOKUP(AU20,'3) Pre-Screened Sites'!$B$33:$D$231,2,FALSE),\"\")","v":""},{"$f":"IF(AV20<>\"\",VLOOKUP(AV20,'3) Pre-Screened Sites'!$B$33:$D$231,2,FALSE),\"\")","v":""},{"$f":"IF(AW20<>\"\",VLOOKUP(AW20,'3) Pre-Screened Sites'!$B$33:$D$231,2,FALSE),\"\")","v":""},{"$f":"IF(AX20<>\"\",VLOOKUP(AX20,'3) Pre-Screened Sites'!$B$33:$D$231,2,FALSE),\"\")","v":""},{"$f":"IF(AY20<>\"\",VLOOKUP(AY20,'3) Pre-Screened Sites'!$B$33:$D$231,2,FALSE),\"\")","v":""},{"$f":"IF(AZ20<>\"\",VLOOKUP(AZ20,'3) Pre-Screened Sites'!$B$33:$D$231,2,FALSE),\"\")","v":""},{"$f":"IF(BA20<>\"\",VLOOKUP(BA20,'3) Pre-Screened Sites'!$B$33:$D$231,2,FALSE),\"\")","v":""},{"$f":"IF(BB20<>\"\",VLOOKUP(BB20,'3) Pre-Screened Sites'!$B$33:$D$231,2,FALSE),\"\")","v":""},{"$f":"IF(BC20<>\"\",VLOOKUP(BC20,'3) Pre-Screened Sites'!$B$33:$D$231,2,FALSE),\"\")","v":""},{"$f":"IF(BD20<>\"\",VLOOKUP(BD20,'3) Pre-Screened Sites'!$B$33:$D$231,2,FALSE),\"\")","v":""},{"$f":"IF(BE20<>\"\",VLOOKUP(BE20,'3) Pre-Screened Sites'!$B$33:$D$231,2,FALSE),\"\")","v":""},{"$f":"IF(BF20<>\"\",VLOOKUP(BF20,'3) Pre-Screened Sites'!$B$33:$D$231,2,FALSE),\"\")","v":""},{"$f":"IF(BG20<>\"\",VLOOKUP(BG20,'3) Pre-Screened Sites'!$B$33:$D$231,2,FALSE),\"\")","v":""},{"$f":"IF(BH20<>\"\",VLOOKUP(BH20,'3) Pre-Screened Sites'!$B$33:$D$231,2,FALSE),\"\")","v":""},{"$f":"IF(BI20<>\"\",VLOOKUP(BI20,'3) Pre-Screened Sites'!$B$33:$D$231,2,FALSE),\"\")","v":""},{"$f":"IF(BJ20<>\"\",VLOOKUP(BJ20,'3) Pre-Screened Sites'!$B$33:$D$231,2,FALSE),\"\")","v":""},{"$f":"IF(BK20<>\"\",VLOOKUP(BK20,'3) Pre-Screened Sites'!$B$33:$D$231,2,FALSE),\"\")","v":""},{"$f":"IF(BL20<>\"\",VLOOKUP(BL20,'3) Pre-Screened Sites'!$B$33:$D$231,2,FALSE),\"\")","v":""},{"$f":"IF(BM20<>\"\",VLOOKUP(BM20,'3) Pre-Screened Sites'!$B$33:$D$231,2,FALSE),\"\")","v":""},{"$f":"IF(BN20<>\"\",VLOOKUP(BN20,'3) Pre-Screened Sites'!$B$33:$D$231,2,FALSE),\"\")","v":""},{"$f":"IF(BO20<>\"\",VLOOKUP(BO20,'3) Pre-Screened Sites'!$B$33:$D$231,2,FALSE),\"\")","v":""},{"$f":"IF(BP20<>\"\",VLOOKUP(BP20,'3) Pre-Screened Sites'!$B$33:$D$231,2,FALSE),\"\")","v":""},{"$f":"IF(BQ20<>\"\",VLOOKUP(BQ20,'3) Pre-Screened Sites'!$B$33:$D$231,2,FALSE),\"\")","v":""},{"$f":"IF(BR20<>\"\",VLOOKUP(BR20,'3) Pre-Screened Sites'!$B$33:$D$231,2,FALSE),\"\")","v":""},{"$f":"IF(BS20<>\"\",VLOOKUP(BS20,'3) Pre-Screened Sites'!$B$33:$D$231,2,FALSE),\"\")","v":""},{"$f":"IF(BT20<>\"\",VLOOKUP(BT20,'3) Pre-Screened Sites'!$B$33:$D$231,2,FALSE),\"\")","v":""},{"$f":"IF(BU20<>\"\",VLOOKUP(BU20,'3) Pre-Screened Sites'!$B$33:$D$231,2,FALSE),\"\")","v":""},{"$f":"IF(BV20<>\"\",VLOOKUP(BV20,'3) Pre-Screened Sites'!$B$33:$D$231,2,FALSE),\"\")","v":""},{"$f":"IF(BW20<>\"\",VLOOKUP(BW20,'3) Pre-Screened Sites'!$B$33:$D$231,2,FALSE),\"\")","v":""},{"$f":"IF(BX20<>\"\",VLOOKUP(BX20,'3) Pre-Screened Sites'!$B$33:$D$231,2,FALSE),\"\")","v":""},{"$f":"IF(BY20<>\"\",VLOOKUP(BY20,'3) Pre-Screened Sites'!$B$33:$D$231,2,FALSE),\"\")","v":""},{"$f":"IF(BZ20<>\"\",VLOOKUP(BZ20,'3) Pre-Screened Sites'!$B$33:$D$231,2,FALSE),\"\")","v":""},{"$f":"IF(CA20<>\"\",VLOOKUP(CA20,'3) Pre-Screened Sites'!$B$33:$D$231,2,FALSE),\"\")","v":""},{"$f":"IF(CB20<>\"\",VLOOKUP(CB20,'3) Pre-Screened Sites'!$B$33:$D$231,2,FALSE),\"\")","v":""},{"$f":"IF(CC20<>\"\",VLOOKUP(CC20,'3) Pre-Screened Sites'!$B$33:$D$231,2,FALSE),\"\")","v":""},{"$f":"IF(CD20<>\"\",VLOOKUP(CD20,'3) Pre-Screened Sites'!$B$33:$D$231,2,FALSE),\"\")","v":""},{"$f":"IF(CE20<>\"\",VLOOKUP(CE20,'3) Pre-Screened Sites'!$B$33:$D$231,2,FALSE),\"\")","v":""},{"$f":"IF(CF20<>\"\",VLOOKUP(CF20,'3) Pre-Screened Sites'!$B$33:$D$231,2,FALSE),\"\")","v":""},{"$f":"IF(CG20<>\"\",VLOOKUP(CG20,'3) Pre-Screened Sites'!$B$33:$D$231,2,FALSE),\"\")","v":""},{"$f":"IF(CH20<>\"\",VLOOKUP(CH20,'3) Pre-Screened Sites'!$B$33:$D$231,2,FALSE),\"\")","v":""},{"$f":"IF(CI20<>\"\",VLOOKUP(CI20,'3) Pre-Screened Sites'!$B$33:$D$231,2,FALSE),\"\")","v":""},{"$f":"IF(CJ20<>\"\",VLOOKUP(CJ20,'3) Pre-Screened Sites'!$B$33:$D$231,2,FALSE),\"\")","v":""},{"$f":"IF(CK20<>\"\",VLOOKUP(CK20,'3) Pre-Screened Sites'!$B$33:$D$231,2,FALSE),\"\")","v":""},{"$f":"IF(CL20<>\"\",VLOOKUP(CL20,'3) Pre-Screened Sites'!$B$33:$D$231,2,FALSE),\"\")","v":""},{"$f":"IF(CM20<>\"\",VLOOKUP(CM20,'3) Pre-Screened Sites'!$B$33:$D$231,2,FALSE),\"\")","v":""},{"$f":"IF(CN20<>\"\",VLOOKUP(CN20,'3) Pre-Screened Sites'!$B$33:$D$231,2,FALSE),\"\")","v":""},{"$f":"IF(CO20<>\"\",VLOOKUP(CO20,'3) Pre-Screened Sites'!$B$33:$D$231,2,FALSE),\"\")","v":""},{"$f":"IF(CP20<>\"\",VLOOKUP(CP20,'3) Pre-Screened Sites'!$B$33:$D$231,2,FALSE),\"\")","v":""},{"$f":"IF(CQ20<>\"\",VLOOKUP(CQ20,'3) Pre-Screened Sites'!$B$33:$D$231,2,FALSE),\"\")","v":""},{"$f":"IF(CR20<>\"\",VLOOKUP(CR20,'3) Pre-Screened Sites'!$B$33:$D$231,2,FALSE),\"\")","v":""},{"$f":"IF(CS20<>\"\",VLOOKUP(CS20,'3) Pre-Screened Sites'!$B$33:$D$231,2,FALSE),\"\")","v":""},{"$f":"IF(CT20<>\"\",VLOOKUP(CT20,'3) Pre-Screened Sites'!$B$33:$D$231,2,FALSE),\"\")","v":""},{"$f":"IF(CU20<>\"\",VLOOKUP(CU20,'3) Pre-Screened Sites'!$B$33:$D$231,2,FALSE),\"\")","v":""},{"$f":"IF(CV20<>\"\",VLOOKUP(CV20,'3) Pre-Screened Sites'!$B$33:$D$231,2,FALSE),\"\")","v":""},{"$f":"IF(CW20<>\"\",VLOOKUP(CW20,'3) Pre-Screened Sites'!$B$33:$D$231,2,FALSE),\"\")","v":""},{"$f":"IF(CX20<>\"\",VLOOKUP(CX20,'3) Pre-Screened Sites'!$B$33:$D$231,2,FALSE),\"\")","v":""},{"$f":"IF(CY20<>\"\",VLOOKUP(CY20,'3) Pre-Screened Sites'!$B$33:$D$231,2,FALSE),\"\")","v":""},{"$f":"IF(CZ20<>\"\",VLOOKUP(CZ20,'3) Pre-Screened Sites'!$B$33:$D$231,2,FALSE),\"\")","v":""},{"$f":"IF(DA20<>\"\",VLOOKUP(DA20,'3) Pre-Screened Sites'!$B$33:$D$231,2,FALSE),\"\")","v":""},{"$f":"IF(DB20<>\"\",VLOOKUP(DB20,'3) Pre-Screened Sites'!$B$33:$D$231,2,FALSE),\"\")","v":""}]
[null,null,null,null,"Site Address:",null,{"$f":"IF(G20<>\"\",VLOOKUP(G20,'3) Pre-Screened Sites'!$B$33:$D$231,3,FALSE),\"\")","v":""},{"$f":"IF(H20<>\"\",VLOOKUP(H20,'3) Pre-Screened Sites'!$B$33:$D$231,3,FALSE),\"\")","v":""},{"$f":"IF(I20<>\"\",VLOOKUP(I20,'3) Pre-Screened Sites'!$B$33:$D$231,3,FALSE),\"\")","v":""},{"$f":"IF(J20<>\"\",VLOOKUP(J20,'3) Pre-Screened Sites'!$B$33:$D$231,3,FALSE),\"\")","v":""},{"$f":"IF(K20<>\"\",VLOOKUP(K20,'3) Pre-Screened Sites'!$B$33:$D$231,3,FALSE),\"\")","v":""},{"$f":"IF(L20<>\"\",VLOOKUP(L20,'3) Pre-Screened Sites'!$B$33:$D$231,3,FALSE),\"\")","v":""},{"$f":"IF(M20<>\"\",VLOOKUP(M20,'3) Pre-Screened Sites'!$B$33:$D$231,3,FALSE),\"\")","v":""},{"$f":"IF(N20<>\"\",VLOOKUP(N20,'3) Pre-Screened Sites'!$B$33:$D$231,3,FALSE),\"\")","v":""},{"$f":"IF(O20<>\"\",VLOOKUP(O20,'3) Pre-Screened Sites'!$B$33:$D$231,3,FALSE),\"\")","v":""},{"$f":"IF(P20<>\"\",VLOOKUP(P20,'3) Pre-Screened Sites'!$B$33:$D$231,3,FALSE),\"\")","v":""},{"$f":"IF(Q20<>\"\",VLOOKUP(Q20,'3) Pre-Screened Sites'!$B$33:$D$231,3,FALSE),\"\")","v":""},{"$f":"IF(R20<>\"\",VLOOKUP(R20,'3) Pre-Screened Sites'!$B$33:$D$231,3,FALSE),\"\")","v":""},{"$f":"IF(S20<>\"\",VLOOKUP(S20,'3) Pre-Screened Sites'!$B$33:$D$231,3,FALSE),\"\")","v":""},{"$f":"IF(T20<>\"\",VLOOKUP(T20,'3) Pre-Screened Sites'!$B$33:$D$231,3,FALSE),\"\")","v":""},{"$f":"IF(U20<>\"\",VLOOKUP(U20,'3) Pre-Screened Sites'!$B$33:$D$231,3,FALSE),\"\")","v":""},{"$f":"IF(V20<>\"\",VLOOKUP(V20,'3) Pre-Screened Sites'!$B$33:$D$231,3,FALSE),\"\")","v":""},{"$f":"IF(W20<>\"\",VLOOKUP(W20,'3) Pre-Screened Sites'!$B$33:$D$231,3,FALSE),\"\")","v":""},{"$f":"IF(X20<>\"\",VLOOKUP(X20,'3) Pre-Screened Sites'!$B$33:$D$231,3,FALSE),\"\")","v":""},{"$f":"IF(Y20<>\"\",VLOOKUP(Y20,'3) Pre-Screened Sites'!$B$33:$D$231,3,FALSE),\"\")","v":""},{"$f":"IF(Z20<>\"\",VLOOKUP(Z20,'3) Pre-Screened Sites'!$B$33:$D$231,3,FALSE),\"\")","v":""},{"$f":"IF(AA20<>\"\",VLOOKUP(AA20,'3) Pre-Screened Sites'!$B$33:$D$231,3,FALSE),\"\")","v":""},{"$f":"IF(AB20<>\"\",VLOOKUP(AB20,'3) Pre-Screened Sites'!$B$33:$D$231,3,FALSE),\"\")","v":""},{"$f":"IF(AC20<>\"\",VLOOKUP(AC20,'3) Pre-Screened Sites'!$B$33:$D$231,3,FALSE),\"\")","v":""},{"$f":"IF(AD20<>\"\",VLOOKUP(AD20,'3) Pre-Screened Sites'!$B$33:$D$231,3,FALSE),\"\")","v":""},{"$f":"IF(AE20<>\"\",VLOOKUP(AE20,'3) Pre-Screened Sites'!$B$33:$D$231,3,FALSE),\"\")","v":""},{"$f":"IF(AF20<>\"\",VLOOKUP(AF20,'3) Pre-Screened Sites'!$B$33:$D$231,3,FALSE),\"\")","v":""},{"$f":"IF(AG20<>\"\",VLOOKUP(AG20,'3) Pre-Screened Sites'!$B$33:$D$231,3,FALSE),\"\")","v":""},{"$f":"IF(AH20<>\"\",VLOOKUP(AH20,'3) Pre-Screened Sites'!$B$33:$D$231,3,FALSE),\"\")","v":""},{"$f":"IF(AI20<>\"\",VLOOKUP(AI20,'3) Pre-Screened Sites'!$B$33:$D$231,3,FALSE),\"\")","v":""},{"$f":"IF(AJ20<>\"\",VLOOKUP(AJ20,'3) Pre-Screened Sites'!$B$33:$D$231,3,FALSE),\"\")","v":""},{"$f":"IF(AK20<>\"\",VLOOKUP(AK20,'3) Pre-Screened Sites'!$B$33:$D$231,3,FALSE),\"\")","v":""},{"$f":"IF(AL20<>\"\",VLOOKUP(AL20,'3) Pre-Screened Sites'!$B$33:$D$231,3,FALSE),\"\")","v":""},{"$f":"IF(AM20<>\"\",VLOOKUP(AM20,'3) Pre-Screened Sites'!$B$33:$D$231,3,FALSE),\"\")","v":""},{"$f":"IF(AN20<>\"\",VLOOKUP(AN20,'3) Pre-Screened Sites'!$B$33:$D$231,3,FALSE),\"\")","v":""},{"$f":"IF(AO20<>\"\",VLOOKUP(AO20,'3) Pre-Screened Sites'!$B$33:$D$231,3,FALSE),\"\")","v":""},{"$f":"IF(AP20<>\"\",VLOOKUP(AP20,'3) Pre-Screened Sites'!$B$33:$D$231,3,FALSE),\"\")","v":""},{"$f":"IF(AQ20<>\"\",VLOOKUP(AQ20,'3) Pre-Screened Sites'!$B$33:$D$231,3,FALSE),\"\")","v":""},{"$f":"IF(AR20<>\"\",VLOOKUP(AR20,'3) Pre-Screened Sites'!$B$33:$D$231,3,FALSE),\"\")","v":""},{"$f":"IF(AS20<>\"\",VLOOKUP(AS20,'3) Pre-Screened Sites'!$B$33:$D$231,3,FALSE),\"\")","v":""},{"$f":"IF(AT20<>\"\",VLOOKUP(AT20,'3) Pre-Screened Sites'!$B$33:$D$231,3,FALSE),\"\")","v":""},{"$f":"IF(AU20<>\"\",VLOOKUP(AU20,'3) Pre-Screened Sites'!$B$33:$D$231,3,FALSE),\"\")","v":""},{"$f":"IF(AV20<>\"\",VLOOKUP(AV20,'3) Pre-Screened Sites'!$B$33:$D$231,3,FALSE),\"\")","v":""},{"$f":"IF(AW20<>\"\",VLOOKUP(AW20,'3) Pre-Screened Sites'!$B$33:$D$231,3,FALSE),\"\")","v":""},{"$f":"IF(AX20<>\"\",VLOOKUP(AX20,'3) Pre-Screened Sites'!$B$33:$D$231,3,FALSE),\"\")","v":""},{"$f":"IF(AY20<>\"\",VLOOKUP(AY20,'3) Pre-Screened Sites'!$B$33:$D$231,3,FALSE),\"\")","v":""},{"$f":"IF(AZ20<>\"\",VLOOKUP(AZ20,'3) Pre-Screened Sites'!$B$33:$D$231,3,FALSE),\"\")","v":""},{"$f":"IF(BA20<>\"\",VLOOKUP(BA20,'3) Pre-Screened Sites'!$B$33:$D$231,3,FALSE),\"\")","v":""},{"$f":"IF(BB20<>\"\",VLOOKUP(BB20,'3) Pre-Screened Sites'!$B$33:$D$231,3,FALSE),\"\")","v":""},{"$f":"IF(BC20<>\"\",VLOOKUP(BC20,'3) Pre-Screened Sites'!$B$33:$D$231,3,FALSE),\"\")","v":""},{"$f":"IF(BD20<>\"\",VLOOKUP(BD20,'3) Pre-Screened Sites'!$B$33:$D$231,3,FALSE),\"\")","v":""},{"$f":"IF(BE20<>\"\",VLOOKUP(BE20,'3) Pre-Screened Sites'!$B$33:$D$231,3,FALSE),\"\")","v":""},{"$f":"IF(BF20<>\"\",VLOOKUP(BF20,'3) Pre-Screened Sites'!$B$33:$D$231,3,FALSE),\"\")","v":""},{"$f":"IF(BG20<>\"\",VLOOKUP(BG20,'3) Pre-Screened Sites'!$B$33:$D$231,3,FALSE),\"\")","v":""},{"$f":"IF(BH20<>\"\",VLOOKUP(BH20,'3) Pre-Screened Sites'!$B$33:$D$231,3,FALSE),\"\")","v":""},{"$f":"IF(BI20<>\"\",VLOOKUP(BI20,'3) Pre-Screened Sites'!$B$33:$D$231,3,FALSE),\"\")","v":""},{"$f":"IF(BJ20<>\"\",VLOOKUP(BJ20,'3) Pre-Screened Sites'!$B$33:$D$231,3,FALSE),\"\")","v":""},{"$f":"IF(BK20<>\"\",VLOOKUP(BK20,'3) Pre-Screened Sites'!$B$33:$D$231,3,FALSE),\"\")","v":""},{"$f":"IF(BL20<>\"\",VLOOKUP(BL20,'3) Pre-Screened Sites'!$B$33:$D$231,3,FALSE),\"\")","v":""},{"$f":"IF(BM20<>\"\",VLOOKUP(BM20,'3) Pre-Screened Sites'!$B$33:$D$231,3,FALSE),\"\")","v":""},{"$f":"IF(BN20<>\"\",VLOOKUP(BN20,'3) Pre-Screened Sites'!$B$33:$D$231,3,FALSE),\"\")","v":""},{"$f":"IF(BO20<>\"\",VLOOKUP(BO20,'3) Pre-Screened Sites'!$B$33:$D$231,3,FALSE),\"\")","v":""},{"$f":"IF(BP20<>\"\",VLOOKUP(BP20,'3) Pre-Screened Sites'!$B$33:$D$231,3,FALSE),\"\")","v":""},{"$f":"IF(BQ20<>\"\",VLOOKUP(BQ20,'3) Pre-Screened Sites'!$B$33:$D$231,3,FALSE),\"\")","v":""},{"$f":"IF(BR20<>\"\",VLOOKUP(BR20,'3) Pre-Screened Sites'!$B$33:$D$231,3,FALSE),\"\")","v":""},{"$f":"IF(BS20<>\"\",VLOOKUP(BS20,'3) Pre-Screened Sites'!$B$33:$D$231,3,FALSE),\"\")","v":""},{"$f":"IF(BT20<>\"\",VLOOKUP(BT20,'3) Pre-Screened Sites'!$B$33:$D$231,3,FALSE),\"\")","v":""},{"$f":"IF(BU20<>\"\",VLOOKUP(BU20,'3) Pre-Screened Sites'!$B$33:$D$231,3,FALSE),\"\")","v":""},{"$f":"IF(BV20<>\"\",VLOOKUP(BV20,'3) Pre-Screened Sites'!$B$33:$D$231,3,FALSE),\"\")","v":""},{"$f":"IF(BW20<>\"\",VLOOKUP(BW20,'3) Pre-Screened Sites'!$B$33:$D$231,3,FALSE),\"\")","v":""},{"$f":"IF(BX20<>\"\",VLOOKUP(BX20,'3) Pre-Screened Sites'!$B$33:$D$231,3,FALSE),\"\")","v":""},{"$f":"IF(BY20<>\"\",VLOOKUP(BY20,'3) Pre-Screened Sites'!$B$33:$D$231,3,FALSE),\"\")","v":""},{"$f":"IF(BZ20<>\"\",VLOOKUP(BZ20,'3) Pre-Screened Sites'!$B$33:$D$231,3,FALSE),\"\")","v":""},{"$f":"IF(CA20<>\"\",VLOOKUP(CA20,'3) Pre-Screened Sites'!$B$33:$D$231,3,FALSE),\"\")","v":""},{"$f":"IF(CB20<>\"\",VLOOKUP(CB20,'3) Pre-Screened Sites'!$B$33:$D$231,3,FALSE),\"\")","v":""},{"$f":"IF(CC20<>\"\",VLOOKUP(CC20,'3) Pre-Screened Sites'!$B$33:$D$231,3,FALSE),\"\")","v":""},{"$f":"IF(CD20<>\"\",VLOOKUP(CD20,'3) Pre-Screened Sites'!$B$33:$D$231,3,FALSE),\"\")","v":""},{"$f":"IF(CE20<>\"\",VLOOKUP(CE20,'3) Pre-Screened Sites'!$B$33:$D$231,3,FALSE),\"\")","v":""},{"$f":"IF(CF20<>\"\",VLOOKUP(CF20,'3) Pre-Screened Sites'!$B$33:$D$231,3,FALSE),\"\")","v":""},{"$f":"IF(CG20<>\"\",VLOOKUP(CG20,'3) Pre-Screened Sites'!$B$33:$D$231,3,FALSE),\"\")","v":""},{"$f":"IF(CH20<>\"\",VLOOKUP(CH20,'3) Pre-Screened Sites'!$B$33:$D$231,3,FALSE),\"\")","v":""},{"$f":"IF(CI20<>\"\",VLOOKUP(CI20,'3) Pre-Screened Sites'!$B$33:$D$231,3,FALSE),\"\")","v":""},{"$f":"IF(CJ20<>\"\",VLOOKUP(CJ20,'3) Pre-Screened Sites'!$B$33:$D$231,3,FALSE),\"\")","v":""},{"$f":"IF(CK20<>\"\",VLOOKUP(CK20,'3) Pre-Screened Sites'!$B$33:$D$231,3,FALSE),\"\")","v":""},{"$f":"IF(CL20<>\"\",VLOOKUP(CL20,'3) Pre-Screened Sites'!$B$33:$D$231,3,FALSE),\"\")","v":""},{"$f":"IF(CM20<>\"\",VLOOKUP(CM20,'3) Pre-Screened Sites'!$B$33:$D$231,3,FALSE),\"\")","v":""},{"$f":"IF(CN20<>\"\",VLOOKUP(CN20,'3) Pre-Screened Sites'!$B$33:$D$231,3,FALSE),\"\")","v":""},{"$f":"IF(CO20<>\"\",VLOOKUP(CO20,'3) Pre-Screened Sites'!$B$33:$D$231,3,FALSE),\"\")","v":""},{"$f":"IF(CP20<>\"\",VLOOKUP(CP20,'3) Pre-Screened Sites'!$B$33:$D$231,3,FALSE),\"\")","v":""},{"$f":"IF(CQ20<>\"\",VLOOKUP(CQ20,'3) Pre-Screened Sites'!$B$33:$D$231,3,FALSE),\"\")","v":""},{"$f":"IF(CR20<>\"\",VLOOKUP(CR20,'3) Pre-Screened Sites'!$B$33:$D$231,3,FALSE),\"\")","v":""},{"$f":"IF(CS20<>\"\",VLOOKUP(CS20,'3) Pre-Screened Sites'!$B$33:$D$231,3,FALSE),\"\")","v":""},{"$f":"IF(CT20<>\"\",VLOOKUP(CT20,'3) Pre-Screened Sites'!$B$33:$D$231,3,FALSE),\"\")","v":""},{"$f":"IF(CU20<>\"\",VLOOKUP(CU20,'3) Pre-Screened Sites'!$B$33:$D$231,3,FALSE),\"\")","v":""},{"$f":"IF(CV20<>\"\",VLOOKUP(CV20,'3) Pre-Screened Sites'!$B$33:$D$231,3,FALSE),\"\")","v":""},{"$f":"IF(CW20<>\"\",VLOOKUP(CW20,'3) Pre-Screened Sites'!$B$33:$D$231,3,FALSE),\"\")","v":""},{"$f":"IF(CX20<>\"\",VLOOKUP(CX20,'3) Pre-Screened Sites'!$B$33:$D$231,3,FALSE),\"\")","v":""},{"$f":"IF(CY20<>\"\",VLOOKUP(CY20,'3) Pre-Screened Sites'!$B$33:$D$231,3,FALSE),\"\")","v":""},{"$f":"IF(CZ20<>\"\",VLOOKUP(CZ20,'3) Pre-Screened Sites'!$B$33:$D$231,3,FALSE),\"\")","v":""},{"$f":"IF(DA20<>\"\",VLOOKUP(DA20,'3) Pre-Screened Sites'!$B$33:$D$231,3,FALSE),\"\")","v":""},{"$f":"IF(DB20<>\"\",VLOOKUP(DB20,'3) Pre-Screened Sites'!$B$33:$D$231,3,FALSE),\"\")","v":""}]
[null,null,null,null,"Phase 1 Checklist complete?",null,{"$f":"IF(G20<>\"\",IF(COUNTA(G29:G33)<5,\"Incomplete\",\"Complete\"),\"\")","v":""},{"$f":"IF(H20<>\"\",IF(COUNTA(H29:H33)<5,\"Incomplete\",\"Complete\"),\"\")","v":""},"","","","","","","","","","","","","","","","","","","","","","","","","","","","","","","","","","","","","","","","","","","","","","","","","","","","","","","","","","","","","","","",{"$f":"IF(BT20<>\"\",IF(COUNTA(BT29:BT33)<5,\"Incomplete\",\"Complete\"),\"\")","v":""},"","","","","","","","","","","","","","","","","","","","","","","","","","","","","","","","","",""]
[null,null,null,null,"Phase 2 Checklist complete?",null,{"$f":"IF(G20<>\"\",IF(COUNTA(G39:G53)<12,\"Incomplete\",\"Complete\"),\"\")","v":""},{"$f":"IF(H20<>\"\",IF(COUNTA(H39:H53)<12,\"Incomplete\",\"Complete\"),\"\")","v":""},"","","","","","","","","","","","","","","","","","","","","","","","","","","","","","",{"$f":"IF(AM20<>\"\",IF(COUNTA(AM39:AM53)<12,\"Incomplete\",\"Complete\"),\"\")","v":""},"","","","","","","","","","","","","","","","","","","","","","","","","","","","","","","",{"$f":"IF(BS20<>\"\",IF(COUNTA(BS39:BS53)<12,\"Incomplete\",\"Complete\"),\"\")","v":""},"","","","","","","","","","","","","","","","","","","","","","","","","","","","","","","","","","",""]
[null,null,null,null,"Number of red flags for this site:\n(potential added cost/complexity)",null,{"$f":"IF(G20<>\"\",COUNTIF(G29:G53,\"No\"),\" \")","v":" "},{"$f":"IF(H20<>\"\",COUNTIF(H29:H53,\"No\"),\" \")","v":" "}," "," "," "," "," "," "," "," "," "," "," "," "," "," "," "," "," "," "," "," "," "," "," "," "," "," "," "," "," "," ",{"$f":"IF(AM20<>\"\",COUNTIF(AM29:AM53,\"No\"),\" \")","v":" "}," "," "," "," "," "," "," "," "," "," "," "," "," "," "," "," "," "," "," "," "," "," "," "," "," "," "," "," "," "," "," ",{"$f":"IF(BS20<>\"\",COUNTIF(BS29:BS53,\"No\"),\" \")","v":" "}," "," "," "," "," "," "," "," "," "," "," "," "," "," "," "," "," "," "," "," "," "," "," "," "," "," "," "," "," "," "," "," "," "," "," ",{"$f":"IF(COUNTA(DC42:DC53)=0,\"\",IF(COUNTA(DC42:DC53)<19,\"Please complete checklist.\",COUNTIF(DC42:DC53,\"No\")))","v":""}]
[null,null,null,null,"Pass/Fail decision:\nChoose \"Pass\" for sites that seem most promising based on your answers to the checklist items. Be sure to thoroughly evaluate how any \"red flags\" can be overcome/affect project costs. "]
[null,"PHASE 1 SCREENING CHECKLIST"]
[null,"Restrictions and zoning",null,"Explanations and Actions",null,"Resources (linked)"]
[null,1,"There are no other planned developments for this site. ","Action: Ensure that this site is not part of another development plan and that there will not be any major construction that would conflict with the operations of solar PV. Check internally and with community stakeholders to see if there is a separate community plan for this site.",null,"-"]
[null,2,"Future nearby developments will not cast shade on solar PV at this site.  ","Action: Consult with the planning and land use department to ensure that future developments near this site will not limit the PV system's access to sunlight.",null,"-"]
[null,3,"The site is free from land-use restrictions related to (but not limited to): \n•   preservation areas\n•   endangered or threatened species\n•   critical habitats\n•   historically or culturally significant artifacts\n•   agricultural protection\n•   protected or sensitive viewsheds","Known cultural or environmental sensitivities may trigger costly and time-consuming permitting reviews, while some environmental or zoning laws could prohibit development altogether.\n\nAction: Work with your city’s land use planning department to determine if the site contains restricted lands. Additionally, you can use the following resources and online maps to explore potential land-use restrictions:\n•   U.S. Fish & Wildlife Service map of Threatened & Endangered Species Critical Habitat zones  \n•   USGS Protected Areas Database of the U.S. (PADUS)\n•   National Register of Historic Places \n•   Your State Historic Preservation Office \n•   Your local Zoning Board"]
[null,4,"The site is not at high risk of flooding.","The site should be well drained and outside potential flood zones. Financiers will not invest in projects that may be subject to flooding.\n\nAction: Search for your site using FEMA’s Flood Map Service Center. If the site falls within a “Special Flood Hazard Area,” shown in blue and blue/pink stripes on the map, mark your answer as \"No\" and consider excluding this site from further consideration."]
[null,5,"The site is currently, or can be, zoned for solar development. ","Action: Work with the local planning or zoning department to understand where solar can and cannot be developed, to identify potential zoning-related restrictions (e.g. setbacks), or to re-zone areas for solar development.  \n\nIn some places, the state, region or locality has created preferential areas for solar development, if you identify this information, you could incorporate it into on the Final Sites tab, as it could help you prioritize ",null,"-"]
[]
[null,null,"Pause! ","The Phase 2 Checklist items will require significant time and effort to complete. Take the following actions to ensure you only move forward with the most promising sites:\n\n  •   If one or more red flag is raised in the Phase 1 Checklist, either select \"Fail\" for this site or confirm that these barriers can be overcome before moving on to Phase 2.\n  •   Consider calling a few solar developers to get initial price estimates for promising sites. The NABCEP Company Accreditation Directory and SEIA Member Directory contain contact information for solar developers. \n•   For cost comparisons, LBNL's Tracking the Sun Report includes average installed cost ($/Watt) values by state and system type (see Figure 2 on the \"Resources\" tab.)\n  •   If the project still seems viable, continue on to the Phase 2 Checklist."]
[]
[null,"PHASE 2 SCREENING CHECKLIST"]
[null,"Interconnection"]
[null,6,"We have determined that grid interconnection costs will be reasonable, given the desired system size at this site. ","Interconnection costs depend on many variables, including the size of the PV system, whether or not the system is behind- or front-of-the-meter, hosting capacity at the point of grid interconnection, and the voltage at the point of interconnection. It is strongly recommended to engage with your utility company early on to obtain information on the interconnection process, costs, and project size limitations. If the project moves forward, an Interconnection Application/Agreement will need to be filed with the utility (a solar developer will typically handle this).\n\nAction: As an initial step, check to see if your utility provides a hosting capacity map online (examples: Xcel, ConEd, PG&E, Central Hudson). Hosting capacity is the amount of generation that can be accommodated at a point on the distribution system without requiring significant grid upgrades. If available, locate your site on the map and determine the hosting capacity (MW) of the nearby lines. If your planned project size exceeds the listed hosting capacity, mark your answer as \"No\" and work with a solar developer or your utility to assess resulting interconnection complexities and costs.\n\nAlso consider that connecting to a high-voltage transmission or subtransmission line (e.g. 70-345 kV) will often require a step-up transformer, which can be quite expensive. Large, utility-scale projects (>5 MW) may remain financially feasible despite this cost, but smaller projects may not. NREL's Distribution Grid Integration Unit Cost Database contains unit cost information for components used to integrate PV into distribution systems. Check this database for transformer costs that match your project size, or consult a solar developer to assess interconnection costs.\n\nNote: Beware of using interconnection “rules of thumb” such as: solar capacity must be lower than the minimum daytime load or 15% of peak load on a line segment. These can inaccurately predict whether grid upgrades will be needed."]
[null,"Site conditions"]
[null,7,"The soil structure provides an appropriate foundation for solar.","Soil conditions are a major driver of ground-mount system costs. Ground-mount systems are generally either built on foundations (piles) where steel poles are driven 7-15 feet below the surface, or on above-ground concrete ballasts (more expensive). For pile-driven installations, soft or rocky soils, corrosive soils, and shallow bedrock will require more drilling, specialized posts, and/or deeper embedment of posts (thus driving up costs). The presence of groundwater could preclude the possibility of solar development. \n\nAction: As an initial step, answer the following: (1) Soil type: Are the soils soft? Is it difficult to walk across the site? Is it within 0.25 miles of a body of water (potentially indicating a soft river or lake bed)? Is the site covered in large boulders/rocks? (2) Presence of shallow groundwater: Do the soils appear saturated? Are there signs of running water on-site? Are there arroyos or other drainage features onsite? Do any nearby wells indicate that the water table is less than 10 ft below surface level? (3) Shallow bedrock: Is there shallow or exposed bedrock present? (4) Corrosivity: Do you have strong reason to believe the soils may be highly corrosive (e.g., previous nearby soil tests that indicate corrosivity)? Are there adjacent sources of pollution (e.g. coal plant next door)? If you answered \"yes\" to any of the above questions, mark your response to this checklist item as \"No\" and be sure to investigate further. \n\nNote: In the early stages of site evaluation, you could conduct a preliminary geotechnical study (~$3k-10k) that checks for groundwater, soil type, and bedrock depth. This can indicate which site(s) may have lower racking costs. If you move forward with this site, you will need a professional geotech investigation (~$10k-40k) to assess how subsurface conditions will impact project design and costs. Not all geotechnical engineers are experienced in site evaluations for solar, so ensure the following are completed along with other standard tests: a Standard Penetration Test (SPT) beginning at the surface level (not deeper); a shear test in the upper 7 ft of soil (testing for cohesion and friction to inform foundation design); laboratory tests for corrosion, redox, chlorides, and sulfides; and a field test for resistivity in the upper 3-4 ft of soil. When nearing the site design stage, a pile test should also be completed to inform racking design. A solar contractor can handle all of these tests. ",null,"-"]
[null,8,"The cost of grading this site will be reasonable.\nOR\nRegrading will not be needed.","A steep, un-smooth, or undulating site will likely require grading, especially for larger projects. Re-grading large portions of a site can be prohibitively costly (around $2 per sq.ft. or $87,000 per acre). It can also require additional approvals from the site manager, investigation of state regulation around grading, and plans for revegetation. \n\nKeep in mind that fixed-tilt PV systems have lower capital cost and can be located on undulating topography (requiring less grading). On the other hand, single-axis tracking systems have higher capital and O&M costs and require smoother lands (more grading), but can increase the amount of electricity generated by ~20%.\n\nAction: If your site may require regrading, request an initial grading estimate from a local contractor.",null,"-"]
[null,9,"The site could be safely accessed by vehicles carrying equipment and materials.","Contractor vehicles will need to access the site during construction and operation. Developing extensive access roads may compromise the overall project economics.\n\nAction: Check road access and vehicle weight limits.  Coordinate with your local, state, or federal department of transportation (or equivalent) to address site access concerns and costs. ",null,"-"]
[null,10,"Extreme wind speeds are not expected to be an issue at this site.","Action: Consult local building codes to assess whether extreme wind speeds are higher at this site as compared to other sites you are considering. More extreme wind speeds will require additional engineering and materials to secure the PV mounting system, thus increasing costs. ",null,"-"]
[null,"Permitting and regulation"]
[null,11,"We have accounted for structure setback regulations/ordinances, adjusted the total usable space accordingly, and the project still meets our minimum project size requirement.","Most states or local governments have their own rules regarding setback requirements from wetlands, streams, wildlife habitats, or other sensitive areas. For ground-mounted systems, fire codes from the National Fire Protection Association require a 10-foot clear area around PV arrays for emergency vehicle access.\n\nAction: Search the NFPA CodeFinder, contact your state's Department of Environmental Protection (or equivalent), and/or contact your planning and zoning department to determine setback requirements.  "]
[null,12,"The site does not contain easements, encumbrances, or rights-of-way (ROWs) for pipelines, utility infrastructure, rail roads, or roadways.  ","Easements, encumbrances, and ROWs can significantly limit solar development on a site.\n\nAction: Check with your local planning and zoning department, utility company, and/or transportation authorities to see if any of these land use agreements exist for this site or if any expansions are planned during the lifetime of the PV project.",null,"-"]
[null,13,"Mineral rights are controlled by the site owner (e.g., the municipality).\nOR \nMineral right waivers can be easily secured. ","In some areas, site-owners may not control the rights to the minerals below the site.\n\nAction: If surface and mineral rights are severed, work with your team or a solar developer to gain consent of all mineral rights owners (in the form of a \"surface use agreement\") at the site before proceeding with construction. Identifying and gaining consent of mineral rights owners can be time-consuming, so be sure to start this step early.",null,"-"]
[null,14,"The site is more than 10 miles from an airport.\nOR \nIf less than 10 miles from an airport, we have contacted the airport to inquire about restrictions or procedures (e.g. glare study).","Action: Use Google Earth's Measure tool (appears as a ruler) to check the site's distance from the closest airport. If within 10 miles, check with the airport or your local FAA Regional & District/Development Offices about their rules for nearby developments. "]
[null,15,"We have identified the local, state, and federal construction and operating permits required for this project.","Action: Review the \"Permits\" tab and determine which of the standard permits are likely to be required for this project. While the solar developer for this project will most likely handle all of the permitting, it is useful to develop an understanding of the types of required permits and the amount of time these may take to complete. The state’s Department of Environmental Protection (or similarly-named entity) and other city and state government points of contact can also assist with regulatory review requirements.",null,"-"]
[null,"Revegetation and pollinators"]
[null,16,"We have considered whether revegetation will be necessary and have made plans accordingly.","Solar installations often entail disturbance or removal of existing vegetation, particularly if the site will be cleared or graded, or if topsoil will be stripped or compacted. Revegetation beneath and between solar arrays can help maintain ecosystem functions at the site. \n\nAction: Determine whether a revegetation plan should be developed. This plan should consider local conditions of soils and climate as well as constraints of the physical array design. ",null,"-"]
[null,17,"We have considered making this site pollinator friendly.","Planting native and pollinator-friendly plants on solar sites can provide agricultural and ecological advantages over traditional turf or gravel.\n\nAction: Review pollinator-friendly solar initiatives in MN, MD, SC, VT, NY, IL, and MI in the CleanEnergy States Alliance (CESA) pollinator report. You may also consider using the Michigan Pollinator Habitat Planning Scorecard for Solar Sites (or more state-specific guidance) to make your chosen solar site pollinator-friendly."]

{"sheet":"4d) Brownfield Checklist","index":9,"n_rows":64,"n_cols":107,"rows_kept":64,"cut":false,"hidden":false,"merged":[[28,3,28,4],[29,3,29,4],[30,3,30,4],[42,3,42,4],[31,3,31,4],[32,3,32,4],[33,3,33,4],[34,3,34,4],[35,3,35,4],[36,3,36,4],[37,3,37,4],[38,3,38,4],[39,3,39,4],[40,3,40,4],[41,3,41,4],[43,3,43,4],[44,3,44,4],[45,3,45,4],[46,3,46,4],[48,3,48,4],[61,3,61,4],[62,3,62,4],[63,3,63,4],[47,3,47,4],[55,3,55,4],[56,3,56,4],[57,3,57,4],[58,3,58,4],[59,3,59,4],[60,3,60,4],[49,3,49,4],[50,3,50,4],[51,3,51,4],[52,3,52,4],[53,3,53,4],[54,3,54,4],[22,4,22,5],[23,4,23,5],[24,4,24,5],[25,4,25,5],[19,4,19,5],[20,4,20,5],[21,4,21,5]]}
[null,"4d. Secondary Screening for Brownfield Sites (Excluding Landfills)"]
[]
[]
[]
[]
[]
[]
[]
[]
[]
[]
[]
[]
[]
[]
[]
[]
[]
[]
[null,null,null,null,"Site Number:"]
[null,null,null,null,"Site Name:",null,{"$f":"IF(G20<>\"\",VLOOKUP(G20,'3) Pre-Screened Sites'!$B$33:$D$231,2,FALSE),\"\")","v":""},{"$f":"IF(H20<>\"\",VLOOKUP(H20,'3) Pre-Screened Sites'!$B$33:$D$231,2,FALSE),\"\")","v":""},{"$f":"IF(I20<>\"\",VLOOKUP(I20,'3) Pre-Screened Sites'!$B$33:$D$231,2,FALSE),\"\")","v":""},{"$f":"IF(J20<>\"\",VLOOKUP(J20,'3) Pre-Screened Sites'!$B$33:$D$231,2,FALSE),\"\")","v":""},{"$f":"IF(K20<>\"\",VLOOKUP(K20,'3) Pre-Screened Sites'!$B$33:$D$231,2,FALSE),\"\")","v":""},{"$f":"IF(L20<>\"\",VLOOKUP(L20,'3) Pre-Screened Sites'!$B$33:$D$231,2,FALSE),\"\")","v":""},{"$f":"IF(M20<>\"\",VLOOKUP(M20,'3) Pre-Screened Sites'!$B$33:$D$231,2,FALSE),\"\")","v":""},{"$f":"IF(N20<>\"\",VLOOKUP(N20,'3) Pre-Screened Sites'!$B$33:$D$231,2,FALSE),\"\")","v":""},{"$f":"IF(O20<>\"\",VLOOKUP(O20,'3) Pre-Screened Sites'!$B$33:$D$231,2,FALSE),\"\")","v":""},{"$f":"IF(P20<>\"\",VLOOKUP(P20,'3) Pre-Screened Sites'!$B$33:$D$231,2,FALSE),\"\")","v":""},{"$f":"IF(Q20<>\"\",VLOOKUP(Q20,'3) Pre-Screened Sites'!$B$33:$D$231,2,FALSE),\"\")","v":""},{"$f":"IF(R20<>\"\",VLOOKUP(R20,'3) Pre-Screened Sites'!$B$33:$D$231,2,FALSE),\"\")","v":""},{"$f":"IF(S20<>\"\",VLOOKUP(S20,'3) Pre-Screened Sites'!$B$33:$D$231,2,FALSE),\"\")","v":""},{"$f":"IF(T20<>\"\",VLOOKUP(T20,'3) Pre-Screened Sites'!$B$33:$D$231,2,FALSE),\"\")","v":""},{"$f":"IF(U20<>\"\",VLOOKUP(U20,'3) Pre-Screened Sites'!$B$33:$D$231,2,FALSE),\"\")","v":""},{"$f":"IF(V20<>\"\",VLOOKUP(V20,'3) Pre-Screened Sites'!$B$33:$D$231,2,FALSE),\"\")","v":""},{"$f":"IF(W20<>\"\",VLOOKUP(W20,'3) Pre-Screened Sites'!$B$33:$D$231,2,FALSE),\"\")","v":""},{"$f":"IF(X20<>\"\",VLOOKUP(X20,'3) Pre-Screened Sites'!$B$33:$D$231,2,FALSE),\"\")","v":""},{"$f":"IF(Y20<>\"\",VLOOKUP(Y20,'3) Pre-Screened Sites'!$B$33:$D$231,2,FALSE),\"\")","v":""},{"$f":"IF(Z20<>\"\",VLOOKUP(Z20,'3) Pre-Screened Sites'!$B$33:$D$231,2,FALSE),\"\")","v":""},{"$f":"IF(AA20<>\"\",VLOOKUP(AA20,'3) Pre-Screened Sites'!$B$33:$D$231,2,FALSE),\"\")","v":""},{"$f":"IF(AB20<>\"\",VLOOKUP(AB20,'3) Pre-Screened Sites'!$B$33:$D$231,2,FALSE),\"\")","v":""},{"$f":"IF(AC20<>\"\",VLOOKUP(AC20,'3) Pre-Screened Sites'!$B$33:$D$231,2,FALSE),\"\")","v":""},{"$f":"IF(AD20<>\"\",VLOOKUP(AD20,'3) Pre-Screened Sites'!$B$33:$D$231,2,FALSE),\"\")","v":""},{"$f":"IF(AE20<>\"\",VLOOKUP(AE20,'3) Pre-Screened Sites'!$B$33:$D$231,2,FALSE),\"\")","v":""},{"$f":"IF(AF20<>\"\",VLOOKUP(AF20,'3) Pre-Screened Sites'!$B$33:$D$231,2,FALSE),\"\")","v":""},{"$f":"IF(AG20<>\"\",VLOOKUP(AG20,'3) Pre-Screened Sites'!$B$33:$D$231,2,FALSE),\"\")","v":""},{"$f":"IF(AH20<>\"\",VLOOKUP(AH20,'3) Pre-Screened Sites'!$B$33:$D$231,2,FALSE),\"\")","v":""},{"$f":"IF(AI20<>\"\",VLOOKUP(AI20,'3) Pre-Screened Sites'!$B$33:$D$231,2,FALSE),\"\")","v":""},{"$f":"IF(AJ20<>\"\",VLOOKUP(AJ20,'3) Pre-Screened Sites'!$B$33:$D$231,2,FALSE),\"\")","v":""},{"$f":"IF(AK20<>\"\",VLOOKUP(AK20,'3) Pre-Screened Sites'!$B$33:$D$231,2,FALSE),\"\")","v":""},{"$f":"IF(AL20<>\"\",VLOOKUP(AL20,'3) Pre-Screened Sites'!$B$33:$D$231,2,FALSE),\"\")","v":""},{"$f":"IF(AM20<>\"\",VLOOKUP(AM20,'3) Pre-Screened Sites'!$B$33:$D$231,2,FALSE),\"\")","v":""},{"$f":"IF(AN20<>\"\",VLOOKUP(AN20,'3) Pre-Screened Sites'!$B$33:$D$231,2,FALSE),\"\")","v":""},{"$f":"IF(AO20<>\"\",VLOOKUP(AO20,'3) Pre-Screened Sites'!$B$33:$D$231,2,FALSE),\"\")","v":""},{"$f":"IF(AP20<>\"\",VLOOKUP(AP20,'3) Pre-Screened Sites'!$B$33:$D$231,2,FALSE),\"\")","v":""},{"$f":"IF(AQ20<>\"\",VLOOKUP(AQ20,'3) Pre-Screened Sites'!$B$33:$D$231,2,FALSE),\"\")","v":""},{"$f":"IF(AR20<>\"\",VLOOKUP(AR20,'3) Pre-Screened Sites'!$B$33:$D$231,2,FALSE),\"\")","v":""},{"$f":"IF(AS20<>\"\",VLOOKUP(AS20,'3) Pre-Screened Sites'!$B$33:$D$231,2,FALSE),\"\")","v":""},{"$f":"IF(AT20<>\"\",VLOOKUP(AT20,'3) Pre-Screened Sites'!$B$33:$D$231,2,FALSE),\"\")","v":""},{"$f":"IF(AU20<>\"\",VLOOKUP(AU20,'3) Pre-Screened Sites'!$B$33:$D$231,2,FALSE),\"\")","v":""},{"$f":"IF(AV20<>\"\",VLOOKUP(AV20,'3) Pre-Screened Sites'!$B$33:$D$231,2,FALSE),\"\")","v":""},{"$f":"IF(AW20<>\"\",VLOOKUP(AW20,'3) Pre-Screened Sites'!$B$33:$D$231,2,FALSE),\"\")","v":""},{"$f":"IF(AX20<>\"\",VLOOKUP(AX20,'3) Pre-Screened Sites'!$B$33:$D$231,2,FALSE),\"\")","v":""},{"$f":"IF(AY20<>\"\",VLOOKUP(AY20,'3) Pre-Screened Sites'!$B$33:$D$231,2,FALSE),\"\")","v":""},{"$f":"IF(AZ20<>\"\",VLOOKUP(AZ20,'3) Pre-Screened Sites'!$B$33:$D$231,2,FALSE),\"\")","v":""},{"$f":"IF(BA20<>\"\",VLOOKUP(BA20,'3) Pre-Screened Sites'!$B$33:$D$231,2,FALSE),\"\")","v":""},{"$f":"IF(BB20<>\"\",VLOOKUP(BB20,'3) Pre-Screened Sites'!$B$33:$D$231,2,FALSE),\"\")","v":""},{"$f":"IF(BC20<>\"\",VLOOKUP(BC20,'3) Pre-Screened Sites'!$B$33:$D$231,2,FALSE),\"\")","v":""},{"$f":"IF(BD20<>\"\",VLOOKUP(BD20,'3) Pre-Screened Sites'!$B$33:$D$231,2,FALSE),\"\")","v":""},{"$f":"IF(BE20<>\"\",VLOOKUP(BE20,'3) Pre-Screened Sites'!$B$33:$D$231,2,FALSE),\"\")","v":""},{"$f":"IF(BF20<>\"\",VLOOKUP(BF20,'3) Pre-Screened Sites'!$B$33:$D$231,2,FALSE),\"\")","v":""},{"$f":"IF(BG20<>\"\",VLOOKUP(BG20,'3) Pre-Screened Sites'!$B$33:$D$231,2,FALSE),\"\")","v":""},{"$f":"IF(BH20<>\"\",VLOOKUP(BH20,'3) Pre-Screened Sites'!$B$33:$D$231,2,FALSE),\"\")","v":""},{"$f":"IF(BI20<>\"\",VLOOKUP(BI20,'3) Pre-Screened Sites'!$B$33:$D$231,2,FALSE),\"\")","v":""},{"$f":"IF(BJ20<>\"\",VLOOKUP(BJ20,'3) Pre-Screened Sites'!$B$33:$D$231,2,FALSE),\"\")","v":""},{"$f":"IF(BK20<>\"\",VLOOKUP(BK20,'3) Pre-Screened Sites'!$B$33:$D$231,2,FALSE),\"\")","v":""},{"$f":"IF(BL20<>\"\",VLOOKUP(BL20,'3) Pre-Screened Sites'!$B$33:$D$231,2,FALSE),\"\")","v":""},{"$f":"IF(BM20<>\"\",VLOOKUP(BM20,'3) Pre-Screened Sites'!$B$33:$D$231,2,FALSE),\"\")","v":""},{"$f":"IF(BN20<>\"\",VLOOKUP(BN20,'3) Pre-Screened Sites'!$B$33:$D$231,2,FALSE),\"\")","v":""},{"$f":"IF(BO20<>\"\",VLOOKUP(BO20,'3) Pre-Screened Sites'!$B$33:$D$231,2,FALSE),\"\")","v":""},{"$f":"IF(BP20<>\"\",VLOOKUP(BP20,'3) Pre-Screened Sites'!$B$33:$D$231,2,FALSE),\"\")","v":""},{"$f":"IF(BQ20<>\"\",VLOOKUP(BQ20,'3) Pre-Screened Sites'!$B$33:$D$231,2,FALSE),\"\")","v":""},{"$f":"IF(BR20<>\"\",VLOOKUP(BR20,'3) Pre-Screened Sites'!$B$33:$D$231,2,FALSE),\"\")","v":""},{"$f":"IF(BS20<>\"\",VLOOKUP(BS20,'3) Pre-Screened Sites'!$B$33:$D$231,2,FALSE),\"\")","v":""},{"$f":"IF(BT20<>\"\",VLOOKUP(BT20,'3) Pre-Screened Sites'!$B$33:$D$231,2,FALSE),\"\")","v":""},{"$f":"IF(BU20<>\"\",VLOOKUP(BU20,'3) Pre-Screened Sites'!$B$33:$D$231,2,FALSE),\"\")","v":""},{"$f":"IF(BV20<>\"\",VLOOKUP(BV20,'3) Pre-Screened Sites'!$B$33:$D$231,2,FALSE),\"\")","v":""},{"$f":"IF(BW20<>\"\",VLOOKUP(BW20,'3) Pre-Screened Sites'!$B$33:$D$231,2,FALSE),\"\")","v":""},{"$f":"IF(BX20<>\"\",VLOOKUP(BX20,'3) Pre-Screened Sites'!$B$33:$D$231,2,FALSE),\"\")","v":""},{"$f":"IF(BY20<>\"\",VLOOKUP(BY20,'3) Pre-Screened Sites'!$B$33:$D$231,2,FALSE),\"\")","v":""},{"$f":"IF(BZ20<>\"\",VLOOKUP(BZ20,'3) Pre-Screened Sites'!$B$33:$D$231,2,FALSE),\"\")","v":""},{"$f":"IF(CA20<>\"\",VLOOKUP(CA20,'3) Pre-Screened Sites'!$B$33:$D$231,2,FALSE),\"\")","v":""},{"$f":"IF(CB20<>\"\",VLOOKUP(CB20,'3) Pre-Screened Sites'!$B$33:$D$231,2,FALSE),\"\")","v":""},{"$f":"IF(CC20<>\"\",VLOOKUP(CC20,'3) Pre-Screened Sites'!$B$33:$D$231,2,FALSE),\"\")","v":""},{"$f":"IF(CD20<>\"\",VLOOKUP(CD20,'3) Pre-Screened Sites'!$B$33:$D$231,2,FALSE),\"\")","v":""},{"$f":"IF(CE20<>\"\",VLOOKUP(CE20,'3) Pre-Screened Sites'!$B$33:$D$231,2,FALSE),\"\")","v":""},{"$f":"IF(CF20<>\"\",VLOOKUP(CF20,'3) Pre-Screened Sites'!$B$33:$D$231,2,FALSE),\"\")","v":""},{"$f":"IF(CG20<>\"\",VLOOKUP(CG20,'3) Pre-Screened Sites'!$B$33:$D$231,2,FALSE),\"\")","v":""},{"$f":"IF(CH20<>\"\",VLOOKUP(CH20,'3) Pre-Screened Sites'!$B$33:$D$231,2,FALSE),\"\")","v":""},{"$f":"IF(CI20<>\"\",VLOOKUP(CI20,'3) Pre-Screened Sites'!$B$33:$D$231,2,FALSE),\"\")","v":""},{"$f":"IF(CJ20<>\"\",VLOOKUP(CJ20,'3) Pre-Screened Sites'!$B$33:$D$231,2,FALSE),\"\")","v":""},{"$f":"IF(CK20<>\"\",VLOOKUP(CK20,'3) Pre-Screened Sites'!$B$33:$D$231,2,FALSE),\"\")","v":""},{"$f":"IF(CL20<>\"\",VLOOKUP(CL20,'3) Pre-Screened Sites'!$B$33:$D$231,2,FALSE),\"\")","v":""},{"$f":"IF(CM20<>\"\",VLOOKUP(CM20,'3) Pre-Screened Sites'!$B$33:$D$231,2,FALSE),\"\")","v":""},{"$f":"IF(CN20<>\"\",VLOOKUP(CN20,'3) Pre-Screened Sites'!$B$33:$D$231,2,FALSE),\"\")","v":""},{"$f":"IF(CO20<>\"\",VLOOKUP(CO20,'3) Pre-Screened Sites'!$B$33:$D$231,2,FALSE),\"\")","v":""},{"$f":"IF(CP20<>\"\",VLOOKUP(CP20,'3) Pre-Screened Sites'!$B$33:$D$231,2,FALSE),\"\")","v":""},{"$f":"IF(CQ20<>\"\",VLOOKUP(CQ20,'3) Pre-Screened Sites'!$B$33:$D$231,2,FALSE),\"\")","v":""},{"$f":"IF(CR20<>\"\",VLOOKUP(CR20,'3) Pre-Screened Sites'!$B$33:$D$231,2,FALSE),\"\")","v":""},{"$f":"IF(CS20<>\"\",VLOOKUP(CS20,'3) Pre-Screened Sites'!$B$33:$D$231,2,FALSE),\"\")","v":""},{"$f":"IF(CT20<>\"\",VLOOKUP(CT20,'3) Pre-Screened Sites'!$B$33:$D$231,2,FALSE),\"\")","v":""},{"$f":"IF(CU20<>\"\",VLOOKUP(CU20,'3) Pre-Screened Sites'!$B$33:$D$231,2,FALSE),\"\")","v":""},{"$f":"IF(CV20<>\"\",VLOOKUP(CV20,'3) Pre-Screened Sites'!$B$33:$D$231,2,FALSE),\"\")","v":""},{"$f":"IF(CW20<>\"\",VLOOKUP(CW20,'3) Pre-Screened Sites'!$B$33:$D$231,2,FALSE),\"\")","v":""},{"$f":"IF(CX20<>\"\",VLOOKUP(CX20,'3) Pre-Screened Sites'!$B$33:$D$231,2,FALSE),\"\")","v":""},{"$f":"IF(CY20<>\"\",VLOOKUP(CY20,'3) Pre-Screened Sites'!$B$33:$D$231,2,FALSE),\"\")","v":""},{"$f":"IF(CZ20<>\"\",VLOOKUP(CZ20,'3) Pre-Screened Sites'!$B$33:$D$231,2,FALSE),\"\")","v":""},{"$f":"IF(DA20<>\"\",VLOOKUP(DA20,'3) Pre-Screened Sites'!$B$33:$D$231,2,FALSE),\"\")","v":""},{"$f":"IF(DB20<>\"\",VLOOKUP(DB20,'3) Pre-Screened Sites'!$B$33:$D$231,2,FALSE),\"\")","v":""}]
[null,null,null,null,"Site Address:",null,{"$f":"IF(G20<>\"\",VLOOKUP(G20,'3) Pre-Screened Sites'!$B$33:$D$231,3,FALSE),\"\")","v":""},{"$f":"IF(H20<>\"\",VLOOKUP(H20,'3) Pre-Screened Sites'!$B$33:$D$231,3,FALSE),\"\")","v":""},{"$f":"IF(I20<>\"\",VLOOKUP(I20,'3) Pre-Screened Sites'!$B$33:$D$231,3,FALSE),\"\")","v":""},{"$f":"IF(J20<>\"\",VLOOKUP(J20,'3) Pre-Screened Sites'!$B$33:$D$231,3,FALSE),\"\")","v":""},{"$f":"IF(K20<>\"\",VLOOKUP(K20,'3) Pre-Screened Sites'!$B$33:$D$231,3,FALSE),\"\")","v":""},{"$f":"IF(L20<>\"\",VLOOKUP(L20,'3) Pre-Screened Sites'!$B$33:$D$231,3,FALSE),\"\")","v":""},{"$f":"IF(M20<>\"\",VLOOKUP(M20,'3) Pre-Screened Sites'!$B$33:$D$231,3,FALSE),\"\")","v":""},{"$f":"IF(N20<>\"\",VLOOKUP(N20,'3) Pre-Screened Sites'!$B$33:$D$231,3,FALSE),\"\")","v":""},{"$f":"IF(O20<>\"\",VLOOKUP(O20,'3) Pre-Screened Sites'!$B$33:$D$231,3,FALSE),\"\")","v":""},{"$f":"IF(P20<>\"\",VLOOKUP(P20,'3) Pre-Screened Sites'!$B$33:$D$231,3,FALSE),\"\")","v":""},{"$f":"IF(Q20<>\"\",VLOOKUP(Q20,'3) Pre-Screened Sites'!$B$33:$D$231,3,FALSE),\"\")","v":""},{"$f":"IF(R20<>\"\",VLOOKUP(R20,'3) Pre-Screened Sites'!$B$33:$D$231,3,FALSE),\"\")","v":""},{"$f":"IF(S20<>\"\",VLOOKUP(S20,'3) Pre-Screened Sites'!$B$33:$D$231,3,FALSE),\"\")","v":""},{"$f":"IF(T20<>\"\",VLOOKUP(T20,'3) Pre-Screened Sites'!$B$33:$D$231,3,FALSE),\"\")","v":""},{"$f":"IF(U20<>\"\",VLOOKUP(U20,'3) Pre-Screened Sites'!$B$33:$D$231,3,FALSE),\"\")","v":""},{"$f":"IF(V20<>\"\",VLOOKUP(V20,'3) Pre-Screened Sites'!$B$33:$D$231,3,FALSE),\"\")","v":""},{"$f":"IF(W20<>\"\",VLOOKUP(W20,'3) Pre-Screened Sites'!$B$33:$D$231,3,FALSE),\"\")","v":""},{"$f":"IF(X20<>\"\",VLOOKUP(X20,'3) Pre-Screened Sites'!$B$33:$D$231,3,FALSE),\"\")","v":""},{"$f":"IF(Y20<>\"\",VLOOKUP(Y20,'3) Pre-Screened Sites'!$B$33:$D$231,3,FALSE),\"\")","v":""},{"$f":"IF(Z20<>\"\",VLOOKUP(Z20,'3) Pre-Screened Sites'!$B$33:$D$231,3,FALSE),\"\")","v":""},{"$f":"IF(AA20<>\"\",VLOOKUP(AA20,'3) Pre-Screened Sites'!$B$33:$D$231,3,FALSE),\"\")","v":""},{"$f":"IF(AB20<>\"\",VLOOKUP(AB20,'3) Pre-Screened Sites'!$B$33:$D$231,3,FALSE),\"\")","v":""},{"$f":"IF(AC20<>\"\",VLOOKUP(AC20,'3) Pre-Screened Sites'!$B$33:$D$231,3,FALSE),\"\")","v":""},{"$f":"IF(AD20<>\"\",VLOOKUP(AD20,'3) Pre-Screened Sites'!$B$33:$D$231,3,FALSE),\"\")","v":""},{"$f":"IF(AE20<>\"\",VLOOKUP(AE20,'3) Pre-Screened Sites'!$B$33:$D$231,3,FALSE),\"\")","v":""},{"$f":"IF(AF20<>\"\",VLOOKUP(AF20,'3) Pre-Screened Sites'!$B$33:$D$231,3,FALSE),\"\")","v":""},{"$f":"IF(AG20<>\"\",VLOOKUP(AG20,'3) Pre-Screened Sites'!$B$33:$D$231,3,FALSE),\"\")","v":""},{"$f":"IF(AH20<>\"\",VLOOKUP(AH20,'3) Pre-Screened Sites'!$B$33:$D$231,3,FALSE),\"\")","v":""},{"$f":"IF(AI20<>\"\",VLOOKUP(AI20,'3) Pre-Screened Sites'!$B$33:$D$231,3,FALSE),\"\")","v":""},{"$f":"IF(AJ20<>\"\",VLOOKUP(AJ20,'3) Pre-Screened Sites'!$B$33:$D$231,3,FALSE),\"\")","v":""},{"$f":"IF(AK20<>\"\",VLOOKUP(AK20,'3) Pre-Screened Sites'!$B$33:$D$231,3,FALSE),\"\")","v":""},{"$f":"IF(AL20<>\"\",VLOOKUP(AL20,'3) Pre-Screened Sites'!$B$33:$D$231,3,FALSE),\"\")","v":""},{"$f":"IF(AM20<>\"\",VLOOKUP(AM20,'3) Pre-Screened Sites'!$B$33:$D$231,3,FALSE),\"\")","v":""},{"$f":"IF(AN20<>\"\",VLOOKUP(AN20,'3) Pre-Screened Sites'!$B$33:$D$231,3,FALSE),\"\")","v":""},{"$f":"IF(AO20<>\"\",VLOOKUP(AO20,'3) Pre-Screened Sites'!$B$33:$D$231,3,FALSE),\"\")","v":""},{"$f":"IF(AP20<>\"\",VLOOKUP(AP20,'3) Pre-Screened Sites'!$B$33:$D$231,3,FALSE),\"\")","v":""},{"$f":"IF(AQ20<>\"\",VLOOKUP(AQ20,'3) Pre-Screened Sites'!$B$33:$D$231,3,FALSE),\"\")","v":""},{"$f":"IF(AR20<>\"\",VLOOKUP(AR20,'3) Pre-Screened Sites'!$B$33:$D$231,3,FALSE),\"\")","v":""},{"$f":"IF(AS20<>\"\",VLOOKUP(AS20,'3) Pre-Screened Sites'!$B$33:$D$231,3,FALSE),\"\")","v":""},{"$f":"IF(AT20<>\"\",VLOOKUP(AT20,'3) Pre-Screened Sites'!$B$33:$D$231,3,FALSE),\"\")","v":""},{"$f":"IF(AU20<>\"\",VLOOKUP(AU20,'3) Pre-Screened Sites'!$B$33:$D$231,3,FALSE),\"\")","v":""},{"$f":"IF(AV20<>\"\",VLOOKUP(AV20,'3) Pre-Screened Sites'!$B$33:$D$231,3,FALSE),\"\")","v":""},{"$f":"IF(AW20<>\"\",VLOOKUP(AW20,'3) Pre-Screened Sites'!$B$33:$D$231,3,FALSE),\"\")","v":""},{"$f":"IF(AX20<>\"\",VLOOKUP(AX20,'3) Pre-Screened Sites'!$B$33:$D$231,3,FALSE),\"\")","v":""},{"$f":"IF(AY20<>\"\",VLOOKUP(AY20,'3) Pre-Screened Sites'!$B$33:$D$231,3,FALSE),\"\")","v":""},{"$f":"IF(AZ20<>\"\",VLOOKUP(AZ20,'3) Pre-Screened Sites'!$B$33:$D$231,3,FALSE),\"\")","v":""},{"$f":"IF(BA20<>\"\",VLOOKUP(BA20,'3) Pre-Screened Sites'!$B$33:$D$231,3,FALSE),\"\")","v":""},{"$f":"IF(BB20<>\"\",VLOOKUP(BB20,'3) Pre-Screened Sites'!$B$33:$D$231,3,FALSE),\"\")","v":""},{"$f":"IF(BC20<>\"\",VLOOKUP(BC20,'3) Pre-Screened Sites'!$B$33:$D$231,3,FALSE),\"\")","v":""},{"$f":"IF(BD20<>\"\",VLOOKUP(BD20,'3) Pre-Screened Sites'!$B$33:$D$231,3,FALSE),\"\")","v":""},{"$f":"IF(BE20<>\"\",VLOOKUP(BE20,'3) Pre-Screened Sites'!$B$33:$D$231,3,FALSE),\"\")","v":""},{"$f":"IF(BF20<>\"\",VLOOKUP(BF20,'3) Pre-Screened Sites'!$B$33:$D$231,3,FALSE),\"\")","v":""},{"$f":"IF(BG20<>\"\",VLOOKUP(BG20,'3) Pre-Screened Sites'!$B$33:$D$231,3,FALSE),\"\")","v":""},{"$f":"IF(BH20<>\"\",VLOOKUP(BH20,'3) Pre-Screened Sites'!$B$33:$D$231,3,FALSE),\"\")","v":""},{"$f":"IF(BI20<>\"\",VLOOKUP(BI20,'3) Pre-Screened Sites'!$B$33:$D$231,3,FALSE),\"\")","v":""},{"$f":"IF(BJ20<>\"\",VLOOKUP(BJ20,'3) Pre-Screened Sites'!$B$33:$D$231,3,FALSE),\"\")","v":""},{"$f":"IF(BK20<>\"\",VLOOKUP(BK20,'3) Pre-Screened Sites'!$B$33:$D$231,3,FALSE),\"\")","v":""},{"$f":"IF(BL20<>\"\",VLOOKUP(BL20,'3) Pre-Screened Sites'!$B$33:$D$231,3,FALSE),\"\")","v":""},{"$f":"IF(BM20<>\"\",VLOOKUP(BM20,'3) Pre-Screened Sites'!$B$33:$D$231,3,FALSE),\"\")","v":""},{"$f":"IF(BN20<>\"\",VLOOKUP(BN20,'3) Pre-Screened Sites'!$B$33:$D$231,3,FALSE),\"\")","v":""},{"$f":"IF(BO20<>\"\",VLOOKUP(BO20,'3) Pre-Screened Sites'!$B$33:$D$231,3,FALSE),\"\")","v":""},{"$f":"IF(BP20<>\"\",VLOOKUP(BP20,'3) Pre-Screened Sites'!$B$33:$D$231,3,FALSE),\"\")","v":""},{"$f":"IF(BQ20<>\"\",VLOOKUP(BQ20,'3) Pre-Screened Sites'!$B$33:$D$231,3,FALSE),\"\")","v":""},{"$f":"IF(BR20<>\"\",VLOOKUP(BR20,'3) Pre-Screened Sites'!$B$33:$D$231,3,FALSE),\"\")","v":""},{"$f":"IF(BS20<>\"\",VLOOKUP(BS20,'3) Pre-Screened Sites'!$B$33:$D$231,3,FALSE),\"\")","v":""},{"$f":"IF(BT20<>\"\",VLOOKUP(BT20,'3) Pre-Screened Sites'!$B$33:$D$231,3,FALSE),\"\")","v":""},{"$f":"IF(BU20<>\"\",VLOOKUP(BU20,'3) Pre-Screened Sites'!$B$33:$D$231,3,FALSE),\"\")","v":""},{"$f":"IF(BV20<>\"\",VLOOKUP(BV20,'3) Pre-Screened Sites'!$B$33:$D$231,3,FALSE),\"\")","v":""},{"$f":"IF(BW20<>\"\",VLOOKUP(BW20,'3) Pre-Screened Sites'!$B$33:$D$231,3,FALSE),\"\")","v":""},{"$f":"IF(BX20<>\"\",VLOOKUP(BX20,'3) Pre-Screened Sites'!$B$33:$D$231,3,FALSE),\"\")","v":""},{"$f":"IF(BY20<>\"\",VLOOKUP(BY20,'3) Pre-Screened Sites'!$B$33:$D$231,3,FALSE),\"\")","v":""},{"$f":"IF(BZ20<>\"\",VLOOKUP(BZ20,'3) Pre-Screened Sites'!$B$33:$D$231,3,FALSE),\"\")","v":""},{"$f":"IF(CA20<>\"\",VLOOKUP(CA20,'3) Pre-Screened Sites'!$B$33:$D$231,3,FALSE),\"\")","v":""},{"$f":"IF(CB20<>\"\",VLOOKUP(CB20,'3) Pre-Screened Sites'!$B$33:$D$231,3,FALSE),\"\")","v":""},{"$f":"IF(CC20<>\"\",VLOOKUP(CC20,'3) Pre-Screened Sites'!$B$33:$D$231,3,FALSE),\"\")","v":""},{"$f":"IF(CD20<>\"\",VLOOKUP(CD20,'3) Pre-Screened Sites'!$B$33:$D$231,3,FALSE),\"\")","v":""},{"$f":"IF(CE20<>\"\",VLOOKUP(CE20,'3) Pre-Screened Sites'!$B$33:$D$231,3,FALSE),\"\")","v":""},{"$f":"IF(CF20<>\"\",VLOOKUP(CF20,'3) Pre-Screened Sites'!$B$33:$D$231,3,FALSE),\"\")","v":""},{"$f":"IF(CG20<>\"\",VLOOKUP(CG20,'3) Pre-Screened Sites'!$B$33:$D$231,3,FALSE),\"\")","v":""},{"$f":"IF(CH20<>\"\",VLOOKUP(CH20,'3) Pre-Screened Sites'!$B$33:$D$231,3,FALSE),\"\")","v":""},{"$f":"IF(CI20<>\"\",VLOOKUP(CI20,'3) Pre-Screened Sites'!$B$33:$D$231,3,FALSE),\"\")","v":""},{"$f":"IF(CJ20<>\"\",VLOOKUP(CJ20,'3) Pre-Screened Sites'!$B$33:$D$231,3,FALSE),\"\")","v":""},{"$f":"IF(CK20<>\"\",VLOOKUP(CK20,'3) Pre-Screened Sites'!$B$33:$D$231,3,FALSE),\"\")","v":""},{"$f":"IF(CL20<>\"\",VLOOKUP(CL20,'3) Pre-Screened Sites'!$B$33:$D$231,3,FALSE),\"\")","v":""},{"$f":"IF(CM20<>\"\",VLOOKUP(CM20,'3) Pre-Screened Sites'!$B$33:$D$231,3,FALSE),\"\")","v":""},{"$f":"IF(CN20<>\"\",VLOOKUP(CN20,'3) Pre-Screened Sites'!$B$33:$D$231,3,FALSE),\"\")","v":""},{"$f":"IF(CO20<>\"\",VLOOKUP(CO20,'3) Pre-Screened Sites'!$B$33:$D$231,3,FALSE),\"\")","v":""},{"$f":"IF(CP20<>\"\",VLOOKUP(CP20,'3) Pre-Screened Sites'!$B$33:$D$231,3,FALSE),\"\")","v":""},{"$f":"IF(CQ20<>\"\",VLOOKUP(CQ20,'3) Pre-Screened Sites'!$B$33:$D$231,3,FALSE),\"\")","v":""},{"$f":"IF(CR20<>\"\",VLOOKUP(CR20,'3) Pre-Screened Sites'!$B$33:$D$231,3,FALSE),\"\")","v":""},{"$f":"IF(CS20<>\"\",VLOOKUP(CS20,'3) Pre-Screened Sites'!$B$33:$D$231,3,FALSE),\"\")","v":""},{"$f":"IF(CT20<>\"\",VLOOKUP(CT20,'3) Pre-Screened Sites'!$B$33:$D$231,3,FALSE),\"\")","v":""},{"$f":"IF(CU20<>\"\",VLOOKUP(CU20,'3) Pre-Screened Sites'!$B$33:$D$231,3,FALSE),\"\")","v":""},{"$f":"IF(CV20<>\"\",VLOOKUP(CV20,'3) Pre-Screened Sites'!$B$33:$D$231,3,FALSE),\"\")","v":""},{"$f":"IF(CW20<>\"\",VLOOKUP(CW20,'3) Pre-Screened Sites'!$B$33:$D$231,3,FALSE),\"\")","v":""},{"$f":"IF(CX20<>\"\",VLOOKUP(CX20,'3) Pre-Screened Sites'!$B$33:$D$231,3,FALSE),\"\")","v":""},{"$f":"IF(CY20<>\"\",VLOOKUP(CY20,'3) Pre-Screened Sites'!$B$33:$D$231,3,FALSE),\"\")","v":""},{"$f":"IF(CZ20<>\"\",VLOOKUP(CZ20,'3) Pre-Screened Sites'!$B$33:$D$231,3,FALSE),\"\")","v":""},{"$f":"IF(DA20<>\"\",VLOOKUP(DA20,'3) Pre-Screened Sites'!$B$33:$D$231,3,FALSE),\"\")","v":""},{"$f":"IF(DB20<>\"\",VLOOKUP(DB20,'3) Pre-Screened Sites'!$B$33:$D$231,3,FALSE),\"\")","v":""}]
[null,null,null,null,"Phase 1 Checklist complete?",null,{"$f":"IF(G20<>\"\",IF(COUNTA(G29:G39)<9,\"Incomplete\",\"Complete\"),\"\")","v":""},{"$f":"IF(H20<>\"\",IF(COUNTA(H29:H39)<9,\"Incomplete\",\"Complete\"),\"\")","v":""},"","","","","","","","","","","","","","","","","","","","","","","","","","","","","","","","","","","","","","","","","","","","","","","","","","","","","","","","","","","","","","","",{"$f":"IF(BT20<>\"\",IF(COUNTA(BT29:BT39)<9,\"Incomplete\",\"Complete\"),\"\")","v":""},"","","","","","","","","","","","","","","","","","","","","","","","","","","","","","","","","",""]
[null,null,null,null,"Phase 2 Checklist complete?",null,{"$f":"IF(G20<>\"\",IF(COUNTA(G45:G64)<17,\"Incomplete\",\"Complete\"),\"\")","v":""},{"$f":"IF(H20<>\"\",IF(COUNTA(H45:H64)<17,\"Incomplete\",\"Complete\"),\"\")","v":""},"","","","","","","","","","","","","","","","","","","","","","","","","","","","","","",{"$f":"IF(AM20<>\"\",IF(COUNTA(AM45:AM64)<17,\"Incomplete\",\"Complete\"),\"\")","v":""},"","","","","","","","","","","","","","","","","","","","","","","","","","","","","","","",{"$f":"IF(BS20<>\"\",IF(COUNTA(BS45:BS64)<17,\"Incomplete\",\"Complete\"),\"\")","v":""},"","","","","","","","","","","","","","","","","","","","","","","","","","","","","","","","","","",""]
[null,null,null,null,"Number of red flags for this site:\n(potential added cost/complexity)",null,{"$f":"IF(G20<>\"\",COUNTIF(G29:G64,\"No\"),\" \")","v":" "}," "," "," "," "," "," "," "," "," "," "," "," "," "," "," "," "," "," "," "," "," "," "," "," "," "," "," "," "," "," "," ",{"$f":"IF(AM20<>\"\",COUNTIF(AM29:AM64,\"No\"),\" \")","v":" "}," "," "," "," "," "," "," "," "," "," "," "," "," "," "," "," "," "," "," "," "," "," "," "," "," "," "," "," "," "," "," ",{"$f":"IF(BS20<>\"\",COUNTIF(BS29:BS64,\"No\"),\" \")","v":" "}," "," "," "," "," "," "," "," "," "," "," "," "," "," "," "," "," "," "," "," "," "," "," "," "," "," "," "," "," "," "," "," "," "," "," ",{"$f":"IF(COUNTA(DC35:DC64)=0,\"\",IF(COUNTA(DC35:DC64)<32,\"Please complete checklist.\",COUNTIF(DC35:DC64,\"No\")))","v":""}]
[null,null,null,null,"Pass/Fail decision:\nChoose \"Pass\" for sites that seem most promising based on your answers to the checklist items. Be sure to thoroughly evaluate how any \"red flags\" can be overcome/affect project costs. "]
[null,"PHASE 1 SCREENING CHECKLIST"]
[null,"Restrictions and zoning",null,"Explanations and Actions",null,"Resources (linked)"]
[null,1,"There are no other planned developments for this site. ","Action: Ensure that this site is not part of another development plan and that there will not be any major construction that would conflict with the operations of solar PV. Check internally and with community stakeholders to see if there is a separate community plan for this site.",null,"-"]
[null,2,"Future nearby developments will not cast shade on solar PV at this site.  ","Action: Consult with the planning and land use department to ensure that future developments near this site will not limit the PV system's access to sunlight.",null,"-"]
[null,3,"The site is free from land-use restrictions related to (but not limited to): \n•   preservation areas\n•   endangered or threatened species\n•   critical habitats\n•   historically or culturally significant artifacts\n•   agricultural protection\n•   protected or sensitive viewsheds","Known cultural or environmental sensitivities may trigger costly and time-consuming permitting reviews, while some environmental or zoning laws could prohibit development altogether.\n\nAction: Work with your city’s land use planning department to determine if the site contains restricted lands. Additionally, you can use the following resources and online maps to explore potential land-use restrictions:\n•   U.S. Fish & Wildlife Service map of Threatened & Endangered Species Critical Habitat zones  \n•   USGS Protected Areas Database of the U.S. \n•   National Register of Historic Places \n•   Your State Historic Preservation Office \n•   Your local Zoning Board"]
[null,4,"The site is not at high risk of flooding.","The site should be well drained and outside potential flood zones. Financiers will not invest in projects that may be subject to flooding.\n\nAction: Search for your site using FEMA’s Flood Map Service Center. If the site falls within a “Special Flood Hazard Area,” shown in blue and blue/pink stripes on the map, mark your answer as \"No\" and consider excluding this site from further consideration."]
[null,5,"The site is currently, or can be, zoned for solar development. ","Action: Work with the local planning or zoning department to understand where solar can and cannot be developed, to identify potential zoning-related restrictions (e.g. setbacks), or to re-zone areas for solar development. ",null,"-"]
[null,"Environmental history and contamination"]
[null,6,"The environmental history, level of contamination, and current cleanup status of this site have been reviewed and documented.","It is crucial to understand the levels of contamination and ongoing plans for remediation at this site. \n\nAction: Use the EPA’s Superfund Search page, Cleanups in My Community (CIMC) Search page,  RE-Powering Mapper 2.0, and Brownfields Federal Programs Guide to find key documents related to the history and ongoing cleanup of this contaminated site. Your state’s Department of Environmental Protection, the site manager, local redevelopment agencies, or land-use planning departments can be additional sources for contaminated site information."]
[null,7,"Remediation activities will not inhibit the installation of solar PV within our desired timeline.","Remediation activities may delay the project start date, particularly if they require soil disturbance (e.g., excavation, thermal treatment, encapsulation, bioremediation). \n\nAction: Determine required remediation activities (the resources listed in checklist item #6 may be useful). Assess the extent to which remediation may affect project costs and timeline.",null,"-"]
[null,8,"We have determined which of the following surface penetration limits apply:\n\ta) No surface penetration limitations exist\nb) Solar infrastructure may not penetrate more than ____ feet below surface level\nc) Solar infrastructure may not penetrate surface level at all\nd) Personal Protective Apparel (PPA) will be required for personnel working on this site.","Surface penetration limits will determine the type of racking and wiring systems required. If the ground cannot be penetrated, a ballasted system will be required and wire-management will need to be above-ground. This can add  ~$0.10/Watt to project costs, which could potentially make the project uneconomical. \n\nAction: Consult the site manager, your state's Department of Environmental Protection, the EPA’s Superfund Search page, Cleanups in My Community (CIMC) Search page, and RE-Powering Mapper 2.0 to determine surface penetration limits. This information would be contained within the site remediation, closure and institutional control documents which are usually available with the site’s regulatory authority (which, in many cases, will be the state)."]
[null,"Financial"]
[null,9,"We have searched for applicable grants/incentives. ","Action: Search for relevant federal grants on Grants.gov and the EPA's Solicitations for Brownfield Grants page. Also investigate opportunities for local grants and incentives."]
[]
[null,null,"Pause! ","The Phase 2 Checklist items will require significant time and effort to complete. Take the following actions to ensure you only move forward with the most promising sites:\n\n  •   If one or more red flag is raised in the Phase 1 Checklist, either select \"Fail\" for this site or confirm that these barriers can be overcome before moving on to Phase 2.\n  •   Consider calling a few solar developers to get initial price estimates for promising sites. The NABCEP Company Accreditation Directory and SEIA Member Directory contain contact information for solar developers. \n•   For cost comparisons, LBNL's Tracking the Sun Report includes average installed cost ($/Watt) values by state and system type (see Figure 2 on the \"Resources\" tab.)\n  •   If the project still seems viable, continue on to the Phase 2 Checklist."]
[]
[null,"PHASE 2 SCREENING CHECKLIST"]
[null,"Interconnection"]
[null,10,"We have determined that grid interconnection costs will be reasonable, given the desired system size at this site. ","Interconnection costs depend on many variables, including the size of the PV system, whether or not the system is behind- or front-of-the-meter, hosting capacity at the point of grid interconnection, and the voltage at the point of interconnection. It is strongly recommended to engage with your utility company early on to obtain information on the interconnection process, costs, and project size limitations. If the project moves forward, an Interconnection Application/Agreement will need to be filed with the utility (a solar developer will typically handle this).\n\nAction: As an initial step, check to see if your utility provides a hosting capacity map online (examples: Xcel, ConEd, PG&E, Central Hudson). Hosting capacity is the amount of generation that can be accommodated at a point on the distribution system without requiring significant grid upgrades. If available, locate your site on the map and determine the hosting capacity (MW) of the nearby lines.  If your planned project size exceeds the listed hosting capacity, mark your answer as \"No\" and work with a solar developer or your utility to assess resulting interconnection complexities and costs.\n\nAlso consider that connecting to a high-voltage transmission or subtransmission line (e.g. 70-345 kV) will often require a step-up transformer, which can be quite expensive. Large, utility-scale projects (>5 MW) may remain financially feasible despite this cost, but smaller projects may not. NREL's Distribution Grid Integration Unit Cost Database contains unit cost information for components used to integrate PV into distribution systems. Check this database for transformer costs that match your project size.\n\nNote: Beware of using interconnection “rules of thumb” such as: solar capacity must be lower than the minimum daytime load or 15% of peak load on a line segment. These can inaccurately predict whether grid upgrades will be needed."]
[null,"Site conditions"]
[null,11,"The soil structure provides an appropriate foundation for solar. ","Ground-mount systems are generally either built on foundations (piles) driven into the ground or on above-ground ballasts. If soil penetration limits exist for a contaminated site, a ballasted system will likely be required. For pile-driven installations, soft or rocky soils, corrosive soils, and shallow bedrock will require more drilling, specialized posts, and/or deeper embedment of posts (thus driving up costs). For ballasted systems, soil stability will influence project costs. For both types, the presence of groundwater could make solar infeasible.\n\nAction: As an initial step, if a ballasted system is likely for this site, answer questions 1-2; if a pile-driven system is likely, answer all of following: (1) Soil type: Are the soils soft? Is it within 0.25 miles of a body of water (potentially indicating a soft river or lake bed)? Is the site extremely rocky? (2) Presence of shallow groundwater: Do the soils appear saturated? Are there signs of running water on-site? Are there arroyos or other drainage features onsite? Do any nearby wells indicate that the water table is less than 10 ft below surface level? (3) Shallow bedrock: Is there shallow or exposed bedrock present? (4) Corrosivity: Do you have strong reason to believe the soils may be highly corrosive (e.g., previous soil tests nearby)? Are there adjacent sources of pollution (e.g. coal plant next door)? If you answered \"yes\" to any of the above questions, mark your response to this checklist item as \"No\" for this site. \n\nNote: In the early stages of site evaluation, you could conduct a preliminary geotechnical study (~$3k-10k) that checks for groundwater, soil type, and bedrock depth. This can indicate which site(s) may have lower racking costs. If you move forward, you will need a professional geotech investigation (~$10k-40k) to assess how subsurface conditions will impact project design and costs. Not all geotechnical engineers are experienced in site evaluations for solar, so ensure the following are completed along with other standard tests: a Standard Penetration Test (SPT) beginning at the surface level (not deeper); a shear test in the upper 7 ft of soil (testing for cohesion and friction to inform foundation design); laboratory tests for corrosion, redox, chlorides, and sulfides; and a field test for resistivity in the upper 3-4 ft of soil. Once a project is nearing the site design stage, a pile test should also be completed to inform racking design. A solar contractor can handle all of these tests. ",null,"-"]
[null,12,"The cost of grading this site will be reasonable.\nOR\nRegrading will not be needed.","A steep, un-smooth, or undulating site will likely require grading, especially for larger projects. Re-grading large portions of a site can be prohibitively costly (around $2 per sq.ft. or $87,000 per acre). It can also require additional approvals from the site manager, investigation of state regulation around grading, and plans for revegetation. \n\nKeep in mind that fixed-tilt PV systems have lower capital cost and can be located on undulating topography (requiring less grading). On the other hand, single-axis tracking systems have higher capital and O&M costs and require smoother lands (more grading), but can increase the amount of electricity generated by ~20%.\n\nAction: If your site may require regrading, request an initial grading estimate from a local contractor. Be sure to convey the level of contamination.",null,"-"]
[null,13,"The site could be safely accessed by vehicles carrying equipment and materials.","Contractor vehicles will need to access the site during construction and operation. Developing extensive access roads may compromise the overall project economics.\n\nAction: Check road access and vehicle weight limits.  Coordinate with your local, state, or federal department of transportation (or equivalent) to address site access concerns and costs. ",null,"-"]
[null,14,"Extreme wind speeds are not expected to be an issue at this site.","Action: Consult local building codes to assess whether extreme wind speeds are higher at this site as compared to other sites you are considering. More extreme wind speeds will require additional engineering and materials to secure the PV mounting system, thus increasing costs. ",null,"-"]
[null,"Permitting and regulation"]
[null,15,"We have engaged with the state’s appropriate Department of Environmental Protection to discuss necessary actions and documentation required for development on this site.","Action: Engage with the state’s appropriate Department of Environmental Protection early on to ensure that your project’s timeline will not be significantly delayed by required compliance and documentation.",null,"-"]
[null,16,"We have investigated liability concerns associated with EPA oversight AND state and/or local oversight of development on this site. ","It is very important to understand the assignment of liabilities and cleanup responsibilities to all stakeholders involved in the development and operation of a solar PV project on this site. This information will be particularly important to share with solar developers, who may view contaminated lands projects as risky. Federal, state, and local regulations will determine liability. \n\nAction: Consult legal counsel or project engineers who specialize in development on contaminated lands to assess liability concerns. You can also learn more about EPA oversight using the following resources:\n-\tEPA’s “Revitalization Handbook” – provides important guidance on addressing liability concerns for project development on contaminated lands.\n-\t“Will I be Held Liable for Existing Contamination?” – section of EPA RE-Powering America’s Land website with useful information on protections and liabilities.\n-\tComprehensive Environmental Response, Compensation, and Liability Act (CERCLA) – contains specific statutory protections against potential liability. Three important CERCLA liability protections are: Bona Fide Prospective Purchasers (BFPPS), contiguous property owners, and innocent landowners. \n-\tComfort and Status Letters – provide information about a site and the EPA’s intentions with respect to the property. Useful for assessing liability concerns and development risks.\n-\t“Ready for Reuse” Determination – technical report on the environmental condition of a site\n\nThe following resources provide information related to state oversight:\n-\tEPA’s “2017 State Brownfields and Voluntary Response Programs” and “Cleaning up Brownfields under State Response Programs – Getting to ‘No Further Action’” – provide state-specific information on brownfield cleanup and redevelopment.\n-\tState regulatory authorities should be also consulted to determine liability risk related to state programs."]
[null,17,"The site does not contain easements, encumbrances, or rights-of-way (ROWs) for pipelines, utility infrastructure, rail roads, or roadways.  ","Easements, encumbrances, and ROWs can significantly limit solar development on a site.\n\nAction: Check with your local planning and zoning department, utility company, and/or transportation authorities to see if any of these land use agreements exist for this site or if any expansions are planned during the lifetime of the PV project.",null,"-"]
[null,18,"Mineral rights are controlled by the site owner (e.g., the municipality).\nOR \nMineral right waivers can be easily secured. ","In some areas, site-owners may not control the rights to the minerals below the site.\n\nAction: If surface and mineral rights are severed, work with your team or a solar developer to gain consent of all mineral rights owners (in the form of a \"surface use agreement\") at the site before proceeding with construction. Identifying and gaining consent of mineral rights owners can be time-consuming, so be sure to start this step early.",null,"-"]
[null,19,"The site is more than 10 miles from an airport.\nOR \nIf less than 10 miles from an airport, we have contacted the airport to inquire about restrictions or procedures (e.g. glare study).","Action: Use Google Earth's Measure tool (appears as a ruler) to check the site's distance from the closest airport. If within 10 miles, check with the airport or your local FAA Regional & District/Development Offices about their rules for nearby developments. "]
[null,20,"We have accounted for structure setback regulations/ordinances, adjusted the total usable space accordingly, and the project still meets our minimum project size requirement.","Most states or local governments have their own rules regarding setback requirements from wetlands, streams, wildlife habitats, or other sensitive areas. For ground-mounted systems, fire codes from the National Fire Protection Association require a 10-foot clear area around PV arrays for emergency vehicle access.\n\nAction: Search the NFPA CodeFinder, contact your state's Department of Environmental Protection (or equivalent), and/or contact your planning and zoning department to determine setback requirements.  "]
[null,21,"We have identified the local, state, and federal construction and operating permits required for this project.","Action: Review the \"Permits\" tab and determine which of the standard permits are likely to be required for this project. While the solar developer for this project will most likely handle all of the permitting, it is useful to develop an understanding of the types of required permits and the amount of time these may take to complete. The state’s Department of Environmental Protection (or similarly-named entity) and other city and state government points of contact can also assist with regulatory review requirements.",null,"-"]
[null,22,"We have considered whether an environmental assessment will need to be conducted to evaluate the impacts of installation, operation, and eventual removal of solar PV on this site.","The requirements for an environmental assessment will depend on local jurisdictions. Building on or near federal lands or wetlands may also trigger additional lengthy environmental review. Funding for an environmental assessment of a brownfield site may be available through the EPA's Brownfields Program Grant Page. \n\nAction: Consult your local AHJ, state's Department Environmental Protection, or a solar developer to determine if/what kind of environmental assessments may be necessary. "]
[null,23,"Existing institutional controls (ICs) and engineering controls (ECs) for the site have been reviewed. Considering the physical (e.g. fences) and administrative/legal (e.g. deed restrictions) measures in these documents, we have determined that solar development can still take place.","ICs and ECs are intended to minimize the potential for exposure to contamination and/or sustain remediation activities. States have specific rules regarding ICs. In New York, for example development on a brownfield site with an IC on the property requires that the developer notify the NYSDEC’s Division of Environmental Remediation of the site’s change in use. More information on ICs at contaminated sites can be found on the EPA’s Cleanups at Federal Facilities page. \n\nAction: Determine how ICs/ECs on this site may impact the feasibility of PV development. Eventually, you will need to conduct a site-specific inquiry to assess if new IC/EC, monitoring activities, and period reviews may be necessary."]
[null,24,"The PV system will be compatible with the stormwater management plan at this site. ","Action: Review the stormwater management plan for this site. Maintained vegetation may be sufficient, depending upon the height and angle of the panels. As necessary, coordinate with the state waste management office to update the stormwater pollution prevention plan (SWPPP) to address discharge from the PV arrays. Consider if it may be possible to use rain gutters on PV arrays to channel stormwater runoff to swales or retention ponds.",null,"-"]
[null,"Revegetation and Pollinators"]
[null,25,"We have considered whether revegetation will be necessary and have made plans accordingly.","Solar installations often entail disturbance or removal of existing vegetation, particularly if the site will be cleared or graded, or if topsoil will be stripped or compacted. Revegetation beneath and between solar arrays can help maintain ecosystem functions at the site. \n\nAction: Determine whether a revegetation plan should be developed. This plan should consider local conditions of soils and climate as well as constraints of the physical array design. ",null,"-"]
[null,26,"We have considered making this site pollinator friendly.","Planting native and pollinator-friendly plants on solar sites can provide agricultural and ecological advantages over traditional turf or gravel.\n\nAction: Review pollinator-friendly solar initiatives in MN, MD, SC, VT, NY, IL, and MI in the CleanEnergy States Alliance (CESA) pollinator report. You may also consider using the Michigan Pollinator Habitat Planning Scorecard for Solar Sites (or more state-specific guidance) to make your chosen solar site pollinator-friendly."]

{"sheet":"4e) Landfill Checklist","index":10,"n_rows":64,"n_cols":106,"rows_kept":64,"cut":false,"hidden":false,"merged":[[28,3,28,4],[29,3,29,4],[30,3,30,4],[42,3,42,4],[31,3,31,4],[32,3,32,4],[33,3,33,4],[34,3,34,4],[35,3,35,4],[36,3,36,4],[37,3,37,4],[38,3,38,4],[39,3,39,4],[40,3,40,4],[41,3,41,4],[43,3,43,4],[44,3,44,4],[45,3,45,4],[46,3,46,4],[47,3,47,4],[61,3,61,4],[62,3,62,4],[63,3,63,4],[48,3,48,4],[55,3,55,4],[56,3,56,4],[57,3,57,4],[58,3,58,4],[59,3,59,4],[60,3,60,4],[49,3,49,4],[50,3,50,4],[51,3,51,4],[52,3,52,4],[53,3,53,4],[54,3,54,4],[22,4,22,5],[23,4,23,5],[24,4,24,5],[25,4,25,5],[19,4,19,5],[20,4,20,5],[21,4,21,5]]}
[null,"4e. Secondary Screening for Landfill Sites"]
[]
[]
[]
[]
[]
[]
[]
[]
[]
[]
[]
[]
[]
[]
[]
[]
[]
[]
[null,null,null,null,"Site Number:"]
[null,null,null,null,"Site Name:",null,{"$f":"IF(G20<>\"\",VLOOKUP(G20,'3) Pre-Screened Sites'!$B$33:$D$231,2,FALSE),\"\")","v":""},{"$f":"IF(H20<>\"\",VLOOKUP(H20,'3) Pre-Screened Sites'!$B$33:$D$231,2,FALSE),\"\")","v":""},{"$f":"IF(I20<>\"\",VLOOKUP(I20,'3) Pre-Screened Sites'!$B$33:$D$231,2,FALSE),\"\")","v":""},{"$f":"IF(J20<>\"\",VLOOKUP(J20,'3) Pre-Screened Sites'!$B$33:$D$231,2,FALSE),\"\")","v":""},{"$f":"IF(K20<>\"\",VLOOKUP(K20,'3) Pre-Screened Sites'!$B$33:$D$231,2,FALSE),\"\")","v":""},{"$f":"IF(L20<>\"\",VLOOKUP(L20,'3) Pre-Screened Sites'!$B$33:$D$231,2,FALSE),\"\")","v":""},{"$f":"IF(M20<>\"\",VLOOKUP(M20,'3) Pre-Screened Sites'!$B$33:$D$231,2,FALSE),\"\")","v":""},{"$f":"IF(N20<>\"\",VLOOKUP(N20,'3) Pre-Screened Sites'!$B$33:$D$231,2,FALSE),\"\")","v":""},{"$f":"IF(O20<>\"\",VLOOKUP(O20,'3) Pre-Screened Sites'!$B$33:$D$231,2,FALSE),\"\")","v":""},{"$f":"IF(P20<>\"\",VLOOKUP(P20,'3) Pre-Screened Sites'!$B$33:$D$231,2,FALSE),\"\")","v":""},{"$f":"IF(Q20<>\"\",VLOOKUP(Q20,'3) Pre-Screened Sites'!$B$33:$D$231,2,FALSE),\"\")","v":""},{"$f":"IF(R20<>\"\",VLOOKUP(R20,'3) Pre-Screened Sites'!$B$33:$D$231,2,FALSE),\"\")","v":""},{"$f":"IF(S20<>\"\",VLOOKUP(S20,'3) Pre-Screened Sites'!$B$33:$D$231,2,FALSE),\"\")","v":""},{"$f":"IF(T20<>\"\",VLOOKUP(T20,'3) Pre-Screened Sites'!$B$33:$D$231,2,FALSE),\"\")","v":""},{"$f":"IF(U20<>\"\",VLOOKUP(U20,'3) Pre-Screened Sites'!$B$33:$D$231,2,FALSE),\"\")","v":""},{"$f":"IF(V20<>\"\",VLOOKUP(V20,'3) Pre-Screened Sites'!$B$33:$D$231,2,FALSE),\"\")","v":""},{"$f":"IF(W20<>\"\",VLOOKUP(W20,'3) Pre-Screened Sites'!$B$33:$D$231,2,FALSE),\"\")","v":""},{"$f":"IF(X20<>\"\",VLOOKUP(X20,'3) Pre-Screened Sites'!$B$33:$D$231,2,FALSE),\"\")","v":""},{"$f":"IF(Y20<>\"\",VLOOKUP(Y20,'3) Pre-Screened Sites'!$B$33:$D$231,2,FALSE),\"\")","v":""},{"$f":"IF(Z20<>\"\",VLOOKUP(Z20,'3) Pre-Screened Sites'!$B$33:$D$231,2,FALSE),\"\")","v":""},{"$f":"IF(AA20<>\"\",VLOOKUP(AA20,'3) Pre-Screened Sites'!$B$33:$D$231,2,FALSE),\"\")","v":""},{"$f":"IF(AB20<>\"\",VLOOKUP(AB20,'3) Pre-Screened Sites'!$B$33:$D$231,2,FALSE),\"\")","v":""},{"$f":"IF(AC20<>\"\",VLOOKUP(AC20,'3) Pre-Screened Sites'!$B$33:$D$231,2,FALSE),\"\")","v":""},{"$f":"IF(AD20<>\"\",VLOOKUP(AD20,'3) Pre-Screened Sites'!$B$33:$D$231,2,FALSE),\"\")","v":""},{"$f":"IF(AE20<>\"\",VLOOKUP(AE20,'3) Pre-Screened Sites'!$B$33:$D$231,2,FALSE),\"\")","v":""},{"$f":"IF(AF20<>\"\",VLOOKUP(AF20,'3) Pre-Screened Sites'!$B$33:$D$231,2,FALSE),\"\")","v":""},{"$f":"IF(AG20<>\"\",VLOOKUP(AG20,'3) Pre-Screened Sites'!$B$33:$D$231,2,FALSE),\"\")","v":""},{"$f":"IF(AH20<>\"\",VLOOKUP(AH20,'3) Pre-Screened Sites'!$B$33:$D$231,2,FALSE),\"\")","v":""},{"$f":"IF(AI20<>\"\",VLOOKUP(AI20,'3) Pre-Screened Sites'!$B$33:$D$231,2,FALSE),\"\")","v":""},{"$f":"IF(AJ20<>\"\",VLOOKUP(AJ20,'3) Pre-Screened Sites'!$B$33:$D$231,2,FALSE),\"\")","v":""},{"$f":"IF(AK20<>\"\",VLOOKUP(AK20,'3) Pre-Screened Sites'!$B$33:$D$231,2,FALSE),\"\")","v":""},{"$f":"IF(AL20<>\"\",VLOOKUP(AL20,'3) Pre-Screened Sites'!$B$33:$D$231,2,FALSE),\"\")","v":""},{"$f":"IF(AM20<>\"\",VLOOKUP(AM20,'3) Pre-Screened Sites'!$B$33:$D$231,2,FALSE),\"\")","v":""},{"$f":"IF(AN20<>\"\",VLOOKUP(AN20,'3) Pre-Screened Sites'!$B$33:$D$231,2,FALSE),\"\")","v":""},{"$f":"IF(AO20<>\"\",VLOOKUP(AO20,'3) Pre-Screened Sites'!$B$33:$D$231,2,FALSE),\"\")","v":""},{"$f":"IF(AP20<>\"\",VLOOKUP(AP20,'3) Pre-Screened Sites'!$B$33:$D$231,2,FALSE),\"\")","v":""},{"$f":"IF(AQ20<>\"\",VLOOKUP(AQ20,'3) Pre-Screened Sites'!$B$33:$D$231,2,FALSE),\"\")","v":""},{"$f":"IF(AR20<>\"\",VLOOKUP(AR20,'3) Pre-Screened Sites'!$B$33:$D$231,2,FALSE),\"\")","v":""},{"$f":"IF(AS20<>\"\",VLOOKUP(AS20,'3) Pre-Screened Sites'!$B$33:$D$231,2,FALSE),\"\")","v":""},{"$f":"IF(AT20<>\"\",VLOOKUP(AT20,'3) Pre-Screened Sites'!$B$33:$D$231,2,FALSE),\"\")","v":""},{"$f":"IF(AU20<>\"\",VLOOKUP(AU20,'3) Pre-Screened Sites'!$B$33:$D$231,2,FALSE),\"\")","v":""},{"$f":"IF(AV20<>\"\",VLOOKUP(AV20,'3) Pre-Screened Sites'!$B$33:$D$231,2,FALSE),\"\")","v":""},{"$f":"IF(AW20<>\"\",VLOOKUP(AW20,'3) Pre-Screened Sites'!$B$33:$D$231,2,FALSE),\"\")","v":""},{"$f":"IF(AX20<>\"\",VLOOKUP(AX20,'3) Pre-Screened Sites'!$B$33:$D$231,2,FALSE),\"\")","v":""},{"$f":"IF(AY20<>\"\",VLOOKUP(AY20,'3) Pre-Screened Sites'!$B$33:$D$231,2,FALSE),\"\")","v":""},{"$f":"IF(AZ20<>\"\",VLOOKUP(AZ20,'3) Pre-Screened Sites'!$B$33:$D$231,2,FALSE),\"\")","v":""},{"$f":"IF(BA20<>\"\",VLOOKUP(BA20,'3) Pre-Screened Sites'!$B$33:$D$231,2,FALSE),\"\")","v":""},{"$f":"IF(BB20<>\"\",VLOOKUP(BB20,'3) Pre-Screened Sites'!$B$33:$D$231,2,FALSE),\"\")","v":""},{"$f":"IF(BC20<>\"\",VLOOKUP(BC20,'3) Pre-Screened Sites'!$B$33:$D$231,2,FALSE),\"\")","v":""},{"$f":"IF(BD20<>\"\",VLOOKUP(BD20,'3) Pre-Screened Sites'!$B$33:$D$231,2,FALSE),\"\")","v":""},{"$f":"IF(BE20<>\"\",VLOOKUP(BE20,'3) Pre-Screened Sites'!$B$33:$D$231,2,FALSE),\"\")","v":""},{"$f":"IF(BF20<>\"\",VLOOKUP(BF20,'3) Pre-Screened Sites'!$B$33:$D$231,2,FALSE),\"\")","v":""},{"$f":"IF(BG20<>\"\",VLOOKUP(BG20,'3) Pre-Screened Sites'!$B$33:$D$231,2,FALSE),\"\")","v":""},{"$f":"IF(BH20<>\"\",VLOOKUP(BH20,'3) Pre-Screened Sites'!$B$33:$D$231,2,FALSE),\"\")","v":""},{"$f":"IF(BI20<>\"\",VLOOKUP(BI20,'3) Pre-Screened Sites'!$B$33:$D$231,2,FALSE),\"\")","v":""},{"$f":"IF(BJ20<>\"\",VLOOKUP(BJ20,'3) Pre-Screened Sites'!$B$33:$D$231,2,FALSE),\"\")","v":""},{"$f":"IF(BK20<>\"\",VLOOKUP(BK20,'3) Pre-Screened Sites'!$B$33:$D$231,2,FALSE),\"\")","v":""},{"$f":"IF(BL20<>\"\",VLOOKUP(BL20,'3) Pre-Screened Sites'!$B$33:$D$231,2,FALSE),\"\")","v":""},{"$f":"IF(BM20<>\"\",VLOOKUP(BM20,'3) Pre-Screened Sites'!$B$33:$D$231,2,FALSE),\"\")","v":""},{"$f":"IF(BN20<>\"\",VLOOKUP(BN20,'3) Pre-Screened Sites'!$B$33:$D$231,2,FALSE),\"\")","v":""},{"$f":"IF(BO20<>\"\",VLOOKUP(BO20,'3) Pre-Screened Sites'!$B$33:$D$231,2,FALSE),\"\")","v":""},{"$f":"IF(BP20<>\"\",VLOOKUP(BP20,'3) Pre-Screened Sites'!$B$33:$D$231,2,FALSE),\"\")","v":""},{"$f":"IF(BQ20<>\"\",VLOOKUP(BQ20,'3) Pre-Screened Sites'!$B$33:$D$231,2,FALSE),\"\")","v":""},{"$f":"IF(BR20<>\"\",VLOOKUP(BR20,'3) Pre-Screened Sites'!$B$33:$D$231,2,FALSE),\"\")","v":""},{"$f":"IF(BS20<>\"\",VLOOKUP(BS20,'3) Pre-Screened Sites'!$B$33:$D$231,2,FALSE),\"\")","v":""},{"$f":"IF(BT20<>\"\",VLOOKUP(BT20,'3) Pre-Screened Sites'!$B$33:$D$231,2,FALSE),\"\")","v":""},{"$f":"IF(BU20<>\"\",VLOOKUP(BU20,'3) Pre-Screened Sites'!$B$33:$D$231,2,FALSE),\"\")","v":""},{"$f":"IF(BV20<>\"\",VLOOKUP(BV20,'3) Pre-Screened Sites'!$B$33:$D$231,2,FALSE),\"\")","v":""},{"$f":"IF(BW20<>\"\",VLOOKUP(BW20,'3) Pre-Screened Sites'!$B$33:$D$231,2,FALSE),\"\")","v":""},{"$f":"IF(BX20<>\"\",VLOOKUP(BX20,'3) Pre-Screened Sites'!$B$33:$D$231,2,FALSE),\"\")","v":""},{"$f":"IF(BY20<>\"\",VLOOKUP(BY20,'3) Pre-Screened Sites'!$B$33:$D$231,2,FALSE),\"\")","v":""},{"$f":"IF(BZ20<>\"\",VLOOKUP(BZ20,'3) Pre-Screened Sites'!$B$33:$D$231,2,FALSE),\"\")","v":""},{"$f":"IF(CA20<>\"\",VLOOKUP(CA20,'3) Pre-Screened Sites'!$B$33:$D$231,2,FALSE),\"\")","v":""},{"$f":"IF(CB20<>\"\",VLOOKUP(CB20,'3) Pre-Screened Sites'!$B$33:$D$231,2,FALSE),\"\")","v":""},{"$f":"IF(CC20<>\"\",VLOOKUP(CC20,'3) Pre-Screened Sites'!$B$33:$D$231,2,FALSE),\"\")","v":""},{"$f":"IF(CD20<>\"\",VLOOKUP(CD20,'3) Pre-Screened Sites'!$B$33:$D$231,2,FALSE),\"\")","v":""},{"$f":"IF(CE20<>\"\",VLOOKUP(CE20,'3) Pre-Screened Sites'!$B$33:$D$231,2,FALSE),\"\")","v":""},{"$f":"IF(CF20<>\"\",VLOOKUP(CF20,'3) Pre-Screened Sites'!$B$33:$D$231,2,FALSE),\"\")","v":""},{"$f":"IF(CG20<>\"\",VLOOKUP(CG20,'3) Pre-Screened Sites'!$B$33:$D$231,2,FALSE),\"\")","v":""},{"$f":"IF(CH20<>\"\",VLOOKUP(CH20,'3) Pre-Screened Sites'!$B$33:$D$231,2,FALSE),\"\")","v":""},{"$f":"IF(CI20<>\"\",VLOOKUP(CI20,'3) Pre-Screened Sites'!$B$33:$D$231,2,FALSE),\"\")","v":""},{"$f":"IF(CJ20<>\"\",VLOOKUP(CJ20,'3) Pre-Screened Sites'!$B$33:$D$231,2,FALSE),\"\")","v":""},{"$f":"IF(CK20<>\"\",VLOOKUP(CK20,'3) Pre-Screened Sites'!$B$33:$D$231,2,FALSE),\"\")","v":""},{"$f":"IF(CL20<>\"\",VLOOKUP(CL20,'3) Pre-Screened Sites'!$B$33:$D$231,2,FALSE),\"\")","v":""},{"$f":"IF(CM20<>\"\",VLOOKUP(CM20,'3) Pre-Screened Sites'!$B$33:$D$231,2,FALSE),\"\")","v":""},{"$f":"IF(CN20<>\"\",VLOOKUP(CN20,'3) Pre-Screened Sites'!$B$33:$D$231,2,FALSE),\"\")","v":""},{"$f":"IF(CO20<>\"\",VLOOKUP(CO20,'3) Pre-Screened Sites'!$B$33:$D$231,2,FALSE),\"\")","v":""},{"$f":"IF(CP20<>\"\",VLOOKUP(CP20,'3) Pre-Screened Sites'!$B$33:$D$231,2,FALSE),\"\")","v":""},{"$f":"IF(CQ20<>\"\",VLOOKUP(CQ20,'3) Pre-Screened Sites'!$B$33:$D$231,2,FALSE),\"\")","v":""},{"$f":"IF(CR20<>\"\",VLOOKUP(CR20,'3) Pre-Screened Sites'!$B$33:$D$231,2,FALSE),\"\")","v":""},{"$f":"IF(CS20<>\"\",VLOOKUP(CS20,'3) Pre-Screened Sites'!$B$33:$D$231,2,FALSE),\"\")","v":""},{"$f":"IF(CT20<>\"\",VLOOKUP(CT20,'3) Pre-Screened Sites'!$B$33:$D$231,2,FALSE),\"\")","v":""},{"$f":"IF(CU20<>\"\",VLOOKUP(CU20,'3) Pre-Screened Sites'!$B$33:$D$231,2,FALSE),\"\")","v":""},{"$f":"IF(CV20<>\"\",VLOOKUP(CV20,'3) Pre-Screened Sites'!$B$33:$D$231,2,FALSE),\"\")","v":""},{"$f":"IF(CW20<>\"\",VLOOKUP(CW20,'3) Pre-Screened Sites'!$B$33:$D$231,2,FALSE),\"\")","v":""},{"$f":"IF(CX20<>\"\",VLOOKUP(CX20,'3) Pre-Screened Sites'!$B$33:$D$231,2,FALSE),\"\")","v":""},{"$f":"IF(CY20<>\"\",VLOOKUP(CY20,'3) Pre-Screened Sites'!$B$33:$D$231,2,FALSE),\"\")","v":""},{"$f":"IF(CZ20<>\"\",VLOOKUP(CZ20,'3) Pre-Screened Sites'!$B$33:$D$231,2,FALSE),\"\")","v":""},{"$f":"IF(DA20<>\"\",VLOOKUP(DA20,'3) Pre-Screened Sites'!$B$33:$D$231,2,FALSE),\"\")","v":""},{"$f":"IF(DB20<>\"\",VLOOKUP(DB20,'3) Pre-Screened Sites'!$B$33:$D$231,2,FALSE),\"\")","v":""}]
[null,null,null,null,"Site Address:",null,{"$f":"IF(G20<>\"\",VLOOKUP(G20,'3) Pre-Screened Sites'!$B$33:$D$231,3,FALSE),\"\")","v":""},{"$f":"IF(H20<>\"\",VLOOKUP(H20,'3) Pre-Screened Sites'!$B$33:$D$231,3,FALSE),\"\")","v":""},{"$f":"IF(I20<>\"\",VLOOKUP(I20,'3) Pre-Screened Sites'!$B$33:$D$231,3,FALSE),\"\")","v":""},{"$f":"IF(J20<>\"\",VLOOKUP(J20,'3) Pre-Screened Sites'!$B$33:$D$231,3,FALSE),\"\")","v":""},{"$f":"IF(K20<>\"\",VLOOKUP(K20,'3) Pre-Screened Sites'!$B$33:$D$231,3,FALSE),\"\")","v":""},{"$f":"IF(L20<>\"\",VLOOKUP(L20,'3) Pre-Screened Sites'!$B$33:$D$231,3,FALSE),\"\")","v":""},{"$f":"IF(M20<>\"\",VLOOKUP(M20,'3) Pre-Screened Sites'!$B$33:$D$231,3,FALSE),\"\")","v":""},{"$f":"IF(N20<>\"\",VLOOKUP(N20,'3) Pre-Screened Sites'!$B$33:$D$231,3,FALSE),\"\")","v":""},{"$f":"IF(O20<>\"\",VLOOKUP(O20,'3) Pre-Screened Sites'!$B$33:$D$231,3,FALSE),\"\")","v":""},{"$f":"IF(P20<>\"\",VLOOKUP(P20,'3) Pre-Screened Sites'!$B$33:$D$231,3,FALSE),\"\")","v":""},{"$f":"IF(Q20<>\"\",VLOOKUP(Q20,'3) Pre-Screened Sites'!$B$33:$D$231,3,FALSE),\"\")","v":""},{"$f":"IF(R20<>\"\",VLOOKUP(R20,'3) Pre-Screened Sites'!$B$33:$D$231,3,FALSE),\"\")","v":""},{"$f":"IF(S20<>\"\",VLOOKUP(S20,'3) Pre-Screened Sites'!$B$33:$D$231,3,FALSE),\"\")","v":""},{"$f":"IF(T20<>\"\",VLOOKUP(T20,'3) Pre-Screened Sites'!$B$33:$D$231,3,FALSE),\"\")","v":""},{"$f":"IF(U20<>\"\",VLOOKUP(U20,'3) Pre-Screened Sites'!$B$33:$D$231,3,FALSE),\"\")","v":""},{"$f":"IF(V20<>\"\",VLOOKUP(V20,'3) Pre-Screened Sites'!$B$33:$D$231,3,FALSE),\"\")","v":""},{"$f":"IF(W20<>\"\",VLOOKUP(W20,'3) Pre-Screened Sites'!$B$33:$D$231,3,FALSE),\"\")","v":""},{"$f":"IF(X20<>\"\",VLOOKUP(X20,'3) Pre-Screened Sites'!$B$33:$D$231,3,FALSE),\"\")","v":""},{"$f":"IF(Y20<>\"\",VLOOKUP(Y20,'3) Pre-Screened Sites'!$B$33:$D$231,3,FALSE),\"\")","v":""},{"$f":"IF(Z20<>\"\",VLOOKUP(Z20,'3) Pre-Screened Sites'!$B$33:$D$231,3,FALSE),\"\")","v":""},{"$f":"IF(AA20<>\"\",VLOOKUP(AA20,'3) Pre-Screened Sites'!$B$33:$D$231,3,FALSE),\"\")","v":""},{"$f":"IF(AB20<>\"\",VLOOKUP(AB20,'3) Pre-Screened Sites'!$B$33:$D$231,3,FALSE),\"\")","v":""},{"$f":"IF(AC20<>\"\",VLOOKUP(AC20,'3) Pre-Screened Sites'!$B$33:$D$231,3,FALSE),\"\")","v":""},{"$f":"IF(AD20<>\"\",VLOOKUP(AD20,'3) Pre-Screened Sites'!$B$33:$D$231,3,FALSE),\"\")","v":""},{"$f":"IF(AE20<>\"\",VLOOKUP(AE20,'3) Pre-Screened Sites'!$B$33:$D$231,3,FALSE),\"\")","v":""},{"$f":"IF(AF20<>\"\",VLOOKUP(AF20,'3) Pre-Screened Sites'!$B$33:$D$231,3,FALSE),\"\")","v":""},{"$f":"IF(AG20<>\"\",VLOOKUP(AG20,'3) Pre-Screened Sites'!$B$33:$D$231,3,FALSE),\"\")","v":""},{"$f":"IF(AH20<>\"\",VLOOKUP(AH20,'3) Pre-Screened Sites'!$B$33:$D$231,3,FALSE),\"\")","v":""},{"$f":"IF(AI20<>\"\",VLOOKUP(AI20,'3) Pre-Screened Sites'!$B$33:$D$231,3,FALSE),\"\")","v":""},{"$f":"IF(AJ20<>\"\",VLOOKUP(AJ20,'3) Pre-Screened Sites'!$B$33:$D$231,3,FALSE),\"\")","v":""},{"$f":"IF(AK20<>\"\",VLOOKUP(AK20,'3) Pre-Screened Sites'!$B$33:$D$231,3,FALSE),\"\")","v":""},{"$f":"IF(AL20<>\"\",VLOOKUP(AL20,'3) Pre-Screened Sites'!$B$33:$D$231,3,FALSE),\"\")","v":""},{"$f":"IF(AM20<>\"\",VLOOKUP(AM20,'3) Pre-Screened Sites'!$B$33:$D$231,3,FALSE),\"\")","v":""},{"$f":"IF(AN20<>\"\",VLOOKUP(AN20,'3) Pre-Screened Sites'!$B$33:$D$231,3,FALSE),\"\")","v":""},{"$f":"IF(AO20<>\"\",VLOOKUP(AO20,'3) Pre-Screened Sites'!$B$33:$D$231,3,FALSE),\"\")","v":""},{"$f":"IF(AP20<>\"\",VLOOKUP(AP20,'3) Pre-Screened Sites'!$B$33:$D$231,3,FALSE),\"\")","v":""},{"$f":"IF(AQ20<>\"\",VLOOKUP(AQ20,'3) Pre-Screened Sites'!$B$33:$D$231,3,FALSE),\"\")","v":""},{"$f":"IF(AR20<>\"\",VLOOKUP(AR20,'3) Pre-Screened Sites'!$B$33:$D$231,3,FALSE),\"\")","v":""},{"$f":"IF(AS20<>\"\",VLOOKUP(AS20,'3) Pre-Screened Sites'!$B$33:$D$231,3,FALSE),\"\")","v":""},{"$f":"IF(AT20<>\"\",VLOOKUP(AT20,'3) Pre-Screened Sites'!$B$33:$D$231,3,FALSE),\"\")","v":""},{"$f":"IF(AU20<>\"\",VLOOKUP(AU20,'3) Pre-Screened Sites'!$B$33:$D$231,3,FALSE),\"\")","v":""},{"$f":"IF(AV20<>\"\",VLOOKUP(AV20,'3) Pre-Screened Sites'!$B$33:$D$231,3,FALSE),\"\")","v":""},{"$f":"IF(AW20<>\"\",VLOOKUP(AW20,'3) Pre-Screened Sites'!$B$33:$D$231,3,FALSE),\"\")","v":""},{"$f":"IF(AX20<>\"\",VLOOKUP(AX20,'3) Pre-Screened Sites'!$B$33:$D$231,3,FALSE),\"\")","v":""},{"$f":"IF(AY20<>\"\",VLOOKUP(AY20,'3) Pre-Screened Sites'!$B$33:$D$231,3,FALSE),\"\")","v":""},{"$f":"IF(AZ20<>\"\",VLOOKUP(AZ20,'3) Pre-Screened Sites'!$B$33:$D$231,3,FALSE),\"\")","v":""},{"$f":"IF(BA20<>\"\",VLOOKUP(BA20,'3) Pre-Screened Sites'!$B$33:$D$231,3,FALSE),\"\")","v":""},{"$f":"IF(BB20<>\"\",VLOOKUP(BB20,'3) Pre-Screened Sites'!$B$33:$D$231,3,FALSE),\"\")","v":""},{"$f":"IF(BC20<>\"\",VLOOKUP(BC20,'3) Pre-Screened Sites'!$B$33:$D$231,3,FALSE),\"\")","v":""},{"$f":"IF(BD20<>\"\",VLOOKUP(BD20,'3) Pre-Screened Sites'!$B$33:$D$231,3,FALSE),\"\")","v":""},{"$f":"IF(BE20<>\"\",VLOOKUP(BE20,'3) Pre-Screened Sites'!$B$33:$D$231,3,FALSE),\"\")","v":""},{"$f":"IF(BF20<>\"\",VLOOKUP(BF20,'3) Pre-Screened Sites'!$B$33:$D$231,3,FALSE),\"\")","v":""},{"$f":"IF(BG20<>\"\",VLOOKUP(BG20,'3) Pre-Screened Sites'!$B$33:$D$231,3,FALSE),\"\")","v":""},{"$f":"IF(BH20<>\"\",VLOOKUP(BH20,'3) Pre-Screened Sites'!$B$33:$D$231,3,FALSE),\"\")","v":""},{"$f":"IF(BI20<>\"\",VLOOKUP(BI20,'3) Pre-Screened Sites'!$B$33:$D$231,3,FALSE),\"\")","v":""},{"$f":"IF(BJ20<>\"\",VLOOKUP(BJ20,'3) Pre-Screened Sites'!$B$33:$D$231,3,FALSE),\"\")","v":""},{"$f":"IF(BK20<>\"\",VLOOKUP(BK20,'3) Pre-Screened Sites'!$B$33:$D$231,3,FALSE),\"\")","v":""},{"$f":"IF(BL20<>\"\",VLOOKUP(BL20,'3) Pre-Screened Sites'!$B$33:$D$231,3,FALSE),\"\")","v":""},{"$f":"IF(BM20<>\"\",VLOOKUP(BM20,'3) Pre-Screened Sites'!$B$33:$D$231,3,FALSE),\"\")","v":""},{"$f":"IF(BN20<>\"\",VLOOKUP(BN20,'3) Pre-Screened Sites'!$B$33:$D$231,3,FALSE),\"\")","v":""},{"$f":"IF(BO20<>\"\",VLOOKUP(BO20,'3) Pre-Screened Sites'!$B$33:$D$231,3,FALSE),\"\")","v":""},{"$f":"IF(BP20<>\"\",VLOOKUP(BP20,'3) Pre-Screened Sites'!$B$33:$D$231,3,FALSE),\"\")","v":""},{"$f":"IF(BQ20<>\"\",VLOOKUP(BQ20,'3) Pre-Screened Sites'!$B$33:$D$231,3,FALSE),\"\")","v":""},{"$f":"IF(BR20<>\"\",VLOOKUP(BR20,'3) Pre-Screened Sites'!$B$33:$D$231,3,FALSE),\"\")","v":""},{"$f":"IF(BS20<>\"\",VLOOKUP(BS20,'3) Pre-Screened Sites'!$B$33:$D$231,3,FALSE),\"\")","v":""},{"$f":"IF(BT20<>\"\",VLOOKUP(BT20,'3) Pre-Screened Sites'!$B$33:$D$231,3,FALSE),\"\")","v":""},{"$f":"IF(BU20<>\"\",VLOOKUP(BU20,'3) Pre-Screened Sites'!$B$33:$D$231,3,FALSE),\"\")","v":""},{"$f":"IF(BV20<>\"\",VLOOKUP(BV20,'3) Pre-Screened Sites'!$B$33:$D$231,3,FALSE),\"\")","v":""},{"$f":"IF(BW20<>\"\",VLOOKUP(BW20,'3) Pre-Screened Sites'!$B$33:$D$231,3,FALSE),\"\")","v":""},{"$f":"IF(BX20<>\"\",VLOOKUP(BX20,'3) Pre-Screened Sites'!$B$33:$D$231,3,FALSE),\"\")","v":""},{"$f":"IF(BY20<>\"\",VLOOKUP(BY20,'3) Pre-Screened Sites'!$B$33:$D$231,3,FALSE),\"\")","v":""},{"$f":"IF(BZ20<>\"\",VLOOKUP(BZ20,'3) Pre-Screened Sites'!$B$33:$D$231,3,FALSE),\"\")","v":""},{"$f":"IF(CA20<>\"\",VLOOKUP(CA20,'3) Pre-Screened Sites'!$B$33:$D$231,3,FALSE),\"\")","v":""},{"$f":"IF(CB20<>\"\",VLOOKUP(CB20,'3) Pre-Screened Sites'!$B$33:$D$231,3,FALSE),\"\")","v":""},{"$f":"IF(CC20<>\"\",VLOOKUP(CC20,'3) Pre-Screened Sites'!$B$33:$D$231,3,FALSE),\"\")","v":""},{"$f":"IF(CD20<>\"\",VLOOKUP(CD20,'3) Pre-Screened Sites'!$B$33:$D$231,3,FALSE),\"\")","v":""},{"$f":"IF(CE20<>\"\",VLOOKUP(CE20,'3) Pre-Screened Sites'!$B$33:$D$231,3,FALSE),\"\")","v":""},{"$f":"IF(CF20<>\"\",VLOOKUP(CF20,'3) Pre-Screened Sites'!$B$33:$D$231,3,FALSE),\"\")","v":""},{"$f":"IF(CG20<>\"\",VLOOKUP(CG20,'3) Pre-Screened Sites'!$B$33:$D$231,3,FALSE),\"\")","v":""},{"$f":"IF(CH20<>\"\",VLOOKUP(CH20,'3) Pre-Screened Sites'!$B$33:$D$231,3,FALSE),\"\")","v":""},{"$f":"IF(CI20<>\"\",VLOOKUP(CI20,'3) Pre-Screened Sites'!$B$33:$D$231,3,FALSE),\"\")","v":""},{"$f":"IF(CJ20<>\"\",VLOOKUP(CJ20,'3) Pre-Screened Sites'!$B$33:$D$231,3,FALSE),\"\")","v":""},{"$f":"IF(CK20<>\"\",VLOOKUP(CK20,'3) Pre-Screened Sites'!$B$33:$D$231,3,FALSE),\"\")","v":""},{"$f":"IF(CL20<>\"\",VLOOKUP(CL20,'3) Pre-Screened Sites'!$B$33:$D$231,3,FALSE),\"\")","v":""},{"$f":"IF(CM20<>\"\",VLOOKUP(CM20,'3) Pre-Screened Sites'!$B$33:$D$231,3,FALSE),\"\")","v":""},{"$f":"IF(CN20<>\"\",VLOOKUP(CN20,'3) Pre-Screened Sites'!$B$33:$D$231,3,FALSE),\"\")","v":""},{"$f":"IF(CO20<>\"\",VLOOKUP(CO20,'3) Pre-Screened Sites'!$B$33:$D$231,3,FALSE),\"\")","v":""},{"$f":"IF(CP20<>\"\",VLOOKUP(CP20,'3) Pre-Screened Sites'!$B$33:$D$231,3,FALSE),\"\")","v":""},{"$f":"IF(CQ20<>\"\",VLOOKUP(CQ20,'3) Pre-Screened Sites'!$B$33:$D$231,3,FALSE),\"\")","v":""},{"$f":"IF(CR20<>\"\",VLOOKUP(CR20,'3) Pre-Screened Sites'!$B$33:$D$231,3,FALSE),\"\")","v":""},{"$f":"IF(CS20<>\"\",VLOOKUP(CS20,'3) Pre-Screened Sites'!$B$33:$D$231,3,FALSE),\"\")","v":""},{"$f":"IF(CT20<>\"\",VLOOKUP(CT20,'3) Pre-Screened Sites'!$B$33:$D$231,3,FALSE),\"\")","v":""},{"$f":"IF(CU20<>\"\",VLOOKUP(CU20,'3) Pre-Screened Sites'!$B$33:$D$231,3,FALSE),\"\")","v":""},{"$f":"IF(CV20<>\"\",VLOOKUP(CV20,'3) Pre-Screened Sites'!$B$33:$D$231,3,FALSE),\"\")","v":""},{"$f":"IF(CW20<>\"\",VLOOKUP(CW20,'3) Pre-Screened Sites'!$B$33:$D$231,3,FALSE),\"\")","v":""},{"$f":"IF(CX20<>\"\",VLOOKUP(CX20,'3) Pre-Screened Sites'!$B$33:$D$231,3,FALSE),\"\")","v":""},{"$f":"IF(CY20<>\"\",VLOOKUP(CY20,'3) Pre-Screened Sites'!$B$33:$D$231,3,FALSE),\"\")","v":""},{"$f":"IF(CZ20<>\"\",VLOOKUP(CZ20,'3) Pre-Screened Sites'!$B$33:$D$231,3,FALSE),\"\")","v":""},{"$f":"IF(DA20<>\"\",VLOOKUP(DA20,'3) Pre-Screened Sites'!$B$33:$D$231,3,FALSE),\"\")","v":""},{"$f":"IF(DB20<>\"\",VLOOKUP(DB20,'3) Pre-Screened Sites'!$B$33:$D$231,3,FALSE),\"\")","v":""}]
[null,null,null,null,"Phase 1 Checklist complete?",null,{"$f":"IF(G20<>\"\",IF(COUNTA(G29:G39)<10,\"Incomplete\",\"Complete\"),\"\")","v":""},{"$f":"IF(H20<>\"\",IF(COUNTA(H29:H39)<10,\"Incomplete\",\"Complete\"),\"\")","v":""},"","","","","","","","","","","","","","","","","","","","","","","","","","","","","","","","","","","","","","","","","","","","","","","","","","","","","","","","","","","","","","","",{"$f":"IF(BT20<>\"\",IF(COUNTA(BT29:BT39)<10,\"Incomplete\",\"Complete\"),\"\")","v":""},"","","","","","","","","","","","","","","","","","","","","","","","","","","","","","","","","",""]
[null,null,null,null,"Phase 2 Checklist complete?",null,{"$f":"IF(G20<>\"\",IF(COUNTA(G45:G64)<17,\"Incomplete\",\"Complete\"),\"\")","v":""},"","","","","","","","","","","","","","","","","","","","","","","","","","","","","","","",{"$f":"IF(AM20<>\"\",IF(COUNTA(AM45:AM64)<17,\"Incomplete\",\"Complete\"),\"\")","v":""},"","","","","","","","","","","","","","","","","","","","","","","","","","","","","","","",{"$f":"IF(BS20<>\"\",IF(COUNTA(BS45:BS64)<17,\"Incomplete\",\"Complete\"),\"\")","v":""},"","","","","","","","","","","","","","","","","","","","","","","","","","","","","","","","","","",""]
[null,null,null,null,"Number of red flags for this site:\n(potential added cost/complexity)",null,{"$f":"IF(G20<>\"\",COUNTIF(G29:G64,\"No\"),\" \")","v":" "}," "," "," "," "," "," "," "," "," "," "," "," "," "," "," "," "," "," "," "," "," "," "," "," "," "," "," "," "," "," "," ",{"$f":"IF(AM20<>\"\",COUNTIF(AM29:AM64,\"No\"),\" \")","v":" "}," "," "," "," "," "," "," "," "," "," "," "," "," "," "," "," "," "," "," "," "," "," "," "," "," "," "," "," "," "," "," ",{"$f":"IF(BS20<>\"\",COUNTIF(BS29:BS64,\"No\"),\" \")","v":" "}," "," "," "," "," "," "," "," "," "," "," "," "," "," "," "," "," "," "," "," "," "," "," "," "," "," "," "," "," "," "," "," "," "," "," "]
[null,null,null,null,"Pass/Fail decision:\nChoose \"Pass\" for sites that seem most promising based on your answers to the checklist items. Be sure to thoroughly evaluate how any \"red flags\" can be overcome/affect project costs. "]
[null,"PHASE 1 SCREENING CHECKLIST"]
[null,"Restrictions and zoning",null,"Explanations and Actions",null,"Resources (linked)"]
[null,1,"There are no other planned developments for this site. ","Action: Ensure that this site is not part of another development plan and that there will not be any major construction that would conflict with the operations of solar PV. Check internally and with community stakeholders to see if there is a separate community plan for this site.",null,"-"]
[null,2,"Future nearby developments will not cast shade on solar PV at this site.  ","Action: Consult with the planning and land use department to ensure that future developments near this site will not limit the PV system's access to sunlight.",null,"-"]
[null,3,"The site is free from land-use restrictions related to (but not limited to): \n•   preservation areas\n•   endangered or threatened species\n•   critical habitats\n•   historically or culturally significant artifacts\n•   agricultural protection\n•   protected or sensitive viewsheds","Known cultural or environmental sensitivities may trigger costly and time-consuming permitting reviews, while some environmental or zoning laws could prohibit development altogether.\n\nAction: Work with your city’s land use planning department to determine if the site contains restricted lands. Additionally, you can use the following resources and online maps to explore potential land-use restrictions:\n•   U.S. Fish & Wildlife Service map of Threatened & Endangered Species Critical Habitat zones  \n•   USGS Protected Areas Database of the U.S. \n•   National Register of Historic Places \n•   Your State Historic Preservation Office \n•   Your local Zoning Board"]
[null,4,"The site is not at high risk of flooding.","The site should be well drained and outside potential flood zones. Financiers will not invest in projects that may be subject to flooding.\n\nAction: Search for your site using FEMA’s Flood Map Service Center. If the site falls within a “Special Flood Hazard Area,” shown in blue and blue/pink stripes on the map, mark your answer as \"No\" and consider excluding this site from further consideration."]
[null,5,"The site is currently, or can be, zoned for solar development. ","Action: Work with the local planning or zoning department to understand where solar can and cannot be developed, to identify potential zoning-related restrictions (e.g. setbacks), or to re-zone areas for solar development. ",null,"-"]
[null,"Environmental history and contamination"]
[null,6,"The environmental history, level of contamination, and current cleanup status of this site have been reviewed and documented.","It is crucial to understand the levels of contamination and ongoing plans for remediation at this site. \n\nAction: Use the EPA’s Superfund Search page, Cleanups in My Community (CIMC) Search page, and RE-Powering Mapper 2.0 to find key documents related to the history and ongoing cleanup of this contaminated site. Your state’s Department of Environmental Protection, the site manager, local redevelopment agencies, or land-use planning departments can be additional sources for contaminated site information."]
[null,7,"We have determined the following: (a) when this landfill began receiving waste, (b) when/if the landfill has been closed, and (c) when the landfill was capped. ","This information is relevant to regulations regarding development on the landfill, projected landfill settlement, and integration with landfill closure plans. Older landfills are generally more settled (i.e. will not continue to change shape). If the landfill has not yet been closed there may be opportunity to integrate a solar PV system into the closure plans. If the landfill is already closed, the PV system design will have to take into account the landfill cap characteristics and existing on-site infrastructure. \n\nAction: Consult documentation or the landfill owner to determine these dates. Share this information with any solar developers assisting with site selection or project development.",null,"-"]
[null,8,"We have determined which of the following surface penetration limits apply:\n\ta) No surface penetration limitations exist\nb) Solar infrastructure may not penetrate more than ____ feet below surface level\nc) Solar infrastructure may not penetrate surface level at all\nd) Personal Protective Apparel (PPA) will be required for personnel working on this site.","Surface penetration limits will determine the type of racking and wiring systems required. For capped landfills, it is most likely that the surface cannot be penetrated at all, and that a ballasted system will be required. This can add ~$0.10/Watt to project costs, which could potentially make the project uneconomical. \n\nAction: Consult the EPA’s Superfund Search page, Cleanups in My Community (CIMC) Search page, and RE-Powering Mapper 2.0, the site manager, or your state's Department of Environmental Protection to determine surface penetration limits."]
[null,9,"The landfill’s closure plan and/or post-closure plan allows for solar PV development, or can be amended to allow for solar PV development.","Action: Consult the site owner, site engineer, or state or local regulator to assess if/how solar PV can be integrated into the closure plan and/or installed in buffer zones around the landfill. This should be done early on in the planning process. Ensure that ongoing monitoring and post-closure activities (e.g. leachate and gas collection, well monitoring, stormwater management) will not be compromised by solar development. Also ensure a PV system can be compatible with the existing erosion control management plan and vegetative cover specifications. Review Section 2.3 of the EPA's \"Best Practices for Siting Solar Photovoltaics on MSW Landfills\" for more information on closure and post-closure care. "]
[null,10,"The landfill has settled uniformly or is expected to settle uniformly by the project start date. ","Landfill settling occurs as contents decay over time. If PV is installed on a landfill cap that does not settle uniformly, the modules may become misaligned (decreasing electricity production) and the foundations may experience uneven stresses. Landfill settlement depends on the age, thickness, and composition of the landfill, among other factors. Landfills that were capped over 10 years ago are likely more settled than those capped in recent years. \n\nAction: Engage with the landfill operator and/or a geotechnical engineer to accurately assess the landfill settlement rate and how this will impact the design and construction of PV on this site.",null,"-"]
[]
[null,null,"Pause! ","The Phase 2 Checklist items will require significant time and effort to complete. Take the following actions to ensure you only move forward with the most promising sites:\n\n  •   If one or more red flag is raised in the Phase 1 Checklist, either select \"Fail\" for this site or confirm that these barriers can be overcome before moving on to Phase 2.\n  •   Consider calling a few solar developers to get initial price estimates for promising sites. The NABCEP Company Accreditation Directory and SEIA Member Directory contain contact information for solar developers. \n•   For cost comparisons, LBNL's Tracking the Sun Report includes average installed cost ($/Watt) values by state and system type (see Figure 2 on the \"Resources\" tab.)\n  •   If the project still seems viable, continue on to the Phase 2 Checklist."]
[]
[null,"PHASE 2 SCREENING CHECKLIST"]
[null,"Interconnection"]
[null,11,"We have determined that grid interconnection costs will be reasonable, given the desired system size at this site. ","Interconnection costs depend on many variables, including the size of the PV system, whether or not the system is behind- or front-of-the-meter, hosting capacity at the point of grid interconnection, and the voltage at the point of interconnection. It is strongly recommended to engage with your utility company early on to obtain information on the interconnection process, costs, and project size limitations. If the project moves forward, an Interconnection Application/Agreement will need to be filed with the utility (a solar developer will typically handle this).\n\nAction: As an initial step, check to see if your utility provides a hosting capacity map online (examples: Xcel, ConEd, PG&E, Central Hudson). Hosting capacity is the amount of generation that can be accommodated at a point on the distribution system without requiring significant grid upgrades. If available, locate your site on the map and determine the hosting capacity (MW) of the nearby lines.  If your planned project size exceeds the listed hosting capacity, mark your answer as \"No\" and work with a solar developer or your utility to assess resulting interconnection complexities and costs.\n\nAlso consider that connecting to a high-voltage transmission or subtransmission line (e.g. 70-345 kV) will often require a step-up transformer, which can be quite expensive. Large, utility-scale projects (>5 MW) may remain financially feasible despite this cost, but smaller projects may not. NREL's Distribution Grid Integration Unit Cost Database contains unit cost information for components used to integrate PV into distribution systems. Check this database for transformer costs that match your project size.\n\nNote: Beware of using interconnection “rules of thumb” such as: solar capacity must be lower than the minimum daytime load or 15% of peak load on a line segment. These can inaccurately predict whether grid upgrades will be needed."]
[null,"Site conditions"]
[null,12,"The soil structure provides an appropriate foundation for solar. ","Ground-mount systems are generally either built on foundations (piles) driven into the ground or on above-ground ballasts. If soil penetration limits exist for a contaminated site, a ballasted system will likely be required. For pile-driven installations, soft or rocky soils, corrosive soils, and shallow bedrock will require more drilling, specialized posts, and/or deeper embedment of posts (thus driving up costs). For ballasted systems, soil stability will influence project costs. For both types, the presence of groundwater could make solar infeasible.\n\nAction: As an initial step, if a ballasted system is likely for this site, answer questions 1-2; if a pile-driven system is likely, answer all of following: (1) Soil type: Are the soils soft? Is it within 0.25 miles of a body of water (potentially indicating a soft river or lake bed)? Is the site extremely rocky? (2) Presence of shallow groundwater: Do the soils appear saturated? Are there signs of running water on-site? Are there arroyos or other drainage features onsite? Do any nearby wells indicate that the water table is less than 10 ft below surface level? (3) Shallow bedrock: Is there shallow or exposed bedrock present? (4) Corrosivity: Do you have strong reason to believe the soils may be highly corrosive (e.g., previous soil tests nearby)? Are there adjacent sources of pollution (e.g. coal plant next door)? If you answered \"yes\" to any of the above questions, mark your response to this checklist item as \"No\" for this site. \n\nNote: In the early stages of site evaluation, you could conduct a preliminary geotechnical study (~$3k-10k) that checks for groundwater, soil type, and bedrock depth. This can indicate which site(s) may have lower racking costs. If you move forward, you will need a professional geotech investigation (~$10k-40k) to assess how subsurface conditions will impact project design and costs. Not all geotechnical engineers are experienced in site evaluations for solar, so ensure the following are completed along with other standard tests: a Standard Penetration Test (SPT) beginning at the surface level (not deeper); a shear test in the upper 7 ft of soil (testing for cohesion and friction to inform foundation design); laboratory tests for corrosion, redox, chlorides, and sulfides; and a field test for resistivity in the upper 3-4 ft of soil. Once a project is nearing the site design stage, a pile test should also be completed to inform racking design. A solar contractor can handle all of these tests. ",null,"-"]
[null,13,"The leachate and gas collection systems will be able to support the added weight of the PV system. ","Landfill leachate and gas collection systems generally entail a network of pipes throughout the landfill.\n\nAction: Consult the landfill operator to discuss the impacts of the added weight of solar PV and construction equipment on these collection systems. ",null,"-"]
[null,14,"The cost of grading this site will be reasonable.\nOR\nRegrading will not be needed.","A steep, un-smooth, or undulating site will likely require grading, especially for larger projects. Re-grading large portions of a site can be prohibitively costly (around $2 per sq.ft. or $87,000 per acre). It can also require additional approvals from the site manager, investigation of state regulation around grading, and plans for revegetation. Grading on landfills will need to comply with the post-closure requirements.\n\nKeep in mind that fixed-tilt PV systems have lower capital cost and can be located on undulating topography (requiring less grading). On the other hand, single-axis tracking systems have higher capital and O&M costs and require smoother lands (more grading), but can increase the amount of electricity generated by ~20%.\n\nAction: If your site may require regrading, request an initial grading estimate from a local contractor. Be sure to convey the level of contamination.  If a landfill is in the process of closing, recommending that they consult with a solar developer to maximize the area for future panels and to eliminate the need for additional post-closure grading activities has the potential to improve economics.",null,"-"]
[null,15,"The site could be safely accessed by vehicles carrying equipment and materials.","Contractor vehicles will need to access the site during construction and operation. Developing extensive access roads may compromise the overall project economics.\n\nAction: Check road access and vehicle weight limits.  Coordinate with your local, state, or federal department of transportation (or equivalent) to address site access concerns and costs. ",null,"-"]
[null,16,"Extreme wind speeds are not expected to be an issue at this site.","Action: Consult local building codes to assess whether extreme wind speeds are higher at this site as compared to other sites you are considering. More extreme wind speeds will require additional engineering and materials to secure the PV mounting system, thus increasing costs. ",null,"-"]
[null,"Permitting and regulation"]
[null,17,"We have engaged with the state’s appropriate Department of Environmental Protection to discuss necessary actions and documentation required for development on this site.","Action: Engage with the state’s appropriate Department of Environmental Protection early on to ensure that your project’s timeline will not be significantly delayed by required compliance and documentation.",null,"-"]
[null,18,"We have investigated liability concerns associated with EPA oversight AND state and/or local oversight of development on this site. ","Landfill projects may be treated similar to brownfields in terms of environmental review. It is very important to understand the assignment of liabilities and cleanup responsibilities to all stakeholders involved in the development and operation of a solar PV project on this site. This information will be particularly important to share with solar developers, who may view projects on landfills as risky. Federal, state, and local regulations will determine liability.\n\nAction: Consult legal counsel or project engineers who specialize in development on contaminated lands to assess liability concerns. You can also learn more about EPA oversight using the following resources:\n-\tEPA’s “Revitalization Handbook” – provides important guidance on addressing liability concerns for project development on contaminated lands.\n-\t“Will I be Held Liable for Existing Contamination?” – section of EPA RE-Powering America’s Land website with useful information on protections and liabilities.\n-\tComprehensive Environmental Response, Compensation, and Liability Act (CERCLA) – contains specific statutory protections against potential liability. Three important CERCLA liability protections are: Bona Fide Prospective Purchasers (BFPPS), contiguous property owners, and innocent landowners. \n-\tComfort and Status Letters – provide information about a site and the EPA’s intentions with respect to the property. Useful for assessing liability concerns and development risks.\n-\t“Ready for Reuse” Determination – technical report on the environmental condition of a site\n\nThe following resources provide information related to state oversight:\n-\tEPA’s “2017 State Brownfields and Voluntary Response Programs” and “Cleaning up Brownfields under State Response Programs – Getting to ‘No Further Action’” – provide state-specific information on brownfield cleanup and redevelopment.\n-\tState regulatory authorities should be also consulted to determine liability risk related to state programs."]
[null,19,"The site does not contain easements, encumbrances, or rights-of-way (ROWs) for pipelines, utility infrastructure, rail roads, or roadways.  ","Easements, encumbrances, and ROWs can significantly limit solar development on a site.\n\nAction: Check with your local planning and zoning department, utility company, and/or transportation authorities to see if any of these land use agreements exist for this site or if any expansions are planned during the lifetime of the PV project.",null,"-"]
[null,20,"The site is more than 10 miles from an airport.\nOR \nIf less than 10 miles from an airport, we have contacted the airport to inquire about restrictions or procedures (e.g. glare study).","Action: Use Google Earth's Measure tool (appears as a ruler) to check the site's distance from the closest airport. If within 10 miles, check with the airport or your local FAA Regional & District/Development Offices about their rules for nearby developments. "]
[null,21,"We have accounted for structure setback regulations/ordinances, adjusted the total usable space accordingly, and the project still meets our minimum project size requirement.","Most states or local governments have their own rules regarding setback requirements from wetlands, streams, wildlife habitats, or other sensitive areas. For ground-mounted systems, fire codes from the National Fire Protection Association require a 10-foot clear area around PV arrays for emergency vehicle access.\n\nAction: Search the NFPA CodeFinder, contact your state's Department of Environmental Protection (or equivalent), and/or contact your planning and zoning department to determine setback requirements.  "]
[null,22,"We have identified the local, state, and federal construction and operating permits required for this project.","Action: Review the \"Permits\" tab and determine which of the standard permits are likely to be required for this project. While the solar developer for this project will most likely handle all of the permitting, it is useful to develop an understanding of the types of required permits and the amount of time these may take to complete. The state’s Department of Environmental Protection (or similarly-named entity) and other city and state government points of contact can also assist with regulatory review requirements.",null,"-"]
[null,23,"We have considered whether an environmental assessment will need to be conducted to evaluate the impacts of installation, operation, and eventual removal of solar PV on this site.","The requirements for an environmental assessment will depend on local jurisdictions. Building on or near federal lands or wetlands may also trigger additional lengthy environmental review. Funding for an environmental assessment of a landfill site may be available through the EPA's Brownfields Program Grant Page. \n\nAction: Consult your local AHJ, state's Department Environmental Protection, or a solar developer to determine if/what kind of environmental assessments may be necessary. "]
[null,24,"Existing institutional controls (ICs) and engineering controls (ECs) for the site have been reviewed. Considering the physical (e.g. fences) and administrative/legal (e.g. deed restrictions) measures in these documents, we have determined that solar development can still take place.","ICs and ECs are intended to minimize the potential for exposure to contamination and/or sustain remediation activities.\nStates have specific rules regarding ICs. In New York, for example development on a brownfield site with an IC on the property requires that the developer notify the NYSDEC’s Division of Environmental Remediation of the site’s change in use. More information on ICs at contaminated sites can be found on the EPA’s Cleanups at Federal Facilities page. \n\nAction: Determine how ICs/ECs on this site may impact the feasibility of PV development. Eventually, you will need to conduct a site-specific inquiry to assess if new IC/EC, monitoring activities, and period reviews may be necessary."]
[null,25,"The PV system will be compatible with the stormwater management plan at this site. ","Action: Review the stormwater management plan for this site. As necessary, coordinate with the state waste management office to update the stormwater pollution prevention plan (SWPPP) to address discharge from the PV arrays. Consider if it may be possible to use rain gutters on PV arrays to channel stormwater runoff to swales or retention ponds. See section 4.2.2.7 of the EPA's \"Best Practices for Siting Solar Photovoltaics on MSW Landfills\" for more information on stormwater management on landfills. "]
[null,"Revegetation and Pollinators"]
[null,26,"We have considered whether revegetation will be necessary and have made plans accordingly.","Solar installations often entail disturbance or removal of existing vegetation, particularly if the site will be cleared or graded, or if topsoil will be stripped or compacted. Revegetation beneath and between solar arrays can help maintain ecosystem functions at the site. \n\nAction: Determine whether a revegetation plan should be developed. This plan should consider local conditions of soils and climate as well as constraints of the physical array design.",null,"-"]
[null,27,"We have considered making this site pollinator friendly.","Planting native and pollinator-friendly plants on solar sites can provide agricultural and ecological advantages over traditional turf or gravel.\n\nAction: Review pollinator-friendly solar initiatives in MN, MD, SC, VT, NY, IL, and MI in the CleanEnergy States Alliance (CESA) pollinator report. You may also consider using the Michigan Pollinator Habitat Planning Scorecard for Solar Sites (or more state-specific guidance) to make your chosen solar site pollinator-friendly."]

{"sheet":"5) Final Sites","index":11,"n_rows":120,"n_cols":20,"rows_kept":120,"cut":false,"hidden":false,"merged":[[18,11,18,12],[18,14,18,15]]}
[null,"5. Final Sites"]
[]
[]
[]
[]
[]
[]
[]
[]
[]
[]
[]
[]
[]
[]
[]
[]
[null,"Your Final Sites"]
[null,null,null,null,null,null,null,null,null,null,null,"PV System Sized to Usable Space",null,null,"Resized PV System"]
[null,"Site ID","Site Name","Address","Specific Site Type","Usable Space for Solar [m2]","Is site large enough?","Pre-Screen Red Flags (Major Impediments)","Pre-Screen Pass/Fail Decision","Secondary Screen Red Flags (Impediments or Cost-Adders)","Secondary Screen Pass/Fail Decision","Size [kW]","Annual Generation [kWh]","Annual Site Load \n[kWh]","Size\n[kW]","Annual Generation [kWh]","Financial Metric Indicating Return (e.g. ROI, IRR, payback period, upfront cost)","Financial Metric Indicating Scale (e.g. NPV, upfront cost)","Financial Metric Indicating Risk","Your Notes"]
[null,1,null,null,null,null,{"$f":"IF(E21=\"\",\"\",IF(OR(E21=\"Open Field\",E21=\"Brownfield\",E21=\"Landfill\"),IF(L21<'1) User Input and Sites'!$D$19,\"NO\",\"YES\"),IF(L21<'1) User Input and Sites'!$D$18,\"NO\",\"YES\")))","v":""},null,null,null,null,{"$f":"IF(E21=\"\",\"\",IF(OR(E21=\"Open Field\",E21=\"Brownfield\",E21=\"Landfill\"),F21*'1) User Input and Sites'!$E$19/1000*10.7639,F21*'1) User Input and Sites'!$E$18/1000*10.7639))","v":""}]
[null,2,null,null,null,null,{"$f":"IF(E22=\"\",\"\",IF(OR(E22=\"Open Field\",E22=\"Brownfield\",E22=\"Landfill\"),IF(L22<'1) User Input and Sites'!$D$19,\"NO\",\"YES\"),IF(L22<'1) User Input and Sites'!$D$18,\"NO\",\"YES\")))","v":""},null,null,null,null,{"$f":"IF(E22=\"\",\"\",IF(OR(E22=\"Open Field\",E22=\"Brownfield\",E22=\"Landfill\"),F22*'1) User Input and Sites'!$E$19/1000*10.7639,F22*'1) User Input and Sites'!$E$18/1000*10.7639))","v":""}]
[null,3,null,null,null,null,{"$f":"IF(E23=\"\",\"\",IF(OR(E23=\"Open Field\",E23=\"Brownfield\",E23=\"Landfill\"),IF(L23<'1) User Input and Sites'!$D$19,\"NO\",\"YES\"),IF(L23<'1) User Input and Sites'!$D$18,\"NO\",\"YES\")))","v":""},null,null,null,null,{"$f":"IF(E23=\"\",\"\",IF(OR(E23=\"Open Field\",E23=\"Brownfield\",E23=\"Landfill\"),F23*'1) User Input and Sites'!$E$19/1000*10.7639,F23*'1) User Input and Sites'!$E$18/1000*10.7639))","v":""}]
[null,4,null,null,null,null,{"$f":"IF(E24=\"\",\"\",IF(OR(E24=\"Open Field\",E24=\"Brownfield\",E24=\"Landfill\"),IF(L24<'1) User Input and Sites'!$D$19,\"NO\",\"YES\"),IF(L24<'1) User Input and Sites'!$D$18,\"NO\",\"YES\")))","v":""},null,null,null,null,{"$f":"IF(E24=\"\",\"\",IF(OR(E24=\"Open Field\",E24=\"Brownfield\",E24=\"Landfill\"),F24*'1) User Input and Sites'!$E$19/1000*10.7639,F24*'1) User Input and Sites'!$E$18/1000*10.7639))","v":""}]
[null,5,null,null,null,null,{"$f":"IF(E25=\"\",\"\",IF(OR(E25=\"Open Field\",E25=\"Brownfield\",E25=\"Landfill\"),IF(L25<'1) User Input and Sites'!$D$19,\"NO\",\"YES\"),IF(L25<'1) User Input and Sites'!$D$18,\"NO\",\"YES\")))","v":""},null,null,null,null,{"$f":"IF(E25=\"\",\"\",IF(OR(E25=\"Open Field\",E25=\"Brownfield\",E25=\"Landfill\"),F25*'1) User Input and Sites'!$E$19/1000*10.7639,F25*'1) User Input and Sites'!$E$18/1000*10.7639))","v":""}]
[null,6,null,null,null,null,{"$f":"IF(E26=\"\",\"\",IF(OR(E26=\"Open Field\",E26=\"Brownfield\",E26=\"Landfill\"),IF(L26<'1) User Input and Sites'!$D$19,\"NO\",\"YES\"),IF(L26<'1) User Input and Sites'!$D$18,\"NO\",\"YES\")))","v":""},null,null,null,null,{"$f":"IF(E26=\"\",\"\",IF(OR(E26=\"Open Field\",E26=\"Brownfield\",E26=\"Landfill\"),F26*'1) User Input and Sites'!$E$19/1000*10.7639,F26*'1) User Input and Sites'!$E$18/1000*10.7639))","v":""}]
[null,7,null,null,null,null,{"$f":"IF(E27=\"\",\"\",IF(OR(E27=\"Open Field\",E27=\"Brownfield\",E27=\"Landfill\"),IF(L27<'1) User Input and Sites'!$D$19,\"NO\",\"YES\"),IF(L27<'1) User Input and Sites'!$D$18,\"NO\",\"YES\")))","v":""},null,null,null,null,{"$f":"IF(E27=\"\",\"\",IF(OR(E27=\"Open Field\",E27=\"Brownfield\",E27=\"Landfill\"),F27*'1) User Input and Sites'!$E$19/1000*10.7639,F27*'1) User Input and Sites'!$E$18/1000*10.7639))","v":""}]
[null,8,null,null,null,null,{"$f":"IF(E28=\"\",\"\",IF(OR(E28=\"Open Field\",E28=\"Brownfield\",E28=\"Landfill\"),IF(L28<'1) User Input and Sites'!$D$19,\"NO\",\"YES\"),IF(L28<'1) User Input and Sites'!$D$18,\"NO\",\"YES\")))","v":""},null,null,null,null,{"$f":"IF(E28=\"\",\"\",IF(OR(E28=\"Open Field\",E28=\"Brownfield\",E28=\"Landfill\"),F28*'1) User Input and Sites'!$E$19/1000*10.7639,F28*'1) User Input and Sites'!$E$18/1000*10.7639))","v":""}]
[null,9,null,null,null,null,{"$f":"IF(E29=\"\",\"\",IF(OR(E29=\"Open Field\",E29=\"Brownfield\",E29=\"Landfill\"),IF(L29<'1) User Input and Sites'!$D$19,\"NO\",\"YES\"),IF(L29<'1) User Input and Sites'!$D$18,\"NO\",\"YES\")))","v":""},null,null,null,null,{"$f":"IF(E29=\"\",\"\",IF(OR(E29=\"Open Field\",E29=\"Brownfield\",E29=\"Landfill\"),F29*'1) User Input and Sites'!$E$19/1000*10.7639,F29*'1) User Input and Sites'!$E$18/1000*10.7639))","v":""}]
[null,10,null,null,null,null,{"$f":"IF(E30=\"\",\"\",IF(OR(E30=\"Open Field\",E30=\"Brownfield\",E30=\"Landfill\"),IF(L30<'1) User Input and Sites'!$D$19,\"NO\",\"YES\"),IF(L30<'1) User Input and Sites'!$D$18,\"NO\",\"YES\")))","v":""},null,null,null,null,{"$f":"IF(E30=\"\",\"\",IF(OR(E30=\"Open Field\",E30=\"Brownfield\",E30=\"Landfill\"),F30*'1) User Input and Sites'!$E$19/1000*10.7639,F30*'1) User Input and Sites'!$E$18/1000*10.7639))","v":""}]
[null,11,null,null,null,null,{"$f":"IF(E31=\"\",\"\",IF(OR(E31=\"Open Field\",E31=\"Brownfield\",E31=\"Landfill\"),IF(L31<'1) User Input and Sites'!$D$19,\"NO\",\"YES\"),IF(L31<'1) User Input and Sites'!$D$18,\"NO\",\"YES\")))","v":""},null,null,null,null,{"$f":"IF(E31=\"\",\"\",IF(OR(E31=\"Open Field\",E31=\"Brownfield\",E31=\"Landfill\"),F31*'1) User Input and Sites'!$E$19/1000*10.7639,F31*'1) User Input and Sites'!$E$18/1000*10.7639))","v":""}]
[null,12,null,null,null,null,{"$f":"IF(E32=\"\",\"\",IF(OR(E32=\"Open Field\",E32=\"Brownfield\",E32=\"Landfill\"),IF(L32<'1) User Input and Sites'!$D$19,\"NO\",\"YES\"),IF(L32<'1) User Input and Sites'!$D$18,\"NO\",\"YES\")))","v":""},null,null,null,null,{"$f":"IF(E32=\"\",\"\",IF(OR(E32=\"Open Field\",E32=\"Brownfield\",E32=\"Landfill\"),F32*'1) User Input and Sites'!$E$19/1000*10.7639,F32*'1) User Input and Sites'!$E$18/1000*10.7639))","v":""}]
[null,13,null,null,null,null,{"$f":"IF(E33=\"\",\"\",IF(OR(E33=\"Open Field\",E33=\"Brownfield\",E33=\"Landfill\"),IF(L33<'1) User Input and Sites'!$D$19,\"NO\",\"YES\"),IF(L33<'1) User Input and Sites'!$D$18,\"NO\",\"YES\")))","v":""},null,null,null,null,{"$f":"IF(E33=\"\",\"\",IF(OR(E33=\"Open Field\",E33=\"Brownfield\",E33=\"Landfill\"),F33*'1) User Input and Sites'!$E$19/1000*10.7639,F33*'1) User Input and Sites'!$E$18/1000*10.7639))","v":""}]
[null,14,null,null,null,null,{"$f":"IF(E34=\"\",\"\",IF(OR(E34=\"Open Field\",E34=\"Brownfield\",E34=\"Landfill\"),IF(L34<'1) User Input and Sites'!$D$19,\"NO\",\"YES\"),IF(L34<'1) User Input and Sites'!$D$18,\"NO\",\"YES\")))","v":""},null,null,null,null,{"$f":"IF(E34=\"\",\"\",IF(OR(E34=\"Open Field\",E34=\"Brownfield\",E34=\"Landfill\"),F34*'1) User Input and Sites'!$E$19/1000*10.7639,F34*'1) User Input and Sites'!$E$18/1000*10.7639))","v":""}]
[null,15,null,null,null,null,{"$f":"IF(E35=\"\",\"\",IF(OR(E35=\"Open Field\",E35=\"Brownfield\",E35=\"Landfill\"),IF(L35<'1) User Input and Sites'!$D$19,\"NO\",\"YES\"),IF(L35<'1) User Input and Sites'!$D$18,\"NO\",\"YES\")))","v":""},null,null,null,null,{"$f":"IF(E35=\"\",\"\",IF(OR(E35=\"Open Field\",E35=\"Brownfield\",E35=\"Landfill\"),F35*'1) User Input and Sites'!$E$19/1000*10.7639,F35*'1) User Input and Sites'!$E$18/1000*10.7639))","v":""}]
[null,16,null,null,null,null,{"$f":"IF(E36=\"\",\"\",IF(OR(E36=\"Open Field\",E36=\"Brownfield\",E36=\"Landfill\"),IF(L36<'1) User Input and Sites'!$D$19,\"NO\",\"YES\"),IF(L36<'1) User Input and Sites'!$D$18,\"NO\",\"YES\")))","v":""},null,null,null,null,{"$f":"IF(E36=\"\",\"\",IF(OR(E36=\"Open Field\",E36=\"Brownfield\",E36=\"Landfill\"),F36*'1) User Input and Sites'!$E$19/1000*10.7639,F36*'1) User Input and Sites'!$E$18/1000*10.7639))","v":""}]
[null,17,null,null,null,null,{"$f":"IF(E37=\"\",\"\",IF(OR(E37=\"Open Field\",E37=\"Brownfield\",E37=\"Landfill\"),IF(L37<'1) User Input and Sites'!$D$19,\"NO\",\"YES\"),IF(L37<'1) User Input and Sites'!$D$18,\"NO\",\"YES\")))","v":""},null,null,null,null,{"$f":"IF(E37=\"\",\"\",IF(OR(E37=\"Open Field\",E37=\"Brownfield\",E37=\"Landfill\"),F37*'1) User Input and Sites'!$E$19/1000*10.7639,F37*'1) User Input and Sites'!$E$18/1000*10.7639))","v":""}]
[null,18,null,null,null,null,{"$f":"IF(E38=\"\",\"\",IF(OR(E38=\"Open Field\",E38=\"Brownfield\",E38=\"Landfill\"),IF(L38<'1) User Input and Sites'!$D$19,\"NO\",\"YES\"),IF(L38<'1) User Input and Sites'!$D$18,\"NO\",\"YES\")))","v":""},null,null,null,null,{"$f":"IF(E38=\"\",\"\",IF(OR(E38=\"Open Field\",E38=\"Brownfield\",E38=\"Landfill\"),F38*'1) User Input and Sites'!$E$19/1000*10.7639,F38*'1) User Input and Sites'!$E$18/1000*10.7639))","v":""}]
[null,19,null,null,null,null,{"$f":"IF(E39=\"\",\"\",IF(OR(E39=\"Open Field\",E39=\"Brownfield\",E39=\"Landfill\"),IF(L39<'1) User Input and Sites'!$D$19,\"NO\",\"YES\"),IF(L39<'1) User Input and Sites'!$D$18,\"NO\",\"YES\")))","v":""},null,null,null,null,{"$f":"IF(E39=\"\",\"\",IF(OR(E39=\"Open Field\",E39=\"Brownfield\",E39=\"Landfill\"),F39*'1) User Input and Sites'!$E$19/1000*10.7639,F39*'1) User Input and Sites'!$E$18/1000*10.7639))","v":""}]
[null,20,null,null,null,null,{"$f":"IF(E40=\"\",\"\",IF(OR(E40=\"Open Field\",E40=\"Brownfield\",E40=\"Landfill\"),IF(L40<'1) User Input and Sites'!$D$19,\"NO\",\"YES\"),IF(L40<'1) User Input and Sites'!$D$18,\"NO\",\"YES\")))","v":""},null,null,null,null,{"$f":"IF(E40=\"\",\"\",IF(OR(E40=\"Open Field\",E40=\"Brownfield\",E40=\"Landfill\"),F40*'1) User Input and Sites'!$E$19/1000*10.7639,F40*'1) User Input and Sites'!$E$18/1000*10.7639))","v":""}]
[null,21,null,null,null,null,{"$f":"IF(E41=\"\",\"\",IF(OR(E41=\"Open Field\",E41=\"Brownfield\",E41=\"Landfill\"),IF(L41<'1) User Input and Sites'!$D$19,\"NO\",\"YES\"),IF(L41<'1) User Input and Sites'!$D$18,\"NO\",\"YES\")))","v":""},null,null,null,null,{"$f":"IF(E41=\"\",\"\",IF(OR(E41=\"Open Field\",E41=\"Brownfield\",E41=\"Landfill\"),F41*'1) User Input and Sites'!$E$19/1000*10.7639,F41*'1) User Input and Sites'!$E$18/1000*10.7639))","v":""}]
[null,22,null,null,null,null,{"$f":"IF(E42=\"\",\"\",IF(OR(E42=\"Open Field\",E42=\"Brownfield\",E42=\"Landfill\"),IF(L42<'1) User Input and Sites'!$D$19,\"NO\",\"YES\"),IF(L42<'1) User Input and Sites'!$D$18,\"NO\",\"YES\")))","v":""},null,null,null,null,{"$f":"IF(E42=\"\",\"\",IF(OR(E42=\"Open Field\",E42=\"Brownfield\",E42=\"Landfill\"),F42*'1) User Input and Sites'!$E$19/1000*10.7639,F42*'1) User Input and Sites'!$E$18/1000*10.7639))","v":""}]
[null,23,null,null,null,null,{"$f":"IF(E43=\"\",\"\",IF(OR(E43=\"Open Field\",E43=\"Brownfield\",E43=\"Landfill\"),IF(L43<'1) User Input and Sites'!$D$19,\"NO\",\"YES\"),IF(L43<'1) User Input and Sites'!$D$18,\"NO\",\"YES\")))","v":""},null,null,null,null,{"$f":"IF(E43=\"\",\"\",IF(OR(E43=\"Open Field\",E43=\"Brownfield\",E43=\"Landfill\"),F43*'1) User Input and Sites'!$E$19/1000*10.7639,F43*'1) User Input and Sites'!$E$18/1000*10.7639))","v":""}]
[null,24,null,null,null,null,{"$f":"IF(E44=\"\",\"\",IF(OR(E44=\"Open Field\",E44=\"Brownfield\",E44=\"Landfill\"),IF(L44<'1) User Input and Sites'!$D$19,\"NO\",\"YES\"),IF(L44<'1) User Input and Sites'!$D$18,\"NO\",\"YES\")))","v":""},null,null,null,null,{"$f":"IF(E44=\"\",\"\",IF(OR(E44=\"Open Field\",E44=\"Brownfield\",E44=\"Landfill\"),F44*'1) User Input and Sites'!$E$19/1000*10.7639,F44*'1) User Input and Sites'!$E$18/1000*10.7639))","v":""}]
[null,25,null,null,null,null,{"$f":"IF(E45=\"\",\"\",IF(OR(E45=\"Open Field\",E45=\"Brownfield\",E45=\"Landfill\"),IF(L45<'1) User Input and Sites'!$D$19,\"NO\",\"YES\"),IF(L45<'1) User Input and Sites'!$D$18,\"NO\",\"YES\")))","v":""},null,null,null,null,{"$f":"IF(E45=\"\",\"\",IF(OR(E45=\"Open Field\",E45=\"Brownfield\",E45=\"Landfill\"),F45*'1) User Input and Sites'!$E$19/1000*10.7639,F45*'1) User Input and Sites'!$E$18/1000*10.7639))","v":""}]
[null,26,null,null,null,null,{"$f":"IF(E46=\"\",\"\",IF(OR(E46=\"Open Field\",E46=\"Brownfield\",E46=\"Landfill\"),IF(L46<'1) User Input and Sites'!$D$19,\"NO\",\"YES\"),IF(L46<'1) User Input and Sites'!$D$18,\"NO\",\"YES\")))","v":""},null,null,null,null,{"$f":"IF(E46=\"\",\"\",IF(OR(E46=\"Open Field\",E46=\"Brownfield\",E46=\"Landfill\"),F46*'1) User Input and Sites'!$E$19/1000*10.7639,F46*'1) User Input and Sites'!$E$18/1000*10.7639))","v":""}]
[null,27,null,null,null,null,{"$f":"IF(E47=\"\",\"\",IF(OR(E47=\"Open Field\",E47=\"Brownfield\",E47=\"Landfill\"),IF(L47<'1) User Input and Sites'!$D$19,\"NO\",\"YES\"),IF(L47<'1) User Input and Sites'!$D$18,\"NO\",\"YES\")))","v":""},null,null,null,null,{"$f":"IF(E47=\"\",\"\",IF(OR(E47=\"Open Field\",E47=\"Brownfield\",E47=\"Landfill\"),F47*'1) User Input and Sites'!$E$19/1000*10.7639,F47*'1) User Input and Sites'!$E$18/1000*10.7639))","v":""}]
[null,28,null,null,null,null,{"$f":"IF(E48=\"\",\"\",IF(OR(E48=\"Open Field\",E48=\"Brownfield\",E48=\"Landfill\"),IF(L48<'1) User Input and Sites'!$D$19,\"NO\",\"YES\"),IF(L48<'1) User Input and Sites'!$D$18,\"NO\",\"YES\")))","v":""},null,null,null,null,{"$f":"IF(E48=\"\",\"\",IF(OR(E48=\"Open Field\",E48=\"Brownfield\",E48=\"Landfill\"),F48*'1) User Input and Sites'!$E$19/1000*10.7639,F48*'1) User Input and Sites'!$E$18/1000*10.7639))","v":""}]
[null,29,null,null,null,null,{"$f":"IF(E49=\"\",\"\",IF(OR(E49=\"Open Field\",E49=\"Brownfield\",E49=\"Landfill\"),IF(L49<'1) User Input and Sites'!$D$19,\"NO\",\"YES\"),IF(L49<'1) User Input and Sites'!$D$18,\"NO\",\"YES\")))","v":""},null,null,null,null,{"$f":"IF(E49=\"\",\"\",IF(OR(E49=\"Open Field\",E49=\"Brownfield\",E49=\"Landfill\"),F49*'1) User Input and Sites'!$E$19/1000*10.7639,F49*'1) User Input and Sites'!$E$18/1000*10.7639))","v":""}]
[null,30,null,null,null,null,{"$f":"IF(E50=\"\",\"\",IF(OR(E50=\"Open Field\",E50=\"Brownfield\",E50=\"Landfill\"),IF(L50<'1) User Input and Sites'!$D$19,\"NO\",\"YES\"),IF(L50<'1) User Input and Sites'!$D$18,\"NO\",\"YES\")))","v":""},null,null,null,null,{"$f":"IF(E50=\"\",\"\",IF(OR(E50=\"Open Field\",E50=\"Brownfield\",E50=\"Landfill\"),F50*'1) User Input and Sites'!$E$19/1000*10.7639,F50*'1) User Input and Sites'!$E$18/1000*10.7639))","v":""}]
[null,31,null,null,null,null,{"$f":"IF(E51=\"\",\"\",IF(OR(E51=\"Open Field\",E51=\"Brownfield\",E51=\"Landfill\"),IF(L51<'1) User Input and Sites'!$D$19,\"NO\",\"YES\"),IF(L51<'1) User Input and Sites'!$D$18,\"NO\",\"YES\")))","v":""},null,null,null,null,{"$f":"IF(E51=\"\",\"\",IF(OR(E51=\"Open Field\",E51=\"Brownfield\",E51=\"Landfill\"),F51*'1) User Input and Sites'!$E$19/1000*10.7639,F51*'1) User Input and Sites'!$E$18/1000*10.7639))","v":""}]
[null,32,null,null,null,null,{"$f":"IF(E52=\"\",\"\",IF(OR(E52=\"Open Field\",E52=\"Brownfield\",E52=\"Landfill\"),IF(L52<'1) User Input and Sites'!$D$19,\"NO\",\"YES\"),IF(L52<'1) User Input and Sites'!$D$18,\"NO\",\"YES\")))","v":""},null,null,null,null,{"$f":"IF(E52=\"\",\"\",IF(OR(E52=\"Open Field\",E52=\"Brownfield\",E52=\"Landfill\"),F52*'1) User Input and Sites'!$E$19/1000*10.7639,F52*'1) User Input and Sites'!$E$18/1000*10.7639))","v":""}]
[null,33,null,null,null,null,{"$f":"IF(E53=\"\",\"\",IF(OR(E53=\"Open Field\",E53=\"Brownfield\",E53=\"Landfill\"),IF(L53<'1) User Input and Sites'!$D$19,\"NO\",\"YES\"),IF(L53<'1) User Input and Sites'!$D$18,\"NO\",\"YES\")))","v":""},null,null,null,null,{"$f":"IF(E53=\"\",\"\",IF(OR(E53=\"Open Field\",E53=\"Brownfield\",E53=\"Landfill\"),F53*'1) User Input and Sites'!$E$19/1000*10.7639,F53*'1) User Input and Sites'!$E$18/1000*10.7639))","v":""}]
[null,34,null,null,null,null,{"$f":"IF(E54=\"\",\"\",IF(OR(E54=\"Open Field\",E54=\"Brownfield\",E54=\"Landfill\"),IF(L54<'1) User Input and Sites'!$D$19,\"NO\",\"YES\"),IF(L54<'1) User Input and Sites'!$D$18,\"NO\",\"YES\")))","v":""},null,null,null,null,{"$f":"IF(E54=\"\",\"\",IF(OR(E54=\"Open Field\",E54=\"Brownfield\",E54=\"Landfill\"),F54*'1) User Input and Sites'!$E$19/1000*10.7639,F54*'1) User Input and Sites'!$E$18/1000*10.7639))","v":""}]
[null,35,null,null,null,null,{"$f":"IF(E55=\"\",\"\",IF(OR(E55=\"Open Field\",E55=\"Brownfield\",E55=\"Landfill\"),IF(L55<'1) User Input and Sites'!$D$19,\"NO\",\"YES\"),IF(L55<'1) User Input and Sites'!$D$18,\"NO\",\"YES\")))","v":""},null,null,null,null,{"$f":"IF(E55=\"\",\"\",IF(OR(E55=\"Open Field\",E55=\"Brownfield\",E55=\"Landfill\"),F55*'1) User Input and Sites'!$E$19/1000*10.7639,F55*'1) User Input and Sites'!$E$18/1000*10.7639))","v":""}]
[null,36,null,null,null,null,{"$f":"IF(E56=\"\",\"\",IF(OR(E56=\"Open Field\",E56=\"Brownfield\",E56=\"Landfill\"),IF(L56<'1) User Input and Sites'!$D$19,\"NO\",\"YES\"),IF(L56<'1) User Input and Sites'!$D$18,\"NO\",\"YES\")))","v":""},null,null,null,null,{"$f":"IF(E56=\"\",\"\",IF(OR(E56=\"Open Field\",E56=\"Brownfield\",E56=\"Landfill\"),F56*'1) User Input and Sites'!$E$19/1000*10.7639,F56*'1) User Input and Sites'!$E$18/1000*10.7639))","v":""}]
[null,37,null,null,null,null,{"$f":"IF(E57=\"\",\"\",IF(OR(E57=\"Open Field\",E57=\"Brownfield\",E57=\"Landfill\"),IF(L57<'1) User Input and Sites'!$D$19,\"NO\",\"YES\"),IF(L57<'1) User Input and Sites'!$D$18,\"NO\",\"YES\")))","v":""},null,null,null,null,{"$f":"IF(E57=\"\",\"\",IF(OR(E57=\"Open Field\",E57=\"Brownfield\",E57=\"Landfill\"),F57*'1) User Input and Sites'!$E$19/1000*10.7639,F57*'1) User Input and Sites'!$E$18/1000*10.7639))","v":""}]
[null,38,null,null,null,null,{"$f":"IF(E58=\"\",\"\",IF(OR(E58=\"Open Field\",E58=\"Brownfield\",E58=\"Landfill\"),IF(L58<'1) User Input and Sites'!$D$19,\"NO\",\"YES\"),IF(L58<'1) User Input and Sites'!$D$18,\"NO\",\"YES\")))","v":""},null,null,null,null,{"$f":"IF(E58=\"\",\"\",IF(OR(E58=\"Open Field\",E58=\"Brownfield\",E58=\"Landfill\"),F58*'1) User Input and Sites'!$E$19/1000*10.7639,F58*'1) User Input and Sites'!$E$18/1000*10.7639))","v":""}]
[null,39,null,null,null,null,{"$f":"IF(E59=\"\",\"\",IF(OR(E59=\"Open Field\",E59=\"Brownfield\",E59=\"Landfill\"),IF(L59<'1) User Input and Sites'!$D$19,\"NO\",\"YES\"),IF(L59<'1) User Input and Sites'!$D$18,\"NO\",\"YES\")))","v":""},null,null,null,null,{"$f":"IF(E59=\"\",\"\",IF(OR(E59=\"Open Field\",E59=\"Brownfield\",E59=\"Landfill\"),F59*'1) User Input and Sites'!$E$19/1000*10.7639,F59*'1) User Input and Sites'!$E$18/1000*10.7639))","v":""}]
[null,40,null,null,null,null,{"$f":"IF(E60=\"\",\"\",IF(OR(E60=\"Open Field\",E60=\"Brownfield\",E60=\"Landfill\"),IF(L60<'1) User Input and Sites'!$D$19,\"NO\",\"YES\"),IF(L60<'1) User Input and Sites'!$D$18,\"NO\",\"YES\")))","v":""},null,null,null,null,{"$f":"IF(E60=\"\",\"\",IF(OR(E60=\"Open Field\",E60=\"Brownfield\",E60=\"Landfill\"),F60*'1) User Input and Sites'!$E$19/1000*10.7639,F60*'1) User Input and Sites'!$E$18/1000*10.7639))","v":""}]
[null,41,null,null,null,null,{"$f":"IF(E61=\"\",\"\",IF(OR(E61=\"Open Field\",E61=\"Brownfield\",E61=\"Landfill\"),IF(L61<'1) User Input and Sites'!$D$19,\"NO\",\"YES\"),IF(L61<'1) User Input and Sites'!$D$18,\"NO\",\"YES\")))","v":""},null,null,null,null,{"$f":"IF(E61=\"\",\"\",IF(OR(E61=\"Open Field\",E61=\"Brownfield\",E61=\"Landfill\"),F61*'1) User Input and Sites'!$E$19/1000*10.7639,F61*'1) User Input and Sites'!$E$18/1000*10.7639))","v":""}]
[null,42,null,null,null,null,{"$f":"IF(E62=\"\",\"\",IF(OR(E62=\"Open Field\",E62=\"Brownfield\",E62=\"Landfill\"),IF(L62<'1) User Input and Sites'!$D$19,\"NO\",\"YES\"),IF(L62<'1) User Input and Sites'!$D$18,\"NO\",\"YES\")))","v":""},null,null,null,null,{"$f":"IF(E62=\"\",\"\",IF(OR(E62=\"Open Field\",E62=\"Brownfield\",E62=\"Landfill\"),F62*'1) User Input and Sites'!$E$19/1000*10.7639,F62*'1) User Input and Sites'!$E$18/1000*10.7639))","v":""}]
[null,43,null,null,null,null,{"$f":"IF(E63=\"\",\"\",IF(OR(E63=\"Open Field\",E63=\"Brownfield\",E63=\"Landfill\"),IF(L63<'1) User Input and Sites'!$D$19,\"NO\",\"YES\"),IF(L63<'1) User Input and Sites'!$D$18,\"NO\",\"YES\")))","v":""},null,null,null,null,{"$f":"IF(E63=\"\",\"\",IF(OR(E63=\"Open Field\",E63=\"Brownfield\",E63=\"Landfill\"),F63*'1) User Input and Sites'!$E$19/1000*10.7639,F63*'1) User Input and Sites'!$E$18/1000*10.7639))","v":""}]
[null,44,null,null,null,null,{"$f":"IF(E64=\"\",\"\",IF(OR(E64=\"Open Field\",E64=\"Brownfield\",E64=\"Landfill\"),IF(L64<'1) User Input and Sites'!$D$19,\"NO\",\"YES\"),IF(L64<'1) User Input and Sites'!$D$18,\"NO\",\"YES\")))","v":""},null,null,null,null,{"$f":"IF(E64=\"\",\"\",IF(OR(E64=\"Open Field\",E64=\"Brownfield\",E64=\"Landfill\"),F64*'1) User Input and Sites'!$E$19/1000*10.7639,F64*'1) User Input and Sites'!$E$18/1000*10.7639))","v":""}]
[null,45,null,null,null,null,{"$f":"IF(E65=\"\",\"\",IF(OR(E65=\"Open Field\",E65=\"Brownfield\",E65=\"Landfill\"),IF(L65<'1) User Input and Sites'!$D$19,\"NO\",\"YES\"),IF(L65<'1) User Input and Sites'!$D$18,\"NO\",\"YES\")))","v":""},null,null,null,null,{"$f":"IF(E65=\"\",\"\",IF(OR(E65=\"Open Field\",E65=\"Brownfield\",E65=\"Landfill\"),F65*'1) User Input and Sites'!$E$19/1000*10.7639,F65*'1) User Input and Sites'!$E$18/1000*10.7639))","v":""}]
[null,46,null,null,null,null,{"$f":"IF(E66=\"\",\"\",IF(OR(E66=\"Open Field\",E66=\"Brownfield\",E66=\"Landfill\"),IF(L66<'1) User Input and Sites'!$D$19,\"NO\",\"YES\"),IF(L66<'1) User Input and Sites'!$D$18,\"NO\",\"YES\")))","v":""},null,null,null,null,{"$f":"IF(E66=\"\",\"\",IF(OR(E66=\"Open Field\",E66=\"Brownfield\",E66=\"Landfill\"),F66*'1) User Input and Sites'!$E$19/1000*10.7639,F66*'1) User Input and Sites'!$E$18/1000*10.7639))","v":""}]
[null,47,null,null,null,null,{"$f":"IF(E67=\"\",\"\",IF(OR(E67=\"Open Field\",E67=\"Brownfield\",E67=\"Landfill\"),IF(L67<'1) User Input and Sites'!$D$19,\"NO\",\"YES\"),IF(L67<'1) User Input and Sites'!$D$18,\"NO\",\"YES\")))","v":""},null,null,null,null,{"$f":"IF(E67=\"\",\"\",IF(OR(E67=\"Open Field\",E67=\"Brownfield\",E67=\"Landfill\"),F67*'1) User Input and Sites'!$E$19/1000*10.7639,F67*'1) User Input and Sites'!$E$18/1000*10.7639))","v":""}]
[null,48,null,null,null,null,{"$f":"IF(E68=\"\",\"\",IF(OR(E68=\"Open Field\",E68=\"Brownfield\",E68=\"Landfill\"),IF(L68<'1) User Input and Sites'!$D$19,\"NO\",\"YES\"),IF(L68<'1) User Input and Sites'!$D$18,\"NO\",\"YES\")))","v":""},null,null,null,null,{"$f":"IF(E68=\"\",\"\",IF(OR(E68=\"Open Field\",E68=\"Brownfield\",E68=\"Landfill\"),F68*'1) User Input and Sites'!$E$19/1000*10.7639,F68*'1) User Input and Sites'!$E$18/1000*10.7639))","v":""}]
[null,49,null,null,null,null,{"$f":"IF(E69=\"\",\"\",IF(OR(E69=\"Open Field\",E69=\"Brownfield\",E69=\"Landfill\"),IF(L69<'1) User Input and Sites'!$D$19,\"NO\",\"YES\"),IF(L69<'1) User Input and Sites'!$D$18,\"NO\",\"YES\")))","v":""},null,null,null,null,{"$f":"IF(E69=\"\",\"\",IF(OR(E69=\"Open Field\",E69=\"Brownfield\",E69=\"Landfill\"),F69*'1) User Input and Sites'!$E$19/1000*10.7639,F69*'1) User Input and Sites'!$E$18/1000*10.7639))","v":""}]
[null,50,null,null,null,null,{"$f":"IF(E70=\"\",\"\",IF(OR(E70=\"Open Field\",E70=\"Brownfield\",E70=\"Landfill\"),IF(L70<'1) User Input and Sites'!$D$19,\"NO\",\"YES\"),IF(L70<'1) User Input and Sites'!$D$18,\"NO\",\"YES\")))","v":""},null,null,null,null,{"$f":"IF(E70=\"\",\"\",IF(OR(E70=\"Open Field\",E70=\"Brownfield\",E70=\"Landfill\"),F70*'1) User Input and Sites'!$E$19/1000*10.7639,F70*'1) User Input and Sites'!$E$18/1000*10.7639))","v":""}]
[null,51,null,null,null,null,{"$f":"IF(E71=\"\",\"\",IF(OR(E71=\"Open Field\",E71=\"Brownfield\",E71=\"Landfill\"),IF(L71<'1) User Input and Sites'!$D$19,\"NO\",\"YES\"),IF(L71<'1) User Input and Sites'!$D$18,\"NO\",\"YES\")))","v":""},null,null,null,null,{"$f":"IF(E71=\"\",\"\",IF(OR(E71=\"Open Field\",E71=\"Brownfield\",E71=\"Landfill\"),F71*'1) User Input and Sites'!$E$19/1000*10.7639,F71*'1) User Input and Sites'!$E$18/1000*10.7639))","v":""}]
[null,52,null,null,null,null,{"$f":"IF(E72=\"\",\"\",IF(OR(E72=\"Open Field\",E72=\"Brownfield\",E72=\"Landfill\"),IF(L72<'1) User Input and Sites'!$D$19,\"NO\",\"YES\"),IF(L72<'1) User Input and Sites'!$D$18,\"NO\",\"YES\")))","v":""},null,null,null,null,{"$f":"IF(E72=\"\",\"\",IF(OR(E72=\"Open Field\",E72=\"Brownfield\",E72=\"Landfill\"),F72*'1) User Input and Sites'!$E$19/1000*10.7639,F72*'1) User Input and Sites'!$E$18/1000*10.7639))","v":""}]
[null,53,null,null,null,null,{"$f":"IF(E73=\"\",\"\",IF(OR(E73=\"Open Field\",E73=\"Brownfield\",E73=\"Landfill\"),IF(L73<'1) User Input and Sites'!$D$19,\"NO\",\"YES\"),IF(L73<'1) User Input and Sites'!$D$18,\"NO\",\"YES\")))","v":""},null,null,null,null,{"$f":"IF(E73=\"\",\"\",IF(OR(E73=\"Open Field\",E73=\"Brownfield\",E73=\"Landfill\"),F73*'1) User Input and Sites'!$E$19/1000*10.7639,F73*'1) User Input and Sites'!$E$18/1000*10.7639))","v":""}]
[null,54,null,null,null,null,{"$f":"IF(E74=\"\",\"\",IF(OR(E74=\"Open Field\",E74=\"Brownfield\",E74=\"Landfill\"),IF(L74<'1) User Input and Sites'!$D$19,\"NO\",\"YES\"),IF(L74<'1) User Input and Sites'!$D$18,\"NO\",\"YES\")))","v":""},null,null,null,null,{"$f":"IF(E74=\"\",\"\",IF(OR(E74=\"Open Field\",E74=\"Brownfield\",E74=\"Landfill\"),F74*'1) User Input and Sites'!$E$19/1000*10.7639,F74*'1) User Input and Sites'!$E$18/1000*10.7639))","v":""}]
[null,55,null,null,null,null,{"$f":"IF(E75=\"\",\"\",IF(OR(E75=\"Open Field\",E75=\"Brownfield\",E75=\"Landfill\"),IF(L75<'1) User Input and Sites'!$D$19,\"NO\",\"YES\"),IF(L75<'1) User Input and Sites'!$D$18,\"NO\",\"YES\")))","v":""},null,null,null,null,{"$f":"IF(E75=\"\",\"\",IF(OR(E75=\"Open Field\",E75=\"Brownfield\",E75=\"Landfill\"),F75*'1) User Input and Sites'!$E$19/1000*10.7639,F75*'1) User Input and Sites'!$E$18/1000*10.7639))","v":""}]
[null,56,null,null,null,null,{"$f":"IF(E76=\"\",\"\",IF(OR(E76=\"Open Field\",E76=\"Brownfield\",E76=\"Landfill\"),IF(L76<'1) User Input and Sites'!$D$19,\"NO\",\"YES\"),IF(L76<'1) User Input and Sites'!$D$18,\"NO\",\"YES\")))","v":""},null,null,null,null,{"$f":"IF(E76=\"\",\"\",IF(OR(E76=\"Open Field\",E76=\"Brownfield\",E76=\"Landfill\"),F76*'1) User Input and Sites'!$E$19/1000*10.7639,F76*'1) User Input and Sites'!$E$18/1000*10.7639))","v":""}]
[null,57,null,null,null,null,{"$f":"IF(E77=\"\",\"\",IF(OR(E77=\"Open Field\",E77=\"Brownfield\",E77=\"Landfill\"),IF(L77<'1) User Input and Sites'!$D$19,\"NO\",\"YES\"),IF(L77<'1) User Input and Sites'!$D$18,\"NO\",\"YES\")))","v":""},null,null,null,null,{"$f":"IF(E77=\"\",\"\",IF(OR(E77=\"Open Field\",E77=\"Brownfield\",E77=\"Landfill\"),F77*'1) User Input and Sites'!$E$19/1000*10.7639,F77*'1) User Input and Sites'!$E$18/1000*10.7639))","v":""}]
[null,58,null,null,null,null,{"$f":"IF(E78=\"\",\"\",IF(OR(E78=\"Open Field\",E78=\"Brownfield\",E78=\"Landfill\"),IF(L78<'1) User Input and Sites'!$D$19,\"NO\",\"YES\"),IF(L78<'1) User Input and Sites'!$D$18,\"NO\",\"YES\")))","v":""},null,null,null,null,{"$f":"IF(E78=\"\",\"\",IF(OR(E78=\"Open Field\",E78=\"Brownfield\",E78=\"Landfill\"),F78*'1) User Input and Sites'!$E$19/1000*10.7639,F78*'1) User Input and Sites'!$E$18/1000*10.7639))","v":""}]
[null,59,null,null,null,null,{"$f":"IF(E79=\"\",\"\",IF(OR(E79=\"Open Field\",E79=\"Brownfield\",E79=\"Landfill\"),IF(L79<'1) User Input and Sites'!$D$19,\"NO\",\"YES\"),IF(L79<'1) User Input and Sites'!$D$18,\"NO\",\"YES\")))","v":""},null,null,null,null,{"$f":"IF(E79=\"\",\"\",IF(OR(E79=\"Open Field\",E79=\"Brownfield\",E79=\"Landfill\"),F79*'1) User Input and Sites'!$E$19/1000*10.7639,F79*'1) User Input and Sites'!$E$18/1000*10.7639))","v":""}]
[null,60,null,null,null,null,{"$f":"IF(E80=\"\",\"\",IF(OR(E80=\"Open Field\",E80=\"Brownfield\",E80=\"Landfill\"),IF(L80<'1) User Input and Sites'!$D$19,\"NO\",\"YES\"),IF(L80<'1) User Input and Sites'!$D$18,\"NO\",\"YES\")))","v":""},null,null,null,null,{"$f":"IF(E80=\"\",\"\",IF(OR(E80=\"Open Field\",E80=\"Brownfield\",E80=\"Landfill\"),F80*'1) User Input and Sites'!$E$19/1000*10.7639,F80*'1) User Input and Sites'!$E$18/1000*10.7639))","v":""}]
[null,61,null,null,null,null,{"$f":"IF(E81=\"\",\"\",IF(OR(E81=\"Open Field\",E81=\"Brownfield\",E81=\"Landfill\"),IF(L81<'1) User Input and Sites'!$D$19,\"NO\",\"YES\"),IF(L81<'1) User Input and Sites'!$D$18,\"NO\",\"YES\")))","v":""},null,null,null,null,{"$f":"IF(E81=\"\",\"\",IF(OR(E81=\"Open Field\",E81=\"Brownfield\",E81=\"Landfill\"),F81*'1) User Input and Sites'!$E$19/1000*10.7639,F81*'1) User Input and Sites'!$E$18/1000*10.7639))","v":""}]
[null,62,null,null,null,null,{"$f":"IF(E82=\"\",\"\",IF(OR(E82=\"Open Field\",E82=\"Brownfield\",E82=\"Landfill\"),IF(L82<'1) User Input and Sites'!$D$19,\"NO\",\"YES\"),IF(L82<'1) User Input and Sites'!$D$18,\"NO\",\"YES\")))","v":""},null,null,null,null,{"$f":"IF(E82=\"\",\"\",IF(OR(E82=\"Open Field\",E82=\"Brownfield\",E82=\"Landfill\"),F82*'1) User Input and Sites'!$E$19/1000*10.7639,F82*'1) User Input and Sites'!$E$18/1000*10.7639))","v":""}]
[null,63,null,null,null,null,{"$f":"IF(E83=\"\",\"\",IF(OR(E83=\"Open Field\",E83=\"Brownfield\",E83=\"Landfill\"),IF(L83<'1) User Input and Sites'!$D$19,\"NO\",\"YES\"),IF(L83<'1) User Input and Sites'!$D$18,\"NO\",\"YES\")))","v":""},null,null,null,null,{"$f":"IF(E83=\"\",\"\",IF(OR(E83=\"Open Field\",E83=\"Brownfield\",E83=\"Landfill\"),F83*'1) User Input and Sites'!$E$19/1000*10.7639,F83*'1) User Input and Sites'!$E$18/1000*10.7639))","v":""}]
[null,64,null,null,null,null,{"$f":"IF(E84=\"\",\"\",IF(OR(E84=\"Open Field\",E84=\"Brownfield\",E84=\"Landfill\"),IF(L84<'1) User Input and Sites'!$D$19,\"NO\",\"YES\"),IF(L84<'1) User Input and Sites'!$D$18,\"NO\",\"YES\")))","v":""},null,null,null,null,{"$f":"IF(E84=\"\",\"\",IF(OR(E84=\"Open Field\",E84=\"Brownfield\",E84=\"Landfill\"),F84*'1) User Input and Sites'!$E$19/1000*10.7639,F84*'1) User Input and Sites'!$E$18/1000*10.7639))","v":""}]
[null,65,null,null,null,null,{"$f":"IF(E85=\"\",\"\",IF(OR(E85=\"Open Field\",E85=\"Brownfield\",E85=\"Landfill\"),IF(L85<'1) User Input and Sites'!$D$19,\"NO\",\"YES\"),IF(L85<'1) User Input and Sites'!$D$18,\"NO\",\"YES\")))","v":""},null,null,null,null,{"$f":"IF(E85=\"\",\"\",IF(OR(E85=\"Open Field\",E85=\"Brownfield\",E85=\"Landfill\"),F85*'1) User Input and Sites'!$E$19/1000*10.7639,F85*'1) User Input and Sites'!$E$18/1000*10.7639))","v":""}]
[null,66,null,null,null,null,{"$f":"IF(E86=\"\",\"\",IF(OR(E86=\"Open Field\",E86=\"Brownfield\",E86=\"Landfill\"),IF(L86<'1) User Input and Sites'!$D$19,\"NO\",\"YES\"),IF(L86<'1) User Input and Sites'!$D$18,\"NO\",\"YES\")))","v":""},null,null,null,null,{"$f":"IF(E86=\"\",\"\",IF(OR(E86=\"Open Field\",E86=\"Brownfield\",E86=\"Landfill\"),F86*'1) User Input and Sites'!$E$19/1000*10.7639,F86*'1) User Input and Sites'!$E$18/1000*10.7639))","v":""}]
[null,67,null,null,null,null,{"$f":"IF(E87=\"\",\"\",IF(OR(E87=\"Open Field\",E87=\"Brownfield\",E87=\"Landfill\"),IF(L87<'1) User Input and Sites'!$D$19,\"NO\",\"YES\"),IF(L87<'1) User Input and Sites'!$D$18,\"NO\",\"YES\")))","v":""},null,null,null,null,{"$f":"IF(E87=\"\",\"\",IF(OR(E87=\"Open Field\",E87=\"Brownfield\",E87=\"Landfill\"),F87*'1) User Input and Sites'!$E$19/1000*10.7639,F87*'1) User Input and Sites'!$E$18/1000*10.7639))","v":""}]
[null,68,null,null,null,null,{"$f":"IF(E88=\"\",\"\",IF(OR(E88=\"Open Field\",E88=\"Brownfield\",E88=\"Landfill\"),IF(L88<'1) User Input and Sites'!$D$19,\"NO\",\"YES\"),IF(L88<'1) User Input and Sites'!$D$18,\"NO\",\"YES\")))","v":""},null,null,null,null,{"$f":"IF(E88=\"\",\"\",IF(OR(E88=\"Open Field\",E88=\"Brownfield\",E88=\"Landfill\"),F88*'1) User Input and Sites'!$E$19/1000*10.7639,F88*'1) User Input and Sites'!$E$18/1000*10.7639))","v":""}]
[null,69,null,null,null,null,{"$f":"IF(E89=\"\",\"\",IF(OR(E89=\"Open Field\",E89=\"Brownfield\",E89=\"Landfill\"),IF(L89<'1) User Input and Sites'!$D$19,\"NO\",\"YES\"),IF(L89<'1) User Input and Sites'!$D$18,\"NO\",\"YES\")))","v":""},null,null,null,null,{"$f":"IF(E89=\"\",\"\",IF(OR(E89=\"Open Field\",E89=\"Brownfield\",E89=\"Landfill\"),F89*'1) User Input and Sites'!$E$19/1000*10.7639,F89*'1) User Input and Sites'!$E$18/1000*10.7639))","v":""}]
[null,70,null,null,null,null,{"$f":"IF(E90=\"\",\"\",IF(OR(E90=\"Open Field\",E90=\"Brownfield\",E90=\"Landfill\"),IF(L90<'1) User Input and Sites'!$D$19,\"NO\",\"YES\"),IF(L90<'1) User Input and Sites'!$D$18,\"NO\",\"YES\")))","v":""},null,null,null,null,{"$f":"IF(E90=\"\",\"\",IF(OR(E90=\"Open Field\",E90=\"Brownfield\",E90=\"Landfill\"),F90*'1) User Input and Sites'!$E$19/1000*10.7639,F90*'1) User Input and Sites'!$E$18/1000*10.7639))","v":""}]
[null,71,null,null,null,null,{"$f":"IF(E91=\"\",\"\",IF(OR(E91=\"Open Field\",E91=\"Brownfield\",E91=\"Landfill\"),IF(L91<'1) User Input and Sites'!$D$19,\"NO\",\"YES\"),IF(L91<'1) User Input and Sites'!$D$18,\"NO\",\"YES\")))","v":""},null,null,null,null,{"$f":"IF(E91=\"\",\"\",IF(OR(E91=\"Open Field\",E91=\"Brownfield\",E91=\"Landfill\"),F91*'1) User Input and Sites'!$E$19/1000*10.7639,F91*'1) User Input and Sites'!$E$18/1000*10.7639))","v":""}]
[null,72,null,null,null,null,{"$f":"IF(E92=\"\",\"\",IF(OR(E92=\"Open Field\",E92=\"Brownfield\",E92=\"Landfill\"),IF(L92<'1) User Input and Sites'!$D$19,\"NO\",\"YES\"),IF(L92<'1) User Input and Sites'!$D$18,\"NO\",\"YES\")))","v":""},null,null,null,null,{"$f":"IF(E92=\"\",\"\",IF(OR(E92=\"Open Field\",E92=\"Brownfield\",E92=\"Landfill\"),F92*'1) User Input and Sites'!$E$19/1000*10.7639,F92*'1) User Input and Sites'!$E$18/1000*10.7639))","v":""}]
[null,73,null,null,null,null,{"$f":"IF(E93=\"\",\"\",IF(OR(E93=\"Open Field\",E93=\"Brownfield\",E93=\"Landfill\"),IF(L93<'1) User Input and Sites'!$D$19,\"NO\",\"YES\"),IF(L93<'1) User Input and Sites'!$D$18,\"NO\",\"YES\")))","v":""},null,null,null,null,{"$f":"IF(E93=\"\",\"\",IF(OR(E93=\"Open Field\",E93=\"Brownfield\",E93=\"Landfill\"),F93*'1) User Input and Sites'!$E$19/1000*10.7639,F93*'1) User Input and Sites'!$E$18/1000*10.7639))","v":""}]
[null,74,null,null,null,null,{"$f":"IF(E94=\"\",\"\",IF(OR(E94=\"Open Field\",E94=\"Brownfield\",E94=\"Landfill\"),IF(L94<'1) User Input and Sites'!$D$19,\"NO\",\"YES\"),IF(L94<'1) User Input and Sites'!$D$18,\"NO\",\"YES\")))","v":""},null,null,null,null,{"$f":"IF(E94=\"\",\"\",IF(OR(E94=\"Open Field\",E94=\"Brownfield\",E94=\"Landfill\"),F94*'1) User Input and Sites'!$E$19/1000*10.7639,F94*'1) User Input and Sites'!$E$18/1000*10.7639))","v":""}]
[null,75,null,null,null,null,{"$f":"IF(E95=\"\",\"\",IF(OR(E95=\"Open Field\",E95=\"Brownfield\",E95=\"Landfill\"),IF(L95<'1) User Input and Sites'!$D$19,\"NO\",\"YES\"),IF(L95<'1) User Input and Sites'!$D$18,\"NO\",\"YES\")))","v":""},null,null,null,null,{"$f":"IF(E95=\"\",\"\",IF(OR(E95=\"Open Field\",E95=\"Brownfield\",E95=\"Landfill\"),F95*'1) User Input and Sites'!$E$19/1000*10.7639,F95*'1) User Input and Sites'!$E$18/1000*10.7639))","v":""}]
[null,76,null,null,null,null,{"$f":"IF(E96=\"\",\"\",IF(OR(E96=\"Open Field\",E96=\"Brownfield\",E96=\"Landfill\"),IF(L96<'1) User Input and Sites'!$D$19,\"NO\",\"YES\"),IF(L96<'1) User Input and Sites'!$D$18,\"NO\",\"YES\")))","v":""},null,null,null,null,{"$f":"IF(E96=\"\",\"\",IF(OR(E96=\"Open Field\",E96=\"Brownfield\",E96=\"Landfill\"),F96*'1) User Input and Sites'!$E$19/1000*10.7639,F96*'1) User Input and Sites'!$E$18/1000*10.7639))","v":""}]
[null,77,null,null,null,null,{"$f":"IF(E97=\"\",\"\",IF(OR(E97=\"Open Field\",E97=\"Brownfield\",E97=\"Landfill\"),IF(L97<'1) User Input and Sites'!$D$19,\"NO\",\"YES\"),IF(L97<'1) User Input and Sites'!$D$18,\"NO\",\"YES\")))","v":""},null,null,null,null,{"$f":"IF(E97=\"\",\"\",IF(OR(E97=\"Open Field\",E97=\"Brownfield\",E97=\"Landfill\"),F97*'1) User Input and Sites'!$E$19/1000*10.7639,F97*'1) User Input and Sites'!$E$18/1000*10.7639))","v":""}]
[null,78,null,null,null,null,{"$f":"IF(E98=\"\",\"\",IF(OR(E98=\"Open Field\",E98=\"Brownfield\",E98=\"Landfill\"),IF(L98<'1) User Input and Sites'!$D$19,\"NO\",\"YES\"),IF(L98<'1) User Input and Sites'!$D$18,\"NO\",\"YES\")))","v":""},null,null,null,null,{"$f":"IF(E98=\"\",\"\",IF(OR(E98=\"Open Field\",E98=\"Brownfield\",E98=\"Landfill\"),F98*'1) User Input and Sites'!$E$19/1000*10.7639,F98*'1) User Input and Sites'!$E$18/1000*10.7639))","v":""}]
[null,79,null,null,null,null,{"$f":"IF(E99=\"\",\"\",IF(OR(E99=\"Open Field\",E99=\"Brownfield\",E99=\"Landfill\"),IF(L99<'1) User Input and Sites'!$D$19,\"NO\",\"YES\"),IF(L99<'1) User Input and Sites'!$D$18,\"NO\",\"YES\")))","v":""},null,null,null,null,{"$f":"IF(E99=\"\",\"\",IF(OR(E99=\"Open Field\",E99=\"Brownfield\",E99=\"Landfill\"),F99*'1) User Input and Sites'!$E$19/1000*10.7639,F99*'1) User Input and Sites'!$E$18/1000*10.7639))","v":""}]
[null,80,null,null,null,null,{"$f":"IF(E100=\"\",\"\",IF(OR(E100=\"Open Field\",E100=\"Brownfield\",E100=\"Landfill\"),IF(L100<'1) User Input and Sites'!$D$19,\"NO\",\"YES\"),IF(L100<'1) User Input and Sites'!$D$18,\"NO\",\"YES\")))","v":""},null,null,null,null,{"$f":"IF(E100=\"\",\"\",IF(OR(E100=\"Open Field\",E100=\"Brownfield\",E100=\"Landfill\"),F100*'1) User Input and Sites'!$E$19/1000*10.7639,F100*'1) User Input and Sites'!$E$18/1000*10.7639))","v":""}]
[null,81,null,null,null,null,{"$f":"IF(E101=\"\",\"\",IF(OR(E101=\"Open Field\",E101=\"Brownfield\",E101=\"Landfill\"),IF(L101<'1) User Input and Sites'!$D$19,\"NO\",\"YES\"),IF(L101<'1) User Input and Sites'!$D$18,\"NO\",\"YES\")))","v":""},null,null,null,null,{"$f":"IF(E101=\"\",\"\",IF(OR(E101=\"Open Field\",E101=\"Brownfield\",E101=\"Landfill\"),F101*'1) User Input and Sites'!$E$19/1000*10.7639,F101*'1) User Input and Sites'!$E$18/1000*10.7639))","v":""}]
[null,82,null,null,null,null,{"$f":"IF(E102=\"\",\"\",IF(OR(E102=\"Open Field\",E102=\"Brownfield\",E102=\"Landfill\"),IF(L102<'1) User Input and Sites'!$D$19,\"NO\",\"YES\"),IF(L102<'1) User Input and Sites'!$D$18,\"NO\",\"YES\")))","v":""},null,null,null,null,{"$f":"IF(E102=\"\",\"\",IF(OR(E102=\"Open Field\",E102=\"Brownfield\",E102=\"Landfill\"),F102*'1) User Input and Sites'!$E$19/1000*10.7639,F102*'1) User Input and Sites'!$E$18/1000*10.7639))","v":""}]
[null,83,null,null,null,null,{"$f":"IF(E103=\"\",\"\",IF(OR(E103=\"Open Field\",E103=\"Brownfield\",E103=\"Landfill\"),IF(L103<'1) User Input and Sites'!$D$19,\"NO\",\"YES\"),IF(L103<'1) User Input and Sites'!$D$18,\"NO\",\"YES\")))","v":""},null,null,null,null,{"$f":"IF(E103=\"\",\"\",IF(OR(E103=\"Open Field\",E103=\"Brownfield\",E103=\"Landfill\"),F103*'1) User Input and Sites'!$E$19/1000*10.7639,F103*'1) User Input and Sites'!$E$18/1000*10.7639))","v":""}]
[null,84,null,null,null,null,{"$f":"IF(E104=\"\",\"\",IF(OR(E104=\"Open Field\",E104=\"Brownfield\",E104=\"Landfill\"),IF(L104<'1) User Input and Sites'!$D$19,\"NO\",\"YES\"),IF(L104<'1) User Input and Sites'!$D$18,\"NO\",\"YES\")))","v":""},null,null,null,null,{"$f":"IF(E104=\"\",\"\",IF(OR(E104=\"Open Field\",E104=\"Brownfield\",E104=\"Landfill\"),F104*'1) User Input and Sites'!$E$19/1000*10.7639,F104*'1) User Input and Sites'!$E$18/1000*10.7639))","v":""}]
[null,85,null,null,null,null,{"$f":"IF(E105=\"\",\"\",IF(OR(E105=\"Open Field\",E105=\"Brownfield\",E105=\"Landfill\"),IF(L105<'1) User Input and Sites'!$D$19,\"NO\",\"YES\"),IF(L105<'1) User Input and Sites'!$D$18,\"NO\",\"YES\")))","v":""},null,null,null,null,{"$f":"IF(E105=\"\",\"\",IF(OR(E105=\"Open Field\",E105=\"Brownfield\",E105=\"Landfill\"),F105*'1) User Input and Sites'!$E$19/1000*10.7639,F105*'1) User Input and Sites'!$E$18/1000*10.7639))","v":""}]
[null,86,null,null,null,null,{"$f":"IF(E106=\"\",\"\",IF(OR(E106=\"Open Field\",E106=\"Brownfield\",E106=\"Landfill\"),IF(L106<'1) User Input and Sites'!$D$19,\"NO\",\"YES\"),IF(L106<'1) User Input and Sites'!$D$18,\"NO\",\"YES\")))","v":""},null,null,null,null,{"$f":"IF(E106=\"\",\"\",IF(OR(E106=\"Open Field\",E106=\"Brownfield\",E106=\"Landfill\"),F106*'1) User Input and Sites'!$E$19/1000*10.7639,F106*'1) User Input and Sites'!$E$18/1000*10.7639))","v":""}]
[null,87,null,null,null,null,{"$f":"IF(E107=\"\",\"\",IF(OR(E107=\"Open Field\",E107=\"Brownfield\",E107=\"Landfill\"),IF(L107<'1) User Input and Sites'!$D$19,\"NO\",\"YES\"),IF(L107<'1) User Input and Sites'!$D$18,\"NO\",\"YES\")))","v":""},null,null,null,null,{"$f":"IF(E107=\"\",\"\",IF(OR(E107=\"Open Field\",E107=\"Brownfield\",E107=\"Landfill\"),F107*'1) User Input and Sites'!$E$19/1000*10.7639,F107*'1) User Input and Sites'!$E$18/1000*10.7639))","v":""}]
[null,88,null,null,null,null,{"$f":"IF(E108=\"\",\"\",IF(OR(E108=\"Open Field\",E108=\"Brownfield\",E108=\"Landfill\"),IF(L108<'1) User Input and Sites'!$D$19,\"NO\",\"YES\"),IF(L108<'1) User Input and Sites'!$D$18,\"NO\",\"YES\")))","v":""},null,null,null,null,{"$f":"IF(E108=\"\",\"\",IF(OR(E108=\"Open Field\",E108=\"Brownfield\",E108=\"Landfill\"),F108*'1) User Input and Sites'!$E$19/1000*10.7639,F108*'1) User Input and Sites'!$E$18/1000*10.7639))","v":""}]
[null,89,null,null,null,null,{"$f":"IF(E109=\"\",\"\",IF(OR(E109=\"Open Field\",E109=\"Brownfield\",E109=\"Landfill\"),IF(L109<'1) User Input and Sites'!$D$19,\"NO\",\"YES\"),IF(L109<'1) User Input and Sites'!$D$18,\"NO\",\"YES\")))","v":""},null,null,null,null,{"$f":"IF(E109=\"\",\"\",IF(OR(E109=\"Open Field\",E109=\"Brownfield\",E109=\"Landfill\"),F109*'1) User Input and Sites'!$E$19/1000*10.7639,F109*'1) User Input and Sites'!$E$18/1000*10.7639))","v":""}]
[null,90,null,null,null,null,{"$f":"IF(E110=\"\",\"\",IF(OR(E110=\"Open Field\",E110=\"Brownfield\",E110=\"Landfill\"),IF(L110<'1) User Input and Sites'!$D$19,\"NO\",\"YES\"),IF(L110<'1) User Input and Sites'!$D$18,\"NO\",\"YES\")))","v":""},null,null,null,null,{"$f":"IF(E110=\"\",\"\",IF(OR(E110=\"Open Field\",E110=\"Brownfield\",E110=\"Landfill\"),F110*'1) User Input and Sites'!$E$19/1000*10.7639,F110*'1) User Input and Sites'!$E$18/1000*10.7639))","v":""}]
[null,91,null,null,null,null,{"$f":"IF(E111=\"\",\"\",IF(OR(E111=\"Open Field\",E111=\"Brownfield\",E111=\"Landfill\"),IF(L111<'1) User Input and Sites'!$D$19,\"NO\",\"YES\"),IF(L111<'1) User Input and Sites'!$D$18,\"NO\",\"YES\")))","v":""},null,null,null,null,{"$f":"IF(E111=\"\",\"\",IF(OR(E111=\"Open Field\",E111=\"Brownfield\",E111=\"Landfill\"),F111*'1) User Input and Sites'!$E$19/1000*10.7639,F111*'1) User Input and Sites'!$E$18/1000*10.7639))","v":""}]
[null,92,null,null,null,null,{"$f":"IF(E112=\"\",\"\",IF(OR(E112=\"Open Field\",E112=\"Brownfield\",E112=\"Landfill\"),IF(L112<'1) User Input and Sites'!$D$19,\"NO\",\"YES\"),IF(L112<'1) User Input and Sites'!$D$18,\"NO\",\"YES\")))","v":""},null,null,null,null,{"$f":"IF(E112=\"\",\"\",IF(OR(E112=\"Open Field\",E112=\"Brownfield\",E112=\"Landfill\"),F112*'1) User Input and Sites'!$E$19/1000*10.7639,F112*'1) User Input and Sites'!$E$18/1000*10.7639))","v":""}]
[null,93,null,null,null,null,{"$f":"IF(E113=\"\",\"\",IF(OR(E113=\"Open Field\",E113=\"Brownfield\",E113=\"Landfill\"),IF(L113<'1) User Input and Sites'!$D$19,\"NO\",\"YES\"),IF(L113<'1) User Input and Sites'!$D$18,\"NO\",\"YES\")))","v":""},null,null,null,null,{"$f":"IF(E113=\"\",\"\",IF(OR(E113=\"Open Field\",E113=\"Brownfield\",E113=\"Landfill\"),F113*'1) User Input and Sites'!$E$19/1000*10.7639,F113*'1) User Input and Sites'!$E$18/1000*10.7639))","v":""}]
[null,94,null,null,null,null,{"$f":"IF(E114=\"\",\"\",IF(OR(E114=\"Open Field\",E114=\"Brownfield\",E114=\"Landfill\"),IF(L114<'1) User Input and Sites'!$D$19,\"NO\",\"YES\"),IF(L114<'1) User Input and Sites'!$D$18,\"NO\",\"YES\")))","v":""},null,null,null,null,{"$f":"IF(E114=\"\",\"\",IF(OR(E114=\"Open Field\",E114=\"Brownfield\",E114=\"Landfill\"),F114*'1) User Input and Sites'!$E$19/1000*10.7639,F114*'1) User Input and Sites'!$E$18/1000*10.7639))","v":""}]
[null,95,null,null,null,null,{"$f":"IF(E115=\"\",\"\",IF(OR(E115=\"Open Field\",E115=\"Brownfield\",E115=\"Landfill\"),IF(L115<'1) User Input and Sites'!$D$19,\"NO\",\"YES\"),IF(L115<'1) User Input and Sites'!$D$18,\"NO\",\"YES\")))","v":""},null,null,null,null,{"$f":"IF(E115=\"\",\"\",IF(OR(E115=\"Open Field\",E115=\"Brownfield\",E115=\"Landfill\"),F115*'1) User Input and Sites'!$E$19/1000*10.7639,F115*'1) User Input and Sites'!$E$18/1000*10.7639))","v":""}]
[null,96,null,null,null,null,{"$f":"IF(E116=\"\",\"\",IF(OR(E116=\"Open Field\",E116=\"Brownfield\",E116=\"Landfill\"),IF(L116<'1) User Input and Sites'!$D$19,\"NO\",\"YES\"),IF(L116<'1) User Input and Sites'!$D$18,\"NO\",\"YES\")))","v":""},null,null,null,null,{"$f":"IF(E116=\"\",\"\",IF(OR(E116=\"Open Field\",E116=\"Brownfield\",E116=\"Landfill\"),F116*'1) User Input and Sites'!$E$19/1000*10.7639,F116*'1) User Input and Sites'!$E$18/1000*10.7639))","v":""}]
[null,97,null,null,null,null,{"$f":"IF(E117=\"\",\"\",IF(OR(E117=\"Open Field\",E117=\"Brownfield\",E117=\"Landfill\"),IF(L117<'1) User Input and Sites'!$D$19,\"NO\",\"YES\"),IF(L117<'1) User Input and Sites'!$D$18,\"NO\",\"YES\")))","v":""},null,null,null,null,{"$f":"IF(E117=\"\",\"\",IF(OR(E117=\"Open Field\",E117=\"Brownfield\",E117=\"Landfill\"),F117*'1) User Input and Sites'!$E$19/1000*10.7639,F117*'1) User Input and Sites'!$E$18/1000*10.7639))","v":""}]
[null,98,null,null,null,null,{"$f":"IF(E118=\"\",\"\",IF(OR(E118=\"Open Field\",E118=\"Brownfield\",E118=\"Landfill\"),IF(L118<'1) User Input and Sites'!$D$19,\"NO\",\"YES\"),IF(L118<'1) User Input and Sites'!$D$18,\"NO\",\"YES\")))","v":""},null,null,null,null,{"$f":"IF(E118=\"\",\"\",IF(OR(E118=\"Open Field\",E118=\"Brownfield\",E118=\"Landfill\"),F118*'1) User Input and Sites'!$E$19/1000*10.7639,F118*'1) User Input and Sites'!$E$18/1000*10.7639))","v":""}]
[null,99,null,null,null,null,{"$f":"IF(E119=\"\",\"\",IF(OR(E119=\"Open Field\",E119=\"Brownfield\",E119=\"Landfill\"),IF(L119<'1) User Input and Sites'!$D$19,\"NO\",\"YES\"),IF(L119<'1) User Input and Sites'!$D$18,\"NO\",\"YES\")))","v":""},null,null,null,null,{"$f":"IF(E119=\"\",\"\",IF(OR(E119=\"Open Field\",E119=\"Brownfield\",E119=\"Landfill\"),F119*'1) User Input and Sites'!$E$19/1000*10.7639,F119*'1) User Input and Sites'!$E$18/1000*10.7639))","v":""}]
[null,100,null,null,null,null,{"$f":"IF(E120=\"\",\"\",IF(OR(E120=\"Open Field\",E120=\"Brownfield\",E120=\"Landfill\"),IF(L120<'1) User Input and Sites'!$D$19,\"NO\",\"YES\"),IF(L120<'1) User Input and Sites'!$D$18,\"NO\",\"YES\")))","v":""},null,null,null,null,{"$f":"IF(E120=\"\",\"\",IF(OR(E120=\"Open Field\",E120=\"Brownfield\",E120=\"Landfill\"),F120*'1) User Input and Sites'!$E$19/1000*10.7639,F120*'1) User Input and Sites'!$E$18/1000*10.7639))","v":""}]

{"sheet":"6) Permit Checklists","index":12,"n_rows":56,"n_cols":7,"rows_kept":56,"cut":false,"hidden":false,"merged":[[55,1,55,2],[20,5,20,6],[11,5,11,6],[52,1,53,1],[49,1,51,1],[11,1,11,2],[19,1,19,2],[28,1,28,2],[20,1,22,1],[29,1,38,1],[43,1,43,2],[47,1,48,1]]}
[null,"6. Permit Checklists"]
[]
[]
[]
[]
[]
[]
[]
[]
[null,"GROUND-MOUNT PERMITS (General)",null,null,null,"ROOFTOP PERMITS"]
[null,"Permitting Agency","Permit/Approval",null,null,"Permitting Agency","Permit/Approval"]
[null,"Federal/National",null,null,null,"City/County/Local"]
[null,"USFWS (or State Agency) ","Wildlife review",null,null,"Utility","Interconnection Agreement"]
[null,"Army Corps of Engineers","Nationwide Permit or other permit if wetlands or waters of U.S.",null,null,"AHJ","Planning & Zoning approval"]
[null,"DUNS number","Unique number assigned to project company",null,null,"AHJ","Building Permit/Structural review"]
[null,"EPA","Spill Prevention Control and Countermeasure (SPCC)",null,null,"AHJ","Electrical review"]
[null,"GATS ","Registration of facility for certification number to generate RECs",null,null,"Fire Department or AHJ","Fire District permitting or review (if applicable)"]
[null,"FERC","Self-certification of facility as a qualifying facility",null,null,"AHJ","Conditional Use Permit (if applicable)"]
[null,"NEPA","EA, EIS, FONSI (if federal nexus)",null,null,"AHJ","Historic District approval (if applicable)"]
[null,"State",null,null,null,"AHJ?","Environmental permitting (if applicable)"]
[null,"State environmental protection agency","Construction Storm Water General Permit, notice of termination",null,null,"Primary Source: Lisell, L. and Day, M. \"Module 3: Detailed Site Evaluation, Project Validation, and Permitting.\" NREL. (https://www.nrel.gov/docs/fy18osti/71690.pdf)"]
[null,null,"Storm Water Pollution Prevention Plan (SWPPP) - if greater than one acre will be disturbed"]
[null,null,"Natural Heritage & Endangered Species Program review"]
[null,"Water management or aquifer authority","Coordination/approval/additional permitting requirements"]
[null,"Historic preservation office","Cultural resources survey review/concurrency"]
[null,"State power siting authority","Siting approval"]
[null,"State PUC or electric resource council","Interconnection/resource plan approval/REC registration"]
[null,"Secrety of State","Notice of Commencement"]
[null,"City/County/Local"]
[null,"City/County","Platting"]
[null,null,"Planning & Zoning/land use approval"]
[null,null,"Tree/site clearing permit"]
[null,null,"Floodplain development permit"]
[null,null,"Regional stormwater management participation"]
[null,null,"Driveway/right-of-way permit"]
[null,null,"Cultural resources survey review"]
[null,null,"Construction trailer permit"]
[null,null,"Site work permit, building permit, Certificate of Occupancy"]
[null,null,"Fence permit"]
[null,"County Fire Marshal","Fire code/fire plan approval"]
[null,"Soil & Water Conservation District","Approval/coordination"]
[null,"Nearby airport/FAA","Construction notice, crane notice, glare study"]
[null,"Utility","Interconnection Agreement"]
[null,"Primary Source: Lisell, L. and Day, M. \"Module 3: Detailed Site Evaluation, Project Validation, and Permitting.\" NREL. (https://www.nrel.gov/docs/fy18osti/71690.pdf)"]
[]
[null,"GROUND-MOUNT PERMITS (Landfill-specific)"]
[null,"Permitting Agency","Permit/Approval"]
[null,"State Department of Environmental Protection (or equivalent)","Landfill Post-Closure Use Permit"]
[null,null,"Determination of Landfill Closure Completion"]
[null,"Local","Notice of Intent (NOI)/Request for Determination of Applicability for work near wetlands"]
[null,null,"Site Plan/Site Plan Special Permit"]
[null,null,"Zoning-related permits"]
[null,"EPA","Notice of Intent (NOI)"]
[null,null,"National Pollutant Discharge Elimination System (NPDES) stormwater permitting under the Clean Water Act (CWA) - for active construction and operation phases"]
[null,"Lead agency","Record of Decision (ROD) amendment"]
[null,"Primary Source: Kiatreungwattana, K, et al. \"Best Practices for Siting Solar Photovoltaics on Municipal Solid Waste Landfills.\" EPA, NREL, Feb 2013. (https://www.nrel.gov/docs/fy13osti/52615.pdf)"]

{"sheet":"Resources","index":13,"n_rows":148,"n_cols":2,"rows_kept":148,"cut":false,"hidden":false,"merged":[]}
["     Resources (Links & Figures)"]
[]
["Resources mentioned in this document","Link"]
["American Cities Climate Challenge (ACCC) Renewables Accelerator Procurement Guidance","https://cityrenewables.org/overview/"]
["ACCC Renewables Accelerator Tools & Resources ","https://cityrenewables.org/tools-resources/"]
["ACCC Webinar: On-Site Siting and Sizing","https://cityrenewables.org/on-site-solar/siting-and-potential/"]
["ArcGIS Online World Topographic Map","https://www.arcgis.com/home/webmap/viewer.html?useExisting=1&layers=30e5fe3149c34df1ba922e6f5bbf808f"]
["Central Hudson Hosting Capacity Map","https://www.cenhud.com/my-energy/distributed-generation/hosting-capacity-map/"]
["Comprehensive Environmental Response, Compensation, and Liability Act (CERCLA) (EPA Summary)","https://www.epa.gov/laws-regulations/summary-comprehensive-environmental-response-compensation-and-liability-act"]
["CleanEnergy States Alliance (CESA) State Pollinator-Friendly Solar Initiatives Report","https://www.cesa.org/assets/State-Pollinator-Friendly-Solar-Initiatives.pdf"]
["Cleanups in My Community (CIMC) Search page","https://www.epa.gov/cleanups/cleanups-my-community"]
["Community Solar Business Case Tool","https://www.elevateenergy.org/programs/solar-energy/community-solar/communitysolarbusinesscasetool/"]
["conEdison Hosting Capacity Maps","https://www.coned.com/en/business-partners/hosting-capacity"]
["Database of State Incentives for Renewables & Efficiency (DSIRE)","https://www.dsireusa.org/"]
["DOE's SolSmart Program ","https://www.solsmart.org/"]
["DSIRE Net Metering","https://programs.dsireusa.org/system/program?type=37&"]
["DSIRE Summary Map","https://programs.dsireusa.org/system/program/maps"]
["EPA's “Cleaning up Brownfields under State Response Programs – Getting to ‘No Further Action’”","https://www.epa.gov/brownfields/detailed-reports-about-state-and-tribal-brownfields-response-programs"]
["EPA's “Will I be Held Liable for Existing Contamination?”","https://www.epa.gov/re-powering/re-powering-key-considerations#liable"]
["EPA's Best Practices for Siting Solar Photovoltaics on MSW Landfills","https://www.epa.gov/sites/production/files/2015-03/documents/best_practices_siting_solar_photovoltaic_final.pdf"]
["EPA's Brownfields Program Grant Funding ","https://www.epa.gov/brownfields/types-brownfields-grant-funding"]
["EPA’s “2017 State Brownfields and Voluntary Response Programs”","https://www.epa.gov/brownfields/detailed-reports-about-state-and-tribal-brownfields-response-programs"]
["EPA’s “Revitalization Handbook”","https://www.epa.gov/sites/production/files/2014-06/documents/revitalization-handbook-2014-cleanup-enforcement.pdf"]
["EPA’s Cleanups at Federal Facilities","https://www.epa.gov/fedfac/institutional-controls-guide-planning-implementing-maintaining-and-enforcing-institutional"]
["EPA’s Superfund Search","https://www.epa.gov/superfund/search-superfund-sites-where-you-live"]
["FAA Regional & District/Development Offices ","https://www.faa.gov/about/office_org/headquarters_offices/arp/regional_offices/"]
["FEMA’s Flood Map Service Center","https://msc.fema.gov/portal/home#"]
["Google Earth","https://www.google.com/earth/"]
["Google Maps","https://www.google.com/maps"]
["Grants.gov Federal Grant Search","https://www.grants.gov/web/grants/search-grants.html"]
["LBNL's Tracking the Sun Report","https://emp.lbl.gov/tracking-the-sun"]
["Michigan Pollinator Habitat Planning Scorecard for Solar Sites","https://www.canr.msu.edu/pollinators_and_pollination/uploads/files/MSU_Solar_Pollinators_Scorecard_2018.pdf"]
["National Conference of State Legislature (NCSL) Net Metering","http://www.ncsl.org/research/energy/net-metering-policy-overview-and-state-legislative-updates.aspx#aggregate"]
["National Electrical Code (NEC) Adoption Map","https://www.nfpa.org/NEC/NEC-adoption-and-use/NEC-adoption-maps"]
["National Register of Historic Places","https://www.nps.gov/maps/full.html?mapId=7ad17cc9-b808-4ff8-a2f9-a99909164466"]
["National Wetlands Inventory","https://www.fws.gov/wetlands/data/Mapper.html"]
["NCSL Shared Renewable Energy Legislation ","http://www.ncsl.org/research/energy/state-policies-for-shared-renewable-energy.aspx"]
["NFPA CodeFinder Tool","https://codefinder.nfpa.org/"]
["North American Board of Certified Energy Practitioners (NABCEP) Company Accreditation Directory","https://www.nabcep.org/accredited/"]
["NREL's Distribution Grid Integration Unit Cost Database ","https://www.nrel.gov/solar/distribution-grid-integration-unit-cost-database.html"]
["NREL's PVWatts","https://pvwatts.nrel.gov/"]
["NREL's REopt Lite","https://reopt.nrel.gov/tool"]
["PG&E Hosting Capacity","https://www.pge.com/en_US/for-our-business-partners/distribution-resource-planning/distribution-resource-planning-data-portal.page"]
["Project Sunroof","https://www.google.com/get/sunroof"]
["RE-Powering Mapper 2.0","https://geopub.epa.gov/repoweringApp/"]
["Re-powering's Electronic Decision Tool","https://www.epa.gov/re-powering/re-powerings-electronic-decision-tree"]
["Roof Pitch Calculator","https://www.inchcalculator.com/roof-pitch-calculator/"]
["SAM (System Advisor Model)","https://sam.nrel.gov/"]
["SEIA Performance-Based Incentives","https://www.seia.org/initiatives/performance-based-incentives"]
["SEIA Solar Investment Tax Credit (ITC)","https://www.seia.org/initiatives/solar-investment-tax-credit-itc"]
["Solar Energy Industries Association (SEIA) Local Solar Permitting","https://www.seia.org/initiatives/local-solar-permitting"]
["Solar Energy Industries Association (SEIA) Member Directory","https://www.seia.org/directory"]
["Solar Financial Simulator","https://www.solarprojectbuilder.org/"]
["State Historic Preservation Office List","https://www.nps.gov/subjects/nationalregister/state-historic-preservation-offices.htm"]
["SWOPEC (Solar and Wind Off-site Power Purchase Agreements Economic Calculator)","https://cityrenewables.org/wp-content/uploads/2020/01/SWOPEC_Tool.xlsx"]
["U.S. Department of Homeland Security's Electric Power Transmission Lines map","https://hifld-geoplatform.opendata.arcgis.com/datasets/electric-power-transmission-lines/geoservice?geometry=-111.302%2C35.048%2C-80.651%2C41.096"]
["U.S. Fish & Wildlife Service Threatened & Endangered Species Critical Habitat zones","https://fws.maps.arcgis.com/home/webmap/viewer.html?webmap=9d8de5e265ad4fe09893cf75b8dbfb77"]
["USGS Protected Areas Database of the US (PADUS)","https://maps.usgs.gov/padus/"]
["Xcel Energy Hosting Capacity Map","https://www.xcelenergy.com/working_with_us/how_to_interconnect/hosting_capacity_map"]
[]
[]
["Figures Referenced in this document"]
[]
[]
[]
[]
[]
[]
[]
[]
[]
[]
[]
[]
[]
[]
[]
["Figure 1. Installed Price of 2018 Non-Residential Systems by Size (Source: LBNL Tracking the Sun 2019)"]
[]
[]
[]
[]
[]
[]
[]
[]
[]
[]
[]
[]
[]
[]
[]
[]
[]
[]
[]
[]
[]
[" Figure 2. 2018 Installed Prices by Mounting Configuration (Source: LBNL Tracking the Sun 2019)"]
[]
[]
[]
[]
[]
[]
[]
[]
[]
[]
[]
[]
[]
[]
[]
[]
[]
[]
[]
[]
[]
[]
[]
[]
[]
[]
[]
[]
[]
[]
[]
[]
[]
[]
[]
[]
[]
[]
[]
[]
[]
[]
[]
[]
[]
[]
[]
["Figure 3. Roof pitch diagram chart (Source: https://roofvents.com/roof-pitch/)","Figure 4. Roof pitch expressed in degrees (Source: https://www.roofingcalc.com/roof-pitch/)"]

{"sheet":"Lists","index":14,"n_rows":6,"n_cols":9,"rows_kept":6,"cut":false,"hidden":true,"merged":[]}
["All Sites",null,"Yes/No",null,"Pass/Fail",null,"Site Types",null,"Priority Ranking"]
["Roof",null,"Yes",null,"Pass",null,"Building Rooftop",null,"Low Priority"]
["Land",null,"No",null,"Fail",null,"Parking Canopy",null,"Medium Priority"]
["Parking Lot",null,null,null,null,null,"Open Field",null,"High Priority"]
[null,null,null,null,null,null,"Brownfield"]
[null,null,null,null,null,null,"Landfill"]